{"text_format":"1","workbook":"xlsx","n_sheets":7,"sheets":["EXCELeINFO","Funciones LET y LAMBDA","VBA y macros","Lenguaje M con Power Query","Separadores","Relleno rápido","Sustituciones"],"not_rendered":{"charts":0,"images":4,"macros":1,"external_links":0,"defined_names":32,"comments":1,"pivot_tables":0},"unopened":[],"bounds":{"document_bytes":16777216,"sheet_cells":100000,"rows_first":2000,"rows_last":500,"rows_between":2000,"halvings":0,"cell_chars":16384,"cell_head_chars":4096},"cells_cut":0,"cells_raw":0,"read":"whole","date_system":"1900"}

{"sheet":"EXCELeINFO","index":0,"n_rows":20,"n_cols":4,"rows_kept":20,"cut":false,"hidden":false,"merged":[]}
["Recursos para ser un experto en Excel"]
[{"$f":"HYPERLINK(\"https://www.youtube.com/user/sergioacamposh\",\"https://www.youtube.com/user/sergioacamposh\")","v":"https://www.youtube.com/user/sergioacamposh"}]
[{"$f":"HYPERLINK(\"https://www.exceleinfo.com\",\"https://www.exceleinfo.com\")","v":"https://www.exceleinfo.com"}]
[{"$f":"HYPERLINK(\"https://addin.exceleinfo.com\",\"https://addin.exceleinfo.com\")","v":"https://addin.exceleinfo.com"}]
[]
[]
[]
[]
[]
[null,null,"Blog ExcelForo de Ismael Romero, Microsoft MVP Excel"]
[null,null,"https://excelforo.blogspot.com/2016/07/vba-descomponer-nombres-y-apellidos.html"]
[null,null,"https://excelforo.blogspot.com/2020/12/power-query-separar-nombres-y-apellidos.html"]
[null,null,"https://excelforo.blogspot.com/2021/02/Separar-Nombre-Apellidos-SOLO-formulas.html"]
[]
[null,null,"ê         ê         ê         ê        ê"]
[null,"è","4º truco con Relleno rápido para separar nombres y apellidos compuestos","ç"]
[null,"è","Blog Pedro Wave for Excel Guys","ç"]
[null,"è","https://pedrowave.blogspot.com","ç"]
[null,"è","Abre aquí la hoja 'Relleno rápido' y lee las notas de las celdas D1 y G1","ç"]
[null,null,"é         é         é         é        é"]

{"sheet":"Funciones LET y LAMBDA","index":1,"n_rows":70,"n_cols":6,"rows_kept":70,"cut":false,"hidden":false,"merged":[]}
["NOMBRE","NOMBRE","PATERNO","MATERNO"]
["Berenice Naranjo González",{"$f":"IFERROR(_xlfn.LET(_xlpm.Paso0,SUBSTITUTE(PROPER(A2),\" \",\"| \"),\n_xlpm.Paso1,_xlfn.TEXTJOIN(\" \",0,\nIFERROR(VLOOKUP(_xlfn.FILTERXML(\"<ini><fila><dato>\"&SUBSTITUTE(_xlpm.Paso0,\" \",\"</dato><dato>\")&\"</dato></fila></ini>\",\"//ini/fila/dato\"),TblReemp[],2,0),\n_xlfn.FILTERXML(\"<ini><fila><dato>\"&SUBSTITUTE(_xlpm.Paso0,\" \",\"</dato><dato>\")&\"</dato></fila></ini>\",\"//ini/fila/dato\"))),\n_xlpm.Partes,LEN(_xlpm.Paso1)-LEN(SUBSTITUTE(_xlpm.Paso1,\"|\",\"\"))+1,\n_xlpm.part1,TRANSPOSE(_xlfn.FILTERXML(\"<ini><fila><dato>\"&SUBSTITUTE(_xlpm.Paso1,\"|\",\"</dato><dato>\")&\"</dato></fila></ini>\",\"//ini/fila/dato[1]\")),\n_xlpm.part2,TRANSPOSE(_xlfn.FILTERXML(\"<ini><fila><dato>\"&SUBSTITUTE(_xlpm.Paso1,\"|\",\"</dato><dato>\")&\"</dato></fila></ini>\",\"//ini/fila/dato[2]\")),\n_xlpm.part3,TRANSPOSE(_xlfn.FILTERXML(\"<ini><fila><dato>\"&SUBSTITUTE(_xlpm.Paso1,\"|\",\"</dato><dato>\")&\"</dato></fila></ini>\",\"//ini/fila/dato[3]\")),\n_xlpm.part4,TRANSPOSE(_xlfn.FILTERXML(\"<ini><fila><dato>\"&SUBSTITUTE(_xlpm.Paso1,\"|\",\"</dato><dato>\")&\"</dato></fila></ini>\",\"//ini/fila/dato[4]\")),\nIF(_xlpm.Partes>3,\nTRANSPOSE(_xlfn.FILTERXML(\"<ini><fila><dato>\"&_xlfn.TEXTJOIN(\"</dato><dato>\",FALSE,_xlpm.part1&\" \"&_xlpm.part2,_xlpm.part3,IFERROR(_xlpm.part4,\"\"))&\"</dato></fila></ini>\",\"//ini/fila/dato\")),\nTRANSPOSE(_xlfn.FILTERXML(\"<ini><fila><dato>\"&_xlfn.TEXTJOIN(\"</dato><dato>\",FALSE,_xlpm.part1,IFERROR(_xlpm.part2,\"\"),IFERROR(_xlpm.part3,\"\"))&\"</dato></fila></ini>\",\"//ini/fila/dato\")))),\"\")","v":"Berenice"},"Naranjo","González",null,{"$f":"SepararNombresFx(A15)","v":{"$error":"#NAME?"}}]
["Alexis Campos Naranjo",{"$f":"IFERROR(_xlfn.LET(_xlpm.Paso0,SUBSTITUTE(PROPER(A3),\" \",\"| \"),\n_xlpm.Paso1,_xlfn.TEXTJOIN(\" \",0,\nIFERROR(VLOOKUP(_xlfn.FILTERXML(\"<ini><fila><dato>\"&SUBSTITUTE(_xlpm.Paso0,\" \",\"</dato><dato>\")&\"</dato></fila></ini>\",\"//ini/fila/dato\"),TblReemp[],2,0),\n_xlfn.FILTERXML(\"<ini><fila><dato>\"&SUBSTITUTE(_xlpm.Paso0,\" \",\"</dato><dato>\")&\"</dato></fila></ini>\",\"//ini/fila/dato\"))),\n_xlpm.Partes,LEN(_xlpm.Paso1)-LEN(SUBSTITUTE(_xlpm.Paso1,\"|\",\"\"))+1,\n_xlpm.part1,TRANSPOSE(_xlfn.FILTERXML(\"<ini><fila><dato>\"&SUBSTITUTE(_xlpm.Paso1,\"|\",\"</dato><dato>\")&\"</dato></fila></ini>\",\"//ini/fila/dato[1]\")),\n_xlpm.part2,TRANSPOSE(_xlfn.FILTERXML(\"<ini><fila><dato>\"&SUBSTITUTE(_xlpm.Paso1,\"|\",\"</dato><dato>\")&\"</dato></fila></ini>\",\"//ini/fila/dato[2]\")),\n_xlpm.part3,TRANSPOSE(_xlfn.FILTERXML(\"<ini><fila><dato>\"&SUBSTITUTE(_xlpm.Paso1,\"|\",\"</dato><dato>\")&\"</dato></fila></ini>\",\"//ini/fila/dato[3]\")),\n_xlpm.part4,TRANSPOSE(_xlfn.FILTERXML(\"<ini><fila><dato>\"&SUBSTITUTE(_xlpm.Paso1,\"|\",\"</dato><dato>\")&\"</dato></fila></ini>\",\"//ini/fila/dato[4]\")),\nIF(_xlpm.Partes>3,\nTRANSPOSE(_xlfn.FILTERXML(\"<ini><fila><dato>\"&_xlfn.TEXTJOIN(\"</dato><dato>\",FALSE,_xlpm.part1&\" \"&_xlpm.part2,_xlpm.part3,IFERROR(_xlpm.part4,\"\"))&\"</dato></fila></ini>\",\"//ini/fila/dato\")),\nTRANSPOSE(_xlfn.FILTERXML(\"<ini><fila><dato>\"&_xlfn.TEXTJOIN(\"</dato><dato>\",FALSE,_xlpm.part1,IFERROR(_xlpm.part2,\"\"),IFERROR(_xlpm.part3,\"\"))&\"</dato></fila></ini>\",\"//ini/fila/dato\")))),\"\")","v":"Alexis"},"Campos","Naranjo"]
["Sergio Alejandro Campos Hernandez",{"$f":"IFERROR(_xlfn.LET(_xlpm.Paso0,SUBSTITUTE(PROPER(A4),\" \",\"| \"),\n_xlpm.Paso1,_xlfn.TEXTJOIN(\" \",0,\nIFERROR(VLOOKUP(_xlfn.FILTERXML(\"<ini><fila><dato>\"&SUBSTITUTE(_xlpm.Paso0,\" \",\"</dato><dato>\")&\"</dato></fila></ini>\",\"//ini/fila/dato\"),TblReemp[],2,0),\n_xlfn.FILTERXML(\"<ini><fila><dato>\"&SUBSTITUTE(_xlpm.Paso0,\" \",\"</dato><dato>\")&\"</dato></fila></ini>\",\"//ini/fila/dato\"))),\n_xlpm.Partes,LEN(_xlpm.Paso1)-LEN(SUBSTITUTE(_xlpm.Paso1,\"|\",\"\"))+1,\n_xlpm.part1,TRANSPOSE(_xlfn.FILTERXML(\"<ini><fila><dato>\"&SUBSTITUTE(_xlpm.Paso1,\"|\",\"</dato><dato>\")&\"</dato></fila></ini>\",\"//ini/fila/dato[1]\")),\n_xlpm.part2,TRANSPOSE(_xlfn.FILTERXML(\"<ini><fila><dato>\"&SUBSTITUTE(_xlpm.Paso1,\"|\",\"</dato><dato>\")&\"</dato></fila></ini>\",\"//ini/fila/dato[2]\")),\n_xlpm.part3,TRANSPOSE(_xlfn.FILTERXML(\"<ini><fila><dato>\"&SUBSTITUTE(_xlpm.Paso1,\"|\",\"</dato><dato>\")&\"</dato></fila></ini>\",\"//ini/fila/dato[3]\")),\n_xlpm.part4,TRANSPOSE(_xlfn.FILTERXML(\"<ini><fila><dato>\"&SUBSTITUTE(_xlpm.Paso1,\"|\",\"</dato><dato>\")&\"</dato></fila></ini>\",\"//ini/fila/dato[4]\")),\nIF(_xlpm.Partes>3,\nTRANSPOSE(_xlfn.FILTERXML(\"<ini><fila><dato>\"&_xlfn.TEXTJOIN(\"</dato><dato>\",FALSE,_xlpm.part1&\" \"&_xlpm.part2,_xlpm.part3,IFERROR(_xlpm.part4,\"\"))&\"</dato></fila></ini>\",\"//ini/fila/dato\")),\nTRANSPOSE(_xlfn.FILTERXML(\"<ini><fila><dato>\"&_xlfn.TEXTJOIN(\"</dato><dato>\",FALSE,_xlpm.part1,IFERROR(_xlpm.part2,\"\"),IFERROR(_xlpm.part3,\"\"))&\"</dato></fila></ini>\",\"//ini/fila/dato\")))),\"\")","v":"Sergio Alejandro"},"Campos","Hernandez"]
["Alejandra De los Santos Briones",{"$f":"IFERROR(_xlfn.LET(_xlpm.Paso0,SUBSTITUTE(PROPER(A5),\" \",\"| \"),\n_xlpm.Paso1,_xlfn.TEXTJOIN(\" \",0,\nIFERROR(VLOOKUP(_xlfn.FILTERXML(\"<ini><fila><dato>\"&SUBSTITUTE(_xlpm.Paso0,\" \",\"</dato><dato>\")&\"</dato></fila></ini>\",\"//ini/fila/dato\"),TblReemp[],2,0),\n_xlfn.FILTERXML(\"<ini><fila><dato>\"&SUBSTITUTE(_xlpm.Paso0,\" \",\"</dato><dato>\")&\"</dato></fila></ini>\",\"//ini/fila/dato\"))),\n_xlpm.Partes,LEN(_xlpm.Paso1)-LEN(SUBSTITUTE(_xlpm.Paso1,\"|\",\"\"))+1,\n_xlpm.part1,TRANSPOSE(_xlfn.FILTERXML(\"<ini><fila><dato>\"&SUBSTITUTE(_xlpm.Paso1,\"|\",\"</dato><dato>\")&\"</dato></fila></ini>\",\"//ini/fila/dato[1]\")),\n_xlpm.part2,TRANSPOSE(_xlfn.FILTERXML(\"<ini><fila><dato>\"&SUBSTITUTE(_xlpm.Paso1,\"|\",\"</dato><dato>\")&\"</dato></fila></ini>\",\"//ini/fila/dato[2]\")),\n_xlpm.part3,TRANSPOSE(_xlfn.FILTERXML(\"<ini><fila><dato>\"&SUBSTITUTE(_xlpm.Paso1,\"|\",\"</dato><dato>\")&\"</dato></fila></ini>\",\"//ini/fila/dato[3]\")),\n_xlpm.part4,TRANSPOSE(_xlfn.FILTERXML(\"<ini><fila><dato>\"&SUBSTITUTE(_xlpm.Paso1,\"|\",\"</dato><dato>\")&\"</dato></fila></ini>\",\"//ini/fila/dato[4]\")),\nIF(_xlpm.Partes>3,\nTRANSPOSE(_xlfn.FILTERXML(\"<ini><fila><dato>\"&_xlfn.TEXTJOIN(\"</dato><dato>\",FALSE,_xlpm.part1&\" \"&_xlpm.part2,_xlpm.part3,IFERROR(_xlpm.part4,\"\"))&\"</dato></fila></ini>\",\"//ini/fila/dato\")),\nTRANSPOSE(_xlfn.FILTERXML(\"<ini><fila><dato>\"&_xlfn.TEXTJOIN(\"</dato><dato>\",FALSE,_xlpm.part1,IFERROR(_xlpm.part2,\"\"),IFERROR(_xlpm.part3,\"\"))&\"</dato></fila></ini>\",\"//ini/fila/dato\")))),\"\")","v":"Alejandra"},"De Los Santos","Briones"]
["Aurora Leticia Escalante De Loma",{"$f":"IFERROR(_xlfn.LET(_xlpm.Paso0,SUBSTITUTE(PROPER(A6),\" \",\"| \"),\n_xlpm.Paso1,_xlfn.TEXTJOIN(\" \",0,\nIFERROR(VLOOKUP(_xlfn.FILTERXML(\"<ini><fila><dato>\"&SUBSTITUTE(_xlpm.Paso0,\" \",\"</dato><dato>\")&\"</dato></fila></ini>\",\"//ini/fila/dato\"),TblReemp[],2,0),\n_xlfn.FILTERXML(\"<ini><fila><dato>\"&SUBSTITUTE(_xlpm.Paso0,\" \",\"</dato><dato>\")&\"</dato></fila></ini>\",\"//ini/fila/dato\"))),\n_xlpm.Partes,LEN(_xlpm.Paso1)-LEN(SUBSTITUTE(_xlpm.Paso1,\"|\",\"\"))+1,\n_xlpm.part1,TRANSPOSE(_xlfn.FILTERXML(\"<ini><fila><dato>\"&SUBSTITUTE(_xlpm.Paso1,\"|\",\"</dato><dato>\")&\"</dato></fila></ini>\",\"//ini/fila/dato[1]\")),\n_xlpm.part2,TRANSPOSE(_xlfn.FILTERXML(\"<ini><fila><dato>\"&SUBSTITUTE(_xlpm.Paso1,\"|\",\"</dato><dato>\")&\"</dato></fila></ini>\",\"//ini/fila/dato[2]\")),\n_xlpm.part3,TRANSPOSE(_xlfn.FILTERXML(\"<ini><fila><dato>\"&SUBSTITUTE(_xlpm.Paso1,\"|\",\"</dato><dato>\")&\"</dato></fila></ini>\",\"//ini/fila/dato[3]\")),\n_xlpm.part4,TRANSPOSE(_xlfn.FILTERXML(\"<ini><fila><dato>\"&SUBSTITUTE(_xlpm.Paso1,\"|\",\"</dato><dato>\")&\"</dato></fila></ini>\",\"//ini/fila/dato[4]\")),\nIF(_xlpm.Partes>3,\nTRANSPOSE(_xlfn.FILTERXML(\"<ini><fila><dato>\"&_xlfn.TEXTJOIN(\"</dato><dato>\",FALSE,_xlpm.part1&\" \"&_xlpm.part2,_xlpm.part3,IFERROR(_xlpm.part4,\"\"))&\"</dato></fila></ini>\",\"//ini/fila/dato\")),\nTRANSPOSE(_xlfn.FILTERXML(\"<ini><fila><dato>\"&_xlfn.TEXTJOIN(\"</dato><dato>\",FALSE,_xlpm.part1,IFERROR(_xlpm.part2,\"\"),IFERROR(_xlpm.part3,\"\"))&\"</dato></fila></ini>\",\"//ini/fila/dato\")))),\"\")","v":"Aurora Leticia"},"Escalante","De Loma"]
["Joycelene Fabiola Estrada Barba",{"$f":"IFERROR(_xlfn.LET(_xlpm.Paso0,SUBSTITUTE(PROPER(A7),\" \",\"| \"),\n_xlpm.Paso1,_xlfn.TEXTJOIN(\" \",0,\nIFERROR(VLOOKUP(_xlfn.FILTERXML(\"<ini><fila><dato>\"&SUBSTITUTE(_xlpm.Paso0,\" \",\"</dato><dato>\")&\"</dato></fila></ini>\",\"//ini/fila/dato\"),TblReemp[],2,0),\n_xlfn.FILTERXML(\"<ini><fila><dato>\"&SUBSTITUTE(_xlpm.Paso0,\" \",\"</dato><dato>\")&\"</dato></fila></ini>\",\"//ini/fila/dato\"))),\n_xlpm.Partes,LEN(_xlpm.Paso1)-LEN(SUBSTITUTE(_xlpm.Paso1,\"|\",\"\"))+1,\n_xlpm.part1,TRANSPOSE(_xlfn.FILTERXML(\"<ini><fila><dato>\"&SUBSTITUTE(_xlpm.Paso1,\"|\",\"</dato><dato>\")&\"</dato></fila></ini>\",\"//ini/fila/dato[1]\")),\n_xlpm.part2,TRANSPOSE(_xlfn.FILTERXML(\"<ini><fila><dato>\"&SUBSTITUTE(_xlpm.Paso1,\"|\",\"</dato><dato>\")&\"</dato></fila></ini>\",\"//ini/fila/dato[2]\")),\n_xlpm.part3,TRANSPOSE(_xlfn.FILTERXML(\"<ini><fila><dato>\"&SUBSTITUTE(_xlpm.Paso1,\"|\",\"</dato><dato>\")&\"</dato></fila></ini>\",\"//ini/fila/dato[3]\")),\n_xlpm.part4,TRANSPOSE(_xlfn.FILTERXML(\"<ini><fila><dato>\"&SUBSTITUTE(_xlpm.Paso1,\"|\",\"</dato><dato>\")&\"</dato></fila></ini>\",\"//ini/fila/dato[4]\")),\nIF(_xlpm.Partes>3,\nTRANSPOSE(_xlfn.FILTERXML(\"<ini><fila><dato>\"&_xlfn.TEXTJOIN(\"</dato><dato>\",FALSE,_xlpm.part1&\" \"&_xlpm.part2,_xlpm.part3,IFERROR(_xlpm.part4,\"\"))&\"</dato></fila></ini>\",\"//ini/fila/dato\")),\nTRANSPOSE(_xlfn.FILTERXML(\"<ini><fila><dato>\"&_xlfn.TEXTJOIN(\"</dato><dato>\",FALSE,_xlpm.part1,IFERROR(_xlpm.part2,\"\"),IFERROR(_xlpm.part3,\"\"))&\"</dato></fila></ini>\",\"//ini/fila/dato\")))),\"\")","v":"Joycelene Fabiola"},"Estrada","Barba"]
["Francisco Estrada Gomez",{"$f":"IFERROR(_xlfn.LET(_xlpm.Paso0,SUBSTITUTE(PROPER(A8),\" \",\"| \"),\n_xlpm.Paso1,_xlfn.TEXTJOIN(\" \",0,\nIFERROR(VLOOKUP(_xlfn.FILTERXML(\"<ini><fila><dato>\"&SUBSTITUTE(_xlpm.Paso0,\" \",\"</dato><dato>\")&\"</dato></fila></ini>\",\"//ini/fila/dato\"),TblReemp[],2,0),\n_xlfn.FILTERXML(\"<ini><fila><dato>\"&SUBSTITUTE(_xlpm.Paso0,\" \",\"</dato><dato>\")&\"</dato></fila></ini>\",\"//ini/fila/dato\"))),\n_xlpm.Partes,LEN(_xlpm.Paso1)-LEN(SUBSTITUTE(_xlpm.Paso1,\"|\",\"\"))+1,\n_xlpm.part1,TRANSPOSE(_xlfn.FILTERXML(\"<ini><fila><dato>\"&SUBSTITUTE(_xlpm.Paso1,\"|\",\"</dato><dato>\")&\"</dato></fila></ini>\",\"//ini/fila/dato[1]\")),\n_xlpm.part2,TRANSPOSE(_xlfn.FILTERXML(\"<ini><fila><dato>\"&SUBSTITUTE(_xlpm.Paso1,\"|\",\"</dato><dato>\")&\"</dato></fila></ini>\",\"//ini/fila/dato[2]\")),\n_xlpm.part3,TRANSPOSE(_xlfn.FILTERXML(\"<ini><fila><dato>\"&SUBSTITUTE(_xlpm.Paso1,\"|\",\"</dato><dato>\")&\"</dato></fila></ini>\",\"//ini/fila/dato[3]\")),\n_xlpm.part4,TRANSPOSE(_xlfn.FILTERXML(\"<ini><fila><dato>\"&SUBSTITUTE(_xlpm.Paso1,\"|\",\"</dato><dato>\")&\"</dato></fila></ini>\",\"//ini/fila/dato[4]\")),\nIF(_xlpm.Partes>3,\nTRANSPOSE(_xlfn.FILTERXML(\"<ini><fila><dato>\"&_xlfn.TEXTJOIN(\"</dato><dato>\",FALSE,_xlpm.part1&\" \"&_xlpm.part2,_xlpm.part3,IFERROR(_xlpm.part4,\"\"))&\"</dato></fila></ini>\",\"//ini/fila/dato\")),\nTRANSPOSE(_xlfn.FILTERXML(\"<ini><fila><dato>\"&_xlfn.TEXTJOIN(\"</dato><dato>\",FALSE,_xlpm.part1,IFERROR(_xlpm.part2,\"\"),IFERROR(_xlpm.part3,\"\"))&\"</dato></fila></ini>\",\"//ini/fila/dato\")))),\"\")","v":"Francisco"},"Estrada","Gomez"]
["Leonardo Daniel Farias Rosas",{"$f":"IFERROR(_xlfn.LET(_xlpm.Paso0,SUBSTITUTE(PROPER(A9),\" \",\"| \"),\n_xlpm.Paso1,_xlfn.TEXTJOIN(\" \",0,\nIFERROR(VLOOKUP(_xlfn.FILTERXML(\"<ini><fila><dato>\"&SUBSTITUTE(_xlpm.Paso0,\" \",\"</dato><dato>\")&\"</dato></fila></ini>\",\"//ini/fila/dato\"),TblReemp[],2,0),\n_xlfn.FILTERXML(\"<ini><fila><dato>\"&SUBSTITUTE(_xlpm.Paso0,\" \",\"</dato><dato>\")&\"</dato></fila></ini>\",\"//ini/fila/dato\"))),\n_xlpm.Partes,LEN(_xlpm.Paso1)-LEN(SUBSTITUTE(_xlpm.Paso1,\"|\",\"\"))+1,\n_xlpm.part1,TRANSPOSE(_xlfn.FILTERXML(\"<ini><fila><dato>\"&SUBSTITUTE(_xlpm.Paso1,\"|\",\"</dato><dato>\")&\"</dato></fila></ini>\",\"//ini/fila/dato[1]\")),\n_xlpm.part2,TRANSPOSE(_xlfn.FILTERXML(\"<ini><fila><dato>\"&SUBSTITUTE(_xlpm.Paso1,\"|\",\"</dato><dato>\")&\"</dato></fila></ini>\",\"//ini/fila/dato[2]\")),\n_xlpm.part3,TRANSPOSE(_xlfn.FILTERXML(\"<ini><fila><dato>\"&SUBSTITUTE(_xlpm.Paso1,\"|\",\"</dato><dato>\")&\"</dato></fila></ini>\",\"//ini/fila/dato[3]\")),\n_xlpm.part4,TRANSPOSE(_xlfn.FILTERXML(\"<ini><fila><dato>\"&SUBSTITUTE(_xlpm.Paso1,\"|\",\"</dato><dato>\")&\"</dato></fila></ini>\",\"//ini/fila/dato[4]\")),\nIF(_xlpm.Partes>3,\nTRANSPOSE(_xlfn.FILTERXML(\"<ini><fila><dato>\"&_xlfn.TEXTJOIN(\"</dato><dato>\",FALSE,_xlpm.part1&\" \"&_xlpm.part2,_xlpm.part3,IFERROR(_xlpm.part4,\"\"))&\"</dato></fila></ini>\",\"//ini/fila/dato\")),\nTRANSPOSE(_xlfn.FILTERXML(\"<ini><fila><dato>\"&_xlfn.TEXTJOIN(\"</dato><dato>\",FALSE,_xlpm.part1,IFERROR(_xlpm.part2,\"\"),IFERROR(_xlpm.part3,\"\"))&\"</dato></fila></ini>\",\"//ini/fila/dato\")))),\"\")","v":"Leonardo Daniel"},"Farias","Rosas"]
["María de Lourdes Espinoza de los Monteros",{"$f":"IFERROR(_xlfn.LET(_xlpm.Paso0,SUBSTITUTE(PROPER(A10),\" \",\"| \"),\n_xlpm.Paso1,_xlfn.TEXTJOIN(\" \",0,\nIFERROR(VLOOKUP(_xlfn.FILTERXML(\"<ini><fila><dato>\"&SUBSTITUTE(_xlpm.Paso0,\" \",\"</dato><dato>\")&\"</dato></fila></ini>\",\"//ini/fila/dato\"),TblReemp[],2,0),\n_xlfn.FILTERXML(\"<ini><fila><dato>\"&SUBSTITUTE(_xlpm.Paso0,\" \",\"</dato><dato>\")&\"</dato></fila></ini>\",\"//ini/fila/dato\"))),\n_xlpm.Partes,LEN(_xlpm.Paso1)-LEN(SUBSTITUTE(_xlpm.Paso1,\"|\",\"\"))+1,\n_xlpm.part1,TRANSPOSE(_xlfn.FILTERXML(\"<ini><fila><dato>\"&SUBSTITUTE(_xlpm.Paso1,\"|\",\"</dato><dato>\")&\"</dato></fila></ini>\",\"//ini/fila/dato[1]\")),\n_xlpm.part2,TRANSPOSE(_xlfn.FILTERXML(\"<ini><fila><dato>\"&SUBSTITUTE(_xlpm.Paso1,\"|\",\"</dato><dato>\")&\"</dato></fila></ini>\",\"//ini/fila/dato[2]\")),\n_xlpm.part3,TRANSPOSE(_xlfn.FILTERXML(\"<ini><fila><dato>\"&SUBSTITUTE(_xlpm.Paso1,\"|\",\"</dato><dato>\")&\"</dato></fila></ini>\",\"//ini/fila/dato[3]\")),\n_xlpm.part4,TRANSPOSE(_xlfn.FILTERXML(\"<ini><fila><dato>\"&SUBSTITUTE(_xlpm.Paso1,\"|\",\"</dato><dato>\")&\"</dato></fila></ini>\",\"//ini/fila/dato[4]\")),\nIF(_xlpm.Partes>3,\nTRANSPOSE(_xlfn.FILTERXML(\"<ini><fila><dato>\"&_xlfn.TEXTJOIN(\"</dato><dato>\",FALSE,_xlpm.part1&\" \"&_xlpm.part2,_xlpm.part3,IFERROR(_xlpm.part4,\"\"))&\"</dato></fila></ini>\",\"//ini/fila/dato\")),\nTRANSPOSE(_xlfn.FILTERXML(\"<ini><fila><dato>\"&_xlfn.TEXTJOIN(\"</dato><dato>\",FALSE,_xlpm.part1,IFERROR(_xlpm.part2,\"\"),IFERROR(_xlpm.part3,\"\"))&\"</dato></fila></ini>\",\"//ini/fila/dato\")))),\"\")","v":"María De Lourdes"},"Espinoza","De Los Monteros"]
["Edgar Andres Flores Olivares",{"$f":"IFERROR(_xlfn.LET(_xlpm.Paso0,SUBSTITUTE(PROPER(A11),\" \",\"| \"),\n_xlpm.Paso1,_xlfn.TEXTJOIN(\" \",0,\nIFERROR(VLOOKUP(_xlfn.FILTERXML(\"<ini><fila><dato>\"&SUBSTITUTE(_xlpm.Paso0,\" \",\"</dato><dato>\")&\"</dato></fila></ini>\",\"//ini/fila/dato\"),TblReemp[],2,0),\n_xlfn.FILTERXML(\"<ini><fila><dato>\"&SUBSTITUTE(_xlpm.Paso0,\" \",\"</dato><dato>\")&\"</dato></fila></ini>\",\"//ini/fila/dato\"))),\n_xlpm.Partes,LEN(_xlpm.Paso1)-LEN(SUBSTITUTE(_xlpm.Paso1,\"|\",\"\"))+1,\n_xlpm.part1,TRANSPOSE(_xlfn.FILTERXML(\"<ini><fila><dato>\"&SUBSTITUTE(_xlpm.Paso1,\"|\",\"</dato><dato>\")&\"</dato></fila></ini>\",\"//ini/fila/dato[1]\")),\n_xlpm.part2,TRANSPOSE(_xlfn.FILTERXML(\"<ini><fila><dato>\"&SUBSTITUTE(_xlpm.Paso1,\"|\",\"</dato><dato>\")&\"</dato></fila></ini>\",\"//ini/fila/dato[2]\")),\n_xlpm.part3,TRANSPOSE(_xlfn.FILTERXML(\"<ini><fila><dato>\"&SUBSTITUTE(_xlpm.Paso1,\"|\",\"</dato><dato>\")&\"</dato></fila></ini>\",\"//ini/fila/dato[3]\")),\n_xlpm.part4,TRANSPOSE(_xlfn.FILTERXML(\"<ini><fila><dato>\"&SUBSTITUTE(_xlpm.Paso1,\"|\",\"</dato><dato>\")&\"</dato></fila></ini>\",\"//ini/fila/dato[4]\")),\nIF(_xlpm.Partes>3,\nTRANSPOSE(_xlfn.FILTERXML(\"<ini><fila><dato>\"&_xlfn.TEXTJOIN(\"</dato><dato>\",FALSE,_xlpm.part1&\" \"&_xlpm.part2,_xlpm.part3,IFERROR(_xlpm.part4,\"\"))&\"</dato></fila></ini>\",\"//ini/fila/dato\")),\nTRANSPOSE(_xlfn.FILTERXML(\"<ini><fila><dato>\"&_xlfn.TEXTJOIN(\"</dato><dato>\",FALSE,_xlpm.part1,IFERROR(_xlpm.part2,\"\"),IFERROR(_xlpm.part3,\"\"))&\"</dato></fila></ini>\",\"//ini/fila/dato\")))),\"\")","v":"Edgar Andres"},"Flores","Olivares"]
["Maria Fernanda Franco Esquivel",{"$f":"IFERROR(_xlfn.LET(_xlpm.Paso0,SUBSTITUTE(PROPER(A12),\" \",\"| \"),\n_xlpm.Paso1,_xlfn.TEXTJOIN(\" \",0,\nIFERROR(VLOOKUP(_xlfn.FILTERXML(\"<ini><fila><dato>\"&SUBSTITUTE(_xlpm.Paso0,\" \",\"</dato><dato>\")&\"</dato></fila></ini>\",\"//ini/fila/dato\"),TblReemp[],2,0),\n_xlfn.FILTERXML(\"<ini><fila><dato>\"&SUBSTITUTE(_xlpm.Paso0,\" \",\"</dato><dato>\")&\"</dato></fila></ini>\",\"//ini/fila/dato\"))),\n_xlpm.Partes,LEN(_xlpm.Paso1)-LEN(SUBSTITUTE(_xlpm.Paso1,\"|\",\"\"))+1,\n_xlpm.part1,TRANSPOSE(_xlfn.FILTERXML(\"<ini><fila><dato>\"&SUBSTITUTE(_xlpm.Paso1,\"|\",\"</dato><dato>\")&\"</dato></fila></ini>\",\"//ini/fila/dato[1]\")),\n_xlpm.part2,TRANSPOSE(_xlfn.FILTERXML(\"<ini><fila><dato>\"&SUBSTITUTE(_xlpm.Paso1,\"|\",\"</dato><dato>\")&\"</dato></fila></ini>\",\"//ini/fila/dato[2]\")),\n_xlpm.part3,TRANSPOSE(_xlfn.FILTERXML(\"<ini><fila><dato>\"&SUBSTITUTE(_xlpm.Paso1,\"|\",\"</dato><dato>\")&\"</dato></fila></ini>\",\"//ini/fila/dato[3]\")),\n_xlpm.part4,TRANSPOSE(_xlfn.FILTERXML(\"<ini><fila><dato>\"&SUBSTITUTE(_xlpm.Paso1,\"|\",\"</dato><dato>\")&\"</dato></fila></ini>\",\"//ini/fila/dato[4]\")),\nIF(_xlpm.Partes>3,\nTRANSPOSE(_xlfn.FILTERXML(\"<ini><fila><dato>\"&_xlfn.TEXTJOIN(\"</dato><dato>\",FALSE,_xlpm.part1&\" \"&_xlpm.part2,_xlpm.part3,IFERROR(_xlpm.part4,\"\"))&\"</dato></fila></ini>\",\"//ini/fila/dato\")),\nTRANSPOSE(_xlfn.FILTERXML(\"<ini><fila><dato>\"&_xlfn.TEXTJOIN(\"</dato><dato>\",FALSE,_xlpm.part1,IFERROR(_xlpm.part2,\"\"),IFERROR(_xlpm.part3,\"\"))&\"</dato></fila></ini>\",\"//ini/fila/dato\")))),\"\")","v":"Maria Fernanda"},"Franco","Esquivel"]
["Alejandro Galvan Muñiz",{"$f":"IFERROR(_xlfn.LET(_xlpm.Paso0,SUBSTITUTE(PROPER(A13),\" \",\"| \"),\n_xlpm.Paso1,_xlfn.TEXTJOIN(\" \",0,\nIFERROR(VLOOKUP(_xlfn.FILTERXML(\"<ini><fila><dato>\"&SUBSTITUTE(_xlpm.Paso0,\" \",\"</dato><dato>\")&\"</dato></fila></ini>\",\"//ini/fila/dato\"),TblReemp[],2,0),\n_xlfn.FILTERXML(\"<ini><fila><dato>\"&SUBSTITUTE(_xlpm.Paso0,\" \",\"</dato><dato>\")&\"</dato></fila></ini>\",\"//ini/fila/dato\"))),\n_xlpm.Partes,LEN(_xlpm.Paso1)-LEN(SUBSTITUTE(_xlpm.Paso1,\"|\",\"\"))+1,\n_xlpm.part1,TRANSPOSE(_xlfn.FILTERXML(\"<ini><fila><dato>\"&SUBSTITUTE(_xlpm.Paso1,\"|\",\"</dato><dato>\")&\"</dato></fila></ini>\",\"//ini/fila/dato[1]\")),\n_xlpm.part2,TRANSPOSE(_xlfn.FILTERXML(\"<ini><fila><dato>\"&SUBSTITUTE(_xlpm.Paso1,\"|\",\"</dato><dato>\")&\"</dato></fila></ini>\",\"//ini/fila/dato[2]\")),\n_xlpm.part3,TRANSPOSE(_xlfn.FILTERXML(\"<ini><fila><dato>\"&SUBSTITUTE(_xlpm.Paso1,\"|\",\"</dato><dato>\")&\"</dato></fila></ini>\",\"//ini/fila/dato[3]\")),\n_xlpm.part4,TRANSPOSE(_xlfn.FILTERXML(\"<ini><fila><dato>\"&SUBSTITUTE(_xlpm.Paso1,\"|\",\"</dato><dato>\")&\"</dato></fila></ini>\",\"//ini/fila/dato[4]\")),\nIF(_xlpm.Partes>3,\nTRANSPOSE(_xlfn.FILTERXML(\"<ini><fila><dato>\"&_xlfn.TEXTJOIN(\"</dato><dato>\",FALSE,_xlpm.part1&\" \"&_xlpm.part2,_xlpm.part3,IFERROR(_xlpm.part4,\"\"))&\"</dato></fila></ini>\",\"//ini/fila/dato\")),\nTRANSPOSE(_xlfn.FILTERXML(\"<ini><fila><dato>\"&_xlfn.TEXTJOIN(\"</dato><dato>\",FALSE,_xlpm.part1,IFERROR(_xlpm.part2,\"\"),IFERROR(_xlpm.part3,\"\"))&\"</dato></fila></ini>\",\"//ini/fila/dato\")))),\"\")","v":"Alejandro"},"Galvan","Muñiz"]
["Martha Alicia Gutierrez Ortiz",{"$f":"IFERROR(_xlfn.LET(_xlpm.Paso0,SUBSTITUTE(PROPER(A14),\" \",\"| \"),\n_xlpm.Paso1,_xlfn.TEXTJOIN(\" \",0,\nIFERROR(VLOOKUP(_xlfn.FILTERXML(\"<ini><fila><dato>\"&SUBSTITUTE(_xlpm.Paso0,\" \",\"</dato><dato>\")&\"</dato></fila></ini>\",\"//ini/fila/dato\"),TblReemp[],2,0),\n_xlfn.FILTERXML(\"<ini><fila><dato>\"&SUBSTITUTE(_xlpm.Paso0,\" \",\"</dato><dato>\")&\"</dato></fila></ini>\",\"//ini/fila/dato\"))),\n_xlpm.Partes,LEN(_xlpm.Paso1)-LEN(SUBSTITUTE(_xlpm.Paso1,\"|\",\"\"))+1,\n_xlpm.part1,TRANSPOSE(_xlfn.FILTERXML(\"<ini><fila><dato>\"&SUBSTITUTE(_xlpm.Paso1,\"|\",\"</dato><dato>\")&\"</dato></fila></ini>\",\"//ini/fila/dato[1]\")),\n_xlpm.part2,TRANSPOSE(_xlfn.FILTERXML(\"<ini><fila><dato>\"&SUBSTITUTE(_xlpm.Paso1,\"|\",\"</dato><dato>\")&\"</dato></fila></ini>\",\"//ini/fila/dato[2]\")),\n_xlpm.part3,TRANSPOSE(_xlfn.FILTERXML(\"<ini><fila><dato>\"&SUBSTITUTE(_xlpm.Paso1,\"|\",\"</dato><dato>\")&\"</dato></fila></ini>\",\"//ini/fila/dato[3]\")),\n_xlpm.part4,TRANSPOSE(_xlfn.FILTERXML(\"<ini><fila><dato>\"&SUBSTITUTE(_xlpm.Paso1,\"|\",\"</dato><dato>\")&\"</dato></fila></ini>\",\"//ini/fila/dato[4]\")),\nIF(_xlpm.Partes>3,\nTRANSPOSE(_xlfn.FILTERXML(\"<ini><fila><dato>\"&_xlfn.TEXTJOIN(\"</dato><dato>\",FALSE,_xlpm.part1&\" \"&_xlpm.part2,_xlpm.part3,IFERROR(_xlpm.part4,\"\"))&\"</dato></fila></ini>\",\"//ini/fila/dato\")),\nTRANSPOSE(_xlfn.FILTERXML(\"<ini><fila><dato>\"&_xlfn.TEXTJOIN(\"</dato><dato>\",FALSE,_xlpm.part1,IFERROR(_xlpm.part2,\"\"),IFERROR(_xlpm.part3,\"\"))&\"</dato></fila></ini>\",\"//ini/fila/dato\")))),\"\")","v":"Martha Alicia"},"Gutierrez","Ortiz"]
["Josafat Gerardo Hernandez Saucedo",{"$f":"IFERROR(_xlfn.LET(_xlpm.Paso0,SUBSTITUTE(PROPER(A15),\" \",\"| \"),\n_xlpm.Paso1,_xlfn.TEXTJOIN(\" \",0,\nIFERROR(VLOOKUP(_xlfn.FILTERXML(\"<ini><fila><dato>\"&SUBSTITUTE(_xlpm.Paso0,\" \",\"</dato><dato>\")&\"</dato></fila></ini>\",\"//ini/fila/dato\"),TblReemp[],2,0),\n_xlfn.FILTERXML(\"<ini><fila><dato>\"&SUBSTITUTE(_xlpm.Paso0,\" \",\"</dato><dato>\")&\"</dato></fila></ini>\",\"//ini/fila/dato\"))),\n_xlpm.Partes,LEN(_xlpm.Paso1)-LEN(SUBSTITUTE(_xlpm.Paso1,\"|\",\"\"))+1,\n_xlpm.part1,TRANSPOSE(_xlfn.FILTERXML(\"<ini><fila><dato>\"&SUBSTITUTE(_xlpm.Paso1,\"|\",\"</dato><dato>\")&\"</dato></fila></ini>\",\"//ini/fila/dato[1]\")),\n_xlpm.part2,TRANSPOSE(_xlfn.FILTERXML(\"<ini><fila><dato>\"&SUBSTITUTE(_xlpm.Paso1,\"|\",\"</dato><dato>\")&\"</dato></fila></ini>\",\"//ini/fila/dato[2]\")),\n_xlpm.part3,TRANSPOSE(_xlfn.FILTERXML(\"<ini><fila><dato>\"&SUBSTITUTE(_xlpm.Paso1,\"|\",\"</dato><dato>\")&\"</dato></fila></ini>\",\"//ini/fila/dato[3]\")),\n_xlpm.part4,TRANSPOSE(_xlfn.FILTERXML(\"<ini><fila><dato>\"&SUBSTITUTE(_xlpm.Paso1,\"|\",\"</dato><dato>\")&\"</dato></fila></ini>\",\"//ini/fila/dato[4]\")),\nIF(_xlpm.Partes>3,\nTRANSPOSE(_xlfn.FILTERXML(\"<ini><fila><dato>\"&_xlfn.TEXTJOIN(\"</dato><dato>\",FALSE,_xlpm.part1&\" \"&_xlpm.part2,_xlpm.part3,IFERROR(_xlpm.part4,\"\"))&\"</dato></fila></ini>\",\"//ini/fila/dato\")),\nTRANSPOSE(_xlfn.FILTERXML(\"<ini><fila><dato>\"&_xlfn.TEXTJOIN(\"</dato><dato>\",FALSE,_xlpm.part1,IFERROR(_xlpm.part2,\"\"),IFERROR(_xlpm.part3,\"\"))&\"</dato></fila></ini>\",\"//ini/fila/dato\")))),\"\")","v":"Josafat Gerardo"},"Hernandez","Saucedo"]
["Rosalia Jimenez Gonzalez",{"$f":"IFERROR(_xlfn.LET(_xlpm.Paso0,SUBSTITUTE(PROPER(A16),\" \",\"| \"),\n_xlpm.Paso1,_xlfn.TEXTJOIN(\" \",0,\nIFERROR(VLOOKUP(_xlfn.FILTERXML(\"<ini><fila><dato>\"&SUBSTITUTE(_xlpm.Paso0,\" \",\"</dato><dato>\")&\"</dato></fila></ini>\",\"//ini/fila/dato\"),TblReemp[],2,0),\n_xlfn.FILTERXML(\"<ini><fila><dato>\"&SUBSTITUTE(_xlpm.Paso0,\" \",\"</dato><dato>\")&\"</dato></fila></ini>\",\"//ini/fila/dato\"))),\n_xlpm.Partes,LEN(_xlpm.Paso1)-LEN(SUBSTITUTE(_xlpm.Paso1,\"|\",\"\"))+1,\n_xlpm.part1,TRANSPOSE(_xlfn.FILTERXML(\"<ini><fila><dato>\"&SUBSTITUTE(_xlpm.Paso1,\"|\",\"</dato><dato>\")&\"</dato></fila></ini>\",\"//ini/fila/dato[1]\")),\n_xlpm.part2,TRANSPOSE(_xlfn.FILTERXML(\"<ini><fila><dato>\"&SUBSTITUTE(_xlpm.Paso1,\"|\",\"</dato><dato>\")&\"</dato></fila></ini>\",\"//ini/fila/dato[2]\")),\n_xlpm.part3,TRANSPOSE(_xlfn.FILTERXML(\"<ini><fila><dato>\"&SUBSTITUTE(_xlpm.Paso1,\"|\",\"</dato><dato>\")&\"</dato></fila></ini>\",\"//ini/fila/dato[3]\")),\n_xlpm.part4,TRANSPOSE(_xlfn.FILTERXML(\"<ini><fila><dato>\"&SUBSTITUTE(_xlpm.Paso1,\"|\",\"</dato><dato>\")&\"</dato></fila></ini>\",\"//ini/fila/dato[4]\")),\nIF(_xlpm.Partes>3,\nTRANSPOSE(_xlfn.FILTERXML(\"<ini><fila><dato>\"&_xlfn.TEXTJOIN(\"</dato><dato>\",FALSE,_xlpm.part1&\" \"&_xlpm.part2,_xlpm.part3,IFERROR(_xlpm.part4,\"\"))&\"</dato></fila></ini>\",\"//ini/fila/dato\")),\nTRANSPOSE(_xlfn.FILTERXML(\"<ini><fila><dato>\"&_xlfn.TEXTJOIN(\"</dato><dato>\",FALSE,_xlpm.part1,IFERROR(_xlpm.part2,\"\"),IFERROR(_xlpm.part3,\"\"))&\"</dato></fila></ini>\",\"//ini/fila/dato\")))),\"\")","v":"Rosalia"},"Jimenez","Gonzalez"]
["Laura Celene Jimenez del Río",{"$f":"IFERROR(_xlfn.LET(_xlpm.Paso0,SUBSTITUTE(PROPER(A17),\" \",\"| \"),\n_xlpm.Paso1,_xlfn.TEXTJOIN(\" \",0,\nIFERROR(VLOOKUP(_xlfn.FILTERXML(\"<ini><fila><dato>\"&SUBSTITUTE(_xlpm.Paso0,\" \",\"</dato><dato>\")&\"</dato></fila></ini>\",\"//ini/fila/dato\"),TblReemp[],2,0),\n_xlfn.FILTERXML(\"<ini><fila><dato>\"&SUBSTITUTE(_xlpm.Paso0,\" \",\"</dato><dato>\")&\"</dato></fila></ini>\",\"//ini/fila/dato\"))),\n_xlpm.Partes,LEN(_xlpm.Paso1)-LEN(SUBSTITUTE(_xlpm.Paso1,\"|\",\"\"))+1,\n_xlpm.part1,TRANSPOSE(_xlfn.FILTERXML(\"<ini><fila><dato>\"&SUBSTITUTE(_xlpm.Paso1,\"|\",\"</dato><dato>\")&\"</dato></fila></ini>\",\"//ini/fila/dato[1]\")),\n_xlpm.part2,TRANSPOSE(_xlfn.FILTERXML(\"<ini><fila><dato>\"&SUBSTITUTE(_xlpm.Paso1,\"|\",\"</dato><dato>\")&\"</dato></fila></ini>\",\"//ini/fila/dato[2]\")),\n_xlpm.part3,TRANSPOSE(_xlfn.FILTERXML(\"<ini><fila><dato>\"&SUBSTITUTE(_xlpm.Paso1,\"|\",\"</dato><dato>\")&\"</dato></fila></ini>\",\"//ini/fila/dato[3]\")),\n_xlpm.part4,TRANSPOSE(_xlfn.FILTERXML(\"<ini><fila><dato>\"&SUBSTITUTE(_xlpm.Paso1,\"|\",\"</dato><dato>\")&\"</dato></fila></ini>\",\"//ini/fila/dato[4]\")),\nIF(_xlpm.Partes>3,\nTRANSPOSE(_xlfn.FILTERXML(\"<ini><fila><dato>\"&_xlfn.TEXTJOIN(\"</dato><dato>\",FALSE,_xlpm.part1&\" \"&_xlpm.part2,_xlpm.part3,IFERROR(_xlpm.part4,\"\"))&\"</dato></fila></ini>\",\"//ini/fila/dato\")),\nTRANSPOSE(_xlfn.FILTERXML(\"<ini><fila><dato>\"&_xlfn.TEXTJOIN(\"</dato><dato>\",FALSE,_xlpm.part1,IFERROR(_xlpm.part2,\"\"),IFERROR(_xlpm.part3,\"\"))&\"</dato></fila></ini>\",\"//ini/fila/dato\")))),\"\")","v":"Laura Celene"},"Jimenez","Del Río"]
["Angelica Lopez Cortes",{"$f":"IFERROR(_xlfn.LET(_xlpm.Paso0,SUBSTITUTE(PROPER(A18),\" \",\"| \"),\n_xlpm.Paso1,_xlfn.TEXTJOIN(\" \",0,\nIFERROR(VLOOKUP(_xlfn.FILTERXML(\"<ini><fila><dato>\"&SUBSTITUTE(_xlpm.Paso0,\" \",\"</dato><dato>\")&\"</dato></fila></ini>\",\"//ini/fila/dato\"),TblReemp[],2,0),\n_xlfn.FILTERXML(\"<ini><fila><dato>\"&SUBSTITUTE(_xlpm.Paso0,\" \",\"</dato><dato>\")&\"</dato></fila></ini>\",\"//ini/fila/dato\"))),\n_xlpm.Partes,LEN(_xlpm.Paso1)-LEN(SUBSTITUTE(_xlpm.Paso1,\"|\",\"\"))+1,\n_xlpm.part1,TRANSPOSE(_xlfn.FILTERXML(\"<ini><fila><dato>\"&SUBSTITUTE(_xlpm.Paso1,\"|\",\"</dato><dato>\")&\"</dato></fila></ini>\",\"//ini/fila/dato[1]\")),\n_xlpm.part2,TRANSPOSE(_xlfn.FILTERXML(\"<ini><fila><dato>\"&SUBSTITUTE(_xlpm.Paso1,\"|\",\"</dato><dato>\")&\"</dato></fila></ini>\",\"//ini/fila/dato[2]\")),\n_xlpm.part3,TRANSPOSE(_xlfn.FILTERXML(\"<ini><fila><dato>\"&SUBSTITUTE(_xlpm.Paso1,\"|\",\"</dato><dato>\")&\"</dato></fila></ini>\",\"//ini/fila/dato[3]\")),\n_xlpm.part4,TRANSPOSE(_xlfn.FILTERXML(\"<ini><fila><dato>\"&SUBSTITUTE(_xlpm.Paso1,\"|\",\"</dato><dato>\")&\"</dato></fila></ini>\",\"//ini/fila/dato[4]\")),\nIF(_xlpm.Partes>3,\nTRANSPOSE(_xlfn.FILTERXML(\"<ini><fila><dato>\"&_xlfn.TEXTJOIN(\"</dato><dato>\",FALSE,_xlpm.part1&\" \"&_xlpm.part2,_xlpm.part3,IFERROR(_xlpm.part4,\"\"))&\"</dato></fila></ini>\",\"//ini/fila/dato\")),\nTRANSPOSE(_xlfn.FILTERXML(\"<ini><fila><dato>\"&_xlfn.TEXTJOIN(\"</dato><dato>\",FALSE,_xlpm.part1,IFERROR(_xlpm.part2,\"\"),IFERROR(_xlpm.part3,\"\"))&\"</dato></fila></ini>\",\"//ini/fila/dato\")))),\"\")","v":"Angelica"},"Lopez","Cortes"]
["Cristian Ivan Lopez Gomez",{"$f":"IFERROR(_xlfn.LET(_xlpm.Paso0,SUBSTITUTE(PROPER(A19),\" \",\"| \"),\n_xlpm.Paso1,_xlfn.TEXTJOIN(\" \",0,\nIFERROR(VLOOKUP(_xlfn.FILTERXML(\"<ini><fila><dato>\"&SUBSTITUTE(_xlpm.Paso0,\" \",\"</dato><dato>\")&\"</dato></fila></ini>\",\"//ini/fila/dato\"),TblReemp[],2,0),\n_xlfn.FILTERXML(\"<ini><fila><dato>\"&SUBSTITUTE(_xlpm.Paso0,\" \",\"</dato><dato>\")&\"</dato></fila></ini>\",\"//ini/fila/dato\"))),\n_xlpm.Partes,LEN(_xlpm.Paso1)-LEN(SUBSTITUTE(_xlpm.Paso1,\"|\",\"\"))+1,\n_xlpm.part1,TRANSPOSE(_xlfn.FILTERXML(\"<ini><fila><dato>\"&SUBSTITUTE(_xlpm.Paso1,\"|\",\"</dato><dato>\")&\"</dato></fila></ini>\",\"//ini/fila/dato[1]\")),\n_xlpm.part2,TRANSPOSE(_xlfn.FILTERXML(\"<ini><fila><dato>\"&SUBSTITUTE(_xlpm.Paso1,\"|\",\"</dato><dato>\")&\"</dato></fila></ini>\",\"//ini/fila/dato[2]\")),\n_xlpm.part3,TRANSPOSE(_xlfn.FILTERXML(\"<ini><fila><dato>\"&SUBSTITUTE(_xlpm.Paso1,\"|\",\"</dato><dato>\")&\"</dato></fila></ini>\",\"//ini/fila/dato[3]\")),\n_xlpm.part4,TRANSPOSE(_xlfn.FILTERXML(\"<ini><fila><dato>\"&SUBSTITUTE(_xlpm.Paso1,\"|\",\"</dato><dato>\")&\"</dato></fila></ini>\",\"//ini/fila/dato[4]\")),\nIF(_xlpm.Partes>3,\nTRANSPOSE(_xlfn.FILTERXML(\"<ini><fila><dato>\"&_xlfn.TEXTJOIN(\"</dato><dato>\",FALSE,_xlpm.part1&\" \"&_xlpm.part2,_xlpm.part3,IFERROR(_xlpm.part4,\"\"))&\"</dato></fila></ini>\",\"//ini/fila/dato\")),\nTRANSPOSE(_xlfn.FILTERXML(\"<ini><fila><dato>\"&_xlfn.TEXTJOIN(\"</dato><dato>\",FALSE,_xlpm.part1,IFERROR(_xlpm.part2,\"\"),IFERROR(_xlpm.part3,\"\"))&\"</dato></fila></ini>\",\"//ini/fila/dato\")))),\"\")","v":"Cristian Ivan"},"Lopez","Gomez"]
["Marlene Gabriela Lopez Meza",{"$f":"IFERROR(_xlfn.LET(_xlpm.Paso0,SUBSTITUTE(PROPER(A20),\" \",\"| \"),\n_xlpm.Paso1,_xlfn.TEXTJOIN(\" \",0,\nIFERROR(VLOOKUP(_xlfn.FILTERXML(\"<ini><fila><dato>\"&SUBSTITUTE(_xlpm.Paso0,\" \",\"</dato><dato>\")&\"</dato></fila></ini>\",\"//ini/fila/dato\"),TblReemp[],2,0),\n_xlfn.FILTERXML(\"<ini><fila><dato>\"&SUBSTITUTE(_xlpm.Paso0,\" \",\"</dato><dato>\")&\"</dato></fila></ini>\",\"//ini/fila/dato\"))),\n_xlpm.Partes,LEN(_xlpm.Paso1)-LEN(SUBSTITUTE(_xlpm.Paso1,\"|\",\"\"))+1,\n_xlpm.part1,TRANSPOSE(_xlfn.FILTERXML(\"<ini><fila><dato>\"&SUBSTITUTE(_xlpm.Paso1,\"|\",\"</dato><dato>\")&\"</dato></fila></ini>\",\"//ini/fila/dato[1]\")),\n_xlpm.part2,TRANSPOSE(_xlfn.FILTERXML(\"<ini><fila><dato>\"&SUBSTITUTE(_xlpm.Paso1,\"|\",\"</dato><dato>\")&\"</dato></fila></ini>\",\"//ini/fila/dato[2]\")),\n_xlpm.part3,TRANSPOSE(_xlfn.FILTERXML(\"<ini><fila><dato>\"&SUBSTITUTE(_xlpm.Paso1,\"|\",\"</dato><dato>\")&\"</dato></fila></ini>\",\"//ini/fila/dato[3]\")),\n_xlpm.part4,TRANSPOSE(_xlfn.FILTERXML(\"<ini><fila><dato>\"&SUBSTITUTE(_xlpm.Paso1,\"|\",\"</dato><dato>\")&\"</dato></fila></ini>\",\"//ini/fila/dato[4]\")),\nIF(_xlpm.Partes>3,\nTRANSPOSE(_xlfn.FILTERXML(\"<ini><fila><dato>\"&_xlfn.TEXTJOIN(\"</dato><dato>\",FALSE,_xlpm.part1&\" \"&_xlpm.part2,_xlpm.part3,IFERROR(_xlpm.part4,\"\"))&\"</dato></fila></ini>\",\"//ini/fila/dato\")),\nTRANSPOSE(_xlfn.FILTERXML(\"<ini><fila><dato>\"&_xlfn.TEXTJOIN(\"</dato><dato>\",FALSE,_xlpm.part1,IFERROR(_xlpm.part2,\"\"),IFERROR(_xlpm.part3,\"\"))&\"</dato></fila></ini>\",\"//ini/fila/dato\")))),\"\")","v":"Marlene Gabriela"},"Lopez","Meza"]
["Alejandra Medina Ibarra",{"$f":"IFERROR(_xlfn.LET(_xlpm.Paso0,SUBSTITUTE(PROPER(A21),\" \",\"| \"),\n_xlpm.Paso1,_xlfn.TEXTJOIN(\" \",0,\nIFERROR(VLOOKUP(_xlfn.FILTERXML(\"<ini><fila><dato>\"&SUBSTITUTE(_xlpm.Paso0,\" \",\"</dato><dato>\")&\"</dato></fila></ini>\",\"//ini/fila/dato\"),TblReemp[],2,0),\n_xlfn.FILTERXML(\"<ini><fila><dato>\"&SUBSTITUTE(_xlpm.Paso0,\" \",\"</dato><dato>\")&\"</dato></fila></ini>\",\"//ini/fila/dato\"))),\n_xlpm.Partes,LEN(_xlpm.Paso1)-LEN(SUBSTITUTE(_xlpm.Paso1,\"|\",\"\"))+1,\n_xlpm.part1,TRANSPOSE(_xlfn.FILTERXML(\"<ini><fila><dato>\"&SUBSTITUTE(_xlpm.Paso1,\"|\",\"</dato><dato>\")&\"</dato></fila></ini>\",\"//ini/fila/dato[1]\")),\n_xlpm.part2,TRANSPOSE(_xlfn.FILTERXML(\"<ini><fila><dato>\"&SUBSTITUTE(_xlpm.Paso1,\"|\",\"</dato><dato>\")&\"</dato></fila></ini>\",\"//ini/fila/dato[2]\")),\n_xlpm.part3,TRANSPOSE(_xlfn.FILTERXML(\"<ini><fila><dato>\"&SUBSTITUTE(_xlpm.Paso1,\"|\",\"</dato><dato>\")&\"</dato></fila></ini>\",\"//ini/fila/dato[3]\")),\n_xlpm.part4,TRANSPOSE(_xlfn.FILTERXML(\"<ini><fila><dato>\"&SUBSTITUTE(_xlpm.Paso1,\"|\",\"</dato><dato>\")&\"</dato></fila></ini>\",\"//ini/fila/dato[4]\")),\nIF(_xlpm.Partes>3,\nTRANSPOSE(_xlfn.FILTERXML(\"<ini><fila><dato>\"&_xlfn.TEXTJOIN(\"</dato><dato>\",FALSE,_xlpm.part1&\" \"&_xlpm.part2,_xlpm.part3,IFERROR(_xlpm.part4,\"\"))&\"</dato></fila></ini>\",\"//ini/fila/dato\")),\nTRANSPOSE(_xlfn.FILTERXML(\"<ini><fila><dato>\"&_xlfn.TEXTJOIN(\"</dato><dato>\",FALSE,_xlpm.part1,IFERROR(_xlpm.part2,\"\"),IFERROR(_xlpm.part3,\"\"))&\"</dato></fila></ini>\",\"//ini/fila/dato\")))),\"\")","v":"Alejandra"},"Medina","Ibarra"]
["Javier Adrian Mejia Alvarez",{"$f":"IFERROR(_xlfn.LET(_xlpm.Paso0,SUBSTITUTE(PROPER(A22),\" \",\"| \"),\n_xlpm.Paso1,_xlfn.TEXTJOIN(\" \",0,\nIFERROR(VLOOKUP(_xlfn.FILTERXML(\"<ini><fila><dato>\"&SUBSTITUTE(_xlpm.Paso0,\" \",\"</dato><dato>\")&\"</dato></fila></ini>\",\"//ini/fila/dato\"),TblReemp[],2,0),\n_xlfn.FILTERXML(\"<ini><fila><dato>\"&SUBSTITUTE(_xlpm.Paso0,\" \",\"</dato><dato>\")&\"</dato></fila></ini>\",\"//ini/fila/dato\"))),\n_xlpm.Partes,LEN(_xlpm.Paso1)-LEN(SUBSTITUTE(_xlpm.Paso1,\"|\",\"\"))+1,\n_xlpm.part1,TRANSPOSE(_xlfn.FILTERXML(\"<ini><fila><dato>\"&SUBSTITUTE(_xlpm.Paso1,\"|\",\"</dato><dato>\")&\"</dato></fila></ini>\",\"//ini/fila/dato[1]\")),\n_xlpm.part2,TRANSPOSE(_xlfn.FILTERXML(\"<ini><fila><dato>\"&SUBSTITUTE(_xlpm.Paso1,\"|\",\"</dato><dato>\")&\"</dato></fila></ini>\",\"//ini/fila/dato[2]\")),\n_xlpm.part3,TRANSPOSE(_xlfn.FILTERXML(\"<ini><fila><dato>\"&SUBSTITUTE(_xlpm.Paso1,\"|\",\"</dato><dato>\")&\"</dato></fila></ini>\",\"//ini/fila/dato[3]\")),\n_xlpm.part4,TRANSPOSE(_xlfn.FILTERXML(\"<ini><fila><dato>\"&SUBSTITUTE(_xlpm.Paso1,\"|\",\"</dato><dato>\")&\"</dato></fila></ini>\",\"//ini/fila/dato[4]\")),\nIF(_xlpm.Partes>3,\nTRANSPOSE(_xlfn.FILTERXML(\"<ini><fila><dato>\"&_xlfn.TEXTJOIN(\"</dato><dato>\",FALSE,_xlpm.part1&\" \"&_xlpm.part2,_xlpm.part3,IFERROR(_xlpm.part4,\"\"))&\"</dato></fila></ini>\",\"//ini/fila/dato\")),\nTRANSPOSE(_xlfn.FILTERXML(\"<ini><fila><dato>\"&_xlfn.TEXTJOIN(\"</dato><dato>\",FALSE,_xlpm.part1,IFERROR(_xlpm.part2,\"\"),IFERROR(_xlpm.part3,\"\"))&\"</dato></fila></ini>\",\"//ini/fila/dato\")))),\"\")","v":"Javier Adrian"},"Mejia","Alvarez"]
["Juan Carlos Evaristo Peña Gutierrez",{"$f":"IFERROR(_xlfn.LET(_xlpm.Paso0,SUBSTITUTE(PROPER(A23),\" \",\"| \"),\n_xlpm.Paso1,_xlfn.TEXTJOIN(\" \",0,\nIFERROR(VLOOKUP(_xlfn.FILTERXML(\"<ini><fila><dato>\"&SUBSTITUTE(_xlpm.Paso0,\" \",\"</dato><dato>\")&\"</dato></fila></ini>\",\"//ini/fila/dato\"),TblReemp[],2,0),\n_xlfn.FILTERXML(\"<ini><fila><dato>\"&SUBSTITUTE(_xlpm.Paso0,\" \",\"</dato><dato>\")&\"</dato></fila></ini>\",\"//ini/fila/dato\"))),\n_xlpm.Partes,LEN(_xlpm.Paso1)-LEN(SUBSTITUTE(_xlpm.Paso1,\"|\",\"\"))+1,\n_xlpm.part1,TRANSPOSE(_xlfn.FILTERXML(\"<ini><fila><dato>\"&SUBSTITUTE(_xlpm.Paso1,\"|\",\"</dato><dato>\")&\"</dato></fila></ini>\",\"//ini/fila/dato[1]\")),\n_xlpm.part2,TRANSPOSE(_xlfn.FILTERXML(\"<ini><fila><dato>\"&SUBSTITUTE(_xlpm.Paso1,\"|\",\"</dato><dato>\")&\"</dato></fila></ini>\",\"//ini/fila/dato[2]\")),\n_xlpm.part3,TRANSPOSE(_xlfn.FILTERXML(\"<ini><fila><dato>\"&SUBSTITUTE(_xlpm.Paso1,\"|\",\"</dato><dato>\")&\"</dato></fila></ini>\",\"//ini/fila/dato[3]\")),\n_xlpm.part4,TRANSPOSE(_xlfn.FILTERXML(\"<ini><fila><dato>\"&SUBSTITUTE(_xlpm.Paso1,\"|\",\"</dato><dato>\")&\"</dato></fila></ini>\",\"//ini/fila/dato[4]\")),\nIF(_xlpm.Partes>3,\nTRANSPOSE(_xlfn.FILTERXML(\"<ini><fila><dato>\"&_xlfn.TEXTJOIN(\"</dato><dato>\",FALSE,_xlpm.part1&\" \"&_xlpm.part2,_xlpm.part3,IFERROR(_xlpm.part4,\"\"))&\"</dato></fila></ini>\",\"//ini/fila/dato\")),\nTRANSPOSE(_xlfn.FILTERXML(\"<ini><fila><dato>\"&_xlfn.TEXTJOIN(\"</dato><dato>\",FALSE,_xlpm.part1,IFERROR(_xlpm.part2,\"\"),IFERROR(_xlpm.part3,\"\"))&\"</dato></fila></ini>\",\"//ini/fila/dato\")))),\"\")","v":"Juan Carlos"},"Evaristo","Peña","Gutierrez"]
["Jazmin Alejandra Perez Velez",{"$f":"IFERROR(_xlfn.LET(_xlpm.Paso0,SUBSTITUTE(PROPER(A24),\" \",\"| \"),\n_xlpm.Paso1,_xlfn.TEXTJOIN(\" \",0,\nIFERROR(VLOOKUP(_xlfn.FILTERXML(\"<ini><fila><dato>\"&SUBSTITUTE(_xlpm.Paso0,\" \",\"</dato><dato>\")&\"</dato></fila></ini>\",\"//ini/fila/dato\"),TblReemp[],2,0),\n_xlfn.FILTERXML(\"<ini><fila><dato>\"&SUBSTITUTE(_xlpm.Paso0,\" \",\"</dato><dato>\")&\"</dato></fila></ini>\",\"//ini/fila/dato\"))),\n_xlpm.Partes,LEN(_xlpm.Paso1)-LEN(SUBSTITUTE(_xlpm.Paso1,\"|\",\"\"))+1,\n_xlpm.part1,TRANSPOSE(_xlfn.FILTERXML(\"<ini><fila><dato>\"&SUBSTITUTE(_xlpm.Paso1,\"|\",\"</dato><dato>\")&\"</dato></fila></ini>\",\"//ini/fila/dato[1]\")),\n_xlpm.part2,TRANSPOSE(_xlfn.FILTERXML(\"<ini><fila><dato>\"&SUBSTITUTE(_xlpm.Paso1,\"|\",\"</dato><dato>\")&\"</dato></fila></ini>\",\"//ini/fila/dato[2]\")),\n_xlpm.part3,TRANSPOSE(_xlfn.FILTERXML(\"<ini><fila><dato>\"&SUBSTITUTE(_xlpm.Paso1,\"|\",\"</dato><dato>\")&\"</dato></fila></ini>\",\"//ini/fila/dato[3]\")),\n_xlpm.part4,TRANSPOSE(_xlfn.FILTERXML(\"<ini><fila><dato>\"&SUBSTITUTE(_xlpm.Paso1,\"|\",\"</dato><dato>\")&\"</dato></fila></ini>\",\"//ini/fila/dato[4]\")),\nIF(_xlpm.Partes>3,\nTRANSPOSE(_xlfn.FILTERXML(\"<ini><fila><dato>\"&_xlfn.TEXTJOIN(\"</dato><dato>\",FALSE,_xlpm.part1&\" \"&_xlpm.part2,_xlpm.part3,IFERROR(_xlpm.part4,\"\"))&\"</dato></fila></ini>\",\"//ini/fila/dato\")),\nTRANSPOSE(_xlfn.FILTERXML(\"<ini><fila><dato>\"&_xlfn.TEXTJOIN(\"</dato><dato>\",FALSE,_xlpm.part1,IFERROR(_xlpm.part2,\"\"),IFERROR(_xlpm.part3,\"\"))&\"</dato></fila></ini>\",\"//ini/fila/dato\")))),\"\")","v":"Jazmin Alejandra"},"Perez","Velez"]
["Gustavo Ramirez Rivera",{"$f":"IFERROR(_xlfn.LET(_xlpm.Paso0,SUBSTITUTE(PROPER(A25),\" \",\"| \"),\n_xlpm.Paso1,_xlfn.TEXTJOIN(\" \",0,\nIFERROR(VLOOKUP(_xlfn.FILTERXML(\"<ini><fila><dato>\"&SUBSTITUTE(_xlpm.Paso0,\" \",\"</dato><dato>\")&\"</dato></fila></ini>\",\"//ini/fila/dato\"),TblReemp[],2,0),\n_xlfn.FILTERXML(\"<ini><fila><dato>\"&SUBSTITUTE(_xlpm.Paso0,\" \",\"</dato><dato>\")&\"</dato></fila></ini>\",\"//ini/fila/dato\"))),\n_xlpm.Partes,LEN(_xlpm.Paso1)-LEN(SUBSTITUTE(_xlpm.Paso1,\"|\",\"\"))+1,\n_xlpm.part1,TRANSPOSE(_xlfn.FILTERXML(\"<ini><fila><dato>\"&SUBSTITUTE(_xlpm.Paso1,\"|\",\"</dato><dato>\")&\"</dato></fila></ini>\",\"//ini/fila/dato[1]\")),\n_xlpm.part2,TRANSPOSE(_xlfn.FILTERXML(\"<ini><fila><dato>\"&SUBSTITUTE(_xlpm.Paso1,\"|\",\"</dato><dato>\")&\"</dato></fila></ini>\",\"//ini/fila/dato[2]\")),\n_xlpm.part3,TRANSPOSE(_xlfn.FILTERXML(\"<ini><fila><dato>\"&SUBSTITUTE(_xlpm.Paso1,\"|\",\"</dato><dato>\")&\"</dato></fila></ini>\",\"//ini/fila/dato[3]\")),\n_xlpm.part4,TRANSPOSE(_xlfn.FILTERXML(\"<ini><fila><dato>\"&SUBSTITUTE(_xlpm.Paso1,\"|\",\"</dato><dato>\")&\"</dato></fila></ini>\",\"//ini/fila/dato[4]\")),\nIF(_xlpm.Partes>3,\nTRANSPOSE(_xlfn.FILTERXML(\"<ini><fila><dato>\"&_xlfn.TEXTJOIN(\"</dato><dato>\",FALSE,_xlpm.part1&\" \"&_xlpm.part2,_xlpm.part3,IFERROR(_xlpm.part4,\"\"))&\"</dato></fila></ini>\",\"//ini/fila/dato\")),\nTRANSPOSE(_xlfn.FILTERXML(\"<ini><fila><dato>\"&_xlfn.TEXTJOIN(\"</dato><dato>\",FALSE,_xlpm.part1,IFERROR(_xlpm.part2,\"\"),IFERROR(_xlpm.part3,\"\"))&\"</dato></fila></ini>\",\"//ini/fila/dato\")))),\"\")","v":"Gustavo"},"Ramirez","Rivera"]
["Carlos Nivardo Rodriguez Ascencio",{"$f":"IFERROR(_xlfn.LET(_xlpm.Paso0,SUBSTITUTE(PROPER(A26),\" \",\"| \"),\n_xlpm.Paso1,_xlfn.TEXTJOIN(\" \",0,\nIFERROR(VLOOKUP(_xlfn.FILTERXML(\"<ini><fila><dato>\"&SUBSTITUTE(_xlpm.Paso0,\" \",\"</dato><dato>\")&\"</dato></fila></ini>\",\"//ini/fila/dato\"),TblReemp[],2,0),\n_xlfn.FILTERXML(\"<ini><fila><dato>\"&SUBSTITUTE(_xlpm.Paso0,\" \",\"</dato><dato>\")&\"</dato></fila></ini>\",\"//ini/fila/dato\"))),\n_xlpm.Partes,LEN(_xlpm.Paso1)-LEN(SUBSTITUTE(_xlpm.Paso1,\"|\",\"\"))+1,\n_xlpm.part1,TRANSPOSE(_xlfn.FILTERXML(\"<ini><fila><dato>\"&SUBSTITUTE(_xlpm.Paso1,\"|\",\"</dato><dato>\")&\"</dato></fila></ini>\",\"//ini/fila/dato[1]\")),\n_xlpm.part2,TRANSPOSE(_xlfn.FILTERXML(\"<ini><fila><dato>\"&SUBSTITUTE(_xlpm.Paso1,\"|\",\"</dato><dato>\")&\"</dato></fila></ini>\",\"//ini/fila/dato[2]\")),\n_xlpm.part3,TRANSPOSE(_xlfn.FILTERXML(\"<ini><fila><dato>\"&SUBSTITUTE(_xlpm.Paso1,\"|\",\"</dato><dato>\")&\"</dato></fila></ini>\",\"//ini/fila/dato[3]\")),\n_xlpm.part4,TRANSPOSE(_xlfn.FILTERXML(\"<ini><fila><dato>\"&SUBSTITUTE(_xlpm.Paso1,\"|\",\"</dato><dato>\")&\"</dato></fila></ini>\",\"//ini/fila/dato[4]\")),\nIF(_xlpm.Partes>3,\nTRANSPOSE(_xlfn.FILTERXML(\"<ini><fila><dato>\"&_xlfn.TEXTJOIN(\"</dato><dato>\",FALSE,_xlpm.part1&\" \"&_xlpm.part2,_xlpm.part3,IFERROR(_xlpm.part4,\"\"))&\"</dato></fila></ini>\",\"//ini/fila/dato\")),\nTRANSPOSE(_xlfn.FILTERXML(\"<ini><fila><dato>\"&_xlfn.TEXTJOIN(\"</dato><dato>\",FALSE,_xlpm.part1,IFERROR(_xlpm.part2,\"\"),IFERROR(_xlpm.part3,\"\"))&\"</dato></fila></ini>\",\"//ini/fila/dato\")))),\"\")","v":"Carlos Nivardo"},"Rodriguez","Ascencio"]
["Karla Johana Romero Luevanos",{"$f":"IFERROR(_xlfn.LET(_xlpm.Paso0,SUBSTITUTE(PROPER(A27),\" \",\"| \"),\n_xlpm.Paso1,_xlfn.TEXTJOIN(\" \",0,\nIFERROR(VLOOKUP(_xlfn.FILTERXML(\"<ini><fila><dato>\"&SUBSTITUTE(_xlpm.Paso0,\" \",\"</dato><dato>\")&\"</dato></fila></ini>\",\"//ini/fila/dato\"),TblReemp[],2,0),\n_xlfn.FILTERXML(\"<ini><fila><dato>\"&SUBSTITUTE(_xlpm.Paso0,\" \",\"</dato><dato>\")&\"</dato></fila></ini>\",\"//ini/fila/dato\"))),\n_xlpm.Partes,LEN(_xlpm.Paso1)-LEN(SUBSTITUTE(_xlpm.Paso1,\"|\",\"\"))+1,\n_xlpm.part1,TRANSPOSE(_xlfn.FILTERXML(\"<ini><fila><dato>\"&SUBSTITUTE(_xlpm.Paso1,\"|\",\"</dato><dato>\")&\"</dato></fila></ini>\",\"//ini/fila/dato[1]\")),\n_xlpm.part2,TRANSPOSE(_xlfn.FILTERXML(\"<ini><fila><dato>\"&SUBSTITUTE(_xlpm.Paso1,\"|\",\"</dato><dato>\")&\"</dato></fila></ini>\",\"//ini/fila/dato[2]\")),\n_xlpm.part3,TRANSPOSE(_xlfn.FILTERXML(\"<ini><fila><dato>\"&SUBSTITUTE(_xlpm.Paso1,\"|\",\"</dato><dato>\")&\"</dato></fila></ini>\",\"//ini/fila/dato[3]\")),\n_xlpm.part4,TRANSPOSE(_xlfn.FILTERXML(\"<ini><fila><dato>\"&SUBSTITUTE(_xlpm.Paso1,\"|\",\"</dato><dato>\")&\"</dato></fila></ini>\",\"//ini/fila/dato[4]\")),\nIF(_xlpm.Partes>3,\nTRANSPOSE(_xlfn.FILTERXML(\"<ini><fila><dato>\"&_xlfn.TEXTJOIN(\"</dato><dato>\",FALSE,_xlpm.part1&\" \"&_xlpm.part2,_xlpm.part3,IFERROR(_xlpm.part4,\"\"))&\"</dato></fila></ini>\",\"//ini/fila/dato\")),\nTRANSPOSE(_xlfn.FILTERXML(\"<ini><fila><dato>\"&_xlfn.TEXTJOIN(\"</dato><dato>\",FALSE,_xlpm.part1,IFERROR(_xlpm.part2,\"\"),IFERROR(_xlpm.part3,\"\"))&\"</dato></fila></ini>\",\"//ini/fila/dato\")))),\"\")","v":"Karla Johana"},"Romero","Luevanos"]
["Yessica Yoselinne Ruiz Hernandez",{"$f":"IFERROR(_xlfn.LET(_xlpm.Paso0,SUBSTITUTE(PROPER(A28),\" \",\"| \"),\n_xlpm.Paso1,_xlfn.TEXTJOIN(\" \",0,\nIFERROR(VLOOKUP(_xlfn.FILTERXML(\"<ini><fila><dato>\"&SUBSTITUTE(_xlpm.Paso0,\" \",\"</dato><dato>\")&\"</dato></fila></ini>\",\"//ini/fila/dato\"),TblReemp[],2,0),\n_xlfn.FILTERXML(\"<ini><fila><dato>\"&SUBSTITUTE(_xlpm.Paso0,\" \",\"</dato><dato>\")&\"</dato></fila></ini>\",\"//ini/fila/dato\"))),\n_xlpm.Partes,LEN(_xlpm.Paso1)-LEN(SUBSTITUTE(_xlpm.Paso1,\"|\",\"\"))+1,\n_xlpm.part1,TRANSPOSE(_xlfn.FILTERXML(\"<ini><fila><dato>\"&SUBSTITUTE(_xlpm.Paso1,\"|\",\"</dato><dato>\")&\"</dato></fila></ini>\",\"//ini/fila/dato[1]\")),\n_xlpm.part2,TRANSPOSE(_xlfn.FILTERXML(\"<ini><fila><dato>\"&SUBSTITUTE(_xlpm.Paso1,\"|\",\"</dato><dato>\")&\"</dato></fila></ini>\",\"//ini/fila/dato[2]\")),\n_xlpm.part3,TRANSPOSE(_xlfn.FILTERXML(\"<ini><fila><dato>\"&SUBSTITUTE(_xlpm.Paso1,\"|\",\"</dato><dato>\")&\"</dato></fila></ini>\",\"//ini/fila/dato[3]\")),\n_xlpm.part4,TRANSPOSE(_xlfn.FILTERXML(\"<ini><fila><dato>\"&SUBSTITUTE(_xlpm.Paso1,\"|\",\"</dato><dato>\")&\"</dato></fila></ini>\",\"//ini/fila/dato[4]\")),\nIF(_xlpm.Partes>3,\nTRANSPOSE(_xlfn.FILTERXML(\"<ini><fila><dato>\"&_xlfn.TEXTJOIN(\"</dato><dato>\",FALSE,_xlpm.part1&\" \"&_xlpm.part2,_xlpm.part3,IFERROR(_xlpm.part4,\"\"))&\"</dato></fila></ini>\",\"//ini/fila/dato\")),\nTRANSPOSE(_xlfn.FILTERXML(\"<ini><fila><dato>\"&_xlfn.TEXTJOIN(\"</dato><dato>\",FALSE,_xlpm.part1,IFERROR(_xlpm.part2,\"\"),IFERROR(_xlpm.part3,\"\"))&\"</dato></fila></ini>\",\"//ini/fila/dato\")))),\"\")","v":"Yessica Yoselinne"},"Ruiz","Hernandez"]
["Christian Eduardo Salas Sanchez",{"$f":"IFERROR(_xlfn.LET(_xlpm.Paso0,SUBSTITUTE(PROPER(A29),\" \",\"| \"),\n_xlpm.Paso1,_xlfn.TEXTJOIN(\" \",0,\nIFERROR(VLOOKUP(_xlfn.FILTERXML(\"<ini><fila><dato>\"&SUBSTITUTE(_xlpm.Paso0,\" \",\"</dato><dato>\")&\"</dato></fila></ini>\",\"//ini/fila/dato\"),TblReemp[],2,0),\n_xlfn.FILTERXML(\"<ini><fila><dato>\"&SUBSTITUTE(_xlpm.Paso0,\" \",\"</dato><dato>\")&\"</dato></fila></ini>\",\"//ini/fila/dato\"))),\n_xlpm.Partes,LEN(_xlpm.Paso1)-LEN(SUBSTITUTE(_xlpm.Paso1,\"|\",\"\"))+1,\n_xlpm.part1,TRANSPOSE(_xlfn.FILTERXML(\"<ini><fila><dato>\"&SUBSTITUTE(_xlpm.Paso1,\"|\",\"</dato><dato>\")&\"</dato></fila></ini>\",\"//ini/fila/dato[1]\")),\n_xlpm.part2,TRANSPOSE(_xlfn.FILTERXML(\"<ini><fila><dato>\"&SUBSTITUTE(_xlpm.Paso1,\"|\",\"</dato><dato>\")&\"</dato></fila></ini>\",\"//ini/fila/dato[2]\")),\n_xlpm.part3,TRANSPOSE(_xlfn.FILTERXML(\"<ini><fila><dato>\"&SUBSTITUTE(_xlpm.Paso1,\"|\",\"</dato><dato>\")&\"</dato></fila></ini>\",\"//ini/fila/dato[3]\")),\n_xlpm.part4,TRANSPOSE(_xlfn.FILTERXML(\"<ini><fila><dato>\"&SUBSTITUTE(_xlpm.Paso1,\"|\",\"</dato><dato>\")&\"</dato></fila></ini>\",\"//ini/fila/dato[4]\")),\nIF(_xlpm.Partes>3,\nTRANSPOSE(_xlfn.FILTERXML(\"<ini><fila><dato>\"&_xlfn.TEXTJOIN(\"</dato><dato>\",FALSE,_xlpm.part1&\" \"&_xlpm.part2,_xlpm.part3,IFERROR(_xlpm.part4,\"\"))&\"</dato></fila></ini>\",\"//ini/fila/dato\")),\nTRANSPOSE(_xlfn.FILTERXML(\"<ini><fila><dato>\"&_xlfn.TEXTJOIN(\"</dato><dato>\",FALSE,_xlpm.part1,IFERROR(_xlpm.part2,\"\"),IFERROR(_xlpm.part3,\"\"))&\"</dato></fila></ini>\",\"//ini/fila/dato\")))),\"\")","v":"Christian Eduardo"},"Salas","Sanchez"]
["Luis Roberto Saldaña Espinoza",{"$f":"IFERROR(_xlfn.LET(_xlpm.Paso0,SUBSTITUTE(PROPER(A30),\" \",\"| \"),\n_xlpm.Paso1,_xlfn.TEXTJOIN(\" \",0,\nIFERROR(VLOOKUP(_xlfn.FILTERXML(\"<ini><fila><dato>\"&SUBSTITUTE(_xlpm.Paso0,\" \",\"</dato><dato>\")&\"</dato></fila></ini>\",\"//ini/fila/dato\"),TblReemp[],2,0),\n_xlfn.FILTERXML(\"<ini><fila><dato>\"&SUBSTITUTE(_xlpm.Paso0,\" \",\"</dato><dato>\")&\"</dato></fila></ini>\",\"//ini/fila/dato\"))),\n_xlpm.Partes,LEN(_xlpm.Paso1)-LEN(SUBSTITUTE(_xlpm.Paso1,\"|\",\"\"))+1,\n_xlpm.part1,TRANSPOSE(_xlfn.FILTERXML(\"<ini><fila><dato>\"&SUBSTITUTE(_xlpm.Paso1,\"|\",\"</dato><dato>\")&\"</dato></fila></ini>\",\"//ini/fila/dato[1]\")),\n_xlpm.part2,TRANSPOSE(_xlfn.FILTERXML(\"<ini><fila><dato>\"&SUBSTITUTE(_xlpm.Paso1,\"|\",\"</dato><dato>\")&\"</dato></fila></ini>\",\"//ini/fila/dato[2]\")),\n_xlpm.part3,TRANSPOSE(_xlfn.FILTERXML(\"<ini><fila><dato>\"&SUBSTITUTE(_xlpm.Paso1,\"|\",\"</dato><dato>\")&\"</dato></fila></ini>\",\"//ini/fila/dato[3]\")),\n_xlpm.part4,TRANSPOSE(_xlfn.FILTERXML(\"<ini><fila><dato>\"&SUBSTITUTE(_xlpm.Paso1,\"|\",\"</dato><dato>\")&\"</dato></fila></ini>\",\"//ini/fila/dato[4]\")),\nIF(_xlpm.Partes>3,\nTRANSPOSE(_xlfn.FILTERXML(\"<ini><fila><dato>\"&_xlfn.TEXTJOIN(\"</dato><dato>\",FALSE,_xlpm.part1&\" \"&_xlpm.part2,_xlpm.part3,IFERROR(_xlpm.part4,\"\"))&\"</dato></fila></ini>\",\"//ini/fila/dato\")),\nTRANSPOSE(_xlfn.FILTERXML(\"<ini><fila><dato>\"&_xlfn.TEXTJOIN(\"</dato><dato>\",FALSE,_xlpm.part1,IFERROR(_xlpm.part2,\"\"),IFERROR(_xlpm.part3,\"\"))&\"</dato></fila></ini>\",\"//ini/fila/dato\")))),\"\")","v":"Luis Roberto"},"Saldaña","Espinoza"]
["Adrian Sanchez Ortiz",{"$f":"IFERROR(_xlfn.LET(_xlpm.Paso0,SUBSTITUTE(PROPER(A31),\" \",\"| \"),\n_xlpm.Paso1,_xlfn.TEXTJOIN(\" \",0,\nIFERROR(VLOOKUP(_xlfn.FILTERXML(\"<ini><fila><dato>\"&SUBSTITUTE(_xlpm.Paso0,\" \",\"</dato><dato>\")&\"</dato></fila></ini>\",\"//ini/fila/dato\"),TblReemp[],2,0),\n_xlfn.FILTERXML(\"<ini><fila><dato>\"&SUBSTITUTE(_xlpm.Paso0,\" \",\"</dato><dato>\")&\"</dato></fila></ini>\",\"//ini/fila/dato\"))),\n_xlpm.Partes,LEN(_xlpm.Paso1)-LEN(SUBSTITUTE(_xlpm.Paso1,\"|\",\"\"))+1,\n_xlpm.part1,TRANSPOSE(_xlfn.FILTERXML(\"<ini><fila><dato>\"&SUBSTITUTE(_xlpm.Paso1,\"|\",\"</dato><dato>\")&\"</dato></fila></ini>\",\"//ini/fila/dato[1]\")),\n_xlpm.part2,TRANSPOSE(_xlfn.FILTERXML(\"<ini><fila><dato>\"&SUBSTITUTE(_xlpm.Paso1,\"|\",\"</dato><dato>\")&\"</dato></fila></ini>\",\"//ini/fila/dato[2]\")),\n_xlpm.part3,TRANSPOSE(_xlfn.FILTERXML(\"<ini><fila><dato>\"&SUBSTITUTE(_xlpm.Paso1,\"|\",\"</dato><dato>\")&\"</dato></fila></ini>\",\"//ini/fila/dato[3]\")),\n_xlpm.part4,TRANSPOSE(_xlfn.FILTERXML(\"<ini><fila><dato>\"&SUBSTITUTE(_xlpm.Paso1,\"|\",\"</dato><dato>\")&\"</dato></fila></ini>\",\"//ini/fila/dato[4]\")),\nIF(_xlpm.Partes>3,\nTRANSPOSE(_xlfn.FILTERXML(\"<ini><fila><dato>\"&_xlfn.TEXTJOIN(\"</dato><dato>\",FALSE,_xlpm.part1&\" \"&_xlpm.part2,_xlpm.part3,IFERROR(_xlpm.part4,\"\"))&\"</dato></fila></ini>\",\"//ini/fila/dato\")),\nTRANSPOSE(_xlfn.FILTERXML(\"<ini><fila><dato>\"&_xlfn.TEXTJOIN(\"</dato><dato>\",FALSE,_xlpm.part1,IFERROR(_xlpm.part2,\"\"),IFERROR(_xlpm.part3,\"\"))&\"</dato></fila></ini>\",\"//ini/fila/dato\")))),\"\")","v":"Adrian"},"Sanchez","Ortiz"]
["Eduardo Yair Suarez Hernandez",{"$f":"IFERROR(_xlfn.LET(_xlpm.Paso0,SUBSTITUTE(PROPER(A32),\" \",\"| \"),\n_xlpm.Paso1,_xlfn.TEXTJOIN(\" \",0,\nIFERROR(VLOOKUP(_xlfn.FILTERXML(\"<ini><fila><dato>\"&SUBSTITUTE(_xlpm.Paso0,\" \",\"</dato><dato>\")&\"</dato></fila></ini>\",\"//ini/fila/dato\"),TblReemp[],2,0),\n_xlfn.FILTERXML(\"<ini><fila><dato>\"&SUBSTITUTE(_xlpm.Paso0,\" \",\"</dato><dato>\")&\"</dato></fila></ini>\",\"//ini/fila/dato\"))),\n_xlpm.Partes,LEN(_xlpm.Paso1)-LEN(SUBSTITUTE(_xlpm.Paso1,\"|\",\"\"))+1,\n_xlpm.part1,TRANSPOSE(_xlfn.FILTERXML(\"<ini><fila><dato>\"&SUBSTITUTE(_xlpm.Paso1,\"|\",\"</dato><dato>\")&\"</dato></fila></ini>\",\"//ini/fila/dato[1]\")),\n_xlpm.part2,TRANSPOSE(_xlfn.FILTERXML(\"<ini><fila><dato>\"&SUBSTITUTE(_xlpm.Paso1,\"|\",\"</dato><dato>\")&\"</dato></fila></ini>\",\"//ini/fila/dato[2]\")),\n_xlpm.part3,TRANSPOSE(_xlfn.FILTERXML(\"<ini><fila><dato>\"&SUBSTITUTE(_xlpm.Paso1,\"|\",\"</dato><dato>\")&\"</dato></fila></ini>\",\"//ini/fila/dato[3]\")),\n_xlpm.part4,TRANSPOSE(_xlfn.FILTERXML(\"<ini><fila><dato>\"&SUBSTITUTE(_xlpm.Paso1,\"|\",\"</dato><dato>\")&\"</dato></fila></ini>\",\"//ini/fila/dato[4]\")),\nIF(_xlpm.Partes>3,\nTRANSPOSE(_xlfn.FILTERXML(\"<ini><fila><dato>\"&_xlfn.TEXTJOIN(\"</dato><dato>\",FALSE,_xlpm.part1&\" \"&_xlpm.part2,_xlpm.part3,IFERROR(_xlpm.part4,\"\"))&\"</dato></fila></ini>\",\"//ini/fila/dato\")),\nTRANSPOSE(_xlfn.FILTERXML(\"<ini><fila><dato>\"&_xlfn.TEXTJOIN(\"</dato><dato>\",FALSE,_xlpm.part1,IFERROR(_xlpm.part2,\"\"),IFERROR(_xlpm.part3,\"\"))&\"</dato></fila></ini>\",\"//ini/fila/dato\")))),\"\")","v":"Eduardo Yair"},"Suarez","Hernandez"]
["Juan Francisco Tabarez Garcia",{"$f":"IFERROR(_xlfn.LET(_xlpm.Paso0,SUBSTITUTE(PROPER(A33),\" \",\"| \"),\n_xlpm.Paso1,_xlfn.TEXTJOIN(\" \",0,\nIFERROR(VLOOKUP(_xlfn.FILTERXML(\"<ini><fila><dato>\"&SUBSTITUTE(_xlpm.Paso0,\" \",\"</dato><dato>\")&\"</dato></fila></ini>\",\"//ini/fila/dato\"),TblReemp[],2,0),\n_xlfn.FILTERXML(\"<ini><fila><dato>\"&SUBSTITUTE(_xlpm.Paso0,\" \",\"</dato><dato>\")&\"</dato></fila></ini>\",\"//ini/fila/dato\"))),\n_xlpm.Partes,LEN(_xlpm.Paso1)-LEN(SUBSTITUTE(_xlpm.Paso1,\"|\",\"\"))+1,\n_xlpm.part1,TRANSPOSE(_xlfn.FILTERXML(\"<ini><fila><dato>\"&SUBSTITUTE(_xlpm.Paso1,\"|\",\"</dato><dato>\")&\"</dato></fila></ini>\",\"//ini/fila/dato[1]\")),\n_xlpm.part2,TRANSPOSE(_xlfn.FILTERXML(\"<ini><fila><dato>\"&SUBSTITUTE(_xlpm.Paso1,\"|\",\"</dato><dato>\")&\"</dato></fila></ini>\",\"//ini/fila/dato[2]\")),\n_xlpm.part3,TRANSPOSE(_xlfn.FILTERXML(\"<ini><fila><dato>\"&SUBSTITUTE(_xlpm.Paso1,\"|\",\"</dato><dato>\")&\"</dato></fila></ini>\",\"//ini/fila/dato[3]\")),\n_xlpm.part4,TRANSPOSE(_xlfn.FILTERXML(\"<ini><fila><dato>\"&SUBSTITUTE(_xlpm.Paso1,\"|\",\"</dato><dato>\")&\"</dato></fila></ini>\",\"//ini/fila/dato[4]\")),\nIF(_xlpm.Partes>3,\nTRANSPOSE(_xlfn.FILTERXML(\"<ini><fila><dato>\"&_xlfn.TEXTJOIN(\"</dato><dato>\",FALSE,_xlpm.part1&\" \"&_xlpm.part2,_xlpm.part3,IFERROR(_xlpm.part4,\"\"))&\"</dato></fila></ini>\",\"//ini/fila/dato\")),\nTRANSPOSE(_xlfn.FILTERXML(\"<ini><fila><dato>\"&_xlfn.TEXTJOIN(\"</dato><dato>\",FALSE,_xlpm.part1,IFERROR(_xlpm.part2,\"\"),IFERROR(_xlpm.part3,\"\"))&\"</dato></fila></ini>\",\"//ini/fila/dato\")))),\"\")","v":"Juan Francisco"},"Tabarez","Garcia"]
["Zuleica Elizabeth Teran Torres",{"$f":"IFERROR(_xlfn.LET(_xlpm.Paso0,SUBSTITUTE(PROPER(A34),\" \",\"| \"),\n_xlpm.Paso1,_xlfn.TEXTJOIN(\" \",0,\nIFERROR(VLOOKUP(_xlfn.FILTERXML(\"<ini><fila><dato>\"&SUBSTITUTE(_xlpm.Paso0,\" \",\"</dato><dato>\")&\"</dato></fila></ini>\",\"//ini/fila/dato\"),TblReemp[],2,0),\n_xlfn.FILTERXML(\"<ini><fila><dato>\"&SUBSTITUTE(_xlpm.Paso0,\" \",\"</dato><dato>\")&\"</dato></fila></ini>\",\"//ini/fila/dato\"))),\n_xlpm.Partes,LEN(_xlpm.Paso1)-LEN(SUBSTITUTE(_xlpm.Paso1,\"|\",\"\"))+1,\n_xlpm.part1,TRANSPOSE(_xlfn.FILTERXML(\"<ini><fila><dato>\"&SUBSTITUTE(_xlpm.Paso1,\"|\",\"</dato><dato>\")&\"</dato></fila></ini>\",\"//ini/fila/dato[1]\")),\n_xlpm.part2,TRANSPOSE(_xlfn.FILTERXML(\"<ini><fila><dato>\"&SUBSTITUTE(_xlpm.Paso1,\"|\",\"</dato><dato>\")&\"</dato></fila></ini>\",\"//ini/fila/dato[2]\")),\n_xlpm.part3,TRANSPOSE(_xlfn.FILTERXML(\"<ini><fila><dato>\"&SUBSTITUTE(_xlpm.Paso1,\"|\",\"</dato><dato>\")&\"</dato></fila></ini>\",\"//ini/fila/dato[3]\")),\n_xlpm.part4,TRANSPOSE(_xlfn.FILTERXML(\"<ini><fila><dato>\"&SUBSTITUTE(_xlpm.Paso1,\"|\",\"</dato><dato>\")&\"</dato></fila></ini>\",\"//ini/fila/dato[4]\")),\nIF(_xlpm.Partes>3,\nTRANSPOSE(_xlfn.FILTERXML(\"<ini><fila><dato>\"&_xlfn.TEXTJOIN(\"</dato><dato>\",FALSE,_xlpm.part1&\" \"&_xlpm.part2,_xlpm.part3,IFERROR(_xlpm.part4,\"\"))&\"</dato></fila></ini>\",\"//ini/fila/dato\")),\nTRANSPOSE(_xlfn.FILTERXML(\"<ini><fila><dato>\"&_xlfn.TEXTJOIN(\"</dato><dato>\",FALSE,_xlpm.part1,IFERROR(_xlpm.part2,\"\"),IFERROR(_xlpm.part3,\"\"))&\"</dato></fila></ini>\",\"//ini/fila/dato\")))),\"\")","v":"Zuleica Elizabeth"},"Teran","Torres"]
["Adriana Yunuhen Vargas Ayala",{"$f":"IFERROR(_xlfn.LET(_xlpm.Paso0,SUBSTITUTE(PROPER(A35),\" \",\"| \"),\n_xlpm.Paso1,_xlfn.TEXTJOIN(\" \",0,\nIFERROR(VLOOKUP(_xlfn.FILTERXML(\"<ini><fila><dato>\"&SUBSTITUTE(_xlpm.Paso0,\" \",\"</dato><dato>\")&\"</dato></fila></ini>\",\"//ini/fila/dato\"),TblReemp[],2,0),\n_xlfn.FILTERXML(\"<ini><fila><dato>\"&SUBSTITUTE(_xlpm.Paso0,\" \",\"</dato><dato>\")&\"</dato></fila></ini>\",\"//ini/fila/dato\"))),\n_xlpm.Partes,LEN(_xlpm.Paso1)-LEN(SUBSTITUTE(_xlpm.Paso1,\"|\",\"\"))+1,\n_xlpm.part1,TRANSPOSE(_xlfn.FILTERXML(\"<ini><fila><dato>\"&SUBSTITUTE(_xlpm.Paso1,\"|\",\"</dato><dato>\")&\"</dato></fila></ini>\",\"//ini/fila/dato[1]\")),\n_xlpm.part2,TRANSPOSE(_xlfn.FILTERXML(\"<ini><fila><dato>\"&SUBSTITUTE(_xlpm.Paso1,\"|\",\"</dato><dato>\")&\"</dato></fila></ini>\",\"//ini/fila/dato[2]\")),\n_xlpm.part3,TRANSPOSE(_xlfn.FILTERXML(\"<ini><fila><dato>\"&SUBSTITUTE(_xlpm.Paso1,\"|\",\"</dato><dato>\")&\"</dato></fila></ini>\",\"//ini/fila/dato[3]\")),\n_xlpm.part4,TRANSPOSE(_xlfn.FILTERXML(\"<ini><fila><dato>\"&SUBSTITUTE(_xlpm.Paso1,\"|\",\"</dato><dato>\")&\"</dato></fila></ini>\",\"//ini/fila/dato[4]\")),\nIF(_xlpm.Partes>3,\nTRANSPOSE(_xlfn.FILTERXML(\"<ini><fila><dato>\"&_xlfn.TEXTJOIN(\"</dato><dato>\",FALSE,_xlpm.part1&\" \"&_xlpm.part2,_xlpm.part3,IFERROR(_xlpm.part4,\"\"))&\"</dato></fila></ini>\",\"//ini/fila/dato\")),\nTRANSPOSE(_xlfn.FILTERXML(\"<ini><fila><dato>\"&_xlfn.TEXTJOIN(\"</dato><dato>\",FALSE,_xlpm.part1,IFERROR(_xlpm.part2,\"\"),IFERROR(_xlpm.part3,\"\"))&\"</dato></fila></ini>\",\"//ini/fila/dato\")))),\"\")","v":"Adriana Yunuhen"},"Vargas","Ayala"]
["Oscar Uriel Velazquez Alvarez",{"$f":"IFERROR(_xlfn.LET(_xlpm.Paso0,SUBSTITUTE(PROPER(A36),\" \",\"| \"),\n_xlpm.Paso1,_xlfn.TEXTJOIN(\" \",0,\nIFERROR(VLOOKUP(_xlfn.FILTERXML(\"<ini><fila><dato>\"&SUBSTITUTE(_xlpm.Paso0,\" \",\"</dato><dato>\")&\"</dato></fila></ini>\",\"//ini/fila/dato\"),TblReemp[],2,0),\n_xlfn.FILTERXML(\"<ini><fila><dato>\"&SUBSTITUTE(_xlpm.Paso0,\" \",\"</dato><dato>\")&\"</dato></fila></ini>\",\"//ini/fila/dato\"))),\n_xlpm.Partes,LEN(_xlpm.Paso1)-LEN(SUBSTITUTE(_xlpm.Paso1,\"|\",\"\"))+1,\n_xlpm.part1,TRANSPOSE(_xlfn.FILTERXML(\"<ini><fila><dato>\"&SUBSTITUTE(_xlpm.Paso1,\"|\",\"</dato><dato>\")&\"</dato></fila></ini>\",\"//ini/fila/dato[1]\")),\n_xlpm.part2,TRANSPOSE(_xlfn.FILTERXML(\"<ini><fila><dato>\"&SUBSTITUTE(_xlpm.Paso1,\"|\",\"</dato><dato>\")&\"</dato></fila></ini>\",\"//ini/fila/dato[2]\")),\n_xlpm.part3,TRANSPOSE(_xlfn.FILTERXML(\"<ini><fila><dato>\"&SUBSTITUTE(_xlpm.Paso1,\"|\",\"</dato><dato>\")&\"</dato></fila></ini>\",\"//ini/fila/dato[3]\")),\n_xlpm.part4,TRANSPOSE(_xlfn.FILTERXML(\"<ini><fila><dato>\"&SUBSTITUTE(_xlpm.Paso1,\"|\",\"</dato><dato>\")&\"</dato></fila></ini>\",\"//ini/fila/dato[4]\")),\nIF(_xlpm.Partes>3,\nTRANSPOSE(_xlfn.FILTERXML(\"<ini><fila><dato>\"&_xlfn.TEXTJOIN(\"</dato><dato>\",FALSE,_xlpm.part1&\" \"&_xlpm.part2,_xlpm.part3,IFERROR(_xlpm.part4,\"\"))&\"</dato></fila></ini>\",\"//ini/fila/dato\")),\nTRANSPOSE(_xlfn.FILTERXML(\"<ini><fila><dato>\"&_xlfn.TEXTJOIN(\"</dato><dato>\",FALSE,_xlpm.part1,IFERROR(_xlpm.part2,\"\"),IFERROR(_xlpm.part3,\"\"))&\"</dato></fila></ini>\",\"//ini/fila/dato\")))),\"\")","v":"Oscar Uriel"},"Velazquez","Alvarez"]
["Erick De Jesus Corona Diaz",{"$f":"IFERROR(_xlfn.LET(_xlpm.Paso0,SUBSTITUTE(PROPER(A37),\" \",\"| \"),\n_xlpm.Paso1,_xlfn.TEXTJOIN(\" \",0,\nIFERROR(VLOOKUP(_xlfn.FILTERXML(\"<ini><fila><dato>\"&SUBSTITUTE(_xlpm.Paso0,\" \",\"</dato><dato>\")&\"</dato></fila></ini>\",\"//ini/fila/dato\"),TblReemp[],2,0),\n_xlfn.FILTERXML(\"<ini><fila><dato>\"&SUBSTITUTE(_xlpm.Paso0,\" \",\"</dato><dato>\")&\"</dato></fila></ini>\",\"//ini/fila/dato\"))),\n_xlpm.Partes,LEN(_xlpm.Paso1)-LEN(SUBSTITUTE(_xlpm.Paso1,\"|\",\"\"))+1,\n_xlpm.part1,TRANSPOSE(_xlfn.FILTERXML(\"<ini><fila><dato>\"&SUBSTITUTE(_xlpm.Paso1,\"|\",\"</dato><dato>\")&\"</dato></fila></ini>\",\"//ini/fila/dato[1]\")),\n_xlpm.part2,TRANSPOSE(_xlfn.FILTERXML(\"<ini><fila><dato>\"&SUBSTITUTE(_xlpm.Paso1,\"|\",\"</dato><dato>\")&\"</dato></fila></ini>\",\"//ini/fila/dato[2]\")),\n_xlpm.part3,TRANSPOSE(_xlfn.FILTERXML(\"<ini><fila><dato>\"&SUBSTITUTE(_xlpm.Paso1,\"|\",\"</dato><dato>\")&\"</dato></fila></ini>\",\"//ini/fila/dato[3]\")),\n_xlpm.part4,TRANSPOSE(_xlfn.FILTERXML(\"<ini><fila><dato>\"&SUBSTITUTE(_xlpm.Paso1,\"|\",\"</dato><dato>\")&\"</dato></fila></ini>\",\"//ini/fila/dato[4]\")),\nIF(_xlpm.Partes>3,\nTRANSPOSE(_xlfn.FILTERXML(\"<ini><fila><dato>\"&_xlfn.TEXTJOIN(\"</dato><dato>\",FALSE,_xlpm.part1&\" \"&_xlpm.part2,_xlpm.part3,IFERROR(_xlpm.part4,\"\"))&\"</dato></fila></ini>\",\"//ini/fila/dato\")),\nTRANSPOSE(_xlfn.FILTERXML(\"<ini><fila><dato>\"&_xlfn.TEXTJOIN(\"</dato><dato>\",FALSE,_xlpm.part1,IFERROR(_xlpm.part2,\"\"),IFERROR(_xlpm.part3,\"\"))&\"</dato></fila></ini>\",\"//ini/fila/dato\")))),\"\")","v":"Erick De Jesus"},"Corona","Diaz"]
["Maria Guadalupe Ramos Hernandez",{"$f":"IFERROR(_xlfn.LET(_xlpm.Paso0,SUBSTITUTE(PROPER(A38),\" \",\"| \"),\n_xlpm.Paso1,_xlfn.TEXTJOIN(\" \",0,\nIFERROR(VLOOKUP(_xlfn.FILTERXML(\"<ini><fila><dato>\"&SUBSTITUTE(_xlpm.Paso0,\" \",\"</dato><dato>\")&\"</dato></fila></ini>\",\"//ini/fila/dato\"),TblReemp[],2,0),\n_xlfn.FILTERXML(\"<ini><fila><dato>\"&SUBSTITUTE(_xlpm.Paso0,\" \",\"</dato><dato>\")&\"</dato></fila></ini>\",\"//ini/fila/dato\"))),\n_xlpm.Partes,LEN(_xlpm.Paso1)-LEN(SUBSTITUTE(_xlpm.Paso1,\"|\",\"\"))+1,\n_xlpm.part1,TRANSPOSE(_xlfn.FILTERXML(\"<ini><fila><dato>\"&SUBSTITUTE(_xlpm.Paso1,\"|\",\"</dato><dato>\")&\"</dato></fila></ini>\",\"//ini/fila/dato[1]\")),\n_xlpm.part2,TRANSPOSE(_xlfn.FILTERXML(\"<ini><fila><dato>\"&SUBSTITUTE(_xlpm.Paso1,\"|\",\"</dato><dato>\")&\"</dato></fila></ini>\",\"//ini/fila/dato[2]\")),\n_xlpm.part3,TRANSPOSE(_xlfn.FILTERXML(\"<ini><fila><dato>\"&SUBSTITUTE(_xlpm.Paso1,\"|\",\"</dato><dato>\")&\"</dato></fila></ini>\",\"//ini/fila/dato[3]\")),\n_xlpm.part4,TRANSPOSE(_xlfn.FILTERXML(\"<ini><fila><dato>\"&SUBSTITUTE(_xlpm.Paso1,\"|\",\"</dato><dato>\")&\"</dato></fila></ini>\",\"//ini/fila/dato[4]\")),\nIF(_xlpm.Partes>3,\nTRANSPOSE(_xlfn.FILTERXML(\"<ini><fila><dato>\"&_xlfn.TEXTJOIN(\"</dato><dato>\",FALSE,_xlpm.part1&\" \"&_xlpm.part2,_xlpm.part3,IFERROR(_xlpm.part4,\"\"))&\"</dato></fila></ini>\",\"//ini/fila/dato\")),\nTRANSPOSE(_xlfn.FILTERXML(\"<ini><fila><dato>\"&_xlfn.TEXTJOIN(\"</dato><dato>\",FALSE,_xlpm.part1,IFERROR(_xlpm.part2,\"\"),IFERROR(_xlpm.part3,\"\"))&\"</dato></fila></ini>\",\"//ini/fila/dato\")))),\"\")","v":"Maria Guadalupe"},"Ramos","Hernandez"]
["Jessica Noemi Jimenez Ventura",{"$f":"IFERROR(_xlfn.LET(_xlpm.Paso0,SUBSTITUTE(PROPER(A39),\" \",\"| \"),\n_xlpm.Paso1,_xlfn.TEXTJOIN(\" \",0,\nIFERROR(VLOOKUP(_xlfn.FILTERXML(\"<ini><fila><dato>\"&SUBSTITUTE(_xlpm.Paso0,\" \",\"</dato><dato>\")&\"</dato></fila></ini>\",\"//ini/fila/dato\"),TblReemp[],2,0),\n_xlfn.FILTERXML(\"<ini><fila><dato>\"&SUBSTITUTE(_xlpm.Paso0,\" \",\"</dato><dato>\")&\"</dato></fila></ini>\",\"//ini/fila/dato\"))),\n_xlpm.Partes,LEN(_xlpm.Paso1)-LEN(SUBSTITUTE(_xlpm.Paso1,\"|\",\"\"))+1,\n_xlpm.part1,TRANSPOSE(_xlfn.FILTERXML(\"<ini><fila><dato>\"&SUBSTITUTE(_xlpm.Paso1,\"|\",\"</dato><dato>\")&\"</dato></fila></ini>\",\"//ini/fila/dato[1]\")),\n_xlpm.part2,TRANSPOSE(_xlfn.FILTERXML(\"<ini><fila><dato>\"&SUBSTITUTE(_xlpm.Paso1,\"|\",\"</dato><dato>\")&\"</dato></fila></ini>\",\"//ini/fila/dato[2]\")),\n_xlpm.part3,TRANSPOSE(_xlfn.FILTERXML(\"<ini><fila><dato>\"&SUBSTITUTE(_xlpm.Paso1,\"|\",\"</dato><dato>\")&\"</dato></fila></ini>\",\"//ini/fila/dato[3]\")),\n_xlpm.part4,TRANSPOSE(_xlfn.FILTERXML(\"<ini><fila><dato>\"&SUBSTITUTE(_xlpm.Paso1,\"|\",\"</dato><dato>\")&\"</dato></fila></ini>\",\"//ini/fila/dato[4]\")),\nIF(_xlpm.Partes>3,\nTRANSPOSE(_xlfn.FILTERXML(\"<ini><fila><dato>\"&_xlfn.TEXTJOIN(\"</dato><dato>\",FALSE,_xlpm.part1&\" \"&_xlpm.part2,_xlpm.part3,IFERROR(_xlpm.part4,\"\"))&\"</dato></fila></ini>\",\"//ini/fila/dato\")),\nTRANSPOSE(_xlfn.FILTERXML(\"<ini><fila><dato>\"&_xlfn.TEXTJOIN(\"</dato><dato>\",FALSE,_xlpm.part1,IFERROR(_xlpm.part2,\"\"),IFERROR(_xlpm.part3,\"\"))&\"</dato></fila></ini>\",\"//ini/fila/dato\")))),\"\")","v":"Jessica Noemi"},"Jimenez","Ventura"]
["Flor Margarita Rojas Hernandez",{"$f":"IFERROR(_xlfn.LET(_xlpm.Paso0,SUBSTITUTE(PROPER(A40),\" \",\"| \"),\n_xlpm.Paso1,_xlfn.TEXTJOIN(\" \",0,\nIFERROR(VLOOKUP(_xlfn.FILTERXML(\"<ini><fila><dato>\"&SUBSTITUTE(_xlpm.Paso0,\" \",\"</dato><dato>\")&\"</dato></fila></ini>\",\"//ini/fila/dato\"),TblReemp[],2,0),\n_xlfn.FILTERXML(\"<ini><fila><dato>\"&SUBSTITUTE(_xlpm.Paso0,\" \",\"</dato><dato>\")&\"</dato></fila></ini>\",\"//ini/fila/dato\"))),\n_xlpm.Partes,LEN(_xlpm.Paso1)-LEN(SUBSTITUTE(_xlpm.Paso1,\"|\",\"\"))+1,\n_xlpm.part1,TRANSPOSE(_xlfn.FILTERXML(\"<ini><fila><dato>\"&SUBSTITUTE(_xlpm.Paso1,\"|\",\"</dato><dato>\")&\"</dato></fila></ini>\",\"//ini/fila/dato[1]\")),\n_xlpm.part2,TRANSPOSE(_xlfn.FILTERXML(\"<ini><fila><dato>\"&SUBSTITUTE(_xlpm.Paso1,\"|\",\"</dato><dato>\")&\"</dato></fila></ini>\",\"//ini/fila/dato[2]\")),\n_xlpm.part3,TRANSPOSE(_xlfn.FILTERXML(\"<ini><fila><dato>\"&SUBSTITUTE(_xlpm.Paso1,\"|\",\"</dato><dato>\")&\"</dato></fila></ini>\",\"//ini/fila/dato[3]\")),\n_xlpm.part4,TRANSPOSE(_xlfn.FILTERXML(\"<ini><fila><dato>\"&SUBSTITUTE(_xlpm.Paso1,\"|\",\"</dato><dato>\")&\"</dato></fila></ini>\",\"//ini/fila/dato[4]\")),\nIF(_xlpm.Partes>3,\nTRANSPOSE(_xlfn.FILTERXML(\"<ini><fila><dato>\"&_xlfn.TEXTJOIN(\"</dato><dato>\",FALSE,_xlpm.part1&\" \"&_xlpm.part2,_xlpm.part3,IFERROR(_xlpm.part4,\"\"))&\"</dato></fila></ini>\",\"//ini/fila/dato\")),\nTRANSPOSE(_xlfn.FILTERXML(\"<ini><fila><dato>\"&_xlfn.TEXTJOIN(\"</dato><dato>\",FALSE,_xlpm.part1,IFERROR(_xlpm.part2,\"\"),IFERROR(_xlpm.part3,\"\"))&\"</dato></fila></ini>\",\"//ini/fila/dato\")))),\"\")","v":"Flor Margarita"},"Rojas","Hernandez"]
["Luis Antonio Alvarado Valencia",{"$f":"IFERROR(_xlfn.LET(_xlpm.Paso0,SUBSTITUTE(PROPER(A41),\" \",\"| \"),\n_xlpm.Paso1,_xlfn.TEXTJOIN(\" \",0,\nIFERROR(VLOOKUP(_xlfn.FILTERXML(\"<ini><fila><dato>\"&SUBSTITUTE(_xlpm.Paso0,\" \",\"</dato><dato>\")&\"</dato></fila></ini>\",\"//ini/fila/dato\"),TblReemp[],2,0),\n_xlfn.FILTERXML(\"<ini><fila><dato>\"&SUBSTITUTE(_xlpm.Paso0,\" \",\"</dato><dato>\")&\"</dato></fila></ini>\",\"//ini/fila/dato\"))),\n_xlpm.Partes,LEN(_xlpm.Paso1)-LEN(SUBSTITUTE(_xlpm.Paso1,\"|\",\"\"))+1,\n_xlpm.part1,TRANSPOSE(_xlfn.FILTERXML(\"<ini><fila><dato>\"&SUBSTITUTE(_xlpm.Paso1,\"|\",\"</dato><dato>\")&\"</dato></fila></ini>\",\"//ini/fila/dato[1]\")),\n_xlpm.part2,TRANSPOSE(_xlfn.FILTERXML(\"<ini><fila><dato>\"&SUBSTITUTE(_xlpm.Paso1,\"|\",\"</dato><dato>\")&\"</dato></fila></ini>\",\"//ini/fila/dato[2]\")),\n_xlpm.part3,TRANSPOSE(_xlfn.FILTERXML(\"<ini><fila><dato>\"&SUBSTITUTE(_xlpm.Paso1,\"|\",\"</dato><dato>\")&\"</dato></fila></ini>\",\"//ini/fila/dato[3]\")),\n_xlpm.part4,TRANSPOSE(_xlfn.FILTERXML(\"<ini><fila><dato>\"&SUBSTITUTE(_xlpm.Paso1,\"|\",\"</dato><dato>\")&\"</dato></fila></ini>\",\"//ini/fila/dato[4]\")),\nIF(_xlpm.Partes>3,\nTRANSPOSE(_xlfn.FILTERXML(\"<ini><fila><dato>\"&_xlfn.TEXTJOIN(\"</dato><dato>\",FALSE,_xlpm.part1&\" \"&_xlpm.part2,_xlpm.part3,IFERROR(_xlpm.part4,\"\"))&\"</dato></fila></ini>\",\"//ini/fila/dato\")),\nTRANSPOSE(_xlfn.FILTERXML(\"<ini><fila><dato>\"&_xlfn.TEXTJOIN(\"</dato><dato>\",FALSE,_xlpm.part1,IFERROR(_xlpm.part2,\"\"),IFERROR(_xlpm.part3,\"\"))&\"</dato></fila></ini>\",\"//ini/fila/dato\")))),\"\")","v":"Luis Antonio"},"Alvarado","Valencia"]
["Edgar Ivan Aguilar Padilla",{"$f":"IFERROR(_xlfn.LET(_xlpm.Paso0,SUBSTITUTE(PROPER(A42),\" \",\"| \"),\n_xlpm.Paso1,_xlfn.TEXTJOIN(\" \",0,\nIFERROR(VLOOKUP(_xlfn.FILTERXML(\"<ini><fila><dato>\"&SUBSTITUTE(_xlpm.Paso0,\" \",\"</dato><dato>\")&\"</dato></fila></ini>\",\"//ini/fila/dato\"),TblReemp[],2,0),\n_xlfn.FILTERXML(\"<ini><fila><dato>\"&SUBSTITUTE(_xlpm.Paso0,\" \",\"</dato><dato>\")&\"</dato></fila></ini>\",\"//ini/fila/dato\"))),\n_xlpm.Partes,LEN(_xlpm.Paso1)-LEN(SUBSTITUTE(_xlpm.Paso1,\"|\",\"\"))+1,\n_xlpm.part1,TRANSPOSE(_xlfn.FILTERXML(\"<ini><fila><dato>\"&SUBSTITUTE(_xlpm.Paso1,\"|\",\"</dato><dato>\")&\"</dato></fila></ini>\",\"//ini/fila/dato[1]\")),\n_xlpm.part2,TRANSPOSE(_xlfn.FILTERXML(\"<ini><fila><dato>\"&SUBSTITUTE(_xlpm.Paso1,\"|\",\"</dato><dato>\")&\"</dato></fila></ini>\",\"//ini/fila/dato[2]\")),\n_xlpm.part3,TRANSPOSE(_xlfn.FILTERXML(\"<ini><fila><dato>\"&SUBSTITUTE(_xlpm.Paso1,\"|\",\"</dato><dato>\")&\"</dato></fila></ini>\",\"//ini/fila/dato[3]\")),\n_xlpm.part4,TRANSPOSE(_xlfn.FILTERXML(\"<ini><fila><dato>\"&SUBSTITUTE(_xlpm.Paso1,\"|\",\"</dato><dato>\")&\"</dato></fila></ini>\",\"//ini/fila/dato[4]\")),\nIF(_xlpm.Partes>3,\nTRANSPOSE(_xlfn.FILTERXML(\"<ini><fila><dato>\"&_xlfn.TEXTJOIN(\"</dato><dato>\",FALSE,_xlpm.part1&\" \"&_xlpm.part2,_xlpm.part3,IFERROR(_xlpm.part4,\"\"))&\"</dato></fila></ini>\",\"//ini/fila/dato\")),\nTRANSPOSE(_xlfn.FILTERXML(\"<ini><fila><dato>\"&_xlfn.TEXTJOIN(\"</dato><dato>\",FALSE,_xlpm.part1,IFERROR(_xlpm.part2,\"\"),IFERROR(_xlpm.part3,\"\"))&\"</dato></fila></ini>\",\"//ini/fila/dato\")))),\"\")","v":"Edgar Ivan"},"Aguilar","Padilla"]
["Luis Alfonso Michel Sanchez",{"$f":"IFERROR(_xlfn.LET(_xlpm.Paso0,SUBSTITUTE(PROPER(A43),\" \",\"| \"),\n_xlpm.Paso1,_xlfn.TEXTJOIN(\" \",0,\nIFERROR(VLOOKUP(_xlfn.FILTERXML(\"<ini><fila><dato>\"&SUBSTITUTE(_xlpm.Paso0,\" \",\"</dato><dato>\")&\"</dato></fila></ini>\",\"//ini/fila/dato\"),TblReemp[],2,0),\n_xlfn.FILTERXML(\"<ini><fila><dato>\"&SUBSTITUTE(_xlpm.Paso0,\" \",\"</dato><dato>\")&\"</dato></fila></ini>\",\"//ini/fila/dato\"))),\n_xlpm.Partes,LEN(_xlpm.Paso1)-LEN(SUBSTITUTE(_xlpm.Paso1,\"|\",\"\"))+1,\n_xlpm.part1,TRANSPOSE(_xlfn.FILTERXML(\"<ini><fila><dato>\"&SUBSTITUTE(_xlpm.Paso1,\"|\",\"</dato><dato>\")&\"</dato></fila></ini>\",\"//ini/fila/dato[1]\")),\n_xlpm.part2,TRANSPOSE(_xlfn.FILTERXML(\"<ini><fila><dato>\"&SUBSTITUTE(_xlpm.Paso1,\"|\",\"</dato><dato>\")&\"</dato></fila></ini>\",\"//ini/fila/dato[2]\")),\n_xlpm.part3,TRANSPOSE(_xlfn.FILTERXML(\"<ini><fila><dato>\"&SUBSTITUTE(_xlpm.Paso1,\"|\",\"</dato><dato>\")&\"</dato></fila></ini>\",\"//ini/fila/dato[3]\")),\n_xlpm.part4,TRANSPOSE(_xlfn.FILTERXML(\"<ini><fila><dato>\"&SUBSTITUTE(_xlpm.Paso1,\"|\",\"</dato><dato>\")&\"</dato></fila></ini>\",\"//ini/fila/dato[4]\")),\nIF(_xlpm.Partes>3,\nTRANSPOSE(_xlfn.FILTERXML(\"<ini><fila><dato>\"&_xlfn.TEXTJOIN(\"</dato><dato>\",FALSE,_xlpm.part1&\" \"&_xlpm.part2,_xlpm.part3,IFERROR(_xlpm.part4,\"\"))&\"</dato></fila></ini>\",\"//ini/fila/dato\")),\nTRANSPOSE(_xlfn.FILTERXML(\"<ini><fila><dato>\"&_xlfn.TEXTJOIN(\"</dato><dato>\",FALSE,_xlpm.part1,IFERROR(_xlpm.part2,\"\"),IFERROR(_xlpm.part3,\"\"))&\"</dato></fila></ini>\",\"//ini/fila/dato\")))),\"\")","v":"Luis Alfonso"},"Michel","Sanchez"]
["Jose Carlos Silva Rocha",{"$f":"IFERROR(_xlfn.LET(_xlpm.Paso0,SUBSTITUTE(PROPER(A44),\" \",\"| \"),\n_xlpm.Paso1,_xlfn.TEXTJOIN(\" \",0,\nIFERROR(VLOOKUP(_xlfn.FILTERXML(\"<ini><fila><dato>\"&SUBSTITUTE(_xlpm.Paso0,\" \",\"</dato><dato>\")&\"</dato></fila></ini>\",\"//ini/fila/dato\"),TblReemp[],2,0),\n_xlfn.FILTERXML(\"<ini><fila><dato>\"&SUBSTITUTE(_xlpm.Paso0,\" \",\"</dato><dato>\")&\"</dato></fila></ini>\",\"//ini/fila/dato\"))),\n_xlpm.Partes,LEN(_xlpm.Paso1)-LEN(SUBSTITUTE(_xlpm.Paso1,\"|\",\"\"))+1,\n_xlpm.part1,TRANSPOSE(_xlfn.FILTERXML(\"<ini><fila><dato>\"&SUBSTITUTE(_xlpm.Paso1,\"|\",\"</dato><dato>\")&\"</dato></fila></ini>\",\"//ini/fila/dato[1]\")),\n_xlpm.part2,TRANSPOSE(_xlfn.FILTERXML(\"<ini><fila><dato>\"&SUBSTITUTE(_xlpm.Paso1,\"|\",\"</dato><dato>\")&\"</dato></fila></ini>\",\"//ini/fila/dato[2]\")),\n_xlpm.part3,TRANSPOSE(_xlfn.FILTERXML(\"<ini><fila><dato>\"&SUBSTITUTE(_xlpm.Paso1,\"|\",\"</dato><dato>\")&\"</dato></fila></ini>\",\"//ini/fila/dato[3]\")),\n_xlpm.part4,TRANSPOSE(_xlfn.FILTERXML(\"<ini><fila><dato>\"&SUBSTITUTE(_xlpm.Paso1,\"|\",\"</dato><dato>\")&\"</dato></fila></ini>\",\"//ini/fila/dato[4]\")),\nIF(_xlpm.Partes>3,\nTRANSPOSE(_xlfn.FILTERXML(\"<ini><fila><dato>\"&_xlfn.TEXTJOIN(\"</dato><dato>\",FALSE,_xlpm.part1&\" \"&_xlpm.part2,_xlpm.part3,IFERROR(_xlpm.part4,\"\"))&\"</dato></fila></ini>\",\"//ini/fila/dato\")),\nTRANSPOSE(_xlfn.FILTERXML(\"<ini><fila><dato>\"&_xlfn.TEXTJOIN(\"</dato><dato>\",FALSE,_xlpm.part1,IFERROR(_xlpm.part2,\"\"),IFERROR(_xlpm.part3,\"\"))&\"</dato></fila></ini>\",\"//ini/fila/dato\")))),\"\")","v":"Jose Carlos"},"Silva","Rocha"]
["Judith Rodriguez Reyes",{"$f":"IFERROR(_xlfn.LET(_xlpm.Paso0,SUBSTITUTE(PROPER(A45),\" \",\"| \"),\n_xlpm.Paso1,_xlfn.TEXTJOIN(\" \",0,\nIFERROR(VLOOKUP(_xlfn.FILTERXML(\"<ini><fila><dato>\"&SUBSTITUTE(_xlpm.Paso0,\" \",\"</dato><dato>\")&\"</dato></fila></ini>\",\"//ini/fila/dato\"),TblReemp[],2,0),\n_xlfn.FILTERXML(\"<ini><fila><dato>\"&SUBSTITUTE(_xlpm.Paso0,\" \",\"</dato><dato>\")&\"</dato></fila></ini>\",\"//ini/fila/dato\"))),\n_xlpm.Partes,LEN(_xlpm.Paso1)-LEN(SUBSTITUTE(_xlpm.Paso1,\"|\",\"\"))+1,\n_xlpm.part1,TRANSPOSE(_xlfn.FILTERXML(\"<ini><fila><dato>\"&SUBSTITUTE(_xlpm.Paso1,\"|\",\"</dato><dato>\")&\"</dato></fila></ini>\",\"//ini/fila/dato[1]\")),\n_xlpm.part2,TRANSPOSE(_xlfn.FILTERXML(\"<ini><fila><dato>\"&SUBSTITUTE(_xlpm.Paso1,\"|\",\"</dato><dato>\")&\"</dato></fila></ini>\",\"//ini/fila/dato[2]\")),\n_xlpm.part3,TRANSPOSE(_xlfn.FILTERXML(\"<ini><fila><dato>\"&SUBSTITUTE(_xlpm.Paso1,\"|\",\"</dato><dato>\")&\"</dato></fila></ini>\",\"//ini/fila/dato[3]\")),\n_xlpm.part4,TRANSPOSE(_xlfn.FILTERXML(\"<ini><fila><dato>\"&SUBSTITUTE(_xlpm.Paso1,\"|\",\"</dato><dato>\")&\"</dato></fila></ini>\",\"//ini/fila/dato[4]\")),\nIF(_xlpm.Partes>3,\nTRANSPOSE(_xlfn.FILTERXML(\"<ini><fila><dato>\"&_xlfn.TEXTJOIN(\"</dato><dato>\",FALSE,_xlpm.part1&\" \"&_xlpm.part2,_xlpm.part3,IFERROR(_xlpm.part4,\"\"))&\"</dato></fila></ini>\",\"//ini/fila/dato\")),\nTRANSPOSE(_xlfn.FILTERXML(\"<ini><fila><dato>\"&_xlfn.TEXTJOIN(\"</dato><dato>\",FALSE,_xlpm.part1,IFERROR(_xlpm.part2,\"\"),IFERROR(_xlpm.part3,\"\"))&\"</dato></fila></ini>\",\"//ini/fila/dato\")))),\"\")","v":"Judith"},"Rodriguez","Reyes"]
["Brenda Soraya Chavez Garcia",{"$f":"IFERROR(_xlfn.LET(_xlpm.Paso0,SUBSTITUTE(PROPER(A46),\" \",\"| \"),\n_xlpm.Paso1,_xlfn.TEXTJOIN(\" \",0,\nIFERROR(VLOOKUP(_xlfn.FILTERXML(\"<ini><fila><dato>\"&SUBSTITUTE(_xlpm.Paso0,\" \",\"</dato><dato>\")&\"</dato></fila></ini>\",\"//ini/fila/dato\"),TblReemp[],2,0),\n_xlfn.FILTERXML(\"<ini><fila><dato>\"&SUBSTITUTE(_xlpm.Paso0,\" \",\"</dato><dato>\")&\"</dato></fila></ini>\",\"//ini/fila/dato\"))),\n_xlpm.Partes,LEN(_xlpm.Paso1)-LEN(SUBSTITUTE(_xlpm.Paso1,\"|\",\"\"))+1,\n_xlpm.part1,TRANSPOSE(_xlfn.FILTERXML(\"<ini><fila><dato>\"&SUBSTITUTE(_xlpm.Paso1,\"|\",\"</dato><dato>\")&\"</dato></fila></ini>\",\"//ini/fila/dato[1]\")),\n_xlpm.part2,TRANSPOSE(_xlfn.FILTERXML(\"<ini><fila><dato>\"&SUBSTITUTE(_xlpm.Paso1,\"|\",\"</dato><dato>\")&\"</dato></fila></ini>\",\"//ini/fila/dato[2]\")),\n_xlpm.part3,TRANSPOSE(_xlfn.FILTERXML(\"<ini><fila><dato>\"&SUBSTITUTE(_xlpm.Paso1,\"|\",\"</dato><dato>\")&\"</dato></fila></ini>\",\"//ini/fila/dato[3]\")),\n_xlpm.part4,TRANSPOSE(_xlfn.FILTERXML(\"<ini><fila><dato>\"&SUBSTITUTE(_xlpm.Paso1,\"|\",\"</dato><dato>\")&\"</dato></fila></ini>\",\"//ini/fila/dato[4]\")),\nIF(_xlpm.Partes>3,\nTRANSPOSE(_xlfn.FILTERXML(\"<ini><fila><dato>\"&_xlfn.TEXTJOIN(\"</dato><dato>\",FALSE,_xlpm.part1&\" \"&_xlpm.part2,_xlpm.part3,IFERROR(_xlpm.part4,\"\"))&\"</dato></fila></ini>\",\"//ini/fila/dato\")),\nTRANSPOSE(_xlfn.FILTERXML(\"<ini><fila><dato>\"&_xlfn.TEXTJOIN(\"</dato><dato>\",FALSE,_xlpm.part1,IFERROR(_xlpm.part2,\"\"),IFERROR(_xlpm.part3,\"\"))&\"</dato></fila></ini>\",\"//ini/fila/dato\")))),\"\")","v":"Brenda Soraya"},"Chavez","Garcia"]
["Alma Rosa Marquez Aguila",{"$f":"IFERROR(_xlfn.LET(_xlpm.Paso0,SUBSTITUTE(PROPER(A47),\" \",\"| \"),\n_xlpm.Paso1,_xlfn.TEXTJOIN(\" \",0,\nIFERROR(VLOOKUP(_xlfn.FILTERXML(\"<ini><fila><dato>\"&SUBSTITUTE(_xlpm.Paso0,\" \",\"</dato><dato>\")&\"</dato></fila></ini>\",\"//ini/fila/dato\"),TblReemp[],2,0),\n_xlfn.FILTERXML(\"<ini><fila><dato>\"&SUBSTITUTE(_xlpm.Paso0,\" \",\"</dato><dato>\")&\"</dato></fila></ini>\",\"//ini/fila/dato\"))),\n_xlpm.Partes,LEN(_xlpm.Paso1)-LEN(SUBSTITUTE(_xlpm.Paso1,\"|\",\"\"))+1,\n_xlpm.part1,TRANSPOSE(_xlfn.FILTERXML(\"<ini><fila><dato>\"&SUBSTITUTE(_xlpm.Paso1,\"|\",\"</dato><dato>\")&\"</dato></fila></ini>\",\"//ini/fila/dato[1]\")),\n_xlpm.part2,TRANSPOSE(_xlfn.FILTERXML(\"<ini><fila><dato>\"&SUBSTITUTE(_xlpm.Paso1,\"|\",\"</dato><dato>\")&\"</dato></fila></ini>\",\"//ini/fila/dato[2]\")),\n_xlpm.part3,TRANSPOSE(_xlfn.FILTERXML(\"<ini><fila><dato>\"&SUBSTITUTE(_xlpm.Paso1,\"|\",\"</dato><dato>\")&\"</dato></fila></ini>\",\"//ini/fila/dato[3]\")),\n_xlpm.part4,TRANSPOSE(_xlfn.FILTERXML(\"<ini><fila><dato>\"&SUBSTITUTE(_xlpm.Paso1,\"|\",\"</dato><dato>\")&\"</dato></fila></ini>\",\"//ini/fila/dato[4]\")),\nIF(_xlpm.Partes>3,\nTRANSPOSE(_xlfn.FILTERXML(\"<ini><fila><dato>\"&_xlfn.TEXTJOIN(\"</dato><dato>\",FALSE,_xlpm.part1&\" \"&_xlpm.part2,_xlpm.part3,IFERROR(_xlpm.part4,\"\"))&\"</dato></fila></ini>\",\"//ini/fila/dato\")),\nTRANSPOSE(_xlfn.FILTERXML(\"<ini><fila><dato>\"&_xlfn.TEXTJOIN(\"</dato><dato>\",FALSE,_xlpm.part1,IFERROR(_xlpm.part2,\"\"),IFERROR(_xlpm.part3,\"\"))&\"</dato></fila></ini>\",\"//ini/fila/dato\")))),\"\")","v":"Alma Rosa"},"Marquez","Aguila"]
["Pedro Sánchez Pérez-Castejón",{"$f":"IFERROR(_xlfn.LET(_xlpm.Paso0,SUBSTITUTE(PROPER(A48),\" \",\"| \"),\n_xlpm.Paso1,_xlfn.TEXTJOIN(\" \",0,\nIFERROR(VLOOKUP(_xlfn.FILTERXML(\"<ini><fila><dato>\"&SUBSTITUTE(_xlpm.Paso0,\" \",\"</dato><dato>\")&\"</dato></fila></ini>\",\"//ini/fila/dato\"),TblReemp[],2,0),\n_xlfn.FILTERXML(\"<ini><fila><dato>\"&SUBSTITUTE(_xlpm.Paso0,\" \",\"</dato><dato>\")&\"</dato></fila></ini>\",\"//ini/fila/dato\"))),\n_xlpm.Partes,LEN(_xlpm.Paso1)-LEN(SUBSTITUTE(_xlpm.Paso1,\"|\",\"\"))+1,\n_xlpm.part1,TRANSPOSE(_xlfn.FILTERXML(\"<ini><fila><dato>\"&SUBSTITUTE(_xlpm.Paso1,\"|\",\"</dato><dato>\")&\"</dato></fila></ini>\",\"//ini/fila/dato[1]\")),\n_xlpm.part2,TRANSPOSE(_xlfn.FILTERXML(\"<ini><fila><dato>\"&SUBSTITUTE(_xlpm.Paso1,\"|\",\"</dato><dato>\")&\"</dato></fila></ini>\",\"//ini/fila/dato[2]\")),\n_xlpm.part3,TRANSPOSE(_xlfn.FILTERXML(\"<ini><fila><dato>\"&SUBSTITUTE(_xlpm.Paso1,\"|\",\"</dato><dato>\")&\"</dato></fila></ini>\",\"//ini/fila/dato[3]\")),\n_xlpm.part4,TRANSPOSE(_xlfn.FILTERXML(\"<ini><fila><dato>\"&SUBSTITUTE(_xlpm.Paso1,\"|\",\"</dato><dato>\")&\"</dato></fila></ini>\",\"//ini/fila/dato[4]\")),\nIF(_xlpm.Partes>3,\nTRANSPOSE(_xlfn.FILTERXML(\"<ini><fila><dato>\"&_xlfn.TEXTJOIN(\"</dato><dato>\",FALSE,_xlpm.part1&\" \"&_xlpm.part2,_xlpm.part3,IFERROR(_xlpm.part4,\"\"))&\"</dato></fila></ini>\",\"//ini/fila/dato\")),\nTRANSPOSE(_xlfn.FILTERXML(\"<ini><fila><dato>\"&_xlfn.TEXTJOIN(\"</dato><dato>\",FALSE,_xlpm.part1,IFERROR(_xlpm.part2,\"\"),IFERROR(_xlpm.part3,\"\"))&\"</dato></fila></ini>\",\"//ini/fila/dato\")))),\"\")","v":"Pedro"},"Sánchez","Pérez-Castejón"]
["Nadia Calviño Santamaría",{"$f":"IFERROR(_xlfn.LET(_xlpm.Paso0,SUBSTITUTE(PROPER(A49),\" \",\"| \"),\n_xlpm.Paso1,_xlfn.TEXTJOIN(\" \",0,\nIFERROR(VLOOKUP(_xlfn.FILTERXML(\"<ini><fila><dato>\"&SUBSTITUTE(_xlpm.Paso0,\" \",\"</dato><dato>\")&\"</dato></fila></ini>\",\"//ini/fila/dato\"),TblReemp[],2,0),\n_xlfn.FILTERXML(\"<ini><fila><dato>\"&SUBSTITUTE(_xlpm.Paso0,\" \",\"</dato><dato>\")&\"</dato></fila></ini>\",\"//ini/fila/dato\"))),\n_xlpm.Partes,LEN(_xlpm.Paso1)-LEN(SUBSTITUTE(_xlpm.Paso1,\"|\",\"\"))+1,\n_xlpm.part1,TRANSPOSE(_xlfn.FILTERXML(\"<ini><fila><dato>\"&SUBSTITUTE(_xlpm.Paso1,\"|\",\"</dato><dato>\")&\"</dato></fila></ini>\",\"//ini/fila/dato[1]\")),\n_xlpm.part2,TRANSPOSE(_xlfn.FILTERXML(\"<ini><fila><dato>\"&SUBSTITUTE(_xlpm.Paso1,\"|\",\"</dato><dato>\")&\"</dato></fila></ini>\",\"//ini/fila/dato[2]\")),\n_xlpm.part3,TRANSPOSE(_xlfn.FILTERXML(\"<ini><fila><dato>\"&SUBSTITUTE(_xlpm.Paso1,\"|\",\"</dato><dato>\")&\"</dato></fila></ini>\",\"//ini/fila/dato[3]\")),\n_xlpm.part4,TRANSPOSE(_xlfn.FILTERXML(\"<ini><fila><dato>\"&SUBSTITUTE(_xlpm.Paso1,\"|\",\"</dato><dato>\")&\"</dato></fila></ini>\",\"//ini/fila/dato[4]\")),\nIF(_xlpm.Partes>3,\nTRANSPOSE(_xlfn.FILTERXML(\"<ini><fila><dato>\"&_xlfn.TEXTJOIN(\"</dato><dato>\",FALSE,_xlpm.part1&\" \"&_xlpm.part2,_xlpm.part3,IFERROR(_xlpm.part4,\"\"))&\"</dato></fila></ini>\",\"//ini/fila/dato\")),\nTRANSPOSE(_xlfn.FILTERXML(\"<ini><fila><dato>\"&_xlfn.TEXTJOIN(\"</dato><dato>\",FALSE,_xlpm.part1,IFERROR(_xlpm.part2,\"\"),IFERROR(_xlpm.part3,\"\"))&\"</dato></fila></ini>\",\"//ini/fila/dato\")))),\"\")","v":"Nadia"},"Calviño","Santamaría"]
["Yolanda Díaz Pérez",{"$f":"IFERROR(_xlfn.LET(_xlpm.Paso0,SUBSTITUTE(PROPER(A50),\" \",\"| \"),\n_xlpm.Paso1,_xlfn.TEXTJOIN(\" \",0,\nIFERROR(VLOOKUP(_xlfn.FILTERXML(\"<ini><fila><dato>\"&SUBSTITUTE(_xlpm.Paso0,\" \",\"</dato><dato>\")&\"</dato></fila></ini>\",\"//ini/fila/dato\"),TblReemp[],2,0),\n_xlfn.FILTERXML(\"<ini><fila><dato>\"&SUBSTITUTE(_xlpm.Paso0,\" \",\"</dato><dato>\")&\"</dato></fila></ini>\",\"//ini/fila/dato\"))),\n_xlpm.Partes,LEN(_xlpm.Paso1)-LEN(SUBSTITUTE(_xlpm.Paso1,\"|\",\"\"))+1,\n_xlpm.part1,TRANSPOSE(_xlfn.FILTERXML(\"<ini><fila><dato>\"&SUBSTITUTE(_xlpm.Paso1,\"|\",\"</dato><dato>\")&\"</dato></fila></ini>\",\"//ini/fila/dato[1]\")),\n_xlpm.part2,TRANSPOSE(_xlfn.FILTERXML(\"<ini><fila><dato>\"&SUBSTITUTE(_xlpm.Paso1,\"|\",\"</dato><dato>\")&\"</dato></fila></ini>\",\"//ini/fila/dato[2]\")),\n_xlpm.part3,TRANSPOSE(_xlfn.FILTERXML(\"<ini><fila><dato>\"&SUBSTITUTE(_xlpm.Paso1,\"|\",\"</dato><dato>\")&\"</dato></fila></ini>\",\"//ini/fila/dato[3]\")),\n_xlpm.part4,TRANSPOSE(_xlfn.FILTERXML(\"<ini><fila><dato>\"&SUBSTITUTE(_xlpm.Paso1,\"|\",\"</dato><dato>\")&\"</dato></fila></ini>\",\"//ini/fila/dato[4]\")),\nIF(_xlpm.Partes>3,\nTRANSPOSE(_xlfn.FILTERXML(\"<ini><fila><dato>\"&_xlfn.TEXTJOIN(\"</dato><dato>\",FALSE,_xlpm.part1&\" \"&_xlpm.part2,_xlpm.part3,IFERROR(_xlpm.part4,\"\"))&\"</dato></fila></ini>\",\"//ini/fila/dato\")),\nTRANSPOSE(_xlfn.FILTERXML(\"<ini><fila><dato>\"&_xlfn.TEXTJOIN(\"</dato><dato>\",FALSE,_xlpm.part1,IFERROR(_xlpm.part2,\"\"),IFERROR(_xlpm.part3,\"\"))&\"</dato></fila></ini>\",\"//ini/fila/dato\")))),\"\")","v":"Yolanda"},"Díaz","Pérez"]
["Teresa Ribera Rodríguez",{"$f":"IFERROR(_xlfn.LET(_xlpm.Paso0,SUBSTITUTE(PROPER(A51),\" \",\"| \"),\n_xlpm.Paso1,_xlfn.TEXTJOIN(\" \",0,\nIFERROR(VLOOKUP(_xlfn.FILTERXML(\"<ini><fila><dato>\"&SUBSTITUTE(_xlpm.Paso0,\" \",\"</dato><dato>\")&\"</dato></fila></ini>\",\"//ini/fila/dato\"),TblReemp[],2,0),\n_xlfn.FILTERXML(\"<ini><fila><dato>\"&SUBSTITUTE(_xlpm.Paso0,\" \",\"</dato><dato>\")&\"</dato></fila></ini>\",\"//ini/fila/dato\"))),\n_xlpm.Partes,LEN(_xlpm.Paso1)-LEN(SUBSTITUTE(_xlpm.Paso1,\"|\",\"\"))+1,\n_xlpm.part1,TRANSPOSE(_xlfn.FILTERXML(\"<ini><fila><dato>\"&SUBSTITUTE(_xlpm.Paso1,\"|\",\"</dato><dato>\")&\"</dato></fila></ini>\",\"//ini/fila/dato[1]\")),\n_xlpm.part2,TRANSPOSE(_xlfn.FILTERXML(\"<ini><fila><dato>\"&SUBSTITUTE(_xlpm.Paso1,\"|\",\"</dato><dato>\")&\"</dato></fila></ini>\",\"//ini/fila/dato[2]\")),\n_xlpm.part3,TRANSPOSE(_xlfn.FILTERXML(\"<ini><fila><dato>\"&SUBSTITUTE(_xlpm.Paso1,\"|\",\"</dato><dato>\")&\"</dato></fila></ini>\",\"//ini/fila/dato[3]\")),\n_xlpm.part4,TRANSPOSE(_xlfn.FILTERXML(\"<ini><fila><dato>\"&SUBSTITUTE(_xlpm.Paso1,\"|\",\"</dato><dato>\")&\"</dato></fila></ini>\",\"//ini/fila/dato[4]\")),\nIF(_xlpm.Partes>3,\nTRANSPOSE(_xlfn.FILTERXML(\"<ini><fila><dato>\"&_xlfn.TEXTJOIN(\"</dato><dato>\",FALSE,_xlpm.part1&\" \"&_xlpm.part2,_xlpm.part3,IFERROR(_xlpm.part4,\"\"))&\"</dato></fila></ini>\",\"//ini/fila/dato\")),\nTRANSPOSE(_xlfn.FILTERXML(\"<ini><fila><dato>\"&_xlfn.TEXTJOIN(\"</dato><dato>\",FALSE,_xlpm.part1,IFERROR(_xlpm.part2,\"\"),IFERROR(_xlpm.part3,\"\"))&\"</dato></fila></ini>\",\"//ini/fila/dato\")))),\"\")","v":"Teresa"},"Ribera","Rodríguez"]
["José Manuel Albares Bueno",{"$f":"IFERROR(_xlfn.LET(_xlpm.Paso0,SUBSTITUTE(PROPER(A52),\" \",\"| \"),\n_xlpm.Paso1,_xlfn.TEXTJOIN(\" \",0,\nIFERROR(VLOOKUP(_xlfn.FILTERXML(\"<ini><fila><dato>\"&SUBSTITUTE(_xlpm.Paso0,\" \",\"</dato><dato>\")&\"</dato></fila></ini>\",\"//ini/fila/dato\"),TblReemp[],2,0),\n_xlfn.FILTERXML(\"<ini><fila><dato>\"&SUBSTITUTE(_xlpm.Paso0,\" \",\"</dato><dato>\")&\"</dato></fila></ini>\",\"//ini/fila/dato\"))),\n_xlpm.Partes,LEN(_xlpm.Paso1)-LEN(SUBSTITUTE(_xlpm.Paso1,\"|\",\"\"))+1,\n_xlpm.part1,TRANSPOSE(_xlfn.FILTERXML(\"<ini><fila><dato>\"&SUBSTITUTE(_xlpm.Paso1,\"|\",\"</dato><dato>\")&\"</dato></fila></ini>\",\"//ini/fila/dato[1]\")),\n_xlpm.part2,TRANSPOSE(_xlfn.FILTERXML(\"<ini><fila><dato>\"&SUBSTITUTE(_xlpm.Paso1,\"|\",\"</dato><dato>\")&\"</dato></fila></ini>\",\"//ini/fila/dato[2]\")),\n_xlpm.part3,TRANSPOSE(_xlfn.FILTERXML(\"<ini><fila><dato>\"&SUBSTITUTE(_xlpm.Paso1,\"|\",\"</dato><dato>\")&\"</dato></fila></ini>\",\"//ini/fila/dato[3]\")),\n_xlpm.part4,TRANSPOSE(_xlfn.FILTERXML(\"<ini><fila><dato>\"&SUBSTITUTE(_xlpm.Paso1,\"|\",\"</dato><dato>\")&\"</dato></fila></ini>\",\"//ini/fila/dato[4]\")),\nIF(_xlpm.Partes>3,\nTRANSPOSE(_xlfn.FILTERXML(\"<ini><fila><dato>\"&_xlfn.TEXTJOIN(\"</dato><dato>\",FALSE,_xlpm.part1&\" \"&_xlpm.part2,_xlpm.part3,IFERROR(_xlpm.part4,\"\"))&\"</dato></fila></ini>\",\"//ini/fila/dato\")),\nTRANSPOSE(_xlfn.FILTERXML(\"<ini><fila><dato>\"&_xlfn.TEXTJOIN(\"</dato><dato>\",FALSE,_xlpm.part1,IFERROR(_xlpm.part2,\"\"),IFERROR(_xlpm.part3,\"\"))&\"</dato></fila></ini>\",\"//ini/fila/dato\")))),\"\")","v":"José Manuel"},"Albares","Bueno"]
["Pilar Llop Cuenca",{"$f":"IFERROR(_xlfn.LET(_xlpm.Paso0,SUBSTITUTE(PROPER(A53),\" \",\"| \"),\n_xlpm.Paso1,_xlfn.TEXTJOIN(\" \",0,\nIFERROR(VLOOKUP(_xlfn.FILTERXML(\"<ini><fila><dato>\"&SUBSTITUTE(_xlpm.Paso0,\" \",\"</dato><dato>\")&\"</dato></fila></ini>\",\"//ini/fila/dato\"),TblReemp[],2,0),\n_xlfn.FILTERXML(\"<ini><fila><dato>\"&SUBSTITUTE(_xlpm.Paso0,\" \",\"</dato><dato>\")&\"</dato></fila></ini>\",\"//ini/fila/dato\"))),\n_xlpm.Partes,LEN(_xlpm.Paso1)-LEN(SUBSTITUTE(_xlpm.Paso1,\"|\",\"\"))+1,\n_xlpm.part1,TRANSPOSE(_xlfn.FILTERXML(\"<ini><fila><dato>\"&SUBSTITUTE(_xlpm.Paso1,\"|\",\"</dato><dato>\")&\"</dato></fila></ini>\",\"//ini/fila/dato[1]\")),\n_xlpm.part2,TRANSPOSE(_xlfn.FILTERXML(\"<ini><fila><dato>\"&SUBSTITUTE(_xlpm.Paso1,\"|\",\"</dato><dato>\")&\"</dato></fila></ini>\",\"//ini/fila/dato[2]\")),\n_xlpm.part3,TRANSPOSE(_xlfn.FILTERXML(\"<ini><fila><dato>\"&SUBSTITUTE(_xlpm.Paso1,\"|\",\"</dato><dato>\")&\"</dato></fila></ini>\",\"//ini/fila/dato[3]\")),\n_xlpm.part4,TRANSPOSE(_xlfn.FILTERXML(\"<ini><fila><dato>\"&SUBSTITUTE(_xlpm.Paso1,\"|\",\"</dato><dato>\")&\"</dato></fila></ini>\",\"//ini/fila/dato[4]\")),\nIF(_xlpm.Partes>3,\nTRANSPOSE(_xlfn.FILTERXML(\"<ini><fila><dato>\"&_xlfn.TEXTJOIN(\"</dato><dato>\",FALSE,_xlpm.part1&\" \"&_xlpm.part2,_xlpm.part3,IFERROR(_xlpm.part4,\"\"))&\"</dato></fila></ini>\",\"//ini/fila/dato\")),\nTRANSPOSE(_xlfn.FILTERXML(\"<ini><fila><dato>\"&_xlfn.TEXTJOIN(\"</dato><dato>\",FALSE,_xlpm.part1,IFERROR(_xlpm.part2,\"\"),IFERROR(_xlpm.part3,\"\"))&\"</dato></fila></ini>\",\"//ini/fila/dato\")))),\"\")","v":"Pilar"},"Llop","Cuenca"]
["Margarita Robles Fernández",{"$f":"IFERROR(_xlfn.LET(_xlpm.Paso0,SUBSTITUTE(PROPER(A54),\" \",\"| \"),\n_xlpm.Paso1,_xlfn.TEXTJOIN(\" \",0,\nIFERROR(VLOOKUP(_xlfn.FILTERXML(\"<ini><fila><dato>\"&SUBSTITUTE(_xlpm.Paso0,\" \",\"</dato><dato>\")&\"</dato></fila></ini>\",\"//ini/fila/dato\"),TblReemp[],2,0),\n_xlfn.FILTERXML(\"<ini><fila><dato>\"&SUBSTITUTE(_xlpm.Paso0,\" \",\"</dato><dato>\")&\"</dato></fila></ini>\",\"//ini/fila/dato\"))),\n_xlpm.Partes,LEN(_xlpm.Paso1)-LEN(SUBSTITUTE(_xlpm.Paso1,\"|\",\"\"))+1,\n_xlpm.part1,TRANSPOSE(_xlfn.FILTERXML(\"<ini><fila><dato>\"&SUBSTITUTE(_xlpm.Paso1,\"|\",\"</dato><dato>\")&\"</dato></fila></ini>\",\"//ini/fila/dato[1]\")),\n_xlpm.part2,TRANSPOSE(_xlfn.FILTERXML(\"<ini><fila><dato>\"&SUBSTITUTE(_xlpm.Paso1,\"|\",\"</dato><dato>\")&\"</dato></fila></ini>\",\"//ini/fila/dato[2]\")),\n_xlpm.part3,TRANSPOSE(_xlfn.FILTERXML(\"<ini><fila><dato>\"&SUBSTITUTE(_xlpm.Paso1,\"|\",\"</dato><dato>\")&\"</dato></fila></ini>\",\"//ini/fila/dato[3]\")),\n_xlpm.part4,TRANSPOSE(_xlfn.FILTERXML(\"<ini><fila><dato>\"&SUBSTITUTE(_xlpm.Paso1,\"|\",\"</dato><dato>\")&\"</dato></fila></ini>\",\"//ini/fila/dato[4]\")),\nIF(_xlpm.Partes>3,\nTRANSPOSE(_xlfn.FILTERXML(\"<ini><fila><dato>\"&_xlfn.TEXTJOIN(\"</dato><dato>\",FALSE,_xlpm.part1&\" \"&_xlpm.part2,_xlpm.part3,IFERROR(_xlpm.part4,\"\"))&\"</dato></fila></ini>\",\"//ini/fila/dato\")),\nTRANSPOSE(_xlfn.FILTERXML(\"<ini><fila><dato>\"&_xlfn.TEXTJOIN(\"</dato><dato>\",FALSE,_xlpm.part1,IFERROR(_xlpm.part2,\"\"),IFERROR(_xlpm.part3,\"\"))&\"</dato></fila></ini>\",\"//ini/fila/dato\")))),\"\")","v":"Margarita"},"Robles","Fernández"]
["María Jesús Montero Cuadrado",{"$f":"IFERROR(_xlfn.LET(_xlpm.Paso0,SUBSTITUTE(PROPER(A55),\" \",\"| \"),\n_xlpm.Paso1,_xlfn.TEXTJOIN(\" \",0,\nIFERROR(VLOOKUP(_xlfn.FILTERXML(\"<ini><fila><dato>\"&SUBSTITUTE(_xlpm.Paso0,\" \",\"</dato><dato>\")&\"</dato></fila></ini>\",\"//ini/fila/dato\"),TblReemp[],2,0),\n_xlfn.FILTERXML(\"<ini><fila><dato>\"&SUBSTITUTE(_xlpm.Paso0,\" \",\"</dato><dato>\")&\"</dato></fila></ini>\",\"//ini/fila/dato\"))),\n_xlpm.Partes,LEN(_xlpm.Paso1)-LEN(SUBSTITUTE(_xlpm.Paso1,\"|\",\"\"))+1,\n_xlpm.part1,TRANSPOSE(_xlfn.FILTERXML(\"<ini><fila><dato>\"&SUBSTITUTE(_xlpm.Paso1,\"|\",\"</dato><dato>\")&\"</dato></fila></ini>\",\"//ini/fila/dato[1]\")),\n_xlpm.part2,TRANSPOSE(_xlfn.FILTERXML(\"<ini><fila><dato>\"&SUBSTITUTE(_xlpm.Paso1,\"|\",\"</dato><dato>\")&\"</dato></fila></ini>\",\"//ini/fila/dato[2]\")),\n_xlpm.part3,TRANSPOSE(_xlfn.FILTERXML(\"<ini><fila><dato>\"&SUBSTITUTE(_xlpm.Paso1,\"|\",\"</dato><dato>\")&\"</dato></fila></ini>\",\"//ini/fila/dato[3]\")),\n_xlpm.part4,TRANSPOSE(_xlfn.FILTERXML(\"<ini><fila><dato>\"&SUBSTITUTE(_xlpm.Paso1,\"|\",\"</dato><dato>\")&\"</dato></fila></ini>\",\"//ini/fila/dato[4]\")),\nIF(_xlpm.Partes>3,\nTRANSPOSE(_xlfn.FILTERXML(\"<ini><fila><dato>\"&_xlfn.TEXTJOIN(\"</dato><dato>\",FALSE,_xlpm.part1&\" \"&_xlpm.part2,_xlpm.part3,IFERROR(_xlpm.part4,\"\"))&\"</dato></fila></ini>\",\"//ini/fila/dato\")),\nTRANSPOSE(_xlfn.FILTERXML(\"<ini><fila><dato>\"&_xlfn.TEXTJOIN(\"</dato><dato>\",FALSE,_xlpm.part1,IFERROR(_xlpm.part2,\"\"),IFERROR(_xlpm.part3,\"\"))&\"</dato></fila></ini>\",\"//ini/fila/dato\")))),\"\")","v":"María Jesús"},"Montero","Cuadrado"]
["Fernando Grande-Marlaska Gómez",{"$f":"IFERROR(_xlfn.LET(_xlpm.Paso0,SUBSTITUTE(PROPER(A56),\" \",\"| \"),\n_xlpm.Paso1,_xlfn.TEXTJOIN(\" \",0,\nIFERROR(VLOOKUP(_xlfn.FILTERXML(\"<ini><fila><dato>\"&SUBSTITUTE(_xlpm.Paso0,\" \",\"</dato><dato>\")&\"</dato></fila></ini>\",\"//ini/fila/dato\"),TblReemp[],2,0),\n_xlfn.FILTERXML(\"<ini><fila><dato>\"&SUBSTITUTE(_xlpm.Paso0,\" \",\"</dato><dato>\")&\"</dato></fila></ini>\",\"//ini/fila/dato\"))),\n_xlpm.Partes,LEN(_xlpm.Paso1)-LEN(SUBSTITUTE(_xlpm.Paso1,\"|\",\"\"))+1,\n_xlpm.part1,TRANSPOSE(_xlfn.FILTERXML(\"<ini><fila><dato>\"&SUBSTITUTE(_xlpm.Paso1,\"|\",\"</dato><dato>\")&\"</dato></fila></ini>\",\"//ini/fila/dato[1]\")),\n_xlpm.part2,TRANSPOSE(_xlfn.FILTERXML(\"<ini><fila><dato>\"&SUBSTITUTE(_xlpm.Paso1,\"|\",\"</dato><dato>\")&\"</dato></fila></ini>\",\"//ini/fila/dato[2]\")),\n_xlpm.part3,TRANSPOSE(_xlfn.FILTERXML(\"<ini><fila><dato>\"&SUBSTITUTE(_xlpm.Paso1,\"|\",\"</dato><dato>\")&\"</dato></fila></ini>\",\"//ini/fila/dato[3]\")),\n_xlpm.part4,TRANSPOSE(_xlfn.FILTERXML(\"<ini><fila><dato>\"&SUBSTITUTE(_xlpm.Paso1,\"|\",\"</dato><dato>\")&\"</dato></fila></ini>\",\"//ini/fila/dato[4]\")),\nIF(_xlpm.Partes>3,\nTRANSPOSE(_xlfn.FILTERXML(\"<ini><fila><dato>\"&_xlfn.TEXTJOIN(\"</dato><dato>\",FALSE,_xlpm.part1&\" \"&_xlpm.part2,_xlpm.part3,IFERROR(_xlpm.part4,\"\"))&\"</dato></fila></ini>\",\"//ini/fila/dato\")),\nTRANSPOSE(_xlfn.FILTERXML(\"<ini><fila><dato>\"&_xlfn.TEXTJOIN(\"</dato><dato>\",FALSE,_xlpm.part1,IFERROR(_xlpm.part2,\"\"),IFERROR(_xlpm.part3,\"\"))&\"</dato></fila></ini>\",\"//ini/fila/dato\")))),\"\")","v":"Fernando"},"Grande-Marlaska","Gómez"]
["Raquel Sánchez Jiménez",{"$f":"IFERROR(_xlfn.LET(_xlpm.Paso0,SUBSTITUTE(PROPER(A57),\" \",\"| \"),\n_xlpm.Paso1,_xlfn.TEXTJOIN(\" \",0,\nIFERROR(VLOOKUP(_xlfn.FILTERXML(\"<ini><fila><dato>\"&SUBSTITUTE(_xlpm.Paso0,\" \",\"</dato><dato>\")&\"</dato></fila></ini>\",\"//ini/fila/dato\"),TblReemp[],2,0),\n_xlfn.FILTERXML(\"<ini><fila><dato>\"&SUBSTITUTE(_xlpm.Paso0,\" \",\"</dato><dato>\")&\"</dato></fila></ini>\",\"//ini/fila/dato\"))),\n_xlpm.Partes,LEN(_xlpm.Paso1)-LEN(SUBSTITUTE(_xlpm.Paso1,\"|\",\"\"))+1,\n_xlpm.part1,TRANSPOSE(_xlfn.FILTERXML(\"<ini><fila><dato>\"&SUBSTITUTE(_xlpm.Paso1,\"|\",\"</dato><dato>\")&\"</dato></fila></ini>\",\"//ini/fila/dato[1]\")),\n_xlpm.part2,TRANSPOSE(_xlfn.FILTERXML(\"<ini><fila><dato>\"&SUBSTITUTE(_xlpm.Paso1,\"|\",\"</dato><dato>\")&\"</dato></fila></ini>\",\"//ini/fila/dato[2]\")),\n_xlpm.part3,TRANSPOSE(_xlfn.FILTERXML(\"<ini><fila><dato>\"&SUBSTITUTE(_xlpm.Paso1,\"|\",\"</dato><dato>\")&\"</dato></fila></ini>\",\"//ini/fila/dato[3]\")),\n_xlpm.part4,TRANSPOSE(_xlfn.FILTERXML(\"<ini><fila><dato>\"&SUBSTITUTE(_xlpm.Paso1,\"|\",\"</dato><dato>\")&\"</dato></fila></ini>\",\"//ini/fila/dato[4]\")),\nIF(_xlpm.Partes>3,\nTRANSPOSE(_xlfn.FILTERXML(\"<ini><fila><dato>\"&_xlfn.TEXTJOIN(\"</dato><dato>\",FALSE,_xlpm.part1&\" \"&_xlpm.part2,_xlpm.part3,IFERROR(_xlpm.part4,\"\"))&\"</dato></fila></ini>\",\"//ini/fila/dato\")),\nTRANSPOSE(_xlfn.FILTERXML(\"<ini><fila><dato>\"&_xlfn.TEXTJOIN(\"</dato><dato>\",FALSE,_xlpm.part1,IFERROR(_xlpm.part2,\"\"),IFERROR(_xlpm.part3,\"\"))&\"</dato></fila></ini>\",\"//ini/fila/dato\")))),\"\")","v":"Raquel"},"Sánchez","Jiménez"]
["Pilar Alegría Continente",{"$f":"IFERROR(_xlfn.LET(_xlpm.Paso0,SUBSTITUTE(PROPER(A58),\" \",\"| \"),\n_xlpm.Paso1,_xlfn.TEXTJOIN(\" \",0,\nIFERROR(VLOOKUP(_xlfn.FILTERXML(\"<ini><fila><dato>\"&SUBSTITUTE(_xlpm.Paso0,\" \",\"</dato><dato>\")&\"</dato></fila></ini>\",\"//ini/fila/dato\"),TblReemp[],2,0),\n_xlfn.FILTERXML(\"<ini><fila><dato>\"&SUBSTITUTE(_xlpm.Paso0,\" \",\"</dato><dato>\")&\"</dato></fila></ini>\",\"//ini/fila/dato\"))),\n_xlpm.Partes,LEN(_xlpm.Paso1)-LEN(SUBSTITUTE(_xlpm.Paso1,\"|\",\"\"))+1,\n_xlpm.part1,TRANSPOSE(_xlfn.FILTERXML(\"<ini><fila><dato>\"&SUBSTITUTE(_xlpm.Paso1,\"|\",\"</dato><dato>\")&\"</dato></fila></ini>\",\"//ini/fila/dato[1]\")),\n_xlpm.part2,TRANSPOSE(_xlfn.FILTERXML(\"<ini><fila><dato>\"&SUBSTITUTE(_xlpm.Paso1,\"|\",\"</dato><dato>\")&\"</dato></fila></ini>\",\"//ini/fila/dato[2]\")),\n_xlpm.part3,TRANSPOSE(_xlfn.FILTERXML(\"<ini><fila><dato>\"&SUBSTITUTE(_xlpm.Paso1,\"|\",\"</dato><dato>\")&\"</dato></fila></ini>\",\"//ini/fila/dato[3]\")),\n_xlpm.part4,TRANSPOSE(_xlfn.FILTERXML(\"<ini><fila><dato>\"&SUBSTITUTE(_xlpm.Paso1,\"|\",\"</dato><dato>\")&\"</dato></fila></ini>\",\"//ini/fila/dato[4]\")),\nIF(_xlpm.Partes>3,\nTRANSPOSE(_xlfn.FILTERXML(\"<ini><fila><dato>\"&_xlfn.TEXTJOIN(\"</dato><dato>\",FALSE,_xlpm.part1&\" \"&_xlpm.part2,_xlpm.part3,IFERROR(_xlpm.part4,\"\"))&\"</dato></fila></ini>\",\"//ini/fila/dato\")),\nTRANSPOSE(_xlfn.FILTERXML(\"<ini><fila><dato>\"&_xlfn.TEXTJOIN(\"</dato><dato>\",FALSE,_xlpm.part1,IFERROR(_xlpm.part2,\"\"),IFERROR(_xlpm.part3,\"\"))&\"</dato></fila></ini>\",\"//ini/fila/dato\")))),\"\")","v":"Pilar"},"Alegría","Continente"]
["Reyes Maroto Illera",{"$f":"IFERROR(_xlfn.LET(_xlpm.Paso0,SUBSTITUTE(PROPER(A59),\" \",\"| \"),\n_xlpm.Paso1,_xlfn.TEXTJOIN(\" \",0,\nIFERROR(VLOOKUP(_xlfn.FILTERXML(\"<ini><fila><dato>\"&SUBSTITUTE(_xlpm.Paso0,\" \",\"</dato><dato>\")&\"</dato></fila></ini>\",\"//ini/fila/dato\"),TblReemp[],2,0),\n_xlfn.FILTERXML(\"<ini><fila><dato>\"&SUBSTITUTE(_xlpm.Paso0,\" \",\"</dato><dato>\")&\"</dato></fila></ini>\",\"//ini/fila/dato\"))),\n_xlpm.Partes,LEN(_xlpm.Paso1)-LEN(SUBSTITUTE(_xlpm.Paso1,\"|\",\"\"))+1,\n_xlpm.part1,TRANSPOSE(_xlfn.FILTERXML(\"<ini><fila><dato>\"&SUBSTITUTE(_xlpm.Paso1,\"|\",\"</dato><dato>\")&\"</dato></fila></ini>\",\"//ini/fila/dato[1]\")),\n_xlpm.part2,TRANSPOSE(_xlfn.FILTERXML(\"<ini><fila><dato>\"&SUBSTITUTE(_xlpm.Paso1,\"|\",\"</dato><dato>\")&\"</dato></fila></ini>\",\"//ini/fila/dato[2]\")),\n_xlpm.part3,TRANSPOSE(_xlfn.FILTERXML(\"<ini><fila><dato>\"&SUBSTITUTE(_xlpm.Paso1,\"|\",\"</dato><dato>\")&\"</dato></fila></ini>\",\"//ini/fila/dato[3]\")),\n_xlpm.part4,TRANSPOSE(_xlfn.FILTERXML(\"<ini><fila><dato>\"&SUBSTITUTE(_xlpm.Paso1,\"|\",\"</dato><dato>\")&\"</dato></fila></ini>\",\"//ini/fila/dato[4]\")),\nIF(_xlpm.Partes>3,\nTRANSPOSE(_xlfn.FILTERXML(\"<ini><fila><dato>\"&_xlfn.TEXTJOIN(\"</dato><dato>\",FALSE,_xlpm.part1&\" \"&_xlpm.part2,_xlpm.part3,IFERROR(_xlpm.part4,\"\"))&\"</dato></fila></ini>\",\"//ini/fila/dato\")),\nTRANSPOSE(_xlfn.FILTERXML(\"<ini><fila><dato>\"&_xlfn.TEXTJOIN(\"</dato><dato>\",FALSE,_xlpm.part1,IFERROR(_xlpm.part2,\"\"),IFERROR(_xlpm.part3,\"\"))&\"</dato></fila></ini>\",\"//ini/fila/dato\")))),\"\")","v":"Reyes"},"Maroto","Illera"]
["Luis Planas Puchades",{"$f":"IFERROR(_xlfn.LET(_xlpm.Paso0,SUBSTITUTE(PROPER(A60),\" \",\"| \"),\n_xlpm.Paso1,_xlfn.TEXTJOIN(\" \",0,\nIFERROR(VLOOKUP(_xlfn.FILTERXML(\"<ini><fila><dato>\"&SUBSTITUTE(_xlpm.Paso0,\" \",\"</dato><dato>\")&\"</dato></fila></ini>\",\"//ini/fila/dato\"),TblReemp[],2,0),\n_xlfn.FILTERXML(\"<ini><fila><dato>\"&SUBSTITUTE(_xlpm.Paso0,\" \",\"</dato><dato>\")&\"</dato></fila></ini>\",\"//ini/fila/dato\"))),\n_xlpm.Partes,LEN(_xlpm.Paso1)-LEN(SUBSTITUTE(_xlpm.Paso1,\"|\",\"\"))+1,\n_xlpm.part1,TRANSPOSE(_xlfn.FILTERXML(\"<ini><fila><dato>\"&SUBSTITUTE(_xlpm.Paso1,\"|\",\"</dato><dato>\")&\"</dato></fila></ini>\",\"//ini/fila/dato[1]\")),\n_xlpm.part2,TRANSPOSE(_xlfn.FILTERXML(\"<ini><fila><dato>\"&SUBSTITUTE(_xlpm.Paso1,\"|\",\"</dato><dato>\")&\"</dato></fila></ini>\",\"//ini/fila/dato[2]\")),\n_xlpm.part3,TRANSPOSE(_xlfn.FILTERXML(\"<ini><fila><dato>\"&SUBSTITUTE(_xlpm.Paso1,\"|\",\"</dato><dato>\")&\"</dato></fila></ini>\",\"//ini/fila/dato[3]\")),\n_xlpm.part4,TRANSPOSE(_xlfn.FILTERXML(\"<ini><fila><dato>\"&SUBSTITUTE(_xlpm.Paso1,\"|\",\"</dato><dato>\")&\"</dato></fila></ini>\",\"//ini/fila/dato[4]\")),\nIF(_xlpm.Partes>3,\nTRANSPOSE(_xlfn.FILTERXML(\"<ini><fila><dato>\"&_xlfn.TEXTJOIN(\"</dato><dato>\",FALSE,_xlpm.part1&\" \"&_xlpm.part2,_xlpm.part3,IFERROR(_xlpm.part4,\"\"))&\"</dato></fila></ini>\",\"//ini/fila/dato\")),\nTRANSPOSE(_xlfn.FILTERXML(\"<ini><fila><dato>\"&_xlfn.TEXTJOIN(\"</dato><dato>\",FALSE,_xlpm.part1,IFERROR(_xlpm.part2,\"\"),IFERROR(_xlpm.part3,\"\"))&\"</dato></fila></ini>\",\"//ini/fila/dato\")))),\"\")","v":"Luis"},"Planas","Puchades"]
["Félix Bolaños García",{"$f":"IFERROR(_xlfn.LET(_xlpm.Paso0,SUBSTITUTE(PROPER(A61),\" \",\"| \"),\n_xlpm.Paso1,_xlfn.TEXTJOIN(\" \",0,\nIFERROR(VLOOKUP(_xlfn.FILTERXML(\"<ini><fila><dato>\"&SUBSTITUTE(_xlpm.Paso0,\" \",\"</dato><dato>\")&\"</dato></fila></ini>\",\"//ini/fila/dato\"),TblReemp[],2,0),\n_xlfn.FILTERXML(\"<ini><fila><dato>\"&SUBSTITUTE(_xlpm.Paso0,\" \",\"</dato><dato>\")&\"</dato></fila></ini>\",\"//ini/fila/dato\"))),\n_xlpm.Partes,LEN(_xlpm.Paso1)-LEN(SUBSTITUTE(_xlpm.Paso1,\"|\",\"\"))+1,\n_xlpm.part1,TRANSPOSE(_xlfn.FILTERXML(\"<ini><fila><dato>\"&SUBSTITUTE(_xlpm.Paso1,\"|\",\"</dato><dato>\")&\"</dato></fila></ini>\",\"//ini/fila/dato[1]\")),\n_xlpm.part2,TRANSPOSE(_xlfn.FILTERXML(\"<ini><fila><dato>\"&SUBSTITUTE(_xlpm.Paso1,\"|\",\"</dato><dato>\")&\"</dato></fila></ini>\",\"//ini/fila/dato[2]\")),\n_xlpm.part3,TRANSPOSE(_xlfn.FILTERXML(\"<ini><fila><dato>\"&SUBSTITUTE(_xlpm.Paso1,\"|\",\"</dato><dato>\")&\"</dato></fila></ini>\",\"//ini/fila/dato[3]\")),\n_xlpm.part4,TRANSPOSE(_xlfn.FILTERXML(\"<ini><fila><dato>\"&SUBSTITUTE(_xlpm.Paso1,\"|\",\"</dato><dato>\")&\"</dato></fila></ini>\",\"//ini/fila/dato[4]\")),\nIF(_xlpm.Partes>3,\nTRANSPOSE(_xlfn.FILTERXML(\"<ini><fila><dato>\"&_xlfn.TEXTJOIN(\"</dato><dato>\",FALSE,_xlpm.part1&\" \"&_xlpm.part2,_xlpm.part3,IFERROR(_xlpm.part4,\"\"))&\"</dato></fila></ini>\",\"//ini/fila/dato\")),\nTRANSPOSE(_xlfn.FILTERXML(\"<ini><fila><dato>\"&_xlfn.TEXTJOIN(\"</dato><dato>\",FALSE,_xlpm.part1,IFERROR(_xlpm.part2,\"\"),IFERROR(_xlpm.part3,\"\"))&\"</dato></fila></ini>\",\"//ini/fila/dato\")))),\"\")","v":"Félix"},"Bolaños","García"]
["Isabel Rodríguez García",{"$f":"IFERROR(_xlfn.LET(_xlpm.Paso0,SUBSTITUTE(PROPER(A62),\" \",\"| \"),\n_xlpm.Paso1,_xlfn.TEXTJOIN(\" \",0,\nIFERROR(VLOOKUP(_xlfn.FILTERXML(\"<ini><fila><dato>\"&SUBSTITUTE(_xlpm.Paso0,\" \",\"</dato><dato>\")&\"</dato></fila></ini>\",\"//ini/fila/dato\"),TblReemp[],2,0),\n_xlfn.FILTERXML(\"<ini><fila><dato>\"&SUBSTITUTE(_xlpm.Paso0,\" \",\"</dato><dato>\")&\"</dato></fila></ini>\",\"//ini/fila/dato\"))),\n_xlpm.Partes,LEN(_xlpm.Paso1)-LEN(SUBSTITUTE(_xlpm.Paso1,\"|\",\"\"))+1,\n_xlpm.part1,TRANSPOSE(_xlfn.FILTERXML(\"<ini><fila><dato>\"&SUBSTITUTE(_xlpm.Paso1,\"|\",\"</dato><dato>\")&\"</dato></fila></ini>\",\"//ini/fila/dato[1]\")),\n_xlpm.part2,TRANSPOSE(_xlfn.FILTERXML(\"<ini><fila><dato>\"&SUBSTITUTE(_xlpm.Paso1,\"|\",\"</dato><dato>\")&\"</dato></fila></ini>\",\"//ini/fila/dato[2]\")),\n_xlpm.part3,TRANSPOSE(_xlfn.FILTERXML(\"<ini><fila><dato>\"&SUBSTITUTE(_xlpm.Paso1,\"|\",\"</dato><dato>\")&\"</dato></fila></ini>\",\"//ini/fila/dato[3]\")),\n_xlpm.part4,TRANSPOSE(_xlfn.FILTERXML(\"<ini><fila><dato>\"&SUBSTITUTE(_xlpm.Paso1,\"|\",\"</dato><dato>\")&\"</dato></fila></ini>\",\"//ini/fila/dato[4]\")),\nIF(_xlpm.Partes>3,\nTRANSPOSE(_xlfn.FILTERXML(\"<ini><fila><dato>\"&_xlfn.TEXTJOIN(\"</dato><dato>\",FALSE,_xlpm.part1&\" \"&_xlpm.part2,_xlpm.part3,IFERROR(_xlpm.part4,\"\"))&\"</dato></fila></ini>\",\"//ini/fila/dato\")),\nTRANSPOSE(_xlfn.FILTERXML(\"<ini><fila><dato>\"&_xlfn.TEXTJOIN(\"</dato><dato>\",FALSE,_xlpm.part1,IFERROR(_xlpm.part2,\"\"),IFERROR(_xlpm.part3,\"\"))&\"</dato></fila></ini>\",\"//ini/fila/dato\")))),\"\")","v":"Isabel"},"Rodríguez","García"]
["Miquel Iceta Llorens",{"$f":"IFERROR(_xlfn.LET(_xlpm.Paso0,SUBSTITUTE(PROPER(A63),\" \",\"| \"),\n_xlpm.Paso1,_xlfn.TEXTJOIN(\" \",0,\nIFERROR(VLOOKUP(_xlfn.FILTERXML(\"<ini><fila><dato>\"&SUBSTITUTE(_xlpm.Paso0,\" \",\"</dato><dato>\")&\"</dato></fila></ini>\",\"//ini/fila/dato\"),TblReemp[],2,0),\n_xlfn.FILTERXML(\"<ini><fila><dato>\"&SUBSTITUTE(_xlpm.Paso0,\" \",\"</dato><dato>\")&\"</dato></fila></ini>\",\"//ini/fila/dato\"))),\n_xlpm.Partes,LEN(_xlpm.Paso1)-LEN(SUBSTITUTE(_xlpm.Paso1,\"|\",\"\"))+1,\n_xlpm.part1,TRANSPOSE(_xlfn.FILTERXML(\"<ini><fila><dato>\"&SUBSTITUTE(_xlpm.Paso1,\"|\",\"</dato><dato>\")&\"</dato></fila></ini>\",\"//ini/fila/dato[1]\")),\n_xlpm.part2,TRANSPOSE(_xlfn.FILTERXML(\"<ini><fila><dato>\"&SUBSTITUTE(_xlpm.Paso1,\"|\",\"</dato><dato>\")&\"</dato></fila></ini>\",\"//ini/fila/dato[2]\")),\n_xlpm.part3,TRANSPOSE(_xlfn.FILTERXML(\"<ini><fila><dato>\"&SUBSTITUTE(_xlpm.Paso1,\"|\",\"</dato><dato>\")&\"</dato></fila></ini>\",\"//ini/fila/dato[3]\")),\n_xlpm.part4,TRANSPOSE(_xlfn.FILTERXML(\"<ini><fila><dato>\"&SUBSTITUTE(_xlpm.Paso1,\"|\",\"</dato><dato>\")&\"</dato></fila></ini>\",\"//ini/fila/dato[4]\")),\nIF(_xlpm.Partes>3,\nTRANSPOSE(_xlfn.FILTERXML(\"<ini><fila><dato>\"&_xlfn.TEXTJOIN(\"</dato><dato>\",FALSE,_xlpm.part1&\" \"&_xlpm.part2,_xlpm.part3,IFERROR(_xlpm.part4,\"\"))&\"</dato></fila></ini>\",\"//ini/fila/dato\")),\nTRANSPOSE(_xlfn.FILTERXML(\"<ini><fila><dato>\"&_xlfn.TEXTJOIN(\"</dato><dato>\",FALSE,_xlpm.part1,IFERROR(_xlpm.part2,\"\"),IFERROR(_xlpm.part3,\"\"))&\"</dato></fila></ini>\",\"//ini/fila/dato\")))),\"\")","v":"Miquel"},"Iceta","Llorens"]
["Carolina Darias San Sebastián",{"$f":"IFERROR(_xlfn.LET(_xlpm.Paso0,SUBSTITUTE(PROPER(A64),\" \",\"| \"),\n_xlpm.Paso1,_xlfn.TEXTJOIN(\" \",0,\nIFERROR(VLOOKUP(_xlfn.FILTERXML(\"<ini><fila><dato>\"&SUBSTITUTE(_xlpm.Paso0,\" \",\"</dato><dato>\")&\"</dato></fila></ini>\",\"//ini/fila/dato\"),TblReemp[],2,0),\n_xlfn.FILTERXML(\"<ini><fila><dato>\"&SUBSTITUTE(_xlpm.Paso0,\" \",\"</dato><dato>\")&\"</dato></fila></ini>\",\"//ini/fila/dato\"))),\n_xlpm.Partes,LEN(_xlpm.Paso1)-LEN(SUBSTITUTE(_xlpm.Paso1,\"|\",\"\"))+1,\n_xlpm.part1,TRANSPOSE(_xlfn.FILTERXML(\"<ini><fila><dato>\"&SUBSTITUTE(_xlpm.Paso1,\"|\",\"</dato><dato>\")&\"</dato></fila></ini>\",\"//ini/fila/dato[1]\")),\n_xlpm.part2,TRANSPOSE(_xlfn.FILTERXML(\"<ini><fila><dato>\"&SUBSTITUTE(_xlpm.Paso1,\"|\",\"</dato><dato>\")&\"</dato></fila></ini>\",\"//ini/fila/dato[2]\")),\n_xlpm.part3,TRANSPOSE(_xlfn.FILTERXML(\"<ini><fila><dato>\"&SUBSTITUTE(_xlpm.Paso1,\"|\",\"</dato><dato>\")&\"</dato></fila></ini>\",\"//ini/fila/dato[3]\")),\n_xlpm.part4,TRANSPOSE(_xlfn.FILTERXML(\"<ini><fila><dato>\"&SUBSTITUTE(_xlpm.Paso1,\"|\",\"</dato><dato>\")&\"</dato></fila></ini>\",\"//ini/fila/dato[4]\")),\nIF(_xlpm.Partes>3,\nTRANSPOSE(_xlfn.FILTERXML(\"<ini><fila><dato>\"&_xlfn.TEXTJOIN(\"</dato><dato>\",FALSE,_xlpm.part1&\" \"&_xlpm.part2,_xlpm.part3,IFERROR(_xlpm.part4,\"\"))&\"</dato></fila></ini>\",\"//ini/fila/dato\")),\nTRANSPOSE(_xlfn.FILTERXML(\"<ini><fila><dato>\"&_xlfn.TEXTJOIN(\"</dato><dato>\",FALSE,_xlpm.part1,IFERROR(_xlpm.part2,\"\"),IFERROR(_xlpm.part3,\"\"))&\"</dato></fila></ini>\",\"//ini/fila/dato\")))),\"\")","v":"Carolina"},"Darias","San Sebastián"]
["Ione Belarra Urteaga",{"$f":"IFERROR(_xlfn.LET(_xlpm.Paso0,SUBSTITUTE(PROPER(A65),\" \",\"| \"),\n_xlpm.Paso1,_xlfn.TEXTJOIN(\" \",0,\nIFERROR(VLOOKUP(_xlfn.FILTERXML(\"<ini><fila><dato>\"&SUBSTITUTE(_xlpm.Paso0,\" \",\"</dato><dato>\")&\"</dato></fila></ini>\",\"//ini/fila/dato\"),TblReemp[],2,0),\n_xlfn.FILTERXML(\"<ini><fila><dato>\"&SUBSTITUTE(_xlpm.Paso0,\" \",\"</dato><dato>\")&\"</dato></fila></ini>\",\"//ini/fila/dato\"))),\n_xlpm.Partes,LEN(_xlpm.Paso1)-LEN(SUBSTITUTE(_xlpm.Paso1,\"|\",\"\"))+1,\n_xlpm.part1,TRANSPOSE(_xlfn.FILTERXML(\"<ini><fila><dato>\"&SUBSTITUTE(_xlpm.Paso1,\"|\",\"</dato><dato>\")&\"</dato></fila></ini>\",\"//ini/fila/dato[1]\")),\n_xlpm.part2,TRANSPOSE(_xlfn.FILTERXML(\"<ini><fila><dato>\"&SUBSTITUTE(_xlpm.Paso1,\"|\",\"</dato><dato>\")&\"</dato></fila></ini>\",\"//ini/fila/dato[2]\")),\n_xlpm.part3,TRANSPOSE(_xlfn.FILTERXML(\"<ini><fila><dato>\"&SUBSTITUTE(_xlpm.Paso1,\"|\",\"</dato><dato>\")&\"</dato></fila></ini>\",\"//ini/fila/dato[3]\")),\n_xlpm.part4,TRANSPOSE(_xlfn.FILTERXML(\"<ini><fila><dato>\"&SUBSTITUTE(_xlpm.Paso1,\"|\",\"</dato><dato>\")&\"</dato></fila></ini>\",\"//ini/fila/dato[4]\")),\nIF(_xlpm.Partes>3,\nTRANSPOSE(_xlfn.FILTERXML(\"<ini><fila><dato>\"&_xlfn.TEXTJOIN(\"</dato><dato>\",FALSE,_xlpm.part1&\" \"&_xlpm.part2,_xlpm.part3,IFERROR(_xlpm.part4,\"\"))&\"</dato></fila></ini>\",\"//ini/fila/dato\")),\nTRANSPOSE(_xlfn.FILTERXML(\"<ini><fila><dato>\"&_xlfn.TEXTJOIN(\"</dato><dato>\",FALSE,_xlpm.part1,IFERROR(_xlpm.part2,\"\"),IFERROR(_xlpm.part3,\"\"))&\"</dato></fila></ini>\",\"//ini/fila/dato\")))),\"\")","v":"Ione"},"Belarra","Urteaga"]
["Diana Morant Ripoll",{"$f":"IFERROR(_xlfn.LET(_xlpm.Paso0,SUBSTITUTE(PROPER(A66),\" \",\"| \"),\n_xlpm.Paso1,_xlfn.TEXTJOIN(\" \",0,\nIFERROR(VLOOKUP(_xlfn.FILTERXML(\"<ini><fila><dato>\"&SUBSTITUTE(_xlpm.Paso0,\" \",\"</dato><dato>\")&\"</dato></fila></ini>\",\"//ini/fila/dato\"),TblReemp[],2,0),\n_xlfn.FILTERXML(\"<ini><fila><dato>\"&SUBSTITUTE(_xlpm.Paso0,\" \",\"</dato><dato>\")&\"</dato></fila></ini>\",\"//ini/fila/dato\"))),\n_xlpm.Partes,LEN(_xlpm.Paso1)-LEN(SUBSTITUTE(_xlpm.Paso1,\"|\",\"\"))+1,\n_xlpm.part1,TRANSPOSE(_xlfn.FILTERXML(\"<ini><fila><dato>\"&SUBSTITUTE(_xlpm.Paso1,\"|\",\"</dato><dato>\")&\"</dato></fila></ini>\",\"//ini/fila/dato[1]\")),\n_xlpm.part2,TRANSPOSE(_xlfn.FILTERXML(\"<ini><fila><dato>\"&SUBSTITUTE(_xlpm.Paso1,\"|\",\"</dato><dato>\")&\"</dato></fila></ini>\",\"//ini/fila/dato[2]\")),\n_xlpm.part3,TRANSPOSE(_xlfn.FILTERXML(\"<ini><fila><dato>\"&SUBSTITUTE(_xlpm.Paso1,\"|\",\"</dato><dato>\")&\"</dato></fila></ini>\",\"//ini/fila/dato[3]\")),\n_xlpm.part4,TRANSPOSE(_xlfn.FILTERXML(\"<ini><fila><dato>\"&SUBSTITUTE(_xlpm.Paso1,\"|\",\"</dato><dato>\")&\"</dato></fila></ini>\",\"//ini/fila/dato[4]\")),\nIF(_xlpm.Partes>3,\nTRANSPOSE(_xlfn.FILTERXML(\"<ini><fila><dato>\"&_xlfn.TEXTJOIN(\"</dato><dato>\",FALSE,_xlpm.part1&\" \"&_xlpm.part2,_xlpm.part3,IFERROR(_xlpm.part4,\"\"))&\"</dato></fila></ini>\",\"//ini/fila/dato\")),\nTRANSPOSE(_xlfn.FILTERXML(\"<ini><fila><dato>\"&_xlfn.TEXTJOIN(\"</dato><dato>\",FALSE,_xlpm.part1,IFERROR(_xlpm.part2,\"\"),IFERROR(_xlpm.part3,\"\"))&\"</dato></fila></ini>\",\"//ini/fila/dato\")))),\"\")","v":"Diana"},"Morant","Ripoll"]
["Irene María Montero Gil",{"$f":"IFERROR(_xlfn.LET(_xlpm.Paso0,SUBSTITUTE(PROPER(A67),\" \",\"| \"),\n_xlpm.Paso1,_xlfn.TEXTJOIN(\" \",0,\nIFERROR(VLOOKUP(_xlfn.FILTERXML(\"<ini><fila><dato>\"&SUBSTITUTE(_xlpm.Paso0,\" \",\"</dato><dato>\")&\"</dato></fila></ini>\",\"//ini/fila/dato\"),TblReemp[],2,0),\n_xlfn.FILTERXML(\"<ini><fila><dato>\"&SUBSTITUTE(_xlpm.Paso0,\" \",\"</dato><dato>\")&\"</dato></fila></ini>\",\"//ini/fila/dato\"))),\n_xlpm.Partes,LEN(_xlpm.Paso1)-LEN(SUBSTITUTE(_xlpm.Paso1,\"|\",\"\"))+1,\n_xlpm.part1,TRANSPOSE(_xlfn.FILTERXML(\"<ini><fila><dato>\"&SUBSTITUTE(_xlpm.Paso1,\"|\",\"</dato><dato>\")&\"</dato></fila></ini>\",\"//ini/fila/dato[1]\")),\n_xlpm.part2,TRANSPOSE(_xlfn.FILTERXML(\"<ini><fila><dato>\"&SUBSTITUTE(_xlpm.Paso1,\"|\",\"</dato><dato>\")&\"</dato></fila></ini>\",\"//ini/fila/dato[2]\")),\n_xlpm.part3,TRANSPOSE(_xlfn.FILTERXML(\"<ini><fila><dato>\"&SUBSTITUTE(_xlpm.Paso1,\"|\",\"</dato><dato>\")&\"</dato></fila></ini>\",\"//ini/fila/dato[3]\")),\n_xlpm.part4,TRANSPOSE(_xlfn.FILTERXML(\"<ini><fila><dato>\"&SUBSTITUTE(_xlpm.Paso1,\"|\",\"</dato><dato>\")&\"</dato></fila></ini>\",\"//ini/fila/dato[4]\")),\nIF(_xlpm.Partes>3,\nTRANSPOSE(_xlfn.FILTERXML(\"<ini><fila><dato>\"&_xlfn.TEXTJOIN(\"</dato><dato>\",FALSE,_xlpm.part1&\" \"&_xlpm.part2,_xlpm.part3,IFERROR(_xlpm.part4,\"\"))&\"</dato></fila></ini>\",\"//ini/fila/dato\")),\nTRANSPOSE(_xlfn.FILTERXML(\"<ini><fila><dato>\"&_xlfn.TEXTJOIN(\"</dato><dato>\",FALSE,_xlpm.part1,IFERROR(_xlpm.part2,\"\"),IFERROR(_xlpm.part3,\"\"))&\"</dato></fila></ini>\",\"//ini/fila/dato\")))),\"\")","v":"Irene María"},"Montero","Gil"]
["Alberto Garzón Espinosa",{"$f":"IFERROR(_xlfn.LET(_xlpm.Paso0,SUBSTITUTE(PROPER(A68),\" \",\"| \"),\n_xlpm.Paso1,_xlfn.TEXTJOIN(\" \",0,\nIFERROR(VLOOKUP(_xlfn.FILTERXML(\"<ini><fila><dato>\"&SUBSTITUTE(_xlpm.Paso0,\" \",\"</dato><dato>\")&\"</dato></fila></ini>\",\"//ini/fila/dato\"),TblReemp[],2,0),\n_xlfn.FILTERXML(\"<ini><fila><dato>\"&SUBSTITUTE(_xlpm.Paso0,\" \",\"</dato><dato>\")&\"</dato></fila></ini>\",\"//ini/fila/dato\"))),\n_xlpm.Partes,LEN(_xlpm.Paso1)-LEN(SUBSTITUTE(_xlpm.Paso1,\"|\",\"\"))+1,\n_xlpm.part1,TRANSPOSE(_xlfn.FILTERXML(\"<ini><fila><dato>\"&SUBSTITUTE(_xlpm.Paso1,\"|\",\"</dato><dato>\")&\"</dato></fila></ini>\",\"//ini/fila/dato[1]\")),\n_xlpm.part2,TRANSPOSE(_xlfn.FILTERXML(\"<ini><fila><dato>\"&SUBSTITUTE(_xlpm.Paso1,\"|\",\"</dato><dato>\")&\"</dato></fila></ini>\",\"//ini/fila/dato[2]\")),\n_xlpm.part3,TRANSPOSE(_xlfn.FILTERXML(\"<ini><fila><dato>\"&SUBSTITUTE(_xlpm.Paso1,\"|\",\"</dato><dato>\")&\"</dato></fila></ini>\",\"//ini/fila/dato[3]\")),\n_xlpm.part4,TRANSPOSE(_xlfn.FILTERXML(\"<ini><fila><dato>\"&SUBSTITUTE(_xlpm.Paso1,\"|\",\"</dato><dato>\")&\"</dato></fila></ini>\",\"//ini/fila/dato[4]\")),\nIF(_xlpm.Partes>3,\nTRANSPOSE(_xlfn.FILTERXML(\"<ini><fila><dato>\"&_xlfn.TEXTJOIN(\"</dato><dato>\",FALSE,_xlpm.part1&\" \"&_xlpm.part2,_xlpm.part3,IFERROR(_xlpm.part4,\"\"))&\"</dato></fila></ini>\",\"//ini/fila/dato\")),\nTRANSPOSE(_xlfn.FILTERXML(\"<ini><fila><dato>\"&_xlfn.TEXTJOIN(\"</dato><dato>\",FALSE,_xlpm.part1,IFERROR(_xlpm.part2,\"\"),IFERROR(_xlpm.part3,\"\"))&\"</dato></fila></ini>\",\"//ini/fila/dato\")))),\"\")","v":"Alberto"},"Garzón","Espinosa"]
["José Luis Escrivá Belmonte",{"$f":"IFERROR(_xlfn.LET(_xlpm.Paso0,SUBSTITUTE(PROPER(A69),\" \",\"| \"),\n_xlpm.Paso1,_xlfn.TEXTJOIN(\" \",0,\nIFERROR(VLOOKUP(_xlfn.FILTERXML(\"<ini><fila><dato>\"&SUBSTITUTE(_xlpm.Paso0,\" \",\"</dato><dato>\")&\"</dato></fila></ini>\",\"//ini/fila/dato\"),TblReemp[],2,0),\n_xlfn.FILTERXML(\"<ini><fila><dato>\"&SUBSTITUTE(_xlpm.Paso0,\" \",\"</dato><dato>\")&\"</dato></fila></ini>\",\"//ini/fila/dato\"))),\n_xlpm.Partes,LEN(_xlpm.Paso1)-LEN(SUBSTITUTE(_xlpm.Paso1,\"|\",\"\"))+1,\n_xlpm.part1,TRANSPOSE(_xlfn.FILTERXML(\"<ini><fila><dato>\"&SUBSTITUTE(_xlpm.Paso1,\"|\",\"</dato><dato>\")&\"</dato></fila></ini>\",\"//ini/fila/dato[1]\")),\n_xlpm.part2,TRANSPOSE(_xlfn.FILTERXML(\"<ini><fila><dato>\"&SUBSTITUTE(_xlpm.Paso1,\"|\",\"</dato><dato>\")&\"</dato></fila></ini>\",\"//ini/fila/dato[2]\")),\n_xlpm.part3,TRANSPOSE(_xlfn.FILTERXML(\"<ini><fila><dato>\"&SUBSTITUTE(_xlpm.Paso1,\"|\",\"</dato><dato>\")&\"</dato></fila></ini>\",\"//ini/fila/dato[3]\")),\n_xlpm.part4,TRANSPOSE(_xlfn.FILTERXML(\"<ini><fila><dato>\"&SUBSTITUTE(_xlpm.Paso1,\"|\",\"</dato><dato>\")&\"</dato></fila></ini>\",\"//ini/fila/dato[4]\")),\nIF(_xlpm.Partes>3,\nTRANSPOSE(_xlfn.FILTERXML(\"<ini><fila><dato>\"&_xlfn.TEXTJOIN(\"</dato><dato>\",FALSE,_xlpm.part1&\" \"&_xlpm.part2,_xlpm.part3,IFERROR(_xlpm.part4,\"\"))&\"</dato></fila></ini>\",\"//ini/fila/dato\")),\nTRANSPOSE(_xlfn.FILTERXML(\"<ini><fila><dato>\"&_xlfn.TEXTJOIN(\"</dato><dato>\",FALSE,_xlpm.part1,IFERROR(_xlpm.part2,\"\"),IFERROR(_xlpm.part3,\"\"))&\"</dato></fila></ini>\",\"//ini/fila/dato\")))),\"\")","v":"José Luis"},"Escrivá","Belmonte"]
["Manuel Castells Oliván",{"$f":"IFERROR(_xlfn.LET(_xlpm.Paso0,SUBSTITUTE(PROPER(A70),\" \",\"| \"),\n_xlpm.Paso1,_xlfn.TEXTJOIN(\" \",0,\nIFERROR(VLOOKUP(_xlfn.FILTERXML(\"<ini><fila><dato>\"&SUBSTITUTE(_xlpm.Paso0,\" \",\"</dato><dato>\")&\"</dato></fila></ini>\",\"//ini/fila/dato\"),TblReemp[],2,0),\n_xlfn.FILTERXML(\"<ini><fila><dato>\"&SUBSTITUTE(_xlpm.Paso0,\" \",\"</dato><dato>\")&\"</dato></fila></ini>\",\"//ini/fila/dato\"))),\n_xlpm.Partes,LEN(_xlpm.Paso1)-LEN(SUBSTITUTE(_xlpm.Paso1,\"|\",\"\"))+1,\n_xlpm.part1,TRANSPOSE(_xlfn.FILTERXML(\"<ini><fila><dato>\"&SUBSTITUTE(_xlpm.Paso1,\"|\",\"</dato><dato>\")&\"</dato></fila></ini>\",\"//ini/fila/dato[1]\")),\n_xlpm.part2,TRANSPOSE(_xlfn.FILTERXML(\"<ini><fila><dato>\"&SUBSTITUTE(_xlpm.Paso1,\"|\",\"</dato><dato>\")&\"</dato></fila></ini>\",\"//ini/fila/dato[2]\")),\n_xlpm.part3,TRANSPOSE(_xlfn.FILTERXML(\"<ini><fila><dato>\"&SUBSTITUTE(_xlpm.Paso1,\"|\",\"</dato><dato>\")&\"</dato></fila></ini>\",\"//ini/fila/dato[3]\")),\n_xlpm.part4,TRANSPOSE(_xlfn.FILTERXML(\"<ini><fila><dato>\"&SUBSTITUTE(_xlpm.Paso1,\"|\",\"</dato><dato>\")&\"</dato></fila></ini>\",\"//ini/fila/dato[4]\")),\nIF(_xlpm.Partes>3,\nTRANSPOSE(_xlfn.FILTERXML(\"<ini><fila><dato>\"&_xlfn.TEXTJOIN(\"</dato><dato>\",FALSE,_xlpm.part1&\" \"&_xlpm.part2,_xlpm.part3,IFERROR(_xlpm.part4,\"\"))&\"</dato></fila></ini>\",\"//ini/fila/dato\")),\nTRANSPOSE(_xlfn.FILTERXML(\"<ini><fila><dato>\"&_xlfn.TEXTJOIN(\"</dato><dato>\",FALSE,_xlpm.part1,IFERROR(_xlpm.part2,\"\"),IFERROR(_xlpm.part3,\"\"))&\"</dato></fila></ini>\",\"//ini/fila/dato\")))),\"\")","v":"Manuel"},"Castells","Oliván"]

{"sheet":"VBA y macros","index":2,"n_rows":70,"n_cols":7,"rows_kept":70,"cut":false,"hidden":false,"merged":[]}
["NOMBRE","NOMBRE","PATERNO","MATERNO"]
["Berenice Naranjo González",{"$f":"NombreApellidos(A2)","v":"Berenice"},"Naranjo","González",""]
["Alexis Campos Naranjo",{"$f":"NombreApellidos(A3)","v":"Alexis"},"Campos","Naranjo",""]
["Sergio Alejandro Campos Hernandez",{"$f":"NombreApellidos(A4)","v":"Sergio Alejandro"},"Campos","Hernandez","",""]
["Alejandra De los Santos Briones",{"$f":"NombreApellidos(A5)","v":"Alejandra"},"De los Santos","Briones",""]
["Aurora Leticia Escalante De Loma",{"$f":"NombreApellidos(A6)","v":"Aurora Leticia"},"Escalante","De Loma","",""]
["Joycelene Fabiola Estrada Barba",{"$f":"NombreApellidos(A7)","v":"Joycelene Fabiola"},"Estrada","Barba","",""]
["Francisco Estrada Gomez",{"$f":"NombreApellidos(A8)","v":"Francisco"},"Estrada","Gomez",""]
["Leonardo Daniel Farias Rosas",{"$f":"NombreApellidos(A9)","v":"Leonardo Daniel"},"Farias","Rosas","",""]
["María de Lourdes Espinoza de los Monteros",{"$f":"NombreApellidos(A10)","v":"María de Lourdes"},"Espinoza","de los Monteros","",""]
["Edgar Andres Flores Olivares",{"$f":"NombreApellidos(A11)","v":"Edgar Andres"},"Flores","Olivares","",""]
["Maria Fernanda Franco Esquivel",{"$f":"NombreApellidos(A12)","v":"Maria Fernanda"},"Franco","Esquivel","",""]
["Alejandro Galvan Muñiz",{"$f":"NombreApellidos(A13)","v":"Alejandro"},"Galvan","Muñiz",""]
["Martha Alicia Gutierrez Ortiz",{"$f":"NombreApellidos(A14)","v":"Martha Alicia"},"Gutierrez","Ortiz","",""]
["Josafat Gerardo Hernandez Saucedo",{"$f":"NombreApellidos(A15)","v":"Josafat Gerardo"},"Hernandez","Saucedo","",""]
["Rosalia Jimenez Gonzalez",{"$f":"NombreApellidos(A16)","v":"Rosalia"},"Jimenez","Gonzalez",""]
["Laura Celene Jimenez del Río",{"$f":"NombreApellidos(A17)","v":"Laura Celene"},"Jimenez","del Río","",""]
["Angelica Lopez Cortes",{"$f":"NombreApellidos(A18)","v":"Angelica"},"Lopez","Cortes",""]
["Cristian Ivan Lopez Gomez",{"$f":"NombreApellidos(A19)","v":"Cristian Ivan"},"Lopez","Gomez","",""]
["Marlene Gabriela Lopez Meza",{"$f":"NombreApellidos(A20)","v":"Marlene Gabriela"},"Lopez","Meza","",""]
["Alejandra Medina Ibarra",{"$f":"NombreApellidos(A21)","v":"Alejandra"},"Medina","Ibarra",""]
["Javier Adrian Mejia Alvarez",{"$f":"NombreApellidos(A22)","v":"Javier Adrian"},"Mejia","Alvarez","",""]
["Juan Carlos Evaristo Peña Gutierrez",{"$f":"NombreApellidos(A23)","v":"Juan Carlos"},"Evaristo","Peña","Gutierrez","",""]
["Jazmin Alejandra Perez Velez",{"$f":"NombreApellidos(A24)","v":"Jazmin Alejandra"},"Perez","Velez","",""]
["Gustavo Ramirez Rivera",{"$f":"NombreApellidos(A25)","v":"Gustavo"},"Ramirez","Rivera",""]
["Carlos Nivardo Rodriguez Ascencio",{"$f":"NombreApellidos(A26)","v":"Carlos Nivardo"},"Rodriguez","Ascencio","",""]
["Karla Johana Romero Luevanos",{"$f":"NombreApellidos(A27)","v":"Karla Johana"},"Romero","Luevanos","",""]
["Yessica Yoselinne Ruiz Hernandez",{"$f":"NombreApellidos(A28)","v":"Yessica Yoselinne"},"Ruiz","Hernandez","",""]
["Christian Eduardo Salas Sanchez",{"$f":"NombreApellidos(A29)","v":"Christian Eduardo"},"Salas","Sanchez","",""]
["Luis Roberto Saldaña Espinoza",{"$f":"NombreApellidos(A30)","v":"Luis Roberto"},"Saldaña","Espinoza","",""]
["Adrian Sanchez Ortiz",{"$f":"NombreApellidos(A31)","v":"Adrian"},"Sanchez","Ortiz",""]
["Eduardo Yair Suarez Hernandez",{"$f":"NombreApellidos(A32)","v":"Eduardo Yair"},"Suarez","Hernandez","",""]
["Juan Francisco Tabarez Garcia",{"$f":"NombreApellidos(A33)","v":"Juan Francisco"},"Tabarez","Garcia","",""]
["Zuleica Elizabeth Teran Torres",{"$f":"NombreApellidos(A34)","v":"Zuleica Elizabeth"},"Teran","Torres","",""]
["Adriana Yunuhen Vargas Ayala",{"$f":"NombreApellidos(A35)","v":"Adriana Yunuhen"},"Vargas","Ayala","",""]
["Oscar Uriel Velazquez Alvarez",{"$f":"NombreApellidos(A36)","v":"Oscar Uriel"},"Velazquez","Alvarez","",""]
["Erick De Jesus Corona Diaz",{"$f":"NombreApellidos(A37)","v":"Erick De Jesus"},"Corona","Diaz","",""]
["Maria Guadalupe Ramos Hernandez",{"$f":"NombreApellidos(A38)","v":"Maria Guadalupe"},"Ramos","Hernandez","",""]
["Jessica Noemi Jimenez Ventura",{"$f":"NombreApellidos(A39)","v":"Jessica Noemi"},"Jimenez","Ventura","",""]
["Flor Margarita Rojas Hernandez",{"$f":"NombreApellidos(A40)","v":"Flor Margarita"},"Rojas","Hernandez","",""]
["Luis Antonio Alvarado Valencia",{"$f":"NombreApellidos(A41)","v":"Luis Antonio"},"Alvarado","Valencia","",""]
["Edgar Ivan Aguilar Padilla",{"$f":"NombreApellidos(A42)","v":"Edgar Ivan"},"Aguilar","Padilla","",""]
["Luis Alfonso Michel Sanchez",{"$f":"NombreApellidos(A43)","v":"Luis Alfonso"},"Michel","Sanchez","",""]
["Jose Carlos Silva Rocha",{"$f":"NombreApellidos(A44)","v":"Jose Carlos"},"Silva","Rocha","",""]
["Judith Rodriguez Reyes",{"$f":"NombreApellidos(A45)","v":"Judith"},"Rodriguez","Reyes",""]
["Brenda Soraya Chavez Garcia",{"$f":"NombreApellidos(A46)","v":"Brenda Soraya"},"Chavez","Garcia","",""]
["Alma Rosa Marquez Aguila",{"$f":"NombreApellidos(A47)","v":"Alma Rosa"},"Marquez","Aguila","",""]
["Pedro Sánchez Pérez-Castejón",{"$f":"NombreApellidos(A48)","v":"Pedro"},"Sánchez","Pérez-Castejón",""]
["Nadia Calviño Santamaría",{"$f":"NombreApellidos(A49)","v":"Nadia"},"Calviño","Santamaría",""]
["Yolanda Díaz Pérez",{"$f":"NombreApellidos(A50)","v":"Yolanda"},"Díaz","Pérez",""]
["Teresa Ribera Rodríguez",{"$f":"NombreApellidos(A51)","v":"Teresa"},"Ribera","Rodríguez",""]
["José Manuel Albares Bueno",{"$f":"NombreApellidos(A52)","v":"José Manuel"},"Albares","Bueno","",""]
["Pilar Llop Cuenca",{"$f":"NombreApellidos(A53)","v":"Pilar"},"Llop","Cuenca",""]
["Margarita Robles Fernández",{"$f":"NombreApellidos(A54)","v":"Margarita"},"Robles","Fernández",""]
["María Jesús Montero Cuadrado",{"$f":"NombreApellidos(A55)","v":"María Jesús"},"Montero","Cuadrado","",""]
["Fernando Grande-Marlaska Gómez",{"$f":"NombreApellidos(A56)","v":"Fernando"},"Grande-Marlaska","Gómez",""]
["Raquel Sánchez Jiménez",{"$f":"NombreApellidos(A57)","v":"Raquel"},"Sánchez","Jiménez",""]
["Pilar Alegría Continente",{"$f":"NombreApellidos(A58)","v":"Pilar"},"Alegría","Continente",""]
["Reyes Maroto Illera",{"$f":"NombreApellidos(A59)","v":"Reyes"},"Maroto","Illera",""]
["Luis Planas Puchades",{"$f":"NombreApellidos(A60)","v":"Luis"},"Planas","Puchades",""]
["Félix Bolaños García",{"$f":"NombreApellidos(A61)","v":"Félix"},"Bolaños","García",""]
["Isabel Rodríguez García",{"$f":"NombreApellidos(A62)","v":"Isabel"},"Rodríguez","García",""]
["Miquel Iceta Llorens",{"$f":"NombreApellidos(A63)","v":"Miquel"},"Iceta","Llorens",""]
["Carolina Darias San Sebastián",{"$f":"NombreApellidos(A64)","v":"Carolina"},"Darias","San Sebastián",""]
["Ione Belarra Urteaga",{"$f":"NombreApellidos(A65)","v":"Ione"},"Belarra","Urteaga",""]
["Diana Morant Ripoll",{"$f":"NombreApellidos(A66)","v":"Diana"},"Morant","Ripoll",""]
["Irene María Montero Gil",{"$f":"NombreApellidos(A67)","v":"Irene María"},"Montero","Gil","",""]
["Alberto Garzón Espinosa",{"$f":"NombreApellidos(A68)","v":"Alberto"},"Garzón","Espinosa",""]
["José Luis Escrivá Belmonte",{"$f":"NombreApellidos(A69)","v":"José Luis"},"Escrivá","Belmonte","",""]
["Manuel Castells Oliván",{"$f":"NombreApellidos(A70)","v":"Manuel"},"Castells","Oliván",""]

{"sheet":"Lenguaje M con Power Query","index":3,"n_rows":70,"n_cols":6,"rows_kept":70,"cut":false,"hidden":false,"merged":[]}
["Nombre completo",null,null,"Nombre","1er Apellido","2do Apellido"]
["Berenice Naranjo González",null,null,"Berenice"," Naranjo"," González"]
["Alexis Campos Naranjo",null,null,"Alexis"," Campos"," Naranjo"]
["Sergio Alejandro Campos Hernandez",null,null,"Sergio Alejandro"," Campos"," Hernandez"]
["Alejandra De los Santos Briones",null,null,"Alejandra"," de los Santos"," Briones"]
["Aurora Leticia Escalante De Loma",null,null,"Aurora Leticia"," Escalante"," de Loma"]
["Joycelene Fabiola Estrada Barba",null,null,"Joycelene Fabiola"," Estrada"," Barba"]
["Francisco Estrada Gomez",null,null,"Francisco"," Estrada"," Gomez"]
["Leonardo Daniel Farias Rosas",null,null,"Leonardo Daniel"," Farias"," Rosas"]
["María de Lourdes Espinoza de los Monteros",null,null,"María de Lourdes"," Espinoza"," de los Monteros"]
["Edgar Andres Flores Olivares",null,null,"Edgar Andres"," Flores"," Olivares"]
["Maria Fernanda Franco Esquivel",null,null,"Maria Fernanda"," Franco"," Esquivel"]
["Alejandro Galvan Muñiz",null,null,"Alejandro"," Galvan"," Muñiz"]
["Martha Alicia Gutierrez Ortiz",null,null,"Martha Alicia"," Gutierrez"," Ortiz"]
["Josafat Gerardo Hernandez Saucedo",null,null,"Josafat Gerardo"," Hernandez"," Saucedo"]
["Rosalia Jimenez Gonzalez",null,null,"Rosalia"," Jimenez"," Gonzalez"]
["Laura Celene Jimenez del Río",null,null,"Laura Celene"," Jimenez"," del Río"]
["Angelica Lopez Cortes",null,null,"Angelica"," Lopez"," Cortes"]
["Cristian Ivan Lopez Gomez",null,null,"Cristian Ivan"," Lopez"," Gomez"]
["Marlene Gabriela Lopez Meza",null,null,"Marlene Gabriela"," Lopez"," Meza"]
["Alejandra Medina Ibarra",null,null,"Alejandra"," Medina"," Ibarra"]
["Javier Adrian Mejia Alvarez",null,null,"Javier Adrian"," Mejia"," Alvarez"]
["Juan Carlos Evaristo Peña Gutierrez",null,null,"Juan Carlos"," Evaristo"," Peña"]
["Jazmin Alejandra Perez Velez",null,null,"Jazmin Alejandra"," Perez"," Velez"]
["Gustavo Ramirez Rivera",null,null,"Gustavo"," Ramirez"," Rivera"]
["Carlos Nivardo Rodriguez Ascencio",null,null,"Carlos Nivardo"," Rodriguez"," Ascencio"]
["Karla Johana Romero Luevanos",null,null,"Karla Johana"," Romero"," Luevanos"]
["Yessica Yoselinne Ruiz Hernandez",null,null,"Yessica Yoselinne"," Ruiz"," Hernandez"]
["Christian Eduardo Salas Sanchez",null,null,"Christian Eduardo"," Salas"," Sanchez"]
["Luis Roberto Saldaña Espinoza",null,null,"Luis Roberto"," Saldaña"," Espinoza"]
["Adrian Sanchez Ortiz",null,null,"Adrian"," Sanchez"," Ortiz"]
["Eduardo Yair Suarez Hernandez",null,null,"Eduardo Yair"," Suarez"," Hernandez"]
["Juan Francisco Tabarez Garcia",null,null,"Juan Francisco"," Tabarez"," Garcia"]
["Zuleica Elizabeth Teran Torres",null,null,"Zuleica Elizabeth"," Teran"," Torres"]
["Adriana Yunuhen Vargas Ayala",null,null,"Adriana Yunuhen"," Vargas"," Ayala"]
["Oscar Uriel Velazquez Alvarez",null,null,"Oscar Uriel"," Velazquez"," Alvarez"]
["Erick De Jesus Corona Diaz",null,null,"Erick de Jesus"," Corona"," Diaz"]
["Maria Guadalupe Ramos Hernandez",null,null,"Maria Guadalupe"," Ramos"," Hernandez"]
["Jessica Noemi Jimenez Ventura",null,null,"Jessica Noemi"," Jimenez"," Ventura"]
["Flor Margarita Rojas Hernandez",null,null,"Flor Margarita"," Rojas"," Hernandez"]
["Luis Antonio Alvarado Valencia",null,null,"Luis Antonio"," Alvarado"," Valencia"]
["Edgar Ivan Aguilar Padilla",null,null,"Edgar Ivan"," Aguilar"," Padilla"]
["Luis Alfonso Michel Sanchez",null,null,"Luis Alfonso"," Michel"," Sanchez"]
["Jose Carlos Silva Rocha",null,null,"Jose Carlos"," Silva"," Rocha"]
["Judith Rodriguez Reyes",null,null,"Judith"," Rodriguez"," Reyes"]
["Brenda Soraya Chavez Garcia",null,null,"Brenda Soraya"," Chavez"," Garcia"]
["Alma Rosa Marquez Aguila",null,null,"Alma Rosa"," Marquez"," Aguila"]
["Pedro Sánchez Pérez-Castejón",null,null,"Pedro"," Sánchez"," Pérez-Castejón"]
["Nadia Calviño Santamaría",null,null,"Nadia"," Calviño"," Santamaría"]
["Yolanda Díaz Pérez",null,null,"Yolanda"," Díaz"," Pérez"]
["Teresa Ribera Rodríguez",null,null,"Teresa"," Ribera"," Rodríguez"]
["José Manuel Albares Bueno",null,null,"José Manuel"," Albares"," Bueno"]
["Pilar Llop Cuenca",null,null,"Pilar"," Llop"," Cuenca"]
["Margarita Robles Fernández",null,null,"Margarita"," Robles"," Fernández"]
["María Jesús Montero Cuadrado",null,null,"María Jesús"," Montero"," Cuadrado"]
["Fernando Grande-Marlaska Gómez",null,null,"Fernando"," Grande-Marlaska"," Gómez"]
["Raquel Sánchez Jiménez",null,null,"Raquel"," Sánchez"," Jiménez"]
["Pilar Alegría Continente",null,null,"Pilar"," Alegría"," Continente"]
["Reyes Maroto Illera",null,null,"Reyes"," Maroto"," Illera"]
["Luis Planas Puchades",null,null,"Luis"," Planas"," Puchades"]
["Félix Bolaños García",null,null,"Félix"," Bolaños"," García"]
["Isabel Rodríguez García",null,null,"Isabel"," Rodríguez"," García"]
["Miquel Iceta Llorens",null,null,"Miquel"," Iceta"," Llorens"]
["Carolina Darias San Sebastián",null,null,"Carolina"," Darias"," san Sebastián"]
["Ione Belarra Urteaga",null,null,"Ione"," Belarra"," Urteaga"]
["Diana Morant Ripoll",null,null,"Diana"," Morant"," Ripoll"]
["Irene María Montero Gil",null,null,"Irene María"," Montero"," Gil"]
["Alberto Garzón Espinosa",null,null,"Alberto"," Garzón"," Espinosa"]
["José Luis Escrivá Belmonte",null,null,"José Luis"," Escrivá"," Belmonte"]
["Manuel Castells Oliván",null,null,"Manuel"," Castells"," Oliván"]

{"sheet":"Separadores","index":4,"n_rows":10,"n_cols":2,"rows_kept":10,"cut":false,"hidden":false,"merged":[]}
["reemp","por"]
["De|","De"]
["De La|","De la"]
["De Los|","De los"]
["Del|","Del"]
["La |","La"]
["Las |","Las"]
["Los|","Los"]
["Y|","Y"]
["San|","San"]

{"sheet":"Relleno rápido","index":5,"n_rows":70,"n_cols":12,"rows_kept":70,"cut":false,"hidden":false,"merged":[]}
["Nombres compuestos",null,"Nombres sustituidos por separadores","Nombre,Apellido1,Apellido2",null,"Nombres sustituidos separados por comas","Nombre","Apellido1","Apellido2",null,"Nombre completo","Chequeo"]
["Berenice Naranjo González",null,{"$f":"SUBSTITUTE(SUBSTITUTE(SUBSTITUTE(SUBSTITUTE(SUBSTITUTE(SUBSTITUTE(SUBSTITUTE(SUBSTITUTE(SUBSTITUTE(SUBSTITUTE(SUBSTITUTE(SUBSTITUTE(SUBSTITUTE(SUBSTITUTE(SUBSTITUTE(SUBSTITUTE(SUBSTITUTE(SUBSTITUTE(SUBSTITUTE(SUBSTITUTE(SUBSTITUTE(SUBSTITUTE(A2,\nSustituciones!$B$2,Sustituciones!$C$2),\nSustituciones!$B$3,Sustituciones!$C$3),\nSustituciones!$B$4,Sustituciones!$C$4),\nSustituciones!$B$5,Sustituciones!$C$5),\nSustituciones!$B$6,Sustituciones!$C$6),\nSustituciones!$B$7,Sustituciones!$C$7),\nSustituciones!$B$8,Sustituciones!$C$8),\nSustituciones!$B$9,Sustituciones!$C$9),\nSustituciones!$B$10,Sustituciones!$C$10),\nSustituciones!$B$11,Sustituciones!$C$11),\nSustituciones!$B$12,Sustituciones!$C$12),\nSustituciones!$B$13,Sustituciones!$C$13),\nSustituciones!$B$14,Sustituciones!$C$14),\nSustituciones!$B$15,Sustituciones!$C$15),\nSustituciones!$B$16,Sustituciones!$C$16),\nSustituciones!$B$17,Sustituciones!$C$17),\nSustituciones!$B$18,Sustituciones!$C$18),\nSustituciones!$B$19,Sustituciones!$C$19),\nSustituciones!$B$20,Sustituciones!$C$20),\nSustituciones!$B$21,Sustituciones!$C$21),\nSustituciones!$B$22,Sustituciones!$C$22),\nSustituciones!$B$23,Sustituciones!$C$23)","v":"Berenice Naranjo González"},"Berenice,Naranjo,González",null,{"$f":"SUBSTITUTE(SUBSTITUTE(SUBSTITUTE(SUBSTITUTE(SUBSTITUTE(SUBSTITUTE(SUBSTITUTE(SUBSTITUTE(SUBSTITUTE(SUBSTITUTE(SUBSTITUTE(SUBSTITUTE(SUBSTITUTE(SUBSTITUTE(SUBSTITUTE(SUBSTITUTE(SUBSTITUTE(SUBSTITUTE(SUBSTITUTE(SUBSTITUTE(SUBSTITUTE(SUBSTITUTE(D2,\nSustituciones!$D$2,Sustituciones!$E$2),\nSustituciones!$D$3,Sustituciones!$E$3),\nSustituciones!$D$4,Sustituciones!$E$4),\nSustituciones!$D$5,Sustituciones!$E$5),\nSustituciones!$D$6,Sustituciones!$E$6),\nSustituciones!$D$7,Sustituciones!$E$7),\nSustituciones!$D$8,Sustituciones!$E$8),\nSustituciones!$D$9,Sustituciones!$E$9),\nSustituciones!$D$10,Sustituciones!$E$10),\nSustituciones!$D$11,Sustituciones!$E$11),\nSustituciones!$D$12,Sustituciones!$E$12),\nSustituciones!$D$13,Sustituciones!$E$13),\nSustituciones!$D$14,Sustituciones!$E$14),\nSustituciones!$D$15,Sustituciones!$E$15),\nSustituciones!$D$16,Sustituciones!$E$16),\nSustituciones!$D$17,Sustituciones!$E$17),\nSustituciones!$D$18,Sustituciones!$E$18),\nSustituciones!$D$19,Sustituciones!$E$19),\nSustituciones!$D$20,Sustituciones!$E$20),\nSustituciones!$D$21,Sustituciones!$E$21),\nSustituciones!$D$22,Sustituciones!$E$22),\nSustituciones!$D$23,Sustituciones!$E$23)","v":"Berenice,Naranjo,González"},"Berenice","Naranjo","González",null,{"$f":"G2&\" \"&H2&\" \"&I2","v":"Berenice Naranjo González"},{"$f":"EXACT(A2,K2)","v":true}]
["Alexis Campos Naranjo",null,{"$f":"SUBSTITUTE(SUBSTITUTE(SUBSTITUTE(SUBSTITUTE(SUBSTITUTE(SUBSTITUTE(SUBSTITUTE(SUBSTITUTE(SUBSTITUTE(SUBSTITUTE(SUBSTITUTE(SUBSTITUTE(SUBSTITUTE(SUBSTITUTE(SUBSTITUTE(SUBSTITUTE(SUBSTITUTE(SUBSTITUTE(SUBSTITUTE(SUBSTITUTE(SUBSTITUTE(SUBSTITUTE(A3,\nSustituciones!$B$2,Sustituciones!$C$2),\nSustituciones!$B$3,Sustituciones!$C$3),\nSustituciones!$B$4,Sustituciones!$C$4),\nSustituciones!$B$5,Sustituciones!$C$5),\nSustituciones!$B$6,Sustituciones!$C$6),\nSustituciones!$B$7,Sustituciones!$C$7),\nSustituciones!$B$8,Sustituciones!$C$8),\nSustituciones!$B$9,Sustituciones!$C$9),\nSustituciones!$B$10,Sustituciones!$C$10),\nSustituciones!$B$11,Sustituciones!$C$11),\nSustituciones!$B$12,Sustituciones!$C$12),\nSustituciones!$B$13,Sustituciones!$C$13),\nSustituciones!$B$14,Sustituciones!$C$14),\nSustituciones!$B$15,Sustituciones!$C$15),\nSustituciones!$B$16,Sustituciones!$C$16),\nSustituciones!$B$17,Sustituciones!$C$17),\nSustituciones!$B$18,Sustituciones!$C$18),\nSustituciones!$B$19,Sustituciones!$C$19),\nSustituciones!$B$20,Sustituciones!$C$20),\nSustituciones!$B$21,Sustituciones!$C$21),\nSustituciones!$B$22,Sustituciones!$C$22),\nSustituciones!$B$23,Sustituciones!$C$23)","v":"Alexis Campos Naranjo"},null,null,{"$f":"SUBSTITUTE(SUBSTITUTE(SUBSTITUTE(SUBSTITUTE(SUBSTITUTE(SUBSTITUTE(SUBSTITUTE(SUBSTITUTE(SUBSTITUTE(SUBSTITUTE(SUBSTITUTE(SUBSTITUTE(SUBSTITUTE(SUBSTITUTE(SUBSTITUTE(SUBSTITUTE(SUBSTITUTE(SUBSTITUTE(SUBSTITUTE(SUBSTITUTE(SUBSTITUTE(SUBSTITUTE(D3,\nSustituciones!$D$2,Sustituciones!$E$2),\nSustituciones!$D$3,Sustituciones!$E$3),\nSustituciones!$D$4,Sustituciones!$E$4),\nSustituciones!$D$5,Sustituciones!$E$5),\nSustituciones!$D$6,Sustituciones!$E$6),\nSustituciones!$D$7,Sustituciones!$E$7),\nSustituciones!$D$8,Sustituciones!$E$8),\nSustituciones!$D$9,Sustituciones!$E$9),\nSustituciones!$D$10,Sustituciones!$E$10),\nSustituciones!$D$11,Sustituciones!$E$11),\nSustituciones!$D$12,Sustituciones!$E$12),\nSustituciones!$D$13,Sustituciones!$E$13),\nSustituciones!$D$14,Sustituciones!$E$14),\nSustituciones!$D$15,Sustituciones!$E$15),\nSustituciones!$D$16,Sustituciones!$E$16),\nSustituciones!$D$17,Sustituciones!$E$17),\nSustituciones!$D$18,Sustituciones!$E$18),\nSustituciones!$D$19,Sustituciones!$E$19),\nSustituciones!$D$20,Sustituciones!$E$20),\nSustituciones!$D$21,Sustituciones!$E$21),\nSustituciones!$D$22,Sustituciones!$E$22),\nSustituciones!$D$23,Sustituciones!$E$23)","v":""},null,null,null,null,{"$f":"G3&\" \"&H3&\" \"&I3","v":"  "},{"$f":"EXACT(A3,K3)","v":false}]
["Sergio Alejandro Campos Hernandez",null,{"$f":"SUBSTITUTE(SUBSTITUTE(SUBSTITUTE(SUBSTITUTE(SUBSTITUTE(SUBSTITUTE(SUBSTITUTE(SUBSTITUTE(SUBSTITUTE(SUBSTITUTE(SUBSTITUTE(SUBSTITUTE(SUBSTITUTE(SUBSTITUTE(SUBSTITUTE(SUBSTITUTE(SUBSTITUTE(SUBSTITUTE(SUBSTITUTE(SUBSTITUTE(SUBSTITUTE(SUBSTITUTE(A4,\nSustituciones!$B$2,Sustituciones!$C$2),\nSustituciones!$B$3,Sustituciones!$C$3),\nSustituciones!$B$4,Sustituciones!$C$4),\nSustituciones!$B$5,Sustituciones!$C$5),\nSustituciones!$B$6,Sustituciones!$C$6),\nSustituciones!$B$7,Sustituciones!$C$7),\nSustituciones!$B$8,Sustituciones!$C$8),\nSustituciones!$B$9,Sustituciones!$C$9),\nSustituciones!$B$10,Sustituciones!$C$10),\nSustituciones!$B$11,Sustituciones!$C$11),\nSustituciones!$B$12,Sustituciones!$C$12),\nSustituciones!$B$13,Sustituciones!$C$13),\nSustituciones!$B$14,Sustituciones!$C$14),\nSustituciones!$B$15,Sustituciones!$C$15),\nSustituciones!$B$16,Sustituciones!$C$16),\nSustituciones!$B$17,Sustituciones!$C$17),\nSustituciones!$B$18,Sustituciones!$C$18),\nSustituciones!$B$19,Sustituciones!$C$19),\nSustituciones!$B$20,Sustituciones!$C$20),\nSustituciones!$B$21,Sustituciones!$C$21),\nSustituciones!$B$22,Sustituciones!$C$22),\nSustituciones!$B$23,Sustituciones!$C$23)","v":"Sergio Alejandro Campos Hernandez"},"Sergio Alejandro,Campos,Hernandez",null,{"$f":"SUBSTITUTE(SUBSTITUTE(SUBSTITUTE(SUBSTITUTE(SUBSTITUTE(SUBSTITUTE(SUBSTITUTE(SUBSTITUTE(SUBSTITUTE(SUBSTITUTE(SUBSTITUTE(SUBSTITUTE(SUBSTITUTE(SUBSTITUTE(SUBSTITUTE(SUBSTITUTE(SUBSTITUTE(SUBSTITUTE(SUBSTITUTE(SUBSTITUTE(SUBSTITUTE(SUBSTITUTE(D4,\nSustituciones!$D$2,Sustituciones!$E$2),\nSustituciones!$D$3,Sustituciones!$E$3),\nSustituciones!$D$4,Sustituciones!$E$4),\nSustituciones!$D$5,Sustituciones!$E$5),\nSustituciones!$D$6,Sustituciones!$E$6),\nSustituciones!$D$7,Sustituciones!$E$7),\nSustituciones!$D$8,Sustituciones!$E$8),\nSustituciones!$D$9,Sustituciones!$E$9),\nSustituciones!$D$10,Sustituciones!$E$10),\nSustituciones!$D$11,Sustituciones!$E$11),\nSustituciones!$D$12,Sustituciones!$E$12),\nSustituciones!$D$13,Sustituciones!$E$13),\nSustituciones!$D$14,Sustituciones!$E$14),\nSustituciones!$D$15,Sustituciones!$E$15),\nSustituciones!$D$16,Sustituciones!$E$16),\nSustituciones!$D$17,Sustituciones!$E$17),\nSustituciones!$D$18,Sustituciones!$E$18),\nSustituciones!$D$19,Sustituciones!$E$19),\nSustituciones!$D$20,Sustituciones!$E$20),\nSustituciones!$D$21,Sustituciones!$E$21),\nSustituciones!$D$22,Sustituciones!$E$22),\nSustituciones!$D$23,Sustituciones!$E$23)","v":"Sergio Alejandro,Campos,Hernandez"},null,null,null,null,"  ",false]
["Alejandra De los Santos Briones",null,{"$f":"SUBSTITUTE(SUBSTITUTE(SUBSTITUTE(SUBSTITUTE(SUBSTITUTE(SUBSTITUTE(SUBSTITUTE(SUBSTITUTE(SUBSTITUTE(SUBSTITUTE(SUBSTITUTE(SUBSTITUTE(SUBSTITUTE(SUBSTITUTE(SUBSTITUTE(SUBSTITUTE(SUBSTITUTE(SUBSTITUTE(SUBSTITUTE(SUBSTITUTE(SUBSTITUTE(SUBSTITUTE(A5,\nSustituciones!$B$2,Sustituciones!$C$2),\nSustituciones!$B$3,Sustituciones!$C$3),\nSustituciones!$B$4,Sustituciones!$C$4),\nSustituciones!$B$5,Sustituciones!$C$5),\nSustituciones!$B$6,Sustituciones!$C$6),\nSustituciones!$B$7,Sustituciones!$C$7),\nSustituciones!$B$8,Sustituciones!$C$8),\nSustituciones!$B$9,Sustituciones!$C$9),\nSustituciones!$B$10,Sustituciones!$C$10),\nSustituciones!$B$11,Sustituciones!$C$11),\nSustituciones!$B$12,Sustituciones!$C$12),\nSustituciones!$B$13,Sustituciones!$C$13),\nSustituciones!$B$14,Sustituciones!$C$14),\nSustituciones!$B$15,Sustituciones!$C$15),\nSustituciones!$B$16,Sustituciones!$C$16),\nSustituciones!$B$17,Sustituciones!$C$17),\nSustituciones!$B$18,Sustituciones!$C$18),\nSustituciones!$B$19,Sustituciones!$C$19),\nSustituciones!$B$20,Sustituciones!$C$20),\nSustituciones!$B$21,Sustituciones!$C$21),\nSustituciones!$B$22,Sustituciones!$C$22),\nSustituciones!$B$23,Sustituciones!$C$23)","v":"Alejandra -Delos-Santos Briones"},null,null,{"$f":"SUBSTITUTE(SUBSTITUTE(SUBSTITUTE(SUBSTITUTE(SUBSTITUTE(SUBSTITUTE(SUBSTITUTE(SUBSTITUTE(SUBSTITUTE(SUBSTITUTE(SUBSTITUTE(SUBSTITUTE(SUBSTITUTE(SUBSTITUTE(SUBSTITUTE(SUBSTITUTE(SUBSTITUTE(SUBSTITUTE(SUBSTITUTE(SUBSTITUTE(SUBSTITUTE(SUBSTITUTE(D5,\nSustituciones!$D$2,Sustituciones!$E$2),\nSustituciones!$D$3,Sustituciones!$E$3),\nSustituciones!$D$4,Sustituciones!$E$4),\nSustituciones!$D$5,Sustituciones!$E$5),\nSustituciones!$D$6,Sustituciones!$E$6),\nSustituciones!$D$7,Sustituciones!$E$7),\nSustituciones!$D$8,Sustituciones!$E$8),\nSustituciones!$D$9,Sustituciones!$E$9),\nSustituciones!$D$10,Sustituciones!$E$10),\nSustituciones!$D$11,Sustituciones!$E$11),\nSustituciones!$D$12,Sustituciones!$E$12),\nSustituciones!$D$13,Sustituciones!$E$13),\nSustituciones!$D$14,Sustituciones!$E$14),\nSustituciones!$D$15,Sustituciones!$E$15),\nSustituciones!$D$16,Sustituciones!$E$16),\nSustituciones!$D$17,Sustituciones!$E$17),\nSustituciones!$D$18,Sustituciones!$E$18),\nSustituciones!$D$19,Sustituciones!$E$19),\nSustituciones!$D$20,Sustituciones!$E$20),\nSustituciones!$D$21,Sustituciones!$E$21),\nSustituciones!$D$22,Sustituciones!$E$22),\nSustituciones!$D$23,Sustituciones!$E$23)","v":""},null,null,null,null,"  ",false]
["Aurora Leticia Escalante De Loma",null,{"$f":"SUBSTITUTE(SUBSTITUTE(SUBSTITUTE(SUBSTITUTE(SUBSTITUTE(SUBSTITUTE(SUBSTITUTE(SUBSTITUTE(SUBSTITUTE(SUBSTITUTE(SUBSTITUTE(SUBSTITUTE(SUBSTITUTE(SUBSTITUTE(SUBSTITUTE(SUBSTITUTE(SUBSTITUTE(SUBSTITUTE(SUBSTITUTE(SUBSTITUTE(SUBSTITUTE(SUBSTITUTE(A6,\nSustituciones!$B$2,Sustituciones!$C$2),\nSustituciones!$B$3,Sustituciones!$C$3),\nSustituciones!$B$4,Sustituciones!$C$4),\nSustituciones!$B$5,Sustituciones!$C$5),\nSustituciones!$B$6,Sustituciones!$C$6),\nSustituciones!$B$7,Sustituciones!$C$7),\nSustituciones!$B$8,Sustituciones!$C$8),\nSustituciones!$B$9,Sustituciones!$C$9),\nSustituciones!$B$10,Sustituciones!$C$10),\nSustituciones!$B$11,Sustituciones!$C$11),\nSustituciones!$B$12,Sustituciones!$C$12),\nSustituciones!$B$13,Sustituciones!$C$13),\nSustituciones!$B$14,Sustituciones!$C$14),\nSustituciones!$B$15,Sustituciones!$C$15),\nSustituciones!$B$16,Sustituciones!$C$16),\nSustituciones!$B$17,Sustituciones!$C$17),\nSustituciones!$B$18,Sustituciones!$C$18),\nSustituciones!$B$19,Sustituciones!$C$19),\nSustituciones!$B$20,Sustituciones!$C$20),\nSustituciones!$B$21,Sustituciones!$C$21),\nSustituciones!$B$22,Sustituciones!$C$22),\nSustituciones!$B$23,Sustituciones!$C$23)","v":"Aurora Leticia Escalante -De-Loma"},"Aurora Leticia,Escalante,-De-Loma",null,{"$f":"SUBSTITUTE(SUBSTITUTE(SUBSTITUTE(SUBSTITUTE(SUBSTITUTE(SUBSTITUTE(SUBSTITUTE(SUBSTITUTE(SUBSTITUTE(SUBSTITUTE(SUBSTITUTE(SUBSTITUTE(SUBSTITUTE(SUBSTITUTE(SUBSTITUTE(SUBSTITUTE(SUBSTITUTE(SUBSTITUTE(SUBSTITUTE(SUBSTITUTE(SUBSTITUTE(SUBSTITUTE(D6,\nSustituciones!$D$2,Sustituciones!$E$2),\nSustituciones!$D$3,Sustituciones!$E$3),\nSustituciones!$D$4,Sustituciones!$E$4),\nSustituciones!$D$5,Sustituciones!$E$5),\nSustituciones!$D$6,Sustituciones!$E$6),\nSustituciones!$D$7,Sustituciones!$E$7),\nSustituciones!$D$8,Sustituciones!$E$8),\nSustituciones!$D$9,Sustituciones!$E$9),\nSustituciones!$D$10,Sustituciones!$E$10),\nSustituciones!$D$11,Sustituciones!$E$11),\nSustituciones!$D$12,Sustituciones!$E$12),\nSustituciones!$D$13,Sustituciones!$E$13),\nSustituciones!$D$14,Sustituciones!$E$14),\nSustituciones!$D$15,Sustituciones!$E$15),\nSustituciones!$D$16,Sustituciones!$E$16),\nSustituciones!$D$17,Sustituciones!$E$17),\nSustituciones!$D$18,Sustituciones!$E$18),\nSustituciones!$D$19,Sustituciones!$E$19),\nSustituciones!$D$20,Sustituciones!$E$20),\nSustituciones!$D$21,Sustituciones!$E$21),\nSustituciones!$D$22,Sustituciones!$E$22),\nSustituciones!$D$23,Sustituciones!$E$23)","v":"Aurora Leticia,Escalante,De Loma"},null,null,null,null,"  ",false]
["Joycelene Fabiola Estrada Barba",null,{"$f":"SUBSTITUTE(SUBSTITUTE(SUBSTITUTE(SUBSTITUTE(SUBSTITUTE(SUBSTITUTE(SUBSTITUTE(SUBSTITUTE(SUBSTITUTE(SUBSTITUTE(SUBSTITUTE(SUBSTITUTE(SUBSTITUTE(SUBSTITUTE(SUBSTITUTE(SUBSTITUTE(SUBSTITUTE(SUBSTITUTE(SUBSTITUTE(SUBSTITUTE(SUBSTITUTE(SUBSTITUTE(A7,\nSustituciones!$B$2,Sustituciones!$C$2),\nSustituciones!$B$3,Sustituciones!$C$3),\nSustituciones!$B$4,Sustituciones!$C$4),\nSustituciones!$B$5,Sustituciones!$C$5),\nSustituciones!$B$6,Sustituciones!$C$6),\nSustituciones!$B$7,Sustituciones!$C$7),\nSustituciones!$B$8,Sustituciones!$C$8),\nSustituciones!$B$9,Sustituciones!$C$9),\nSustituciones!$B$10,Sustituciones!$C$10),\nSustituciones!$B$11,Sustituciones!$C$11),\nSustituciones!$B$12,Sustituciones!$C$12),\nSustituciones!$B$13,Sustituciones!$C$13),\nSustituciones!$B$14,Sustituciones!$C$14),\nSustituciones!$B$15,Sustituciones!$C$15),\nSustituciones!$B$16,Sustituciones!$C$16),\nSustituciones!$B$17,Sustituciones!$C$17),\nSustituciones!$B$18,Sustituciones!$C$18),\nSustituciones!$B$19,Sustituciones!$C$19),\nSustituciones!$B$20,Sustituciones!$C$20),\nSustituciones!$B$21,Sustituciones!$C$21),\nSustituciones!$B$22,Sustituciones!$C$22),\nSustituciones!$B$23,Sustituciones!$C$23)","v":"Joycelene Fabiola Estrada Barba"},null,null,{"$f":"SUBSTITUTE(SUBSTITUTE(SUBSTITUTE(SUBSTITUTE(SUBSTITUTE(SUBSTITUTE(SUBSTITUTE(SUBSTITUTE(SUBSTITUTE(SUBSTITUTE(SUBSTITUTE(SUBSTITUTE(SUBSTITUTE(SUBSTITUTE(SUBSTITUTE(SUBSTITUTE(SUBSTITUTE(SUBSTITUTE(SUBSTITUTE(SUBSTITUTE(SUBSTITUTE(SUBSTITUTE(D7,\nSustituciones!$D$2,Sustituciones!$E$2),\nSustituciones!$D$3,Sustituciones!$E$3),\nSustituciones!$D$4,Sustituciones!$E$4),\nSustituciones!$D$5,Sustituciones!$E$5),\nSustituciones!$D$6,Sustituciones!$E$6),\nSustituciones!$D$7,Sustituciones!$E$7),\nSustituciones!$D$8,Sustituciones!$E$8),\nSustituciones!$D$9,Sustituciones!$E$9),\nSustituciones!$D$10,Sustituciones!$E$10),\nSustituciones!$D$11,Sustituciones!$E$11),\nSustituciones!$D$12,Sustituciones!$E$12),\nSustituciones!$D$13,Sustituciones!$E$13),\nSustituciones!$D$14,Sustituciones!$E$14),\nSustituciones!$D$15,Sustituciones!$E$15),\nSustituciones!$D$16,Sustituciones!$E$16),\nSustituciones!$D$17,Sustituciones!$E$17),\nSustituciones!$D$18,Sustituciones!$E$18),\nSustituciones!$D$19,Sustituciones!$E$19),\nSustituciones!$D$20,Sustituciones!$E$20),\nSustituciones!$D$21,Sustituciones!$E$21),\nSustituciones!$D$22,Sustituciones!$E$22),\nSustituciones!$D$23,Sustituciones!$E$23)","v":""},null,null,null,null,"  ",false]
["Francisco Estrada Gomez",null,{"$f":"SUBSTITUTE(SUBSTITUTE(SUBSTITUTE(SUBSTITUTE(SUBSTITUTE(SUBSTITUTE(SUBSTITUTE(SUBSTITUTE(SUBSTITUTE(SUBSTITUTE(SUBSTITUTE(SUBSTITUTE(SUBSTITUTE(SUBSTITUTE(SUBSTITUTE(SUBSTITUTE(SUBSTITUTE(SUBSTITUTE(SUBSTITUTE(SUBSTITUTE(SUBSTITUTE(SUBSTITUTE(A8,\nSustituciones!$B$2,Sustituciones!$C$2),\nSustituciones!$B$3,Sustituciones!$C$3),\nSustituciones!$B$4,Sustituciones!$C$4),\nSustituciones!$B$5,Sustituciones!$C$5),\nSustituciones!$B$6,Sustituciones!$C$6),\nSustituciones!$B$7,Sustituciones!$C$7),\nSustituciones!$B$8,Sustituciones!$C$8),\nSustituciones!$B$9,Sustituciones!$C$9),\nSustituciones!$B$10,Sustituciones!$C$10),\nSustituciones!$B$11,Sustituciones!$C$11),\nSustituciones!$B$12,Sustituciones!$C$12),\nSustituciones!$B$13,Sustituciones!$C$13),\nSustituciones!$B$14,Sustituciones!$C$14),\nSustituciones!$B$15,Sustituciones!$C$15),\nSustituciones!$B$16,Sustituciones!$C$16),\nSustituciones!$B$17,Sustituciones!$C$17),\nSustituciones!$B$18,Sustituciones!$C$18),\nSustituciones!$B$19,Sustituciones!$C$19),\nSustituciones!$B$20,Sustituciones!$C$20),\nSustituciones!$B$21,Sustituciones!$C$21),\nSustituciones!$B$22,Sustituciones!$C$22),\nSustituciones!$B$23,Sustituciones!$C$23)","v":"Francisco Estrada Gomez"},null,null,{"$f":"SUBSTITUTE(SUBSTITUTE(SUBSTITUTE(SUBSTITUTE(SUBSTITUTE(SUBSTITUTE(SUBSTITUTE(SUBSTITUTE(SUBSTITUTE(SUBSTITUTE(SUBSTITUTE(SUBSTITUTE(SUBSTITUTE(SUBSTITUTE(SUBSTITUTE(SUBSTITUTE(SUBSTITUTE(SUBSTITUTE(SUBSTITUTE(SUBSTITUTE(SUBSTITUTE(SUBSTITUTE(D8,\nSustituciones!$D$2,Sustituciones!$E$2),\nSustituciones!$D$3,Sustituciones!$E$3),\nSustituciones!$D$4,Sustituciones!$E$4),\nSustituciones!$D$5,Sustituciones!$E$5),\nSustituciones!$D$6,Sustituciones!$E$6),\nSustituciones!$D$7,Sustituciones!$E$7),\nSustituciones!$D$8,Sustituciones!$E$8),\nSustituciones!$D$9,Sustituciones!$E$9),\nSustituciones!$D$10,Sustituciones!$E$10),\nSustituciones!$D$11,Sustituciones!$E$11),\nSustituciones!$D$12,Sustituciones!$E$12),\nSustituciones!$D$13,Sustituciones!$E$13),\nSustituciones!$D$14,Sustituciones!$E$14),\nSustituciones!$D$15,Sustituciones!$E$15),\nSustituciones!$D$16,Sustituciones!$E$16),\nSustituciones!$D$17,Sustituciones!$E$17),\nSustituciones!$D$18,Sustituciones!$E$18),\nSustituciones!$D$19,Sustituciones!$E$19),\nSustituciones!$D$20,Sustituciones!$E$20),\nSustituciones!$D$21,Sustituciones!$E$21),\nSustituciones!$D$22,Sustituciones!$E$22),\nSustituciones!$D$23,Sustituciones!$E$23)","v":""},null,null,null,null,"  ",false]
["Leonardo Daniel Farias Rosas",null,{"$f":"SUBSTITUTE(SUBSTITUTE(SUBSTITUTE(SUBSTITUTE(SUBSTITUTE(SUBSTITUTE(SUBSTITUTE(SUBSTITUTE(SUBSTITUTE(SUBSTITUTE(SUBSTITUTE(SUBSTITUTE(SUBSTITUTE(SUBSTITUTE(SUBSTITUTE(SUBSTITUTE(SUBSTITUTE(SUBSTITUTE(SUBSTITUTE(SUBSTITUTE(SUBSTITUTE(SUBSTITUTE(A9,\nSustituciones!$B$2,Sustituciones!$C$2),\nSustituciones!$B$3,Sustituciones!$C$3),\nSustituciones!$B$4,Sustituciones!$C$4),\nSustituciones!$B$5,Sustituciones!$C$5),\nSustituciones!$B$6,Sustituciones!$C$6),\nSustituciones!$B$7,Sustituciones!$C$7),\nSustituciones!$B$8,Sustituciones!$C$8),\nSustituciones!$B$9,Sustituciones!$C$9),\nSustituciones!$B$10,Sustituciones!$C$10),\nSustituciones!$B$11,Sustituciones!$C$11),\nSustituciones!$B$12,Sustituciones!$C$12),\nSustituciones!$B$13,Sustituciones!$C$13),\nSustituciones!$B$14,Sustituciones!$C$14),\nSustituciones!$B$15,Sustituciones!$C$15),\nSustituciones!$B$16,Sustituciones!$C$16),\nSustituciones!$B$17,Sustituciones!$C$17),\nSustituciones!$B$18,Sustituciones!$C$18),\nSustituciones!$B$19,Sustituciones!$C$19),\nSustituciones!$B$20,Sustituciones!$C$20),\nSustituciones!$B$21,Sustituciones!$C$21),\nSustituciones!$B$22,Sustituciones!$C$22),\nSustituciones!$B$23,Sustituciones!$C$23)","v":"Leonardo Daniel Farias Rosas"},null,null,{"$f":"SUBSTITUTE(SUBSTITUTE(SUBSTITUTE(SUBSTITUTE(SUBSTITUTE(SUBSTITUTE(SUBSTITUTE(SUBSTITUTE(SUBSTITUTE(SUBSTITUTE(SUBSTITUTE(SUBSTITUTE(SUBSTITUTE(SUBSTITUTE(SUBSTITUTE(SUBSTITUTE(SUBSTITUTE(SUBSTITUTE(SUBSTITUTE(SUBSTITUTE(SUBSTITUTE(SUBSTITUTE(D9,\nSustituciones!$D$2,Sustituciones!$E$2),\nSustituciones!$D$3,Sustituciones!$E$3),\nSustituciones!$D$4,Sustituciones!$E$4),\nSustituciones!$D$5,Sustituciones!$E$5),\nSustituciones!$D$6,Sustituciones!$E$6),\nSustituciones!$D$7,Sustituciones!$E$7),\nSustituciones!$D$8,Sustituciones!$E$8),\nSustituciones!$D$9,Sustituciones!$E$9),\nSustituciones!$D$10,Sustituciones!$E$10),\nSustituciones!$D$11,Sustituciones!$E$11),\nSustituciones!$D$12,Sustituciones!$E$12),\nSustituciones!$D$13,Sustituciones!$E$13),\nSustituciones!$D$14,Sustituciones!$E$14),\nSustituciones!$D$15,Sustituciones!$E$15),\nSustituciones!$D$16,Sustituciones!$E$16),\nSustituciones!$D$17,Sustituciones!$E$17),\nSustituciones!$D$18,Sustituciones!$E$18),\nSustituciones!$D$19,Sustituciones!$E$19),\nSustituciones!$D$20,Sustituciones!$E$20),\nSustituciones!$D$21,Sustituciones!$E$21),\nSustituciones!$D$22,Sustituciones!$E$22),\nSustituciones!$D$23,Sustituciones!$E$23)","v":""},null,null,null,null,"  ",false]
["María de Lourdes Espinoza de los Monteros",null,{"$f":"SUBSTITUTE(SUBSTITUTE(SUBSTITUTE(SUBSTITUTE(SUBSTITUTE(SUBSTITUTE(SUBSTITUTE(SUBSTITUTE(SUBSTITUTE(SUBSTITUTE(SUBSTITUTE(SUBSTITUTE(SUBSTITUTE(SUBSTITUTE(SUBSTITUTE(SUBSTITUTE(SUBSTITUTE(SUBSTITUTE(SUBSTITUTE(SUBSTITUTE(SUBSTITUTE(SUBSTITUTE(A10,\nSustituciones!$B$2,Sustituciones!$C$2),\nSustituciones!$B$3,Sustituciones!$C$3),\nSustituciones!$B$4,Sustituciones!$C$4),\nSustituciones!$B$5,Sustituciones!$C$5),\nSustituciones!$B$6,Sustituciones!$C$6),\nSustituciones!$B$7,Sustituciones!$C$7),\nSustituciones!$B$8,Sustituciones!$C$8),\nSustituciones!$B$9,Sustituciones!$C$9),\nSustituciones!$B$10,Sustituciones!$C$10),\nSustituciones!$B$11,Sustituciones!$C$11),\nSustituciones!$B$12,Sustituciones!$C$12),\nSustituciones!$B$13,Sustituciones!$C$13),\nSustituciones!$B$14,Sustituciones!$C$14),\nSustituciones!$B$15,Sustituciones!$C$15),\nSustituciones!$B$16,Sustituciones!$C$16),\nSustituciones!$B$17,Sustituciones!$C$17),\nSustituciones!$B$18,Sustituciones!$C$18),\nSustituciones!$B$19,Sustituciones!$C$19),\nSustituciones!$B$20,Sustituciones!$C$20),\nSustituciones!$B$21,Sustituciones!$C$21),\nSustituciones!$B$22,Sustituciones!$C$22),\nSustituciones!$B$23,Sustituciones!$C$23)","v":"María -de-Lourdes Espinoza -delos-Monteros"},null,null,{"$f":"SUBSTITUTE(SUBSTITUTE(SUBSTITUTE(SUBSTITUTE(SUBSTITUTE(SUBSTITUTE(SUBSTITUTE(SUBSTITUTE(SUBSTITUTE(SUBSTITUTE(SUBSTITUTE(SUBSTITUTE(SUBSTITUTE(SUBSTITUTE(SUBSTITUTE(SUBSTITUTE(SUBSTITUTE(SUBSTITUTE(SUBSTITUTE(SUBSTITUTE(SUBSTITUTE(SUBSTITUTE(D10,\nSustituciones!$D$2,Sustituciones!$E$2),\nSustituciones!$D$3,Sustituciones!$E$3),\nSustituciones!$D$4,Sustituciones!$E$4),\nSustituciones!$D$5,Sustituciones!$E$5),\nSustituciones!$D$6,Sustituciones!$E$6),\nSustituciones!$D$7,Sustituciones!$E$7),\nSustituciones!$D$8,Sustituciones!$E$8),\nSustituciones!$D$9,Sustituciones!$E$9),\nSustituciones!$D$10,Sustituciones!$E$10),\nSustituciones!$D$11,Sustituciones!$E$11),\nSustituciones!$D$12,Sustituciones!$E$12),\nSustituciones!$D$13,Sustituciones!$E$13),\nSustituciones!$D$14,Sustituciones!$E$14),\nSustituciones!$D$15,Sustituciones!$E$15),\nSustituciones!$D$16,Sustituciones!$E$16),\nSustituciones!$D$17,Sustituciones!$E$17),\nSustituciones!$D$18,Sustituciones!$E$18),\nSustituciones!$D$19,Sustituciones!$E$19),\nSustituciones!$D$20,Sustituciones!$E$20),\nSustituciones!$D$21,Sustituciones!$E$21),\nSustituciones!$D$22,Sustituciones!$E$22),\nSustituciones!$D$23,Sustituciones!$E$23)","v":""},null,null,null,null,"  ",false]
["Edgar Andres Flores Olivares",null,{"$f":"SUBSTITUTE(SUBSTITUTE(SUBSTITUTE(SUBSTITUTE(SUBSTITUTE(SUBSTITUTE(SUBSTITUTE(SUBSTITUTE(SUBSTITUTE(SUBSTITUTE(SUBSTITUTE(SUBSTITUTE(SUBSTITUTE(SUBSTITUTE(SUBSTITUTE(SUBSTITUTE(SUBSTITUTE(SUBSTITUTE(SUBSTITUTE(SUBSTITUTE(SUBSTITUTE(SUBSTITUTE(A11,\nSustituciones!$B$2,Sustituciones!$C$2),\nSustituciones!$B$3,Sustituciones!$C$3),\nSustituciones!$B$4,Sustituciones!$C$4),\nSustituciones!$B$5,Sustituciones!$C$5),\nSustituciones!$B$6,Sustituciones!$C$6),\nSustituciones!$B$7,Sustituciones!$C$7),\nSustituciones!$B$8,Sustituciones!$C$8),\nSustituciones!$B$9,Sustituciones!$C$9),\nSustituciones!$B$10,Sustituciones!$C$10),\nSustituciones!$B$11,Sustituciones!$C$11),\nSustituciones!$B$12,Sustituciones!$C$12),\nSustituciones!$B$13,Sustituciones!$C$13),\nSustituciones!$B$14,Sustituciones!$C$14),\nSustituciones!$B$15,Sustituciones!$C$15),\nSustituciones!$B$16,Sustituciones!$C$16),\nSustituciones!$B$17,Sustituciones!$C$17),\nSustituciones!$B$18,Sustituciones!$C$18),\nSustituciones!$B$19,Sustituciones!$C$19),\nSustituciones!$B$20,Sustituciones!$C$20),\nSustituciones!$B$21,Sustituciones!$C$21),\nSustituciones!$B$22,Sustituciones!$C$22),\nSustituciones!$B$23,Sustituciones!$C$23)","v":"Edgar Andres Flores Olivares"},null,null,{"$f":"SUBSTITUTE(SUBSTITUTE(SUBSTITUTE(SUBSTITUTE(SUBSTITUTE(SUBSTITUTE(SUBSTITUTE(SUBSTITUTE(SUBSTITUTE(SUBSTITUTE(SUBSTITUTE(SUBSTITUTE(SUBSTITUTE(SUBSTITUTE(SUBSTITUTE(SUBSTITUTE(SUBSTITUTE(SUBSTITUTE(SUBSTITUTE(SUBSTITUTE(SUBSTITUTE(SUBSTITUTE(D11,\nSustituciones!$D$2,Sustituciones!$E$2),\nSustituciones!$D$3,Sustituciones!$E$3),\nSustituciones!$D$4,Sustituciones!$E$4),\nSustituciones!$D$5,Sustituciones!$E$5),\nSustituciones!$D$6,Sustituciones!$E$6),\nSustituciones!$D$7,Sustituciones!$E$7),\nSustituciones!$D$8,Sustituciones!$E$8),\nSustituciones!$D$9,Sustituciones!$E$9),\nSustituciones!$D$10,Sustituciones!$E$10),\nSustituciones!$D$11,Sustituciones!$E$11),\nSustituciones!$D$12,Sustituciones!$E$12),\nSustituciones!$D$13,Sustituciones!$E$13),\nSustituciones!$D$14,Sustituciones!$E$14),\nSustituciones!$D$15,Sustituciones!$E$15),\nSustituciones!$D$16,Sustituciones!$E$16),\nSustituciones!$D$17,Sustituciones!$E$17),\nSustituciones!$D$18,Sustituciones!$E$18),\nSustituciones!$D$19,Sustituciones!$E$19),\nSustituciones!$D$20,Sustituciones!$E$20),\nSustituciones!$D$21,Sustituciones!$E$21),\nSustituciones!$D$22,Sustituciones!$E$22),\nSustituciones!$D$23,Sustituciones!$E$23)","v":""},null,null,null,null,"  ",false]
["Maria Fernanda Franco Esquivel",null,{"$f":"SUBSTITUTE(SUBSTITUTE(SUBSTITUTE(SUBSTITUTE(SUBSTITUTE(SUBSTITUTE(SUBSTITUTE(SUBSTITUTE(SUBSTITUTE(SUBSTITUTE(SUBSTITUTE(SUBSTITUTE(SUBSTITUTE(SUBSTITUTE(SUBSTITUTE(SUBSTITUTE(SUBSTITUTE(SUBSTITUTE(SUBSTITUTE(SUBSTITUTE(SUBSTITUTE(SUBSTITUTE(A12,\nSustituciones!$B$2,Sustituciones!$C$2),\nSustituciones!$B$3,Sustituciones!$C$3),\nSustituciones!$B$4,Sustituciones!$C$4),\nSustituciones!$B$5,Sustituciones!$C$5),\nSustituciones!$B$6,Sustituciones!$C$6),\nSustituciones!$B$7,Sustituciones!$C$7),\nSustituciones!$B$8,Sustituciones!$C$8),\nSustituciones!$B$9,Sustituciones!$C$9),\nSustituciones!$B$10,Sustituciones!$C$10),\nSustituciones!$B$11,Sustituciones!$C$11),\nSustituciones!$B$12,Sustituciones!$C$12),\nSustituciones!$B$13,Sustituciones!$C$13),\nSustituciones!$B$14,Sustituciones!$C$14),\nSustituciones!$B$15,Sustituciones!$C$15),\nSustituciones!$B$16,Sustituciones!$C$16),\nSustituciones!$B$17,Sustituciones!$C$17),\nSustituciones!$B$18,Sustituciones!$C$18),\nSustituciones!$B$19,Sustituciones!$C$19),\nSustituciones!$B$20,Sustituciones!$C$20),\nSustituciones!$B$21,Sustituciones!$C$21),\nSustituciones!$B$22,Sustituciones!$C$22),\nSustituciones!$B$23,Sustituciones!$C$23)","v":"Maria Fernanda Franco Esquivel"},null,null,{"$f":"SUBSTITUTE(SUBSTITUTE(SUBSTITUTE(SUBSTITUTE(SUBSTITUTE(SUBSTITUTE(SUBSTITUTE(SUBSTITUTE(SUBSTITUTE(SUBSTITUTE(SUBSTITUTE(SUBSTITUTE(SUBSTITUTE(SUBSTITUTE(SUBSTITUTE(SUBSTITUTE(SUBSTITUTE(SUBSTITUTE(SUBSTITUTE(SUBSTITUTE(SUBSTITUTE(SUBSTITUTE(D12,\nSustituciones!$D$2,Sustituciones!$E$2),\nSustituciones!$D$3,Sustituciones!$E$3),\nSustituciones!$D$4,Sustituciones!$E$4),\nSustituciones!$D$5,Sustituciones!$E$5),\nSustituciones!$D$6,Sustituciones!$E$6),\nSustituciones!$D$7,Sustituciones!$E$7),\nSustituciones!$D$8,Sustituciones!$E$8),\nSustituciones!$D$9,Sustituciones!$E$9),\nSustituciones!$D$10,Sustituciones!$E$10),\nSustituciones!$D$11,Sustituciones!$E$11),\nSustituciones!$D$12,Sustituciones!$E$12),\nSustituciones!$D$13,Sustituciones!$E$13),\nSustituciones!$D$14,Sustituciones!$E$14),\nSustituciones!$D$15,Sustituciones!$E$15),\nSustituciones!$D$16,Sustituciones!$E$16),\nSustituciones!$D$17,Sustituciones!$E$17),\nSustituciones!$D$18,Sustituciones!$E$18),\nSustituciones!$D$19,Sustituciones!$E$19),\nSustituciones!$D$20,Sustituciones!$E$20),\nSustituciones!$D$21,Sustituciones!$E$21),\nSustituciones!$D$22,Sustituciones!$E$22),\nSustituciones!$D$23,Sustituciones!$E$23)","v":""},null,null,null,null,"  ",false]
["Alejandro Galvan Muñiz",null,{"$f":"SUBSTITUTE(SUBSTITUTE(SUBSTITUTE(SUBSTITUTE(SUBSTITUTE(SUBSTITUTE(SUBSTITUTE(SUBSTITUTE(SUBSTITUTE(SUBSTITUTE(SUBSTITUTE(SUBSTITUTE(SUBSTITUTE(SUBSTITUTE(SUBSTITUTE(SUBSTITUTE(SUBSTITUTE(SUBSTITUTE(SUBSTITUTE(SUBSTITUTE(SUBSTITUTE(SUBSTITUTE(A13,\nSustituciones!$B$2,Sustituciones!$C$2),\nSustituciones!$B$3,Sustituciones!$C$3),\nSustituciones!$B$4,Sustituciones!$C$4),\nSustituciones!$B$5,Sustituciones!$C$5),\nSustituciones!$B$6,Sustituciones!$C$6),\nSustituciones!$B$7,Sustituciones!$C$7),\nSustituciones!$B$8,Sustituciones!$C$8),\nSustituciones!$B$9,Sustituciones!$C$9),\nSustituciones!$B$10,Sustituciones!$C$10),\nSustituciones!$B$11,Sustituciones!$C$11),\nSustituciones!$B$12,Sustituciones!$C$12),\nSustituciones!$B$13,Sustituciones!$C$13),\nSustituciones!$B$14,Sustituciones!$C$14),\nSustituciones!$B$15,Sustituciones!$C$15),\nSustituciones!$B$16,Sustituciones!$C$16),\nSustituciones!$B$17,Sustituciones!$C$17),\nSustituciones!$B$18,Sustituciones!$C$18),\nSustituciones!$B$19,Sustituciones!$C$19),\nSustituciones!$B$20,Sustituciones!$C$20),\nSustituciones!$B$21,Sustituciones!$C$21),\nSustituciones!$B$22,Sustituciones!$C$22),\nSustituciones!$B$23,Sustituciones!$C$23)","v":"Alejandro Galvan Muñiz"},null,null,{"$f":"SUBSTITUTE(SUBSTITUTE(SUBSTITUTE(SUBSTITUTE(SUBSTITUTE(SUBSTITUTE(SUBSTITUTE(SUBSTITUTE(SUBSTITUTE(SUBSTITUTE(SUBSTITUTE(SUBSTITUTE(SUBSTITUTE(SUBSTITUTE(SUBSTITUTE(SUBSTITUTE(SUBSTITUTE(SUBSTITUTE(SUBSTITUTE(SUBSTITUTE(SUBSTITUTE(SUBSTITUTE(D13,\nSustituciones!$D$2,Sustituciones!$E$2),\nSustituciones!$D$3,Sustituciones!$E$3),\nSustituciones!$D$4,Sustituciones!$E$4),\nSustituciones!$D$5,Sustituciones!$E$5),\nSustituciones!$D$6,Sustituciones!$E$6),\nSustituciones!$D$7,Sustituciones!$E$7),\nSustituciones!$D$8,Sustituciones!$E$8),\nSustituciones!$D$9,Sustituciones!$E$9),\nSustituciones!$D$10,Sustituciones!$E$10),\nSustituciones!$D$11,Sustituciones!$E$11),\nSustituciones!$D$12,Sustituciones!$E$12),\nSustituciones!$D$13,Sustituciones!$E$13),\nSustituciones!$D$14,Sustituciones!$E$14),\nSustituciones!$D$15,Sustituciones!$E$15),\nSustituciones!$D$16,Sustituciones!$E$16),\nSustituciones!$D$17,Sustituciones!$E$17),\nSustituciones!$D$18,Sustituciones!$E$18),\nSustituciones!$D$19,Sustituciones!$E$19),\nSustituciones!$D$20,Sustituciones!$E$20),\nSustituciones!$D$21,Sustituciones!$E$21),\nSustituciones!$D$22,Sustituciones!$E$22),\nSustituciones!$D$23,Sustituciones!$E$23)","v":""},null,null,null,null,"  ",false]
["Martha Alicia Gutierrez Ortiz",null,{"$f":"SUBSTITUTE(SUBSTITUTE(SUBSTITUTE(SUBSTITUTE(SUBSTITUTE(SUBSTITUTE(SUBSTITUTE(SUBSTITUTE(SUBSTITUTE(SUBSTITUTE(SUBSTITUTE(SUBSTITUTE(SUBSTITUTE(SUBSTITUTE(SUBSTITUTE(SUBSTITUTE(SUBSTITUTE(SUBSTITUTE(SUBSTITUTE(SUBSTITUTE(SUBSTITUTE(SUBSTITUTE(A14,\nSustituciones!$B$2,Sustituciones!$C$2),\nSustituciones!$B$3,Sustituciones!$C$3),\nSustituciones!$B$4,Sustituciones!$C$4),\nSustituciones!$B$5,Sustituciones!$C$5),\nSustituciones!$B$6,Sustituciones!$C$6),\nSustituciones!$B$7,Sustituciones!$C$7),\nSustituciones!$B$8,Sustituciones!$C$8),\nSustituciones!$B$9,Sustituciones!$C$9),\nSustituciones!$B$10,Sustituciones!$C$10),\nSustituciones!$B$11,Sustituciones!$C$11),\nSustituciones!$B$12,Sustituciones!$C$12),\nSustituciones!$B$13,Sustituciones!$C$13),\nSustituciones!$B$14,Sustituciones!$C$14),\nSustituciones!$B$15,Sustituciones!$C$15),\nSustituciones!$B$16,Sustituciones!$C$16),\nSustituciones!$B$17,Sustituciones!$C$17),\nSustituciones!$B$18,Sustituciones!$C$18),\nSustituciones!$B$19,Sustituciones!$C$19),\nSustituciones!$B$20,Sustituciones!$C$20),\nSustituciones!$B$21,Sustituciones!$C$21),\nSustituciones!$B$22,Sustituciones!$C$22),\nSustituciones!$B$23,Sustituciones!$C$23)","v":"Martha Alicia Gutierrez Ortiz"},null,null,{"$f":"SUBSTITUTE(SUBSTITUTE(SUBSTITUTE(SUBSTITUTE(SUBSTITUTE(SUBSTITUTE(SUBSTITUTE(SUBSTITUTE(SUBSTITUTE(SUBSTITUTE(SUBSTITUTE(SUBSTITUTE(SUBSTITUTE(SUBSTITUTE(SUBSTITUTE(SUBSTITUTE(SUBSTITUTE(SUBSTITUTE(SUBSTITUTE(SUBSTITUTE(SUBSTITUTE(SUBSTITUTE(D14,\nSustituciones!$D$2,Sustituciones!$E$2),\nSustituciones!$D$3,Sustituciones!$E$3),\nSustituciones!$D$4,Sustituciones!$E$4),\nSustituciones!$D$5,Sustituciones!$E$5),\nSustituciones!$D$6,Sustituciones!$E$6),\nSustituciones!$D$7,Sustituciones!$E$7),\nSustituciones!$D$8,Sustituciones!$E$8),\nSustituciones!$D$9,Sustituciones!$E$9),\nSustituciones!$D$10,Sustituciones!$E$10),\nSustituciones!$D$11,Sustituciones!$E$11),\nSustituciones!$D$12,Sustituciones!$E$12),\nSustituciones!$D$13,Sustituciones!$E$13),\nSustituciones!$D$14,Sustituciones!$E$14),\nSustituciones!$D$15,Sustituciones!$E$15),\nSustituciones!$D$16,Sustituciones!$E$16),\nSustituciones!$D$17,Sustituciones!$E$17),\nSustituciones!$D$18,Sustituciones!$E$18),\nSustituciones!$D$19,Sustituciones!$E$19),\nSustituciones!$D$20,Sustituciones!$E$20),\nSustituciones!$D$21,Sustituciones!$E$21),\nSustituciones!$D$22,Sustituciones!$E$22),\nSustituciones!$D$23,Sustituciones!$E$23)","v":""},null,null,null,null,"  ",false]
["Josafat Gerardo Hernandez Saucedo",null,{"$f":"SUBSTITUTE(SUBSTITUTE(SUBSTITUTE(SUBSTITUTE(SUBSTITUTE(SUBSTITUTE(SUBSTITUTE(SUBSTITUTE(SUBSTITUTE(SUBSTITUTE(SUBSTITUTE(SUBSTITUTE(SUBSTITUTE(SUBSTITUTE(SUBSTITUTE(SUBSTITUTE(SUBSTITUTE(SUBSTITUTE(SUBSTITUTE(SUBSTITUTE(SUBSTITUTE(SUBSTITUTE(A15,\nSustituciones!$B$2,Sustituciones!$C$2),\nSustituciones!$B$3,Sustituciones!$C$3),\nSustituciones!$B$4,Sustituciones!$C$4),\nSustituciones!$B$5,Sustituciones!$C$5),\nSustituciones!$B$6,Sustituciones!$C$6),\nSustituciones!$B$7,Sustituciones!$C$7),\nSustituciones!$B$8,Sustituciones!$C$8),\nSustituciones!$B$9,Sustituciones!$C$9),\nSustituciones!$B$10,Sustituciones!$C$10),\nSustituciones!$B$11,Sustituciones!$C$11),\nSustituciones!$B$12,Sustituciones!$C$12),\nSustituciones!$B$13,Sustituciones!$C$13),\nSustituciones!$B$14,Sustituciones!$C$14),\nSustituciones!$B$15,Sustituciones!$C$15),\nSustituciones!$B$16,Sustituciones!$C$16),\nSustituciones!$B$17,Sustituciones!$C$17),\nSustituciones!$B$18,Sustituciones!$C$18),\nSustituciones!$B$19,Sustituciones!$C$19),\nSustituciones!$B$20,Sustituciones!$C$20),\nSustituciones!$B$21,Sustituciones!$C$21),\nSustituciones!$B$22,Sustituciones!$C$22),\nSustituciones!$B$23,Sustituciones!$C$23)","v":"Josafat Gerardo Hernandez Saucedo"},null,null,{"$f":"SUBSTITUTE(SUBSTITUTE(SUBSTITUTE(SUBSTITUTE(SUBSTITUTE(SUBSTITUTE(SUBSTITUTE(SUBSTITUTE(SUBSTITUTE(SUBSTITUTE(SUBSTITUTE(SUBSTITUTE(SUBSTITUTE(SUBSTITUTE(SUBSTITUTE(SUBSTITUTE(SUBSTITUTE(SUBSTITUTE(SUBSTITUTE(SUBSTITUTE(SUBSTITUTE(SUBSTITUTE(D15,\nSustituciones!$D$2,Sustituciones!$E$2),\nSustituciones!$D$3,Sustituciones!$E$3),\nSustituciones!$D$4,Sustituciones!$E$4),\nSustituciones!$D$5,Sustituciones!$E$5),\nSustituciones!$D$6,Sustituciones!$E$6),\nSustituciones!$D$7,Sustituciones!$E$7),\nSustituciones!$D$8,Sustituciones!$E$8),\nSustituciones!$D$9,Sustituciones!$E$9),\nSustituciones!$D$10,Sustituciones!$E$10),\nSustituciones!$D$11,Sustituciones!$E$11),\nSustituciones!$D$12,Sustituciones!$E$12),\nSustituciones!$D$13,Sustituciones!$E$13),\nSustituciones!$D$14,Sustituciones!$E$14),\nSustituciones!$D$15,Sustituciones!$E$15),\nSustituciones!$D$16,Sustituciones!$E$16),\nSustituciones!$D$17,Sustituciones!$E$17),\nSustituciones!$D$18,Sustituciones!$E$18),\nSustituciones!$D$19,Sustituciones!$E$19),\nSustituciones!$D$20,Sustituciones!$E$20),\nSustituciones!$D$21,Sustituciones!$E$21),\nSustituciones!$D$22,Sustituciones!$E$22),\nSustituciones!$D$23,Sustituciones!$E$23)","v":""},null,null,null,null,"  ",false]
["Rosalia Jimenez Gonzalez",null,{"$f":"SUBSTITUTE(SUBSTITUTE(SUBSTITUTE(SUBSTITUTE(SUBSTITUTE(SUBSTITUTE(SUBSTITUTE(SUBSTITUTE(SUBSTITUTE(SUBSTITUTE(SUBSTITUTE(SUBSTITUTE(SUBSTITUTE(SUBSTITUTE(SUBSTITUTE(SUBSTITUTE(SUBSTITUTE(SUBSTITUTE(SUBSTITUTE(SUBSTITUTE(SUBSTITUTE(SUBSTITUTE(A16,\nSustituciones!$B$2,Sustituciones!$C$2),\nSustituciones!$B$3,Sustituciones!$C$3),\nSustituciones!$B$4,Sustituciones!$C$4),\nSustituciones!$B$5,Sustituciones!$C$5),\nSustituciones!$B$6,Sustituciones!$C$6),\nSustituciones!$B$7,Sustituciones!$C$7),\nSustituciones!$B$8,Sustituciones!$C$8),\nSustituciones!$B$9,Sustituciones!$C$9),\nSustituciones!$B$10,Sustituciones!$C$10),\nSustituciones!$B$11,Sustituciones!$C$11),\nSustituciones!$B$12,Sustituciones!$C$12),\nSustituciones!$B$13,Sustituciones!$C$13),\nSustituciones!$B$14,Sustituciones!$C$14),\nSustituciones!$B$15,Sustituciones!$C$15),\nSustituciones!$B$16,Sustituciones!$C$16),\nSustituciones!$B$17,Sustituciones!$C$17),\nSustituciones!$B$18,Sustituciones!$C$18),\nSustituciones!$B$19,Sustituciones!$C$19),\nSustituciones!$B$20,Sustituciones!$C$20),\nSustituciones!$B$21,Sustituciones!$C$21),\nSustituciones!$B$22,Sustituciones!$C$22),\nSustituciones!$B$23,Sustituciones!$C$23)","v":"Rosalia Jimenez Gonzalez"},null,null,{"$f":"SUBSTITUTE(SUBSTITUTE(SUBSTITUTE(SUBSTITUTE(SUBSTITUTE(SUBSTITUTE(SUBSTITUTE(SUBSTITUTE(SUBSTITUTE(SUBSTITUTE(SUBSTITUTE(SUBSTITUTE(SUBSTITUTE(SUBSTITUTE(SUBSTITUTE(SUBSTITUTE(SUBSTITUTE(SUBSTITUTE(SUBSTITUTE(SUBSTITUTE(SUBSTITUTE(SUBSTITUTE(D16,\nSustituciones!$D$2,Sustituciones!$E$2),\nSustituciones!$D$3,Sustituciones!$E$3),\nSustituciones!$D$4,Sustituciones!$E$4),\nSustituciones!$D$5,Sustituciones!$E$5),\nSustituciones!$D$6,Sustituciones!$E$6),\nSustituciones!$D$7,Sustituciones!$E$7),\nSustituciones!$D$8,Sustituciones!$E$8),\nSustituciones!$D$9,Sustituciones!$E$9),\nSustituciones!$D$10,Sustituciones!$E$10),\nSustituciones!$D$11,Sustituciones!$E$11),\nSustituciones!$D$12,Sustituciones!$E$12),\nSustituciones!$D$13,Sustituciones!$E$13),\nSustituciones!$D$14,Sustituciones!$E$14),\nSustituciones!$D$15,Sustituciones!$E$15),\nSustituciones!$D$16,Sustituciones!$E$16),\nSustituciones!$D$17,Sustituciones!$E$17),\nSustituciones!$D$18,Sustituciones!$E$18),\nSustituciones!$D$19,Sustituciones!$E$19),\nSustituciones!$D$20,Sustituciones!$E$20),\nSustituciones!$D$21,Sustituciones!$E$21),\nSustituciones!$D$22,Sustituciones!$E$22),\nSustituciones!$D$23,Sustituciones!$E$23)","v":""},null,null,null,null,"  ",false]
["Laura Celene Jimenez del Río",null,{"$f":"SUBSTITUTE(SUBSTITUTE(SUBSTITUTE(SUBSTITUTE(SUBSTITUTE(SUBSTITUTE(SUBSTITUTE(SUBSTITUTE(SUBSTITUTE(SUBSTITUTE(SUBSTITUTE(SUBSTITUTE(SUBSTITUTE(SUBSTITUTE(SUBSTITUTE(SUBSTITUTE(SUBSTITUTE(SUBSTITUTE(SUBSTITUTE(SUBSTITUTE(SUBSTITUTE(SUBSTITUTE(A17,\nSustituciones!$B$2,Sustituciones!$C$2),\nSustituciones!$B$3,Sustituciones!$C$3),\nSustituciones!$B$4,Sustituciones!$C$4),\nSustituciones!$B$5,Sustituciones!$C$5),\nSustituciones!$B$6,Sustituciones!$C$6),\nSustituciones!$B$7,Sustituciones!$C$7),\nSustituciones!$B$8,Sustituciones!$C$8),\nSustituciones!$B$9,Sustituciones!$C$9),\nSustituciones!$B$10,Sustituciones!$C$10),\nSustituciones!$B$11,Sustituciones!$C$11),\nSustituciones!$B$12,Sustituciones!$C$12),\nSustituciones!$B$13,Sustituciones!$C$13),\nSustituciones!$B$14,Sustituciones!$C$14),\nSustituciones!$B$15,Sustituciones!$C$15),\nSustituciones!$B$16,Sustituciones!$C$16),\nSustituciones!$B$17,Sustituciones!$C$17),\nSustituciones!$B$18,Sustituciones!$C$18),\nSustituciones!$B$19,Sustituciones!$C$19),\nSustituciones!$B$20,Sustituciones!$C$20),\nSustituciones!$B$21,Sustituciones!$C$21),\nSustituciones!$B$22,Sustituciones!$C$22),\nSustituciones!$B$23,Sustituciones!$C$23)","v":"Laura Celene Jimenez -del-Río"},null,null,{"$f":"SUBSTITUTE(SUBSTITUTE(SUBSTITUTE(SUBSTITUTE(SUBSTITUTE(SUBSTITUTE(SUBSTITUTE(SUBSTITUTE(SUBSTITUTE(SUBSTITUTE(SUBSTITUTE(SUBSTITUTE(SUBSTITUTE(SUBSTITUTE(SUBSTITUTE(SUBSTITUTE(SUBSTITUTE(SUBSTITUTE(SUBSTITUTE(SUBSTITUTE(SUBSTITUTE(SUBSTITUTE(D17,\nSustituciones!$D$2,Sustituciones!$E$2),\nSustituciones!$D$3,Sustituciones!$E$3),\nSustituciones!$D$4,Sustituciones!$E$4),\nSustituciones!$D$5,Sustituciones!$E$5),\nSustituciones!$D$6,Sustituciones!$E$6),\nSustituciones!$D$7,Sustituciones!$E$7),\nSustituciones!$D$8,Sustituciones!$E$8),\nSustituciones!$D$9,Sustituciones!$E$9),\nSustituciones!$D$10,Sustituciones!$E$10),\nSustituciones!$D$11,Sustituciones!$E$11),\nSustituciones!$D$12,Sustituciones!$E$12),\nSustituciones!$D$13,Sustituciones!$E$13),\nSustituciones!$D$14,Sustituciones!$E$14),\nSustituciones!$D$15,Sustituciones!$E$15),\nSustituciones!$D$16,Sustituciones!$E$16),\nSustituciones!$D$17,Sustituciones!$E$17),\nSustituciones!$D$18,Sustituciones!$E$18),\nSustituciones!$D$19,Sustituciones!$E$19),\nSustituciones!$D$20,Sustituciones!$E$20),\nSustituciones!$D$21,Sustituciones!$E$21),\nSustituciones!$D$22,Sustituciones!$E$22),\nSustituciones!$D$23,Sustituciones!$E$23)","v":""},null,null,null,null,"  ",false]
["Angelica Lopez Cortes",null,{"$f":"SUBSTITUTE(SUBSTITUTE(SUBSTITUTE(SUBSTITUTE(SUBSTITUTE(SUBSTITUTE(SUBSTITUTE(SUBSTITUTE(SUBSTITUTE(SUBSTITUTE(SUBSTITUTE(SUBSTITUTE(SUBSTITUTE(SUBSTITUTE(SUBSTITUTE(SUBSTITUTE(SUBSTITUTE(SUBSTITUTE(SUBSTITUTE(SUBSTITUTE(SUBSTITUTE(SUBSTITUTE(A18,\nSustituciones!$B$2,Sustituciones!$C$2),\nSustituciones!$B$3,Sustituciones!$C$3),\nSustituciones!$B$4,Sustituciones!$C$4),\nSustituciones!$B$5,Sustituciones!$C$5),\nSustituciones!$B$6,Sustituciones!$C$6),\nSustituciones!$B$7,Sustituciones!$C$7),\nSustituciones!$B$8,Sustituciones!$C$8),\nSustituciones!$B$9,Sustituciones!$C$9),\nSustituciones!$B$10,Sustituciones!$C$10),\nSustituciones!$B$11,Sustituciones!$C$11),\nSustituciones!$B$12,Sustituciones!$C$12),\nSustituciones!$B$13,Sustituciones!$C$13),\nSustituciones!$B$14,Sustituciones!$C$14),\nSustituciones!$B$15,Sustituciones!$C$15),\nSustituciones!$B$16,Sustituciones!$C$16),\nSustituciones!$B$17,Sustituciones!$C$17),\nSustituciones!$B$18,Sustituciones!$C$18),\nSustituciones!$B$19,Sustituciones!$C$19),\nSustituciones!$B$20,Sustituciones!$C$20),\nSustituciones!$B$21,Sustituciones!$C$21),\nSustituciones!$B$22,Sustituciones!$C$22),\nSustituciones!$B$23,Sustituciones!$C$23)","v":"Angelica Lopez Cortes"},null,null,{"$f":"SUBSTITUTE(SUBSTITUTE(SUBSTITUTE(SUBSTITUTE(SUBSTITUTE(SUBSTITUTE(SUBSTITUTE(SUBSTITUTE(SUBSTITUTE(SUBSTITUTE(SUBSTITUTE(SUBSTITUTE(SUBSTITUTE(SUBSTITUTE(SUBSTITUTE(SUBSTITUTE(SUBSTITUTE(SUBSTITUTE(SUBSTITUTE(SUBSTITUTE(SUBSTITUTE(SUBSTITUTE(D18,\nSustituciones!$D$2,Sustituciones!$E$2),\nSustituciones!$D$3,Sustituciones!$E$3),\nSustituciones!$D$4,Sustituciones!$E$4),\nSustituciones!$D$5,Sustituciones!$E$5),\nSustituciones!$D$6,Sustituciones!$E$6),\nSustituciones!$D$7,Sustituciones!$E$7),\nSustituciones!$D$8,Sustituciones!$E$8),\nSustituciones!$D$9,Sustituciones!$E$9),\nSustituciones!$D$10,Sustituciones!$E$10),\nSustituciones!$D$11,Sustituciones!$E$11),\nSustituciones!$D$12,Sustituciones!$E$12),\nSustituciones!$D$13,Sustituciones!$E$13),\nSustituciones!$D$14,Sustituciones!$E$14),\nSustituciones!$D$15,Sustituciones!$E$15),\nSustituciones!$D$16,Sustituciones!$E$16),\nSustituciones!$D$17,Sustituciones!$E$17),\nSustituciones!$D$18,Sustituciones!$E$18),\nSustituciones!$D$19,Sustituciones!$E$19),\nSustituciones!$D$20,Sustituciones!$E$20),\nSustituciones!$D$21,Sustituciones!$E$21),\nSustituciones!$D$22,Sustituciones!$E$22),\nSustituciones!$D$23,Sustituciones!$E$23)","v":""},null,null,null,null,"  ",false]
["Cristian Ivan Lopez Gomez",null,{"$f":"SUBSTITUTE(SUBSTITUTE(SUBSTITUTE(SUBSTITUTE(SUBSTITUTE(SUBSTITUTE(SUBSTITUTE(SUBSTITUTE(SUBSTITUTE(SUBSTITUTE(SUBSTITUTE(SUBSTITUTE(SUBSTITUTE(SUBSTITUTE(SUBSTITUTE(SUBSTITUTE(SUBSTITUTE(SUBSTITUTE(SUBSTITUTE(SUBSTITUTE(SUBSTITUTE(SUBSTITUTE(A19,\nSustituciones!$B$2,Sustituciones!$C$2),\nSustituciones!$B$3,Sustituciones!$C$3),\nSustituciones!$B$4,Sustituciones!$C$4),\nSustituciones!$B$5,Sustituciones!$C$5),\nSustituciones!$B$6,Sustituciones!$C$6),\nSustituciones!$B$7,Sustituciones!$C$7),\nSustituciones!$B$8,Sustituciones!$C$8),\nSustituciones!$B$9,Sustituciones!$C$9),\nSustituciones!$B$10,Sustituciones!$C$10),\nSustituciones!$B$11,Sustituciones!$C$11),\nSustituciones!$B$12,Sustituciones!$C$12),\nSustituciones!$B$13,Sustituciones!$C$13),\nSustituciones!$B$14,Sustituciones!$C$14),\nSustituciones!$B$15,Sustituciones!$C$15),\nSustituciones!$B$16,Sustituciones!$C$16),\nSustituciones!$B$17,Sustituciones!$C$17),\nSustituciones!$B$18,Sustituciones!$C$18),\nSustituciones!$B$19,Sustituciones!$C$19),\nSustituciones!$B$20,Sustituciones!$C$20),\nSustituciones!$B$21,Sustituciones!$C$21),\nSustituciones!$B$22,Sustituciones!$C$22),\nSustituciones!$B$23,Sustituciones!$C$23)","v":"Cristian Ivan Lopez Gomez"},null,null,{"$f":"SUBSTITUTE(SUBSTITUTE(SUBSTITUTE(SUBSTITUTE(SUBSTITUTE(SUBSTITUTE(SUBSTITUTE(SUBSTITUTE(SUBSTITUTE(SUBSTITUTE(SUBSTITUTE(SUBSTITUTE(SUBSTITUTE(SUBSTITUTE(SUBSTITUTE(SUBSTITUTE(SUBSTITUTE(SUBSTITUTE(SUBSTITUTE(SUBSTITUTE(SUBSTITUTE(SUBSTITUTE(D19,\nSustituciones!$D$2,Sustituciones!$E$2),\nSustituciones!$D$3,Sustituciones!$E$3),\nSustituciones!$D$4,Sustituciones!$E$4),\nSustituciones!$D$5,Sustituciones!$E$5),\nSustituciones!$D$6,Sustituciones!$E$6),\nSustituciones!$D$7,Sustituciones!$E$7),\nSustituciones!$D$8,Sustituciones!$E$8),\nSustituciones!$D$9,Sustituciones!$E$9),\nSustituciones!$D$10,Sustituciones!$E$10),\nSustituciones!$D$11,Sustituciones!$E$11),\nSustituciones!$D$12,Sustituciones!$E$12),\nSustituciones!$D$13,Sustituciones!$E$13),\nSustituciones!$D$14,Sustituciones!$E$14),\nSustituciones!$D$15,Sustituciones!$E$15),\nSustituciones!$D$16,Sustituciones!$E$16),\nSustituciones!$D$17,Sustituciones!$E$17),\nSustituciones!$D$18,Sustituciones!$E$18),\nSustituciones!$D$19,Sustituciones!$E$19),\nSustituciones!$D$20,Sustituciones!$E$20),\nSustituciones!$D$21,Sustituciones!$E$21),\nSustituciones!$D$22,Sustituciones!$E$22),\nSustituciones!$D$23,Sustituciones!$E$23)","v":""},null,null,null,null,"  ",false]
["Marlene Gabriela Lopez Meza",null,{"$f":"SUBSTITUTE(SUBSTITUTE(SUBSTITUTE(SUBSTITUTE(SUBSTITUTE(SUBSTITUTE(SUBSTITUTE(SUBSTITUTE(SUBSTITUTE(SUBSTITUTE(SUBSTITUTE(SUBSTITUTE(SUBSTITUTE(SUBSTITUTE(SUBSTITUTE(SUBSTITUTE(SUBSTITUTE(SUBSTITUTE(SUBSTITUTE(SUBSTITUTE(SUBSTITUTE(SUBSTITUTE(A20,\nSustituciones!$B$2,Sustituciones!$C$2),\nSustituciones!$B$3,Sustituciones!$C$3),\nSustituciones!$B$4,Sustituciones!$C$4),\nSustituciones!$B$5,Sustituciones!$C$5),\nSustituciones!$B$6,Sustituciones!$C$6),\nSustituciones!$B$7,Sustituciones!$C$7),\nSustituciones!$B$8,Sustituciones!$C$8),\nSustituciones!$B$9,Sustituciones!$C$9),\nSustituciones!$B$10,Sustituciones!$C$10),\nSustituciones!$B$11,Sustituciones!$C$11),\nSustituciones!$B$12,Sustituciones!$C$12),\nSustituciones!$B$13,Sustituciones!$C$13),\nSustituciones!$B$14,Sustituciones!$C$14),\nSustituciones!$B$15,Sustituciones!$C$15),\nSustituciones!$B$16,Sustituciones!$C$16),\nSustituciones!$B$17,Sustituciones!$C$17),\nSustituciones!$B$18,Sustituciones!$C$18),\nSustituciones!$B$19,Sustituciones!$C$19),\nSustituciones!$B$20,Sustituciones!$C$20),\nSustituciones!$B$21,Sustituciones!$C$21),\nSustituciones!$B$22,Sustituciones!$C$22),\nSustituciones!$B$23,Sustituciones!$C$23)","v":"Marlene Gabriela Lopez Meza"},null,null,{"$f":"SUBSTITUTE(SUBSTITUTE(SUBSTITUTE(SUBSTITUTE(SUBSTITUTE(SUBSTITUTE(SUBSTITUTE(SUBSTITUTE(SUBSTITUTE(SUBSTITUTE(SUBSTITUTE(SUBSTITUTE(SUBSTITUTE(SUBSTITUTE(SUBSTITUTE(SUBSTITUTE(SUBSTITUTE(SUBSTITUTE(SUBSTITUTE(SUBSTITUTE(SUBSTITUTE(SUBSTITUTE(D20,\nSustituciones!$D$2,Sustituciones!$E$2),\nSustituciones!$D$3,Sustituciones!$E$3),\nSustituciones!$D$4,Sustituciones!$E$4),\nSustituciones!$D$5,Sustituciones!$E$5),\nSustituciones!$D$6,Sustituciones!$E$6),\nSustituciones!$D$7,Sustituciones!$E$7),\nSustituciones!$D$8,Sustituciones!$E$8),\nSustituciones!$D$9,Sustituciones!$E$9),\nSustituciones!$D$10,Sustituciones!$E$10),\nSustituciones!$D$11,Sustituciones!$E$11),\nSustituciones!$D$12,Sustituciones!$E$12),\nSustituciones!$D$13,Sustituciones!$E$13),\nSustituciones!$D$14,Sustituciones!$E$14),\nSustituciones!$D$15,Sustituciones!$E$15),\nSustituciones!$D$16,Sustituciones!$E$16),\nSustituciones!$D$17,Sustituciones!$E$17),\nSustituciones!$D$18,Sustituciones!$E$18),\nSustituciones!$D$19,Sustituciones!$E$19),\nSustituciones!$D$20,Sustituciones!$E$20),\nSustituciones!$D$21,Sustituciones!$E$21),\nSustituciones!$D$22,Sustituciones!$E$22),\nSustituciones!$D$23,Sustituciones!$E$23)","v":""},null,null,null,null,"  ",false]
["Alejandra Medina Ibarra",null,{"$f":"SUBSTITUTE(SUBSTITUTE(SUBSTITUTE(SUBSTITUTE(SUBSTITUTE(SUBSTITUTE(SUBSTITUTE(SUBSTITUTE(SUBSTITUTE(SUBSTITUTE(SUBSTITUTE(SUBSTITUTE(SUBSTITUTE(SUBSTITUTE(SUBSTITUTE(SUBSTITUTE(SUBSTITUTE(SUBSTITUTE(SUBSTITUTE(SUBSTITUTE(SUBSTITUTE(SUBSTITUTE(A21,\nSustituciones!$B$2,Sustituciones!$C$2),\nSustituciones!$B$3,Sustituciones!$C$3),\nSustituciones!$B$4,Sustituciones!$C$4),\nSustituciones!$B$5,Sustituciones!$C$5),\nSustituciones!$B$6,Sustituciones!$C$6),\nSustituciones!$B$7,Sustituciones!$C$7),\nSustituciones!$B$8,Sustituciones!$C$8),\nSustituciones!$B$9,Sustituciones!$C$9),\nSustituciones!$B$10,Sustituciones!$C$10),\nSustituciones!$B$11,Sustituciones!$C$11),\nSustituciones!$B$12,Sustituciones!$C$12),\nSustituciones!$B$13,Sustituciones!$C$13),\nSustituciones!$B$14,Sustituciones!$C$14),\nSustituciones!$B$15,Sustituciones!$C$15),\nSustituciones!$B$16,Sustituciones!$C$16),\nSustituciones!$B$17,Sustituciones!$C$17),\nSustituciones!$B$18,Sustituciones!$C$18),\nSustituciones!$B$19,Sustituciones!$C$19),\nSustituciones!$B$20,Sustituciones!$C$20),\nSustituciones!$B$21,Sustituciones!$C$21),\nSustituciones!$B$22,Sustituciones!$C$22),\nSustituciones!$B$23,Sustituciones!$C$23)","v":"Alejandra Medina Ibarra"},null,null,{"$f":"SUBSTITUTE(SUBSTITUTE(SUBSTITUTE(SUBSTITUTE(SUBSTITUTE(SUBSTITUTE(SUBSTITUTE(SUBSTITUTE(SUBSTITUTE(SUBSTITUTE(SUBSTITUTE(SUBSTITUTE(SUBSTITUTE(SUBSTITUTE(SUBSTITUTE(SUBSTITUTE(SUBSTITUTE(SUBSTITUTE(SUBSTITUTE(SUBSTITUTE(SUBSTITUTE(SUBSTITUTE(D21,\nSustituciones!$D$2,Sustituciones!$E$2),\nSustituciones!$D$3,Sustituciones!$E$3),\nSustituciones!$D$4,Sustituciones!$E$4),\nSustituciones!$D$5,Sustituciones!$E$5),\nSustituciones!$D$6,Sustituciones!$E$6),\nSustituciones!$D$7,Sustituciones!$E$7),\nSustituciones!$D$8,Sustituciones!$E$8),\nSustituciones!$D$9,Sustituciones!$E$9),\nSustituciones!$D$10,Sustituciones!$E$10),\nSustituciones!$D$11,Sustituciones!$E$11),\nSustituciones!$D$12,Sustituciones!$E$12),\nSustituciones!$D$13,Sustituciones!$E$13),\nSustituciones!$D$14,Sustituciones!$E$14),\nSustituciones!$D$15,Sustituciones!$E$15),\nSustituciones!$D$16,Sustituciones!$E$16),\nSustituciones!$D$17,Sustituciones!$E$17),\nSustituciones!$D$18,Sustituciones!$E$18),\nSustituciones!$D$19,Sustituciones!$E$19),\nSustituciones!$D$20,Sustituciones!$E$20),\nSustituciones!$D$21,Sustituciones!$E$21),\nSustituciones!$D$22,Sustituciones!$E$22),\nSustituciones!$D$23,Sustituciones!$E$23)","v":""},null,null,null,null,"  ",false]
["Javier Adrian Mejia Alvarez",null,{"$f":"SUBSTITUTE(SUBSTITUTE(SUBSTITUTE(SUBSTITUTE(SUBSTITUTE(SUBSTITUTE(SUBSTITUTE(SUBSTITUTE(SUBSTITUTE(SUBSTITUTE(SUBSTITUTE(SUBSTITUTE(SUBSTITUTE(SUBSTITUTE(SUBSTITUTE(SUBSTITUTE(SUBSTITUTE(SUBSTITUTE(SUBSTITUTE(SUBSTITUTE(SUBSTITUTE(SUBSTITUTE(A22,\nSustituciones!$B$2,Sustituciones!$C$2),\nSustituciones!$B$3,Sustituciones!$C$3),\nSustituciones!$B$4,Sustituciones!$C$4),\nSustituciones!$B$5,Sustituciones!$C$5),\nSustituciones!$B$6,Sustituciones!$C$6),\nSustituciones!$B$7,Sustituciones!$C$7),\nSustituciones!$B$8,Sustituciones!$C$8),\nSustituciones!$B$9,Sustituciones!$C$9),\nSustituciones!$B$10,Sustituciones!$C$10),\nSustituciones!$B$11,Sustituciones!$C$11),\nSustituciones!$B$12,Sustituciones!$C$12),\nSustituciones!$B$13,Sustituciones!$C$13),\nSustituciones!$B$14,Sustituciones!$C$14),\nSustituciones!$B$15,Sustituciones!$C$15),\nSustituciones!$B$16,Sustituciones!$C$16),\nSustituciones!$B$17,Sustituciones!$C$17),\nSustituciones!$B$18,Sustituciones!$C$18),\nSustituciones!$B$19,Sustituciones!$C$19),\nSustituciones!$B$20,Sustituciones!$C$20),\nSustituciones!$B$21,Sustituciones!$C$21),\nSustituciones!$B$22,Sustituciones!$C$22),\nSustituciones!$B$23,Sustituciones!$C$23)","v":"Javier Adrian Mejia Alvarez"},null,null,{"$f":"SUBSTITUTE(SUBSTITUTE(SUBSTITUTE(SUBSTITUTE(SUBSTITUTE(SUBSTITUTE(SUBSTITUTE(SUBSTITUTE(SUBSTITUTE(SUBSTITUTE(SUBSTITUTE(SUBSTITUTE(SUBSTITUTE(SUBSTITUTE(SUBSTITUTE(SUBSTITUTE(SUBSTITUTE(SUBSTITUTE(SUBSTITUTE(SUBSTITUTE(SUBSTITUTE(SUBSTITUTE(D22,\nSustituciones!$D$2,Sustituciones!$E$2),\nSustituciones!$D$3,Sustituciones!$E$3),\nSustituciones!$D$4,Sustituciones!$E$4),\nSustituciones!$D$5,Sustituciones!$E$5),\nSustituciones!$D$6,Sustituciones!$E$6),\nSustituciones!$D$7,Sustituciones!$E$7),\nSustituciones!$D$8,Sustituciones!$E$8),\nSustituciones!$D$9,Sustituciones!$E$9),\nSustituciones!$D$10,Sustituciones!$E$10),\nSustituciones!$D$11,Sustituciones!$E$11),\nSustituciones!$D$12,Sustituciones!$E$12),\nSustituciones!$D$13,Sustituciones!$E$13),\nSustituciones!$D$14,Sustituciones!$E$14),\nSustituciones!$D$15,Sustituciones!$E$15),\nSustituciones!$D$16,Sustituciones!$E$16),\nSustituciones!$D$17,Sustituciones!$E$17),\nSustituciones!$D$18,Sustituciones!$E$18),\nSustituciones!$D$19,Sustituciones!$E$19),\nSustituciones!$D$20,Sustituciones!$E$20),\nSustituciones!$D$21,Sustituciones!$E$21),\nSustituciones!$D$22,Sustituciones!$E$22),\nSustituciones!$D$23,Sustituciones!$E$23)","v":""},null,null,null,null,"  ",false]
["Juan Carlos Evaristo Peña Gutierrez",null,{"$f":"SUBSTITUTE(SUBSTITUTE(SUBSTITUTE(SUBSTITUTE(SUBSTITUTE(SUBSTITUTE(SUBSTITUTE(SUBSTITUTE(SUBSTITUTE(SUBSTITUTE(SUBSTITUTE(SUBSTITUTE(SUBSTITUTE(SUBSTITUTE(SUBSTITUTE(SUBSTITUTE(SUBSTITUTE(SUBSTITUTE(SUBSTITUTE(SUBSTITUTE(SUBSTITUTE(SUBSTITUTE(A23,\nSustituciones!$B$2,Sustituciones!$C$2),\nSustituciones!$B$3,Sustituciones!$C$3),\nSustituciones!$B$4,Sustituciones!$C$4),\nSustituciones!$B$5,Sustituciones!$C$5),\nSustituciones!$B$6,Sustituciones!$C$6),\nSustituciones!$B$7,Sustituciones!$C$7),\nSustituciones!$B$8,Sustituciones!$C$8),\nSustituciones!$B$9,Sustituciones!$C$9),\nSustituciones!$B$10,Sustituciones!$C$10),\nSustituciones!$B$11,Sustituciones!$C$11),\nSustituciones!$B$12,Sustituciones!$C$12),\nSustituciones!$B$13,Sustituciones!$C$13),\nSustituciones!$B$14,Sustituciones!$C$14),\nSustituciones!$B$15,Sustituciones!$C$15),\nSustituciones!$B$16,Sustituciones!$C$16),\nSustituciones!$B$17,Sustituciones!$C$17),\nSustituciones!$B$18,Sustituciones!$C$18),\nSustituciones!$B$19,Sustituciones!$C$19),\nSustituciones!$B$20,Sustituciones!$C$20),\nSustituciones!$B$21,Sustituciones!$C$21),\nSustituciones!$B$22,Sustituciones!$C$22),\nSustituciones!$B$23,Sustituciones!$C$23)","v":"Juan Carlos Evaristo Peña Gutierrez"},null,null,{"$f":"SUBSTITUTE(SUBSTITUTE(SUBSTITUTE(SUBSTITUTE(SUBSTITUTE(SUBSTITUTE(SUBSTITUTE(SUBSTITUTE(SUBSTITUTE(SUBSTITUTE(SUBSTITUTE(SUBSTITUTE(SUBSTITUTE(SUBSTITUTE(SUBSTITUTE(SUBSTITUTE(SUBSTITUTE(SUBSTITUTE(SUBSTITUTE(SUBSTITUTE(SUBSTITUTE(SUBSTITUTE(D23,\nSustituciones!$D$2,Sustituciones!$E$2),\nSustituciones!$D$3,Sustituciones!$E$3),\nSustituciones!$D$4,Sustituciones!$E$4),\nSustituciones!$D$5,Sustituciones!$E$5),\nSustituciones!$D$6,Sustituciones!$E$6),\nSustituciones!$D$7,Sustituciones!$E$7),\nSustituciones!$D$8,Sustituciones!$E$8),\nSustituciones!$D$9,Sustituciones!$E$9),\nSustituciones!$D$10,Sustituciones!$E$10),\nSustituciones!$D$11,Sustituciones!$E$11),\nSustituciones!$D$12,Sustituciones!$E$12),\nSustituciones!$D$13,Sustituciones!$E$13),\nSustituciones!$D$14,Sustituciones!$E$14),\nSustituciones!$D$15,Sustituciones!$E$15),\nSustituciones!$D$16,Sustituciones!$E$16),\nSustituciones!$D$17,Sustituciones!$E$17),\nSustituciones!$D$18,Sustituciones!$E$18),\nSustituciones!$D$19,Sustituciones!$E$19),\nSustituciones!$D$20,Sustituciones!$E$20),\nSustituciones!$D$21,Sustituciones!$E$21),\nSustituciones!$D$22,Sustituciones!$E$22),\nSustituciones!$D$23,Sustituciones!$E$23)","v":""},null,null,null,null,"  ",false]
["Jazmin Alejandra Perez Velez",null,{"$f":"SUBSTITUTE(SUBSTITUTE(SUBSTITUTE(SUBSTITUTE(SUBSTITUTE(SUBSTITUTE(SUBSTITUTE(SUBSTITUTE(SUBSTITUTE(SUBSTITUTE(SUBSTITUTE(SUBSTITUTE(SUBSTITUTE(SUBSTITUTE(SUBSTITUTE(SUBSTITUTE(SUBSTITUTE(SUBSTITUTE(SUBSTITUTE(SUBSTITUTE(SUBSTITUTE(SUBSTITUTE(A24,\nSustituciones!$B$2,Sustituciones!$C$2),\nSustituciones!$B$3,Sustituciones!$C$3),\nSustituciones!$B$4,Sustituciones!$C$4),\nSustituciones!$B$5,Sustituciones!$C$5),\nSustituciones!$B$6,Sustituciones!$C$6),\nSustituciones!$B$7,Sustituciones!$C$7),\nSustituciones!$B$8,Sustituciones!$C$8),\nSustituciones!$B$9,Sustituciones!$C$9),\nSustituciones!$B$10,Sustituciones!$C$10),\nSustituciones!$B$11,Sustituciones!$C$11),\nSustituciones!$B$12,Sustituciones!$C$12),\nSustituciones!$B$13,Sustituciones!$C$13),\nSustituciones!$B$14,Sustituciones!$C$14),\nSustituciones!$B$15,Sustituciones!$C$15),\nSustituciones!$B$16,Sustituciones!$C$16),\nSustituciones!$B$17,Sustituciones!$C$17),\nSustituciones!$B$18,Sustituciones!$C$18),\nSustituciones!$B$19,Sustituciones!$C$19),\nSustituciones!$B$20,Sustituciones!$C$20),\nSustituciones!$B$21,Sustituciones!$C$21),\nSustituciones!$B$22,Sustituciones!$C$22),\nSustituciones!$B$23,Sustituciones!$C$23)","v":"Jazmin Alejandra Perez Velez"},null,null,{"$f":"SUBSTITUTE(SUBSTITUTE(SUBSTITUTE(SUBSTITUTE(SUBSTITUTE(SUBSTITUTE(SUBSTITUTE(SUBSTITUTE(SUBSTITUTE(SUBSTITUTE(SUBSTITUTE(SUBSTITUTE(SUBSTITUTE(SUBSTITUTE(SUBSTITUTE(SUBSTITUTE(SUBSTITUTE(SUBSTITUTE(SUBSTITUTE(SUBSTITUTE(SUBSTITUTE(SUBSTITUTE(D24,\nSustituciones!$D$2,Sustituciones!$E$2),\nSustituciones!$D$3,Sustituciones!$E$3),\nSustituciones!$D$4,Sustituciones!$E$4),\nSustituciones!$D$5,Sustituciones!$E$5),\nSustituciones!$D$6,Sustituciones!$E$6),\nSustituciones!$D$7,Sustituciones!$E$7),\nSustituciones!$D$8,Sustituciones!$E$8),\nSustituciones!$D$9,Sustituciones!$E$9),\nSustituciones!$D$10,Sustituciones!$E$10),\nSustituciones!$D$11,Sustituciones!$E$11),\nSustituciones!$D$12,Sustituciones!$E$12),\nSustituciones!$D$13,Sustituciones!$E$13),\nSustituciones!$D$14,Sustituciones!$E$14),\nSustituciones!$D$15,Sustituciones!$E$15),\nSustituciones!$D$16,Sustituciones!$E$16),\nSustituciones!$D$17,Sustituciones!$E$17),\nSustituciones!$D$18,Sustituciones!$E$18),\nSustituciones!$D$19,Sustituciones!$E$19),\nSustituciones!$D$20,Sustituciones!$E$20),\nSustituciones!$D$21,Sustituciones!$E$21),\nSustituciones!$D$22,Sustituciones!$E$22),\nSustituciones!$D$23,Sustituciones!$E$23)","v":""},null,null,null,null,"  ",false]
["Gustavo Ramirez Rivera",null,{"$f":"SUBSTITUTE(SUBSTITUTE(SUBSTITUTE(SUBSTITUTE(SUBSTITUTE(SUBSTITUTE(SUBSTITUTE(SUBSTITUTE(SUBSTITUTE(SUBSTITUTE(SUBSTITUTE(SUBSTITUTE(SUBSTITUTE(SUBSTITUTE(SUBSTITUTE(SUBSTITUTE(SUBSTITUTE(SUBSTITUTE(SUBSTITUTE(SUBSTITUTE(SUBSTITUTE(SUBSTITUTE(A25,\nSustituciones!$B$2,Sustituciones!$C$2),\nSustituciones!$B$3,Sustituciones!$C$3),\nSustituciones!$B$4,Sustituciones!$C$4),\nSustituciones!$B$5,Sustituciones!$C$5),\nSustituciones!$B$6,Sustituciones!$C$6),\nSustituciones!$B$7,Sustituciones!$C$7),\nSustituciones!$B$8,Sustituciones!$C$8),\nSustituciones!$B$9,Sustituciones!$C$9),\nSustituciones!$B$10,Sustituciones!$C$10),\nSustituciones!$B$11,Sustituciones!$C$11),\nSustituciones!$B$12,Sustituciones!$C$12),\nSustituciones!$B$13,Sustituciones!$C$13),\nSustituciones!$B$14,Sustituciones!$C$14),\nSustituciones!$B$15,Sustituciones!$C$15),\nSustituciones!$B$16,Sustituciones!$C$16),\nSustituciones!$B$17,Sustituciones!$C$17),\nSustituciones!$B$18,Sustituciones!$C$18),\nSustituciones!$B$19,Sustituciones!$C$19),\nSustituciones!$B$20,Sustituciones!$C$20),\nSustituciones!$B$21,Sustituciones!$C$21),\nSustituciones!$B$22,Sustituciones!$C$22),\nSustituciones!$B$23,Sustituciones!$C$23)","v":"Gustavo Ramirez Rivera"},null,null,{"$f":"SUBSTITUTE(SUBSTITUTE(SUBSTITUTE(SUBSTITUTE(SUBSTITUTE(SUBSTITUTE(SUBSTITUTE(SUBSTITUTE(SUBSTITUTE(SUBSTITUTE(SUBSTITUTE(SUBSTITUTE(SUBSTITUTE(SUBSTITUTE(SUBSTITUTE(SUBSTITUTE(SUBSTITUTE(SUBSTITUTE(SUBSTITUTE(SUBSTITUTE(SUBSTITUTE(SUBSTITUTE(D25,\nSustituciones!$D$2,Sustituciones!$E$2),\nSustituciones!$D$3,Sustituciones!$E$3),\nSustituciones!$D$4,Sustituciones!$E$4),\nSustituciones!$D$5,Sustituciones!$E$5),\nSustituciones!$D$6,Sustituciones!$E$6),\nSustituciones!$D$7,Sustituciones!$E$7),\nSustituciones!$D$8,Sustituciones!$E$8),\nSustituciones!$D$9,Sustituciones!$E$9),\nSustituciones!$D$10,Sustituciones!$E$10),\nSustituciones!$D$11,Sustituciones!$E$11),\nSustituciones!$D$12,Sustituciones!$E$12),\nSustituciones!$D$13,Sustituciones!$E$13),\nSustituciones!$D$14,Sustituciones!$E$14),\nSustituciones!$D$15,Sustituciones!$E$15),\nSustituciones!$D$16,Sustituciones!$E$16),\nSustituciones!$D$17,Sustituciones!$E$17),\nSustituciones!$D$18,Sustituciones!$E$18),\nSustituciones!$D$19,Sustituciones!$E$19),\nSustituciones!$D$20,Sustituciones!$E$20),\nSustituciones!$D$21,Sustituciones!$E$21),\nSustituciones!$D$22,Sustituciones!$E$22),\nSustituciones!$D$23,Sustituciones!$E$23)","v":""},null,null,null,null,"  ",false]
["Carlos Nivardo Rodriguez Ascencio",null,{"$f":"SUBSTITUTE(SUBSTITUTE(SUBSTITUTE(SUBSTITUTE(SUBSTITUTE(SUBSTITUTE(SUBSTITUTE(SUBSTITUTE(SUBSTITUTE(SUBSTITUTE(SUBSTITUTE(SUBSTITUTE(SUBSTITUTE(SUBSTITUTE(SUBSTITUTE(SUBSTITUTE(SUBSTITUTE(SUBSTITUTE(SUBSTITUTE(SUBSTITUTE(SUBSTITUTE(SUBSTITUTE(A26,\nSustituciones!$B$2,Sustituciones!$C$2),\nSustituciones!$B$3,Sustituciones!$C$3),\nSustituciones!$B$4,Sustituciones!$C$4),\nSustituciones!$B$5,Sustituciones!$C$5),\nSustituciones!$B$6,Sustituciones!$C$6),\nSustituciones!$B$7,Sustituciones!$C$7),\nSustituciones!$B$8,Sustituciones!$C$8),\nSustituciones!$B$9,Sustituciones!$C$9),\nSustituciones!$B$10,Sustituciones!$C$10),\nSustituciones!$B$11,Sustituciones!$C$11),\nSustituciones!$B$12,Sustituciones!$C$12),\nSustituciones!$B$13,Sustituciones!$C$13),\nSustituciones!$B$14,Sustituciones!$C$14),\nSustituciones!$B$15,Sustituciones!$C$15),\nSustituciones!$B$16,Sustituciones!$C$16),\nSustituciones!$B$17,Sustituciones!$C$17),\nSustituciones!$B$18,Sustituciones!$C$18),\nSustituciones!$B$19,Sustituciones!$C$19),\nSustituciones!$B$20,Sustituciones!$C$20),\nSustituciones!$B$21,Sustituciones!$C$21),\nSustituciones!$B$22,Sustituciones!$C$22),\nSustituciones!$B$23,Sustituciones!$C$23)","v":"Carlos Nivardo Rodriguez Ascencio"},null,null,{"$f":"SUBSTITUTE(SUBSTITUTE(SUBSTITUTE(SUBSTITUTE(SUBSTITUTE(SUBSTITUTE(SUBSTITUTE(SUBSTITUTE(SUBSTITUTE(SUBSTITUTE(SUBSTITUTE(SUBSTITUTE(SUBSTITUTE(SUBSTITUTE(SUBSTITUTE(SUBSTITUTE(SUBSTITUTE(SUBSTITUTE(SUBSTITUTE(SUBSTITUTE(SUBSTITUTE(SUBSTITUTE(D26,\nSustituciones!$D$2,Sustituciones!$E$2),\nSustituciones!$D$3,Sustituciones!$E$3),\nSustituciones!$D$4,Sustituciones!$E$4),\nSustituciones!$D$5,Sustituciones!$E$5),\nSustituciones!$D$6,Sustituciones!$E$6),\nSustituciones!$D$7,Sustituciones!$E$7),\nSustituciones!$D$8,Sustituciones!$E$8),\nSustituciones!$D$9,Sustituciones!$E$9),\nSustituciones!$D$10,Sustituciones!$E$10),\nSustituciones!$D$11,Sustituciones!$E$11),\nSustituciones!$D$12,Sustituciones!$E$12),\nSustituciones!$D$13,Sustituciones!$E$13),\nSustituciones!$D$14,Sustituciones!$E$14),\nSustituciones!$D$15,Sustituciones!$E$15),\nSustituciones!$D$16,Sustituciones!$E$16),\nSustituciones!$D$17,Sustituciones!$E$17),\nSustituciones!$D$18,Sustituciones!$E$18),\nSustituciones!$D$19,Sustituciones!$E$19),\nSustituciones!$D$20,Sustituciones!$E$20),\nSustituciones!$D$21,Sustituciones!$E$21),\nSustituciones!$D$22,Sustituciones!$E$22),\nSustituciones!$D$23,Sustituciones!$E$23)","v":""},null,null,null,null,"  ",false]
["Karla Johana Romero Luevanos",null,{"$f":"SUBSTITUTE(SUBSTITUTE(SUBSTITUTE(SUBSTITUTE(SUBSTITUTE(SUBSTITUTE(SUBSTITUTE(SUBSTITUTE(SUBSTITUTE(SUBSTITUTE(SUBSTITUTE(SUBSTITUTE(SUBSTITUTE(SUBSTITUTE(SUBSTITUTE(SUBSTITUTE(SUBSTITUTE(SUBSTITUTE(SUBSTITUTE(SUBSTITUTE(SUBSTITUTE(SUBSTITUTE(A27,\nSustituciones!$B$2,Sustituciones!$C$2),\nSustituciones!$B$3,Sustituciones!$C$3),\nSustituciones!$B$4,Sustituciones!$C$4),\nSustituciones!$B$5,Sustituciones!$C$5),\nSustituciones!$B$6,Sustituciones!$C$6),\nSustituciones!$B$7,Sustituciones!$C$7),\nSustituciones!$B$8,Sustituciones!$C$8),\nSustituciones!$B$9,Sustituciones!$C$9),\nSustituciones!$B$10,Sustituciones!$C$10),\nSustituciones!$B$11,Sustituciones!$C$11),\nSustituciones!$B$12,Sustituciones!$C$12),\nSustituciones!$B$13,Sustituciones!$C$13),\nSustituciones!$B$14,Sustituciones!$C$14),\nSustituciones!$B$15,Sustituciones!$C$15),\nSustituciones!$B$16,Sustituciones!$C$16),\nSustituciones!$B$17,Sustituciones!$C$17),\nSustituciones!$B$18,Sustituciones!$C$18),\nSustituciones!$B$19,Sustituciones!$C$19),\nSustituciones!$B$20,Sustituciones!$C$20),\nSustituciones!$B$21,Sustituciones!$C$21),\nSustituciones!$B$22,Sustituciones!$C$22),\nSustituciones!$B$23,Sustituciones!$C$23)","v":"Karla Johana Romero Luevanos"},null,null,{"$f":"SUBSTITUTE(SUBSTITUTE(SUBSTITUTE(SUBSTITUTE(SUBSTITUTE(SUBSTITUTE(SUBSTITUTE(SUBSTITUTE(SUBSTITUTE(SUBSTITUTE(SUBSTITUTE(SUBSTITUTE(SUBSTITUTE(SUBSTITUTE(SUBSTITUTE(SUBSTITUTE(SUBSTITUTE(SUBSTITUTE(SUBSTITUTE(SUBSTITUTE(SUBSTITUTE(SUBSTITUTE(D27,\nSustituciones!$D$2,Sustituciones!$E$2),\nSustituciones!$D$3,Sustituciones!$E$3),\nSustituciones!$D$4,Sustituciones!$E$4),\nSustituciones!$D$5,Sustituciones!$E$5),\nSustituciones!$D$6,Sustituciones!$E$6),\nSustituciones!$D$7,Sustituciones!$E$7),\nSustituciones!$D$8,Sustituciones!$E$8),\nSustituciones!$D$9,Sustituciones!$E$9),\nSustituciones!$D$10,Sustituciones!$E$10),\nSustituciones!$D$11,Sustituciones!$E$11),\nSustituciones!$D$12,Sustituciones!$E$12),\nSustituciones!$D$13,Sustituciones!$E$13),\nSustituciones!$D$14,Sustituciones!$E$14),\nSustituciones!$D$15,Sustituciones!$E$15),\nSustituciones!$D$16,Sustituciones!$E$16),\nSustituciones!$D$17,Sustituciones!$E$17),\nSustituciones!$D$18,Sustituciones!$E$18),\nSustituciones!$D$19,Sustituciones!$E$19),\nSustituciones!$D$20,Sustituciones!$E$20),\nSustituciones!$D$21,Sustituciones!$E$21),\nSustituciones!$D$22,Sustituciones!$E$22),\nSustituciones!$D$23,Sustituciones!$E$23)","v":""},null,null,null,null,"  ",false]
["Yessica Yoselinne Ruiz Hernandez",null,{"$f":"SUBSTITUTE(SUBSTITUTE(SUBSTITUTE(SUBSTITUTE(SUBSTITUTE(SUBSTITUTE(SUBSTITUTE(SUBSTITUTE(SUBSTITUTE(SUBSTITUTE(SUBSTITUTE(SUBSTITUTE(SUBSTITUTE(SUBSTITUTE(SUBSTITUTE(SUBSTITUTE(SUBSTITUTE(SUBSTITUTE(SUBSTITUTE(SUBSTITUTE(SUBSTITUTE(SUBSTITUTE(A28,\nSustituciones!$B$2,Sustituciones!$C$2),\nSustituciones!$B$3,Sustituciones!$C$3),\nSustituciones!$B$4,Sustituciones!$C$4),\nSustituciones!$B$5,Sustituciones!$C$5),\nSustituciones!$B$6,Sustituciones!$C$6),\nSustituciones!$B$7,Sustituciones!$C$7),\nSustituciones!$B$8,Sustituciones!$C$8),\nSustituciones!$B$9,Sustituciones!$C$9),\nSustituciones!$B$10,Sustituciones!$C$10),\nSustituciones!$B$11,Sustituciones!$C$11),\nSustituciones!$B$12,Sustituciones!$C$12),\nSustituciones!$B$13,Sustituciones!$C$13),\nSustituciones!$B$14,Sustituciones!$C$14),\nSustituciones!$B$15,Sustituciones!$C$15),\nSustituciones!$B$16,Sustituciones!$C$16),\nSustituciones!$B$17,Sustituciones!$C$17),\nSustituciones!$B$18,Sustituciones!$C$18),\nSustituciones!$B$19,Sustituciones!$C$19),\nSustituciones!$B$20,Sustituciones!$C$20),\nSustituciones!$B$21,Sustituciones!$C$21),\nSustituciones!$B$22,Sustituciones!$C$22),\nSustituciones!$B$23,Sustituciones!$C$23)","v":"Yessica Yoselinne Ruiz Hernandez"},null,null,{"$f":"SUBSTITUTE(SUBSTITUTE(SUBSTITUTE(SUBSTITUTE(SUBSTITUTE(SUBSTITUTE(SUBSTITUTE(SUBSTITUTE(SUBSTITUTE(SUBSTITUTE(SUBSTITUTE(SUBSTITUTE(SUBSTITUTE(SUBSTITUTE(SUBSTITUTE(SUBSTITUTE(SUBSTITUTE(SUBSTITUTE(SUBSTITUTE(SUBSTITUTE(SUBSTITUTE(SUBSTITUTE(D28,\nSustituciones!$D$2,Sustituciones!$E$2),\nSustituciones!$D$3,Sustituciones!$E$3),\nSustituciones!$D$4,Sustituciones!$E$4),\nSustituciones!$D$5,Sustituciones!$E$5),\nSustituciones!$D$6,Sustituciones!$E$6),\nSustituciones!$D$7,Sustituciones!$E$7),\nSustituciones!$D$8,Sustituciones!$E$8),\nSustituciones!$D$9,Sustituciones!$E$9),\nSustituciones!$D$10,Sustituciones!$E$10),\nSustituciones!$D$11,Sustituciones!$E$11),\nSustituciones!$D$12,Sustituciones!$E$12),\nSustituciones!$D$13,Sustituciones!$E$13),\nSustituciones!$D$14,Sustituciones!$E$14),\nSustituciones!$D$15,Sustituciones!$E$15),\nSustituciones!$D$16,Sustituciones!$E$16),\nSustituciones!$D$17,Sustituciones!$E$17),\nSustituciones!$D$18,Sustituciones!$E$18),\nSustituciones!$D$19,Sustituciones!$E$19),\nSustituciones!$D$20,Sustituciones!$E$20),\nSustituciones!$D$21,Sustituciones!$E$21),\nSustituciones!$D$22,Sustituciones!$E$22),\nSustituciones!$D$23,Sustituciones!$E$23)","v":""},null,null,null,null,"  ",false]
["Christian Eduardo Salas Sanchez",null,{"$f":"SUBSTITUTE(SUBSTITUTE(SUBSTITUTE(SUBSTITUTE(SUBSTITUTE(SUBSTITUTE(SUBSTITUTE(SUBSTITUTE(SUBSTITUTE(SUBSTITUTE(SUBSTITUTE(SUBSTITUTE(SUBSTITUTE(SUBSTITUTE(SUBSTITUTE(SUBSTITUTE(SUBSTITUTE(SUBSTITUTE(SUBSTITUTE(SUBSTITUTE(SUBSTITUTE(SUBSTITUTE(A29,\nSustituciones!$B$2,Sustituciones!$C$2),\nSustituciones!$B$3,Sustituciones!$C$3),\nSustituciones!$B$4,Sustituciones!$C$4),\nSustituciones!$B$5,Sustituciones!$C$5),\nSustituciones!$B$6,Sustituciones!$C$6),\nSustituciones!$B$7,Sustituciones!$C$7),\nSustituciones!$B$8,Sustituciones!$C$8),\nSustituciones!$B$9,Sustituciones!$C$9),\nSustituciones!$B$10,Sustituciones!$C$10),\nSustituciones!$B$11,Sustituciones!$C$11),\nSustituciones!$B$12,Sustituciones!$C$12),\nSustituciones!$B$13,Sustituciones!$C$13),\nSustituciones!$B$14,Sustituciones!$C$14),\nSustituciones!$B$15,Sustituciones!$C$15),\nSustituciones!$B$16,Sustituciones!$C$16),\nSustituciones!$B$17,Sustituciones!$C$17),\nSustituciones!$B$18,Sustituciones!$C$18),\nSustituciones!$B$19,Sustituciones!$C$19),\nSustituciones!$B$20,Sustituciones!$C$20),\nSustituciones!$B$21,Sustituciones!$C$21),\nSustituciones!$B$22,Sustituciones!$C$22),\nSustituciones!$B$23,Sustituciones!$C$23)","v":"Christian Eduardo Salas Sanchez"},null,null,{"$f":"SUBSTITUTE(SUBSTITUTE(SUBSTITUTE(SUBSTITUTE(SUBSTITUTE(SUBSTITUTE(SUBSTITUTE(SUBSTITUTE(SUBSTITUTE(SUBSTITUTE(SUBSTITUTE(SUBSTITUTE(SUBSTITUTE(SUBSTITUTE(SUBSTITUTE(SUBSTITUTE(SUBSTITUTE(SUBSTITUTE(SUBSTITUTE(SUBSTITUTE(SUBSTITUTE(SUBSTITUTE(D29,\nSustituciones!$D$2,Sustituciones!$E$2),\nSustituciones!$D$3,Sustituciones!$E$3),\nSustituciones!$D$4,Sustituciones!$E$4),\nSustituciones!$D$5,Sustituciones!$E$5),\nSustituciones!$D$6,Sustituciones!$E$6),\nSustituciones!$D$7,Sustituciones!$E$7),\nSustituciones!$D$8,Sustituciones!$E$8),\nSustituciones!$D$9,Sustituciones!$E$9),\nSustituciones!$D$10,Sustituciones!$E$10),\nSustituciones!$D$11,Sustituciones!$E$11),\nSustituciones!$D$12,Sustituciones!$E$12),\nSustituciones!$D$13,Sustituciones!$E$13),\nSustituciones!$D$14,Sustituciones!$E$14),\nSustituciones!$D$15,Sustituciones!$E$15),\nSustituciones!$D$16,Sustituciones!$E$16),\nSustituciones!$D$17,Sustituciones!$E$17),\nSustituciones!$D$18,Sustituciones!$E$18),\nSustituciones!$D$19,Sustituciones!$E$19),\nSustituciones!$D$20,Sustituciones!$E$20),\nSustituciones!$D$21,Sustituciones!$E$21),\nSustituciones!$D$22,Sustituciones!$E$22),\nSustituciones!$D$23,Sustituciones!$E$23)","v":""},null,null,null,null,"  ",false]
["Luis Roberto Saldaña Espinoza",null,{"$f":"SUBSTITUTE(SUBSTITUTE(SUBSTITUTE(SUBSTITUTE(SUBSTITUTE(SUBSTITUTE(SUBSTITUTE(SUBSTITUTE(SUBSTITUTE(SUBSTITUTE(SUBSTITUTE(SUBSTITUTE(SUBSTITUTE(SUBSTITUTE(SUBSTITUTE(SUBSTITUTE(SUBSTITUTE(SUBSTITUTE(SUBSTITUTE(SUBSTITUTE(SUBSTITUTE(SUBSTITUTE(A30,\nSustituciones!$B$2,Sustituciones!$C$2),\nSustituciones!$B$3,Sustituciones!$C$3),\nSustituciones!$B$4,Sustituciones!$C$4),\nSustituciones!$B$5,Sustituciones!$C$5),\nSustituciones!$B$6,Sustituciones!$C$6),\nSustituciones!$B$7,Sustituciones!$C$7),\nSustituciones!$B$8,Sustituciones!$C$8),\nSustituciones!$B$9,Sustituciones!$C$9),\nSustituciones!$B$10,Sustituciones!$C$10),\nSustituciones!$B$11,Sustituciones!$C$11),\nSustituciones!$B$12,Sustituciones!$C$12),\nSustituciones!$B$13,Sustituciones!$C$13),\nSustituciones!$B$14,Sustituciones!$C$14),\nSustituciones!$B$15,Sustituciones!$C$15),\nSustituciones!$B$16,Sustituciones!$C$16),\nSustituciones!$B$17,Sustituciones!$C$17),\nSustituciones!$B$18,Sustituciones!$C$18),\nSustituciones!$B$19,Sustituciones!$C$19),\nSustituciones!$B$20,Sustituciones!$C$20),\nSustituciones!$B$21,Sustituciones!$C$21),\nSustituciones!$B$22,Sustituciones!$C$22),\nSustituciones!$B$23,Sustituciones!$C$23)","v":"Luis Roberto Saldaña Espinoza"},null,null,{"$f":"SUBSTITUTE(SUBSTITUTE(SUBSTITUTE(SUBSTITUTE(SUBSTITUTE(SUBSTITUTE(SUBSTITUTE(SUBSTITUTE(SUBSTITUTE(SUBSTITUTE(SUBSTITUTE(SUBSTITUTE(SUBSTITUTE(SUBSTITUTE(SUBSTITUTE(SUBSTITUTE(SUBSTITUTE(SUBSTITUTE(SUBSTITUTE(SUBSTITUTE(SUBSTITUTE(SUBSTITUTE(D30,\nSustituciones!$D$2,Sustituciones!$E$2),\nSustituciones!$D$3,Sustituciones!$E$3),\nSustituciones!$D$4,Sustituciones!$E$4),\nSustituciones!$D$5,Sustituciones!$E$5),\nSustituciones!$D$6,Sustituciones!$E$6),\nSustituciones!$D$7,Sustituciones!$E$7),\nSustituciones!$D$8,Sustituciones!$E$8),\nSustituciones!$D$9,Sustituciones!$E$9),\nSustituciones!$D$10,Sustituciones!$E$10),\nSustituciones!$D$11,Sustituciones!$E$11),\nSustituciones!$D$12,Sustituciones!$E$12),\nSustituciones!$D$13,Sustituciones!$E$13),\nSustituciones!$D$14,Sustituciones!$E$14),\nSustituciones!$D$15,Sustituciones!$E$15),\nSustituciones!$D$16,Sustituciones!$E$16),\nSustituciones!$D$17,Sustituciones!$E$17),\nSustituciones!$D$18,Sustituciones!$E$18),\nSustituciones!$D$19,Sustituciones!$E$19),\nSustituciones!$D$20,Sustituciones!$E$20),\nSustituciones!$D$21,Sustituciones!$E$21),\nSustituciones!$D$22,Sustituciones!$E$22),\nSustituciones!$D$23,Sustituciones!$E$23)","v":""},null,null,null,null,"  ",false]
["Adrian Sanchez Ortiz",null,{"$f":"SUBSTITUTE(SUBSTITUTE(SUBSTITUTE(SUBSTITUTE(SUBSTITUTE(SUBSTITUTE(SUBSTITUTE(SUBSTITUTE(SUBSTITUTE(SUBSTITUTE(SUBSTITUTE(SUBSTITUTE(SUBSTITUTE(SUBSTITUTE(SUBSTITUTE(SUBSTITUTE(SUBSTITUTE(SUBSTITUTE(SUBSTITUTE(SUBSTITUTE(SUBSTITUTE(SUBSTITUTE(A31,\nSustituciones!$B$2,Sustituciones!$C$2),\nSustituciones!$B$3,Sustituciones!$C$3),\nSustituciones!$B$4,Sustituciones!$C$4),\nSustituciones!$B$5,Sustituciones!$C$5),\nSustituciones!$B$6,Sustituciones!$C$6),\nSustituciones!$B$7,Sustituciones!$C$7),\nSustituciones!$B$8,Sustituciones!$C$8),\nSustituciones!$B$9,Sustituciones!$C$9),\nSustituciones!$B$10,Sustituciones!$C$10),\nSustituciones!$B$11,Sustituciones!$C$11),\nSustituciones!$B$12,Sustituciones!$C$12),\nSustituciones!$B$13,Sustituciones!$C$13),\nSustituciones!$B$14,Sustituciones!$C$14),\nSustituciones!$B$15,Sustituciones!$C$15),\nSustituciones!$B$16,Sustituciones!$C$16),\nSustituciones!$B$17,Sustituciones!$C$17),\nSustituciones!$B$18,Sustituciones!$C$18),\nSustituciones!$B$19,Sustituciones!$C$19),\nSustituciones!$B$20,Sustituciones!$C$20),\nSustituciones!$B$21,Sustituciones!$C$21),\nSustituciones!$B$22,Sustituciones!$C$22),\nSustituciones!$B$23,Sustituciones!$C$23)","v":"Adrian Sanchez Ortiz"},null,null,{"$f":"SUBSTITUTE(SUBSTITUTE(SUBSTITUTE(SUBSTITUTE(SUBSTITUTE(SUBSTITUTE(SUBSTITUTE(SUBSTITUTE(SUBSTITUTE(SUBSTITUTE(SUBSTITUTE(SUBSTITUTE(SUBSTITUTE(SUBSTITUTE(SUBSTITUTE(SUBSTITUTE(SUBSTITUTE(SUBSTITUTE(SUBSTITUTE(SUBSTITUTE(SUBSTITUTE(SUBSTITUTE(D31,\nSustituciones!$D$2,Sustituciones!$E$2),\nSustituciones!$D$3,Sustituciones!$E$3),\nSustituciones!$D$4,Sustituciones!$E$4),\nSustituciones!$D$5,Sustituciones!$E$5),\nSustituciones!$D$6,Sustituciones!$E$6),\nSustituciones!$D$7,Sustituciones!$E$7),\nSustituciones!$D$8,Sustituciones!$E$8),\nSustituciones!$D$9,Sustituciones!$E$9),\nSustituciones!$D$10,Sustituciones!$E$10),\nSustituciones!$D$11,Sustituciones!$E$11),\nSustituciones!$D$12,Sustituciones!$E$12),\nSustituciones!$D$13,Sustituciones!$E$13),\nSustituciones!$D$14,Sustituciones!$E$14),\nSustituciones!$D$15,Sustituciones!$E$15),\nSustituciones!$D$16,Sustituciones!$E$16),\nSustituciones!$D$17,Sustituciones!$E$17),\nSustituciones!$D$18,Sustituciones!$E$18),\nSustituciones!$D$19,Sustituciones!$E$19),\nSustituciones!$D$20,Sustituciones!$E$20),\nSustituciones!$D$21,Sustituciones!$E$21),\nSustituciones!$D$22,Sustituciones!$E$22),\nSustituciones!$D$23,Sustituciones!$E$23)","v":""},null,null,null,null,"  ",false]
["Eduardo Yair Suarez Hernandez",null,{"$f":"SUBSTITUTE(SUBSTITUTE(SUBSTITUTE(SUBSTITUTE(SUBSTITUTE(SUBSTITUTE(SUBSTITUTE(SUBSTITUTE(SUBSTITUTE(SUBSTITUTE(SUBSTITUTE(SUBSTITUTE(SUBSTITUTE(SUBSTITUTE(SUBSTITUTE(SUBSTITUTE(SUBSTITUTE(SUBSTITUTE(SUBSTITUTE(SUBSTITUTE(SUBSTITUTE(SUBSTITUTE(A32,\nSustituciones!$B$2,Sustituciones!$C$2),\nSustituciones!$B$3,Sustituciones!$C$3),\nSustituciones!$B$4,Sustituciones!$C$4),\nSustituciones!$B$5,Sustituciones!$C$5),\nSustituciones!$B$6,Sustituciones!$C$6),\nSustituciones!$B$7,Sustituciones!$C$7),\nSustituciones!$B$8,Sustituciones!$C$8),\nSustituciones!$B$9,Sustituciones!$C$9),\nSustituciones!$B$10,Sustituciones!$C$10),\nSustituciones!$B$11,Sustituciones!$C$11),\nSustituciones!$B$12,Sustituciones!$C$12),\nSustituciones!$B$13,Sustituciones!$C$13),\nSustituciones!$B$14,Sustituciones!$C$14),\nSustituciones!$B$15,Sustituciones!$C$15),\nSustituciones!$B$16,Sustituciones!$C$16),\nSustituciones!$B$17,Sustituciones!$C$17),\nSustituciones!$B$18,Sustituciones!$C$18),\nSustituciones!$B$19,Sustituciones!$C$19),\nSustituciones!$B$20,Sustituciones!$C$20),\nSustituciones!$B$21,Sustituciones!$C$21),\nSustituciones!$B$22,Sustituciones!$C$22),\nSustituciones!$B$23,Sustituciones!$C$23)","v":"Eduardo Yair Suarez Hernandez"},null,null,{"$f":"SUBSTITUTE(SUBSTITUTE(SUBSTITUTE(SUBSTITUTE(SUBSTITUTE(SUBSTITUTE(SUBSTITUTE(SUBSTITUTE(SUBSTITUTE(SUBSTITUTE(SUBSTITUTE(SUBSTITUTE(SUBSTITUTE(SUBSTITUTE(SUBSTITUTE(SUBSTITUTE(SUBSTITUTE(SUBSTITUTE(SUBSTITUTE(SUBSTITUTE(SUBSTITUTE(SUBSTITUTE(D32,\nSustituciones!$D$2,Sustituciones!$E$2),\nSustituciones!$D$3,Sustituciones!$E$3),\nSustituciones!$D$4,Sustituciones!$E$4),\nSustituciones!$D$5,Sustituciones!$E$5),\nSustituciones!$D$6,Sustituciones!$E$6),\nSustituciones!$D$7,Sustituciones!$E$7),\nSustituciones!$D$8,Sustituciones!$E$8),\nSustituciones!$D$9,Sustituciones!$E$9),\nSustituciones!$D$10,Sustituciones!$E$10),\nSustituciones!$D$11,Sustituciones!$E$11),\nSustituciones!$D$12,Sustituciones!$E$12),\nSustituciones!$D$13,Sustituciones!$E$13),\nSustituciones!$D$14,Sustituciones!$E$14),\nSustituciones!$D$15,Sustituciones!$E$15),\nSustituciones!$D$16,Sustituciones!$E$16),\nSustituciones!$D$17,Sustituciones!$E$17),\nSustituciones!$D$18,Sustituciones!$E$18),\nSustituciones!$D$19,Sustituciones!$E$19),\nSustituciones!$D$20,Sustituciones!$E$20),\nSustituciones!$D$21,Sustituciones!$E$21),\nSustituciones!$D$22,Sustituciones!$E$22),\nSustituciones!$D$23,Sustituciones!$E$23)","v":""},null,null,null,null,"  ",false]
["Juan Francisco Tabarez Garcia",null,{"$f":"SUBSTITUTE(SUBSTITUTE(SUBSTITUTE(SUBSTITUTE(SUBSTITUTE(SUBSTITUTE(SUBSTITUTE(SUBSTITUTE(SUBSTITUTE(SUBSTITUTE(SUBSTITUTE(SUBSTITUTE(SUBSTITUTE(SUBSTITUTE(SUBSTITUTE(SUBSTITUTE(SUBSTITUTE(SUBSTITUTE(SUBSTITUTE(SUBSTITUTE(SUBSTITUTE(SUBSTITUTE(A33,\nSustituciones!$B$2,Sustituciones!$C$2),\nSustituciones!$B$3,Sustituciones!$C$3),\nSustituciones!$B$4,Sustituciones!$C$4),\nSustituciones!$B$5,Sustituciones!$C$5),\nSustituciones!$B$6,Sustituciones!$C$6),\nSustituciones!$B$7,Sustituciones!$C$7),\nSustituciones!$B$8,Sustituciones!$C$8),\nSustituciones!$B$9,Sustituciones!$C$9),\nSustituciones!$B$10,Sustituciones!$C$10),\nSustituciones!$B$11,Sustituciones!$C$11),\nSustituciones!$B$12,Sustituciones!$C$12),\nSustituciones!$B$13,Sustituciones!$C$13),\nSustituciones!$B$14,Sustituciones!$C$14),\nSustituciones!$B$15,Sustituciones!$C$15),\nSustituciones!$B$16,Sustituciones!$C$16),\nSustituciones!$B$17,Sustituciones!$C$17),\nSustituciones!$B$18,Sustituciones!$C$18),\nSustituciones!$B$19,Sustituciones!$C$19),\nSustituciones!$B$20,Sustituciones!$C$20),\nSustituciones!$B$21,Sustituciones!$C$21),\nSustituciones!$B$22,Sustituciones!$C$22),\nSustituciones!$B$23,Sustituciones!$C$23)","v":"Juan Francisco Tabarez Garcia"},null,null,{"$f":"SUBSTITUTE(SUBSTITUTE(SUBSTITUTE(SUBSTITUTE(SUBSTITUTE(SUBSTITUTE(SUBSTITUTE(SUBSTITUTE(SUBSTITUTE(SUBSTITUTE(SUBSTITUTE(SUBSTITUTE(SUBSTITUTE(SUBSTITUTE(SUBSTITUTE(SUBSTITUTE(SUBSTITUTE(SUBSTITUTE(SUBSTITUTE(SUBSTITUTE(SUBSTITUTE(SUBSTITUTE(D33,\nSustituciones!$D$2,Sustituciones!$E$2),\nSustituciones!$D$3,Sustituciones!$E$3),\nSustituciones!$D$4,Sustituciones!$E$4),\nSustituciones!$D$5,Sustituciones!$E$5),\nSustituciones!$D$6,Sustituciones!$E$6),\nSustituciones!$D$7,Sustituciones!$E$7),\nSustituciones!$D$8,Sustituciones!$E$8),\nSustituciones!$D$9,Sustituciones!$E$9),\nSustituciones!$D$10,Sustituciones!$E$10),\nSustituciones!$D$11,Sustituciones!$E$11),\nSustituciones!$D$12,Sustituciones!$E$12),\nSustituciones!$D$13,Sustituciones!$E$13),\nSustituciones!$D$14,Sustituciones!$E$14),\nSustituciones!$D$15,Sustituciones!$E$15),\nSustituciones!$D$16,Sustituciones!$E$16),\nSustituciones!$D$17,Sustituciones!$E$17),\nSustituciones!$D$18,Sustituciones!$E$18),\nSustituciones!$D$19,Sustituciones!$E$19),\nSustituciones!$D$20,Sustituciones!$E$20),\nSustituciones!$D$21,Sustituciones!$E$21),\nSustituciones!$D$22,Sustituciones!$E$22),\nSustituciones!$D$23,Sustituciones!$E$23)","v":""},null,null,null,null,"  ",false]
["Zuleica Elizabeth Teran Torres",null,{"$f":"SUBSTITUTE(SUBSTITUTE(SUBSTITUTE(SUBSTITUTE(SUBSTITUTE(SUBSTITUTE(SUBSTITUTE(SUBSTITUTE(SUBSTITUTE(SUBSTITUTE(SUBSTITUTE(SUBSTITUTE(SUBSTITUTE(SUBSTITUTE(SUBSTITUTE(SUBSTITUTE(SUBSTITUTE(SUBSTITUTE(SUBSTITUTE(SUBSTITUTE(SUBSTITUTE(SUBSTITUTE(A34,\nSustituciones!$B$2,Sustituciones!$C$2),\nSustituciones!$B$3,Sustituciones!$C$3),\nSustituciones!$B$4,Sustituciones!$C$4),\nSustituciones!$B$5,Sustituciones!$C$5),\nSustituciones!$B$6,Sustituciones!$C$6),\nSustituciones!$B$7,Sustituciones!$C$7),\nSustituciones!$B$8,Sustituciones!$C$8),\nSustituciones!$B$9,Sustituciones!$C$9),\nSustituciones!$B$10,Sustituciones!$C$10),\nSustituciones!$B$11,Sustituciones!$C$11),\nSustituciones!$B$12,Sustituciones!$C$12),\nSustituciones!$B$13,Sustituciones!$C$13),\nSustituciones!$B$14,Sustituciones!$C$14),\nSustituciones!$B$15,Sustituciones!$C$15),\nSustituciones!$B$16,Sustituciones!$C$16),\nSustituciones!$B$17,Sustituciones!$C$17),\nSustituciones!$B$18,Sustituciones!$C$18),\nSustituciones!$B$19,Sustituciones!$C$19),\nSustituciones!$B$20,Sustituciones!$C$20),\nSustituciones!$B$21,Sustituciones!$C$21),\nSustituciones!$B$22,Sustituciones!$C$22),\nSustituciones!$B$23,Sustituciones!$C$23)","v":"Zuleica Elizabeth Teran Torres"},null,null,{"$f":"SUBSTITUTE(SUBSTITUTE(SUBSTITUTE(SUBSTITUTE(SUBSTITUTE(SUBSTITUTE(SUBSTITUTE(SUBSTITUTE(SUBSTITUTE(SUBSTITUTE(SUBSTITUTE(SUBSTITUTE(SUBSTITUTE(SUBSTITUTE(SUBSTITUTE(SUBSTITUTE(SUBSTITUTE(SUBSTITUTE(SUBSTITUTE(SUBSTITUTE(SUBSTITUTE(SUBSTITUTE(D34,\nSustituciones!$D$2,Sustituciones!$E$2),\nSustituciones!$D$3,Sustituciones!$E$3),\nSustituciones!$D$4,Sustituciones!$E$4),\nSustituciones!$D$5,Sustituciones!$E$5),\nSustituciones!$D$6,Sustituciones!$E$6),\nSustituciones!$D$7,Sustituciones!$E$7),\nSustituciones!$D$8,Sustituciones!$E$8),\nSustituciones!$D$9,Sustituciones!$E$9),\nSustituciones!$D$10,Sustituciones!$E$10),\nSustituciones!$D$11,Sustituciones!$E$11),\nSustituciones!$D$12,Sustituciones!$E$12),\nSustituciones!$D$13,Sustituciones!$E$13),\nSustituciones!$D$14,Sustituciones!$E$14),\nSustituciones!$D$15,Sustituciones!$E$15),\nSustituciones!$D$16,Sustituciones!$E$16),\nSustituciones!$D$17,Sustituciones!$E$17),\nSustituciones!$D$18,Sustituciones!$E$18),\nSustituciones!$D$19,Sustituciones!$E$19),\nSustituciones!$D$20,Sustituciones!$E$20),\nSustituciones!$D$21,Sustituciones!$E$21),\nSustituciones!$D$22,Sustituciones!$E$22),\nSustituciones!$D$23,Sustituciones!$E$23)","v":""},null,null,null,null,"  ",false]
["Adriana Yunuhen Vargas Ayala",null,{"$f":"SUBSTITUTE(SUBSTITUTE(SUBSTITUTE(SUBSTITUTE(SUBSTITUTE(SUBSTITUTE(SUBSTITUTE(SUBSTITUTE(SUBSTITUTE(SUBSTITUTE(SUBSTITUTE(SUBSTITUTE(SUBSTITUTE(SUBSTITUTE(SUBSTITUTE(SUBSTITUTE(SUBSTITUTE(SUBSTITUTE(SUBSTITUTE(SUBSTITUTE(SUBSTITUTE(SUBSTITUTE(A35,\nSustituciones!$B$2,Sustituciones!$C$2),\nSustituciones!$B$3,Sustituciones!$C$3),\nSustituciones!$B$4,Sustituciones!$C$4),\nSustituciones!$B$5,Sustituciones!$C$5),\nSustituciones!$B$6,Sustituciones!$C$6),\nSustituciones!$B$7,Sustituciones!$C$7),\nSustituciones!$B$8,Sustituciones!$C$8),\nSustituciones!$B$9,Sustituciones!$C$9),\nSustituciones!$B$10,Sustituciones!$C$10),\nSustituciones!$B$11,Sustituciones!$C$11),\nSustituciones!$B$12,Sustituciones!$C$12),\nSustituciones!$B$13,Sustituciones!$C$13),\nSustituciones!$B$14,Sustituciones!$C$14),\nSustituciones!$B$15,Sustituciones!$C$15),\nSustituciones!$B$16,Sustituciones!$C$16),\nSustituciones!$B$17,Sustituciones!$C$17),\nSustituciones!$B$18,Sustituciones!$C$18),\nSustituciones!$B$19,Sustituciones!$C$19),\nSustituciones!$B$20,Sustituciones!$C$20),\nSustituciones!$B$21,Sustituciones!$C$21),\nSustituciones!$B$22,Sustituciones!$C$22),\nSustituciones!$B$23,Sustituciones!$C$23)","v":"Adriana Yunuhen Vargas Ayala"},null,null,{"$f":"SUBSTITUTE(SUBSTITUTE(SUBSTITUTE(SUBSTITUTE(SUBSTITUTE(SUBSTITUTE(SUBSTITUTE(SUBSTITUTE(SUBSTITUTE(SUBSTITUTE(SUBSTITUTE(SUBSTITUTE(SUBSTITUTE(SUBSTITUTE(SUBSTITUTE(SUBSTITUTE(SUBSTITUTE(SUBSTITUTE(SUBSTITUTE(SUBSTITUTE(SUBSTITUTE(SUBSTITUTE(D35,\nSustituciones!$D$2,Sustituciones!$E$2),\nSustituciones!$D$3,Sustituciones!$E$3),\nSustituciones!$D$4,Sustituciones!$E$4),\nSustituciones!$D$5,Sustituciones!$E$5),\nSustituciones!$D$6,Sustituciones!$E$6),\nSustituciones!$D$7,Sustituciones!$E$7),\nSustituciones!$D$8,Sustituciones!$E$8),\nSustituciones!$D$9,Sustituciones!$E$9),\nSustituciones!$D$10,Sustituciones!$E$10),\nSustituciones!$D$11,Sustituciones!$E$11),\nSustituciones!$D$12,Sustituciones!$E$12),\nSustituciones!$D$13,Sustituciones!$E$13),\nSustituciones!$D$14,Sustituciones!$E$14),\nSustituciones!$D$15,Sustituciones!$E$15),\nSustituciones!$D$16,Sustituciones!$E$16),\nSustituciones!$D$17,Sustituciones!$E$17),\nSustituciones!$D$18,Sustituciones!$E$18),\nSustituciones!$D$19,Sustituciones!$E$19),\nSustituciones!$D$20,Sustituciones!$E$20),\nSustituciones!$D$21,Sustituciones!$E$21),\nSustituciones!$D$22,Sustituciones!$E$22),\nSustituciones!$D$23,Sustituciones!$E$23)","v":""},null,null,null,null,"  ",false]
["Oscar Uriel Velazquez Alvarez",null,{"$f":"SUBSTITUTE(SUBSTITUTE(SUBSTITUTE(SUBSTITUTE(SUBSTITUTE(SUBSTITUTE(SUBSTITUTE(SUBSTITUTE(SUBSTITUTE(SUBSTITUTE(SUBSTITUTE(SUBSTITUTE(SUBSTITUTE(SUBSTITUTE(SUBSTITUTE(SUBSTITUTE(SUBSTITUTE(SUBSTITUTE(SUBSTITUTE(SUBSTITUTE(SUBSTITUTE(SUBSTITUTE(A36,\nSustituciones!$B$2,Sustituciones!$C$2),\nSustituciones!$B$3,Sustituciones!$C$3),\nSustituciones!$B$4,Sustituciones!$C$4),\nSustituciones!$B$5,Sustituciones!$C$5),\nSustituciones!$B$6,Sustituciones!$C$6),\nSustituciones!$B$7,Sustituciones!$C$7),\nSustituciones!$B$8,Sustituciones!$C$8),\nSustituciones!$B$9,Sustituciones!$C$9),\nSustituciones!$B$10,Sustituciones!$C$10),\nSustituciones!$B$11,Sustituciones!$C$11),\nSustituciones!$B$12,Sustituciones!$C$12),\nSustituciones!$B$13,Sustituciones!$C$13),\nSustituciones!$B$14,Sustituciones!$C$14),\nSustituciones!$B$15,Sustituciones!$C$15),\nSustituciones!$B$16,Sustituciones!$C$16),\nSustituciones!$B$17,Sustituciones!$C$17),\nSustituciones!$B$18,Sustituciones!$C$18),\nSustituciones!$B$19,Sustituciones!$C$19),\nSustituciones!$B$20,Sustituciones!$C$20),\nSustituciones!$B$21,Sustituciones!$C$21),\nSustituciones!$B$22,Sustituciones!$C$22),\nSustituciones!$B$23,Sustituciones!$C$23)","v":"Oscar Uriel Velazquez Alvarez"},null,null,{"$f":"SUBSTITUTE(SUBSTITUTE(SUBSTITUTE(SUBSTITUTE(SUBSTITUTE(SUBSTITUTE(SUBSTITUTE(SUBSTITUTE(SUBSTITUTE(SUBSTITUTE(SUBSTITUTE(SUBSTITUTE(SUBSTITUTE(SUBSTITUTE(SUBSTITUTE(SUBSTITUTE(SUBSTITUTE(SUBSTITUTE(SUBSTITUTE(SUBSTITUTE(SUBSTITUTE(SUBSTITUTE(D36,\nSustituciones!$D$2,Sustituciones!$E$2),\nSustituciones!$D$3,Sustituciones!$E$3),\nSustituciones!$D$4,Sustituciones!$E$4),\nSustituciones!$D$5,Sustituciones!$E$5),\nSustituciones!$D$6,Sustituciones!$E$6),\nSustituciones!$D$7,Sustituciones!$E$7),\nSustituciones!$D$8,Sustituciones!$E$8),\nSustituciones!$D$9,Sustituciones!$E$9),\nSustituciones!$D$10,Sustituciones!$E$10),\nSustituciones!$D$11,Sustituciones!$E$11),\nSustituciones!$D$12,Sustituciones!$E$12),\nSustituciones!$D$13,Sustituciones!$E$13),\nSustituciones!$D$14,Sustituciones!$E$14),\nSustituciones!$D$15,Sustituciones!$E$15),\nSustituciones!$D$16,Sustituciones!$E$16),\nSustituciones!$D$17,Sustituciones!$E$17),\nSustituciones!$D$18,Sustituciones!$E$18),\nSustituciones!$D$19,Sustituciones!$E$19),\nSustituciones!$D$20,Sustituciones!$E$20),\nSustituciones!$D$21,Sustituciones!$E$21),\nSustituciones!$D$22,Sustituciones!$E$22),\nSustituciones!$D$23,Sustituciones!$E$23)","v":""},null,null,null,null,"  ",false]
["Erick De Jesus Corona Diaz",null,{"$f":"SUBSTITUTE(SUBSTITUTE(SUBSTITUTE(SUBSTITUTE(SUBSTITUTE(SUBSTITUTE(SUBSTITUTE(SUBSTITUTE(SUBSTITUTE(SUBSTITUTE(SUBSTITUTE(SUBSTITUTE(SUBSTITUTE(SUBSTITUTE(SUBSTITUTE(SUBSTITUTE(SUBSTITUTE(SUBSTITUTE(SUBSTITUTE(SUBSTITUTE(SUBSTITUTE(SUBSTITUTE(A37,\nSustituciones!$B$2,Sustituciones!$C$2),\nSustituciones!$B$3,Sustituciones!$C$3),\nSustituciones!$B$4,Sustituciones!$C$4),\nSustituciones!$B$5,Sustituciones!$C$5),\nSustituciones!$B$6,Sustituciones!$C$6),\nSustituciones!$B$7,Sustituciones!$C$7),\nSustituciones!$B$8,Sustituciones!$C$8),\nSustituciones!$B$9,Sustituciones!$C$9),\nSustituciones!$B$10,Sustituciones!$C$10),\nSustituciones!$B$11,Sustituciones!$C$11),\nSustituciones!$B$12,Sustituciones!$C$12),\nSustituciones!$B$13,Sustituciones!$C$13),\nSustituciones!$B$14,Sustituciones!$C$14),\nSustituciones!$B$15,Sustituciones!$C$15),\nSustituciones!$B$16,Sustituciones!$C$16),\nSustituciones!$B$17,Sustituciones!$C$17),\nSustituciones!$B$18,Sustituciones!$C$18),\nSustituciones!$B$19,Sustituciones!$C$19),\nSustituciones!$B$20,Sustituciones!$C$20),\nSustituciones!$B$21,Sustituciones!$C$21),\nSustituciones!$B$22,Sustituciones!$C$22),\nSustituciones!$B$23,Sustituciones!$C$23)","v":"Erick -De-Jesus Corona Diaz"},null,null,{"$f":"SUBSTITUTE(SUBSTITUTE(SUBSTITUTE(SUBSTITUTE(SUBSTITUTE(SUBSTITUTE(SUBSTITUTE(SUBSTITUTE(SUBSTITUTE(SUBSTITUTE(SUBSTITUTE(SUBSTITUTE(SUBSTITUTE(SUBSTITUTE(SUBSTITUTE(SUBSTITUTE(SUBSTITUTE(SUBSTITUTE(SUBSTITUTE(SUBSTITUTE(SUBSTITUTE(SUBSTITUTE(D37,\nSustituciones!$D$2,Sustituciones!$E$2),\nSustituciones!$D$3,Sustituciones!$E$3),\nSustituciones!$D$4,Sustituciones!$E$4),\nSustituciones!$D$5,Sustituciones!$E$5),\nSustituciones!$D$6,Sustituciones!$E$6),\nSustituciones!$D$7,Sustituciones!$E$7),\nSustituciones!$D$8,Sustituciones!$E$8),\nSustituciones!$D$9,Sustituciones!$E$9),\nSustituciones!$D$10,Sustituciones!$E$10),\nSustituciones!$D$11,Sustituciones!$E$11),\nSustituciones!$D$12,Sustituciones!$E$12),\nSustituciones!$D$13,Sustituciones!$E$13),\nSustituciones!$D$14,Sustituciones!$E$14),\nSustituciones!$D$15,Sustituciones!$E$15),\nSustituciones!$D$16,Sustituciones!$E$16),\nSustituciones!$D$17,Sustituciones!$E$17),\nSustituciones!$D$18,Sustituciones!$E$18),\nSustituciones!$D$19,Sustituciones!$E$19),\nSustituciones!$D$20,Sustituciones!$E$20),\nSustituciones!$D$21,Sustituciones!$E$21),\nSustituciones!$D$22,Sustituciones!$E$22),\nSustituciones!$D$23,Sustituciones!$E$23)","v":""},null,null,null,null,"  ",false]
["Maria Guadalupe Ramos Hernandez",null,{"$f":"SUBSTITUTE(SUBSTITUTE(SUBSTITUTE(SUBSTITUTE(SUBSTITUTE(SUBSTITUTE(SUBSTITUTE(SUBSTITUTE(SUBSTITUTE(SUBSTITUTE(SUBSTITUTE(SUBSTITUTE(SUBSTITUTE(SUBSTITUTE(SUBSTITUTE(SUBSTITUTE(SUBSTITUTE(SUBSTITUTE(SUBSTITUTE(SUBSTITUTE(SUBSTITUTE(SUBSTITUTE(A38,\nSustituciones!$B$2,Sustituciones!$C$2),\nSustituciones!$B$3,Sustituciones!$C$3),\nSustituciones!$B$4,Sustituciones!$C$4),\nSustituciones!$B$5,Sustituciones!$C$5),\nSustituciones!$B$6,Sustituciones!$C$6),\nSustituciones!$B$7,Sustituciones!$C$7),\nSustituciones!$B$8,Sustituciones!$C$8),\nSustituciones!$B$9,Sustituciones!$C$9),\nSustituciones!$B$10,Sustituciones!$C$10),\nSustituciones!$B$11,Sustituciones!$C$11),\nSustituciones!$B$12,Sustituciones!$C$12),\nSustituciones!$B$13,Sustituciones!$C$13),\nSustituciones!$B$14,Sustituciones!$C$14),\nSustituciones!$B$15,Sustituciones!$C$15),\nSustituciones!$B$16,Sustituciones!$C$16),\nSustituciones!$B$17,Sustituciones!$C$17),\nSustituciones!$B$18,Sustituciones!$C$18),\nSustituciones!$B$19,Sustituciones!$C$19),\nSustituciones!$B$20,Sustituciones!$C$20),\nSustituciones!$B$21,Sustituciones!$C$21),\nSustituciones!$B$22,Sustituciones!$C$22),\nSustituciones!$B$23,Sustituciones!$C$23)","v":"Maria Guadalupe Ramos Hernandez"},null,null,{"$f":"SUBSTITUTE(SUBSTITUTE(SUBSTITUTE(SUBSTITUTE(SUBSTITUTE(SUBSTITUTE(SUBSTITUTE(SUBSTITUTE(SUBSTITUTE(SUBSTITUTE(SUBSTITUTE(SUBSTITUTE(SUBSTITUTE(SUBSTITUTE(SUBSTITUTE(SUBSTITUTE(SUBSTITUTE(SUBSTITUTE(SUBSTITUTE(SUBSTITUTE(SUBSTITUTE(SUBSTITUTE(D38,\nSustituciones!$D$2,Sustituciones!$E$2),\nSustituciones!$D$3,Sustituciones!$E$3),\nSustituciones!$D$4,Sustituciones!$E$4),\nSustituciones!$D$5,Sustituciones!$E$5),\nSustituciones!$D$6,Sustituciones!$E$6),\nSustituciones!$D$7,Sustituciones!$E$7),\nSustituciones!$D$8,Sustituciones!$E$8),\nSustituciones!$D$9,Sustituciones!$E$9),\nSustituciones!$D$10,Sustituciones!$E$10),\nSustituciones!$D$11,Sustituciones!$E$11),\nSustituciones!$D$12,Sustituciones!$E$12),\nSustituciones!$D$13,Sustituciones!$E$13),\nSustituciones!$D$14,Sustituciones!$E$14),\nSustituciones!$D$15,Sustituciones!$E$15),\nSustituciones!$D$16,Sustituciones!$E$16),\nSustituciones!$D$17,Sustituciones!$E$17),\nSustituciones!$D$18,Sustituciones!$E$18),\nSustituciones!$D$19,Sustituciones!$E$19),\nSustituciones!$D$20,Sustituciones!$E$20),\nSustituciones!$D$21,Sustituciones!$E$21),\nSustituciones!$D$22,Sustituciones!$E$22),\nSustituciones!$D$23,Sustituciones!$E$23)","v":""},null,null,null,null,"  ",false]
["Jessica Noemi Jimenez Ventura",null,{"$f":"SUBSTITUTE(SUBSTITUTE(SUBSTITUTE(SUBSTITUTE(SUBSTITUTE(SUBSTITUTE(SUBSTITUTE(SUBSTITUTE(SUBSTITUTE(SUBSTITUTE(SUBSTITUTE(SUBSTITUTE(SUBSTITUTE(SUBSTITUTE(SUBSTITUTE(SUBSTITUTE(SUBSTITUTE(SUBSTITUTE(SUBSTITUTE(SUBSTITUTE(SUBSTITUTE(SUBSTITUTE(A39,\nSustituciones!$B$2,Sustituciones!$C$2),\nSustituciones!$B$3,Sustituciones!$C$3),\nSustituciones!$B$4,Sustituciones!$C$4),\nSustituciones!$B$5,Sustituciones!$C$5),\nSustituciones!$B$6,Sustituciones!$C$6),\nSustituciones!$B$7,Sustituciones!$C$7),\nSustituciones!$B$8,Sustituciones!$C$8),\nSustituciones!$B$9,Sustituciones!$C$9),\nSustituciones!$B$10,Sustituciones!$C$10),\nSustituciones!$B$11,Sustituciones!$C$11),\nSustituciones!$B$12,Sustituciones!$C$12),\nSustituciones!$B$13,Sustituciones!$C$13),\nSustituciones!$B$14,Sustituciones!$C$14),\nSustituciones!$B$15,Sustituciones!$C$15),\nSustituciones!$B$16,Sustituciones!$C$16),\nSustituciones!$B$17,Sustituciones!$C$17),\nSustituciones!$B$18,Sustituciones!$C$18),\nSustituciones!$B$19,Sustituciones!$C$19),\nSustituciones!$B$20,Sustituciones!$C$20),\nSustituciones!$B$21,Sustituciones!$C$21),\nSustituciones!$B$22,Sustituciones!$C$22),\nSustituciones!$B$23,Sustituciones!$C$23)","v":"Jessica Noemi Jimenez Ventura"},null,null,{"$f":"SUBSTITUTE(SUBSTITUTE(SUBSTITUTE(SUBSTITUTE(SUBSTITUTE(SUBSTITUTE(SUBSTITUTE(SUBSTITUTE(SUBSTITUTE(SUBSTITUTE(SUBSTITUTE(SUBSTITUTE(SUBSTITUTE(SUBSTITUTE(SUBSTITUTE(SUBSTITUTE(SUBSTITUTE(SUBSTITUTE(SUBSTITUTE(SUBSTITUTE(SUBSTITUTE(SUBSTITUTE(D39,\nSustituciones!$D$2,Sustituciones!$E$2),\nSustituciones!$D$3,Sustituciones!$E$3),\nSustituciones!$D$4,Sustituciones!$E$4),\nSustituciones!$D$5,Sustituciones!$E$5),\nSustituciones!$D$6,Sustituciones!$E$6),\nSustituciones!$D$7,Sustituciones!$E$7),\nSustituciones!$D$8,Sustituciones!$E$8),\nSustituciones!$D$9,Sustituciones!$E$9),\nSustituciones!$D$10,Sustituciones!$E$10),\nSustituciones!$D$11,Sustituciones!$E$11),\nSustituciones!$D$12,Sustituciones!$E$12),\nSustituciones!$D$13,Sustituciones!$E$13),\nSustituciones!$D$14,Sustituciones!$E$14),\nSustituciones!$D$15,Sustituciones!$E$15),\nSustituciones!$D$16,Sustituciones!$E$16),\nSustituciones!$D$17,Sustituciones!$E$17),\nSustituciones!$D$18,Sustituciones!$E$18),\nSustituciones!$D$19,Sustituciones!$E$19),\nSustituciones!$D$20,Sustituciones!$E$20),\nSustituciones!$D$21,Sustituciones!$E$21),\nSustituciones!$D$22,Sustituciones!$E$22),\nSustituciones!$D$23,Sustituciones!$E$23)","v":""},null,null,null,null,"  ",false]
["Flor Margarita Rojas Hernandez",null,{"$f":"SUBSTITUTE(SUBSTITUTE(SUBSTITUTE(SUBSTITUTE(SUBSTITUTE(SUBSTITUTE(SUBSTITUTE(SUBSTITUTE(SUBSTITUTE(SUBSTITUTE(SUBSTITUTE(SUBSTITUTE(SUBSTITUTE(SUBSTITUTE(SUBSTITUTE(SUBSTITUTE(SUBSTITUTE(SUBSTITUTE(SUBSTITUTE(SUBSTITUTE(SUBSTITUTE(SUBSTITUTE(A40,\nSustituciones!$B$2,Sustituciones!$C$2),\nSustituciones!$B$3,Sustituciones!$C$3),\nSustituciones!$B$4,Sustituciones!$C$4),\nSustituciones!$B$5,Sustituciones!$C$5),\nSustituciones!$B$6,Sustituciones!$C$6),\nSustituciones!$B$7,Sustituciones!$C$7),\nSustituciones!$B$8,Sustituciones!$C$8),\nSustituciones!$B$9,Sustituciones!$C$9),\nSustituciones!$B$10,Sustituciones!$C$10),\nSustituciones!$B$11,Sustituciones!$C$11),\nSustituciones!$B$12,Sustituciones!$C$12),\nSustituciones!$B$13,Sustituciones!$C$13),\nSustituciones!$B$14,Sustituciones!$C$14),\nSustituciones!$B$15,Sustituciones!$C$15),\nSustituciones!$B$16,Sustituciones!$C$16),\nSustituciones!$B$17,Sustituciones!$C$17),\nSustituciones!$B$18,Sustituciones!$C$18),\nSustituciones!$B$19,Sustituciones!$C$19),\nSustituciones!$B$20,Sustituciones!$C$20),\nSustituciones!$B$21,Sustituciones!$C$21),\nSustituciones!$B$22,Sustituciones!$C$22),\nSustituciones!$B$23,Sustituciones!$C$23)","v":"Flor Margarita Rojas Hernandez"},null,null,{"$f":"SUBSTITUTE(SUBSTITUTE(SUBSTITUTE(SUBSTITUTE(SUBSTITUTE(SUBSTITUTE(SUBSTITUTE(SUBSTITUTE(SUBSTITUTE(SUBSTITUTE(SUBSTITUTE(SUBSTITUTE(SUBSTITUTE(SUBSTITUTE(SUBSTITUTE(SUBSTITUTE(SUBSTITUTE(SUBSTITUTE(SUBSTITUTE(SUBSTITUTE(SUBSTITUTE(SUBSTITUTE(D40,\nSustituciones!$D$2,Sustituciones!$E$2),\nSustituciones!$D$3,Sustituciones!$E$3),\nSustituciones!$D$4,Sustituciones!$E$4),\nSustituciones!$D$5,Sustituciones!$E$5),\nSustituciones!$D$6,Sustituciones!$E$6),\nSustituciones!$D$7,Sustituciones!$E$7),\nSustituciones!$D$8,Sustituciones!$E$8),\nSustituciones!$D$9,Sustituciones!$E$9),\nSustituciones!$D$10,Sustituciones!$E$10),\nSustituciones!$D$11,Sustituciones!$E$11),\nSustituciones!$D$12,Sustituciones!$E$12),\nSustituciones!$D$13,Sustituciones!$E$13),\nSustituciones!$D$14,Sustituciones!$E$14),\nSustituciones!$D$15,Sustituciones!$E$15),\nSustituciones!$D$16,Sustituciones!$E$16),\nSustituciones!$D$17,Sustituciones!$E$17),\nSustituciones!$D$18,Sustituciones!$E$18),\nSustituciones!$D$19,Sustituciones!$E$19),\nSustituciones!$D$20,Sustituciones!$E$20),\nSustituciones!$D$21,Sustituciones!$E$21),\nSustituciones!$D$22,Sustituciones!$E$22),\nSustituciones!$D$23,Sustituciones!$E$23)","v":""},null,null,null,null,"  ",false]
["Luis Antonio Alvarado Valencia",null,{"$f":"SUBSTITUTE(SUBSTITUTE(SUBSTITUTE(SUBSTITUTE(SUBSTITUTE(SUBSTITUTE(SUBSTITUTE(SUBSTITUTE(SUBSTITUTE(SUBSTITUTE(SUBSTITUTE(SUBSTITUTE(SUBSTITUTE(SUBSTITUTE(SUBSTITUTE(SUBSTITUTE(SUBSTITUTE(SUBSTITUTE(SUBSTITUTE(SUBSTITUTE(SUBSTITUTE(SUBSTITUTE(A41,\nSustituciones!$B$2,Sustituciones!$C$2),\nSustituciones!$B$3,Sustituciones!$C$3),\nSustituciones!$B$4,Sustituciones!$C$4),\nSustituciones!$B$5,Sustituciones!$C$5),\nSustituciones!$B$6,Sustituciones!$C$6),\nSustituciones!$B$7,Sustituciones!$C$7),\nSustituciones!$B$8,Sustituciones!$C$8),\nSustituciones!$B$9,Sustituciones!$C$9),\nSustituciones!$B$10,Sustituciones!$C$10),\nSustituciones!$B$11,Sustituciones!$C$11),\nSustituciones!$B$12,Sustituciones!$C$12),\nSustituciones!$B$13,Sustituciones!$C$13),\nSustituciones!$B$14,Sustituciones!$C$14),\nSustituciones!$B$15,Sustituciones!$C$15),\nSustituciones!$B$16,Sustituciones!$C$16),\nSustituciones!$B$17,Sustituciones!$C$17),\nSustituciones!$B$18,Sustituciones!$C$18),\nSustituciones!$B$19,Sustituciones!$C$19),\nSustituciones!$B$20,Sustituciones!$C$20),\nSustituciones!$B$21,Sustituciones!$C$21),\nSustituciones!$B$22,Sustituciones!$C$22),\nSustituciones!$B$23,Sustituciones!$C$23)","v":"Luis Antonio Alvarado Valencia"},null,null,{"$f":"SUBSTITUTE(SUBSTITUTE(SUBSTITUTE(SUBSTITUTE(SUBSTITUTE(SUBSTITUTE(SUBSTITUTE(SUBSTITUTE(SUBSTITUTE(SUBSTITUTE(SUBSTITUTE(SUBSTITUTE(SUBSTITUTE(SUBSTITUTE(SUBSTITUTE(SUBSTITUTE(SUBSTITUTE(SUBSTITUTE(SUBSTITUTE(SUBSTITUTE(SUBSTITUTE(SUBSTITUTE(D41,\nSustituciones!$D$2,Sustituciones!$E$2),\nSustituciones!$D$3,Sustituciones!$E$3),\nSustituciones!$D$4,Sustituciones!$E$4),\nSustituciones!$D$5,Sustituciones!$E$5),\nSustituciones!$D$6,Sustituciones!$E$6),\nSustituciones!$D$7,Sustituciones!$E$7),\nSustituciones!$D$8,Sustituciones!$E$8),\nSustituciones!$D$9,Sustituciones!$E$9),\nSustituciones!$D$10,Sustituciones!$E$10),\nSustituciones!$D$11,Sustituciones!$E$11),\nSustituciones!$D$12,Sustituciones!$E$12),\nSustituciones!$D$13,Sustituciones!$E$13),\nSustituciones!$D$14,Sustituciones!$E$14),\nSustituciones!$D$15,Sustituciones!$E$15),\nSustituciones!$D$16,Sustituciones!$E$16),\nSustituciones!$D$17,Sustituciones!$E$17),\nSustituciones!$D$18,Sustituciones!$E$18),\nSustituciones!$D$19,Sustituciones!$E$19),\nSustituciones!$D$20,Sustituciones!$E$20),\nSustituciones!$D$21,Sustituciones!$E$21),\nSustituciones!$D$22,Sustituciones!$E$22),\nSustituciones!$D$23,Sustituciones!$E$23)","v":""},null,null,null,null,"  ",false]
["Edgar Ivan Aguilar Padilla",null,{"$f":"SUBSTITUTE(SUBSTITUTE(SUBSTITUTE(SUBSTITUTE(SUBSTITUTE(SUBSTITUTE(SUBSTITUTE(SUBSTITUTE(SUBSTITUTE(SUBSTITUTE(SUBSTITUTE(SUBSTITUTE(SUBSTITUTE(SUBSTITUTE(SUBSTITUTE(SUBSTITUTE(SUBSTITUTE(SUBSTITUTE(SUBSTITUTE(SUBSTITUTE(SUBSTITUTE(SUBSTITUTE(A42,\nSustituciones!$B$2,Sustituciones!$C$2),\nSustituciones!$B$3,Sustituciones!$C$3),\nSustituciones!$B$4,Sustituciones!$C$4),\nSustituciones!$B$5,Sustituciones!$C$5),\nSustituciones!$B$6,Sustituciones!$C$6),\nSustituciones!$B$7,Sustituciones!$C$7),\nSustituciones!$B$8,Sustituciones!$C$8),\nSustituciones!$B$9,Sustituciones!$C$9),\nSustituciones!$B$10,Sustituciones!$C$10),\nSustituciones!$B$11,Sustituciones!$C$11),\nSustituciones!$B$12,Sustituciones!$C$12),\nSustituciones!$B$13,Sustituciones!$C$13),\nSustituciones!$B$14,Sustituciones!$C$14),\nSustituciones!$B$15,Sustituciones!$C$15),\nSustituciones!$B$16,Sustituciones!$C$16),\nSustituciones!$B$17,Sustituciones!$C$17),\nSustituciones!$B$18,Sustituciones!$C$18),\nSustituciones!$B$19,Sustituciones!$C$19),\nSustituciones!$B$20,Sustituciones!$C$20),\nSustituciones!$B$21,Sustituciones!$C$21),\nSustituciones!$B$22,Sustituciones!$C$22),\nSustituciones!$B$23,Sustituciones!$C$23)","v":"Edgar Ivan Aguilar Padilla"},null,null,{"$f":"SUBSTITUTE(SUBSTITUTE(SUBSTITUTE(SUBSTITUTE(SUBSTITUTE(SUBSTITUTE(SUBSTITUTE(SUBSTITUTE(SUBSTITUTE(SUBSTITUTE(SUBSTITUTE(SUBSTITUTE(SUBSTITUTE(SUBSTITUTE(SUBSTITUTE(SUBSTITUTE(SUBSTITUTE(SUBSTITUTE(SUBSTITUTE(SUBSTITUTE(SUBSTITUTE(SUBSTITUTE(D42,\nSustituciones!$D$2,Sustituciones!$E$2),\nSustituciones!$D$3,Sustituciones!$E$3),\nSustituciones!$D$4,Sustituciones!$E$4),\nSustituciones!$D$5,Sustituciones!$E$5),\nSustituciones!$D$6,Sustituciones!$E$6),\nSustituciones!$D$7,Sustituciones!$E$7),\nSustituciones!$D$8,Sustituciones!$E$8),\nSustituciones!$D$9,Sustituciones!$E$9),\nSustituciones!$D$10,Sustituciones!$E$10),\nSustituciones!$D$11,Sustituciones!$E$11),\nSustituciones!$D$12,Sustituciones!$E$12),\nSustituciones!$D$13,Sustituciones!$E$13),\nSustituciones!$D$14,Sustituciones!$E$14),\nSustituciones!$D$15,Sustituciones!$E$15),\nSustituciones!$D$16,Sustituciones!$E$16),\nSustituciones!$D$17,Sustituciones!$E$17),\nSustituciones!$D$18,Sustituciones!$E$18),\nSustituciones!$D$19,Sustituciones!$E$19),\nSustituciones!$D$20,Sustituciones!$E$20),\nSustituciones!$D$21,Sustituciones!$E$21),\nSustituciones!$D$22,Sustituciones!$E$22),\nSustituciones!$D$23,Sustituciones!$E$23)","v":""},null,null,null,null,"  ",false]
["Luis Alfonso Michel Sanchez",null,{"$f":"SUBSTITUTE(SUBSTITUTE(SUBSTITUTE(SUBSTITUTE(SUBSTITUTE(SUBSTITUTE(SUBSTITUTE(SUBSTITUTE(SUBSTITUTE(SUBSTITUTE(SUBSTITUTE(SUBSTITUTE(SUBSTITUTE(SUBSTITUTE(SUBSTITUTE(SUBSTITUTE(SUBSTITUTE(SUBSTITUTE(SUBSTITUTE(SUBSTITUTE(SUBSTITUTE(SUBSTITUTE(A43,\nSustituciones!$B$2,Sustituciones!$C$2),\nSustituciones!$B$3,Sustituciones!$C$3),\nSustituciones!$B$4,Sustituciones!$C$4),\nSustituciones!$B$5,Sustituciones!$C$5),\nSustituciones!$B$6,Sustituciones!$C$6),\nSustituciones!$B$7,Sustituciones!$C$7),\nSustituciones!$B$8,Sustituciones!$C$8),\nSustituciones!$B$9,Sustituciones!$C$9),\nSustituciones!$B$10,Sustituciones!$C$10),\nSustituciones!$B$11,Sustituciones!$C$11),\nSustituciones!$B$12,Sustituciones!$C$12),\nSustituciones!$B$13,Sustituciones!$C$13),\nSustituciones!$B$14,Sustituciones!$C$14),\nSustituciones!$B$15,Sustituciones!$C$15),\nSustituciones!$B$16,Sustituciones!$C$16),\nSustituciones!$B$17,Sustituciones!$C$17),\nSustituciones!$B$18,Sustituciones!$C$18),\nSustituciones!$B$19,Sustituciones!$C$19),\nSustituciones!$B$20,Sustituciones!$C$20),\nSustituciones!$B$21,Sustituciones!$C$21),\nSustituciones!$B$22,Sustituciones!$C$22),\nSustituciones!$B$23,Sustituciones!$C$23)","v":"Luis Alfonso Michel Sanchez"},null,null,{"$f":"SUBSTITUTE(SUBSTITUTE(SUBSTITUTE(SUBSTITUTE(SUBSTITUTE(SUBSTITUTE(SUBSTITUTE(SUBSTITUTE(SUBSTITUTE(SUBSTITUTE(SUBSTITUTE(SUBSTITUTE(SUBSTITUTE(SUBSTITUTE(SUBSTITUTE(SUBSTITUTE(SUBSTITUTE(SUBSTITUTE(SUBSTITUTE(SUBSTITUTE(SUBSTITUTE(SUBSTITUTE(D43,\nSustituciones!$D$2,Sustituciones!$E$2),\nSustituciones!$D$3,Sustituciones!$E$3),\nSustituciones!$D$4,Sustituciones!$E$4),\nSustituciones!$D$5,Sustituciones!$E$5),\nSustituciones!$D$6,Sustituciones!$E$6),\nSustituciones!$D$7,Sustituciones!$E$7),\nSustituciones!$D$8,Sustituciones!$E$8),\nSustituciones!$D$9,Sustituciones!$E$9),\nSustituciones!$D$10,Sustituciones!$E$10),\nSustituciones!$D$11,Sustituciones!$E$11),\nSustituciones!$D$12,Sustituciones!$E$12),\nSustituciones!$D$13,Sustituciones!$E$13),\nSustituciones!$D$14,Sustituciones!$E$14),\nSustituciones!$D$15,Sustituciones!$E$15),\nSustituciones!$D$16,Sustituciones!$E$16),\nSustituciones!$D$17,Sustituciones!$E$17),\nSustituciones!$D$18,Sustituciones!$E$18),\nSustituciones!$D$19,Sustituciones!$E$19),\nSustituciones!$D$20,Sustituciones!$E$20),\nSustituciones!$D$21,Sustituciones!$E$21),\nSustituciones!$D$22,Sustituciones!$E$22),\nSustituciones!$D$23,Sustituciones!$E$23)","v":""},null,null,null,null,"  ",false]
["Jose Carlos Silva Rocha",null,{"$f":"SUBSTITUTE(SUBSTITUTE(SUBSTITUTE(SUBSTITUTE(SUBSTITUTE(SUBSTITUTE(SUBSTITUTE(SUBSTITUTE(SUBSTITUTE(SUBSTITUTE(SUBSTITUTE(SUBSTITUTE(SUBSTITUTE(SUBSTITUTE(SUBSTITUTE(SUBSTITUTE(SUBSTITUTE(SUBSTITUTE(SUBSTITUTE(SUBSTITUTE(SUBSTITUTE(SUBSTITUTE(A44,\nSustituciones!$B$2,Sustituciones!$C$2),\nSustituciones!$B$3,Sustituciones!$C$3),\nSustituciones!$B$4,Sustituciones!$C$4),\nSustituciones!$B$5,Sustituciones!$C$5),\nSustituciones!$B$6,Sustituciones!$C$6),\nSustituciones!$B$7,Sustituciones!$C$7),\nSustituciones!$B$8,Sustituciones!$C$8),\nSustituciones!$B$9,Sustituciones!$C$9),\nSustituciones!$B$10,Sustituciones!$C$10),\nSustituciones!$B$11,Sustituciones!$C$11),\nSustituciones!$B$12,Sustituciones!$C$12),\nSustituciones!$B$13,Sustituciones!$C$13),\nSustituciones!$B$14,Sustituciones!$C$14),\nSustituciones!$B$15,Sustituciones!$C$15),\nSustituciones!$B$16,Sustituciones!$C$16),\nSustituciones!$B$17,Sustituciones!$C$17),\nSustituciones!$B$18,Sustituciones!$C$18),\nSustituciones!$B$19,Sustituciones!$C$19),\nSustituciones!$B$20,Sustituciones!$C$20),\nSustituciones!$B$21,Sustituciones!$C$21),\nSustituciones!$B$22,Sustituciones!$C$22),\nSustituciones!$B$23,Sustituciones!$C$23)","v":"Jose Carlos Silva Rocha"},null,null,{"$f":"SUBSTITUTE(SUBSTITUTE(SUBSTITUTE(SUBSTITUTE(SUBSTITUTE(SUBSTITUTE(SUBSTITUTE(SUBSTITUTE(SUBSTITUTE(SUBSTITUTE(SUBSTITUTE(SUBSTITUTE(SUBSTITUTE(SUBSTITUTE(SUBSTITUTE(SUBSTITUTE(SUBSTITUTE(SUBSTITUTE(SUBSTITUTE(SUBSTITUTE(SUBSTITUTE(SUBSTITUTE(D44,\nSustituciones!$D$2,Sustituciones!$E$2),\nSustituciones!$D$3,Sustituciones!$E$3),\nSustituciones!$D$4,Sustituciones!$E$4),\nSustituciones!$D$5,Sustituciones!$E$5),\nSustituciones!$D$6,Sustituciones!$E$6),\nSustituciones!$D$7,Sustituciones!$E$7),\nSustituciones!$D$8,Sustituciones!$E$8),\nSustituciones!$D$9,Sustituciones!$E$9),\nSustituciones!$D$10,Sustituciones!$E$10),\nSustituciones!$D$11,Sustituciones!$E$11),\nSustituciones!$D$12,Sustituciones!$E$12),\nSustituciones!$D$13,Sustituciones!$E$13),\nSustituciones!$D$14,Sustituciones!$E$14),\nSustituciones!$D$15,Sustituciones!$E$15),\nSustituciones!$D$16,Sustituciones!$E$16),\nSustituciones!$D$17,Sustituciones!$E$17),\nSustituciones!$D$18,Sustituciones!$E$18),\nSustituciones!$D$19,Sustituciones!$E$19),\nSustituciones!$D$20,Sustituciones!$E$20),\nSustituciones!$D$21,Sustituciones!$E$21),\nSustituciones!$D$22,Sustituciones!$E$22),\nSustituciones!$D$23,Sustituciones!$E$23)","v":""},null,null,null,null,"  ",false]
["Judith Rodriguez Reyes",null,{"$f":"SUBSTITUTE(SUBSTITUTE(SUBSTITUTE(SUBSTITUTE(SUBSTITUTE(SUBSTITUTE(SUBSTITUTE(SUBSTITUTE(SUBSTITUTE(SUBSTITUTE(SUBSTITUTE(SUBSTITUTE(SUBSTITUTE(SUBSTITUTE(SUBSTITUTE(SUBSTITUTE(SUBSTITUTE(SUBSTITUTE(SUBSTITUTE(SUBSTITUTE(SUBSTITUTE(SUBSTITUTE(A45,\nSustituciones!$B$2,Sustituciones!$C$2),\nSustituciones!$B$3,Sustituciones!$C$3),\nSustituciones!$B$4,Sustituciones!$C$4),\nSustituciones!$B$5,Sustituciones!$C$5),\nSustituciones!$B$6,Sustituciones!$C$6),\nSustituciones!$B$7,Sustituciones!$C$7),\nSustituciones!$B$8,Sustituciones!$C$8),\nSustituciones!$B$9,Sustituciones!$C$9),\nSustituciones!$B$10,Sustituciones!$C$10),\nSustituciones!$B$11,Sustituciones!$C$11),\nSustituciones!$B$12,Sustituciones!$C$12),\nSustituciones!$B$13,Sustituciones!$C$13),\nSustituciones!$B$14,Sustituciones!$C$14),\nSustituciones!$B$15,Sustituciones!$C$15),\nSustituciones!$B$16,Sustituciones!$C$16),\nSustituciones!$B$17,Sustituciones!$C$17),\nSustituciones!$B$18,Sustituciones!$C$18),\nSustituciones!$B$19,Sustituciones!$C$19),\nSustituciones!$B$20,Sustituciones!$C$20),\nSustituciones!$B$21,Sustituciones!$C$21),\nSustituciones!$B$22,Sustituciones!$C$22),\nSustituciones!$B$23,Sustituciones!$C$23)","v":"Judith Rodriguez Reyes"},null,null,{"$f":"SUBSTITUTE(SUBSTITUTE(SUBSTITUTE(SUBSTITUTE(SUBSTITUTE(SUBSTITUTE(SUBSTITUTE(SUBSTITUTE(SUBSTITUTE(SUBSTITUTE(SUBSTITUTE(SUBSTITUTE(SUBSTITUTE(SUBSTITUTE(SUBSTITUTE(SUBSTITUTE(SUBSTITUTE(SUBSTITUTE(SUBSTITUTE(SUBSTITUTE(SUBSTITUTE(SUBSTITUTE(D45,\nSustituciones!$D$2,Sustituciones!$E$2),\nSustituciones!$D$3,Sustituciones!$E$3),\nSustituciones!$D$4,Sustituciones!$E$4),\nSustituciones!$D$5,Sustituciones!$E$5),\nSustituciones!$D$6,Sustituciones!$E$6),\nSustituciones!$D$7,Sustituciones!$E$7),\nSustituciones!$D$8,Sustituciones!$E$8),\nSustituciones!$D$9,Sustituciones!$E$9),\nSustituciones!$D$10,Sustituciones!$E$10),\nSustituciones!$D$11,Sustituciones!$E$11),\nSustituciones!$D$12,Sustituciones!$E$12),\nSustituciones!$D$13,Sustituciones!$E$13),\nSustituciones!$D$14,Sustituciones!$E$14),\nSustituciones!$D$15,Sustituciones!$E$15),\nSustituciones!$D$16,Sustituciones!$E$16),\nSustituciones!$D$17,Sustituciones!$E$17),\nSustituciones!$D$18,Sustituciones!$E$18),\nSustituciones!$D$19,Sustituciones!$E$19),\nSustituciones!$D$20,Sustituciones!$E$20),\nSustituciones!$D$21,Sustituciones!$E$21),\nSustituciones!$D$22,Sustituciones!$E$22),\nSustituciones!$D$23,Sustituciones!$E$23)","v":""},null,null,null,null,"  ",false]
["Brenda Soraya Chavez Garcia",null,{"$f":"SUBSTITUTE(SUBSTITUTE(SUBSTITUTE(SUBSTITUTE(SUBSTITUTE(SUBSTITUTE(SUBSTITUTE(SUBSTITUTE(SUBSTITUTE(SUBSTITUTE(SUBSTITUTE(SUBSTITUTE(SUBSTITUTE(SUBSTITUTE(SUBSTITUTE(SUBSTITUTE(SUBSTITUTE(SUBSTITUTE(SUBSTITUTE(SUBSTITUTE(SUBSTITUTE(SUBSTITUTE(A46,\nSustituciones!$B$2,Sustituciones!$C$2),\nSustituciones!$B$3,Sustituciones!$C$3),\nSustituciones!$B$4,Sustituciones!$C$4),\nSustituciones!$B$5,Sustituciones!$C$5),\nSustituciones!$B$6,Sustituciones!$C$6),\nSustituciones!$B$7,Sustituciones!$C$7),\nSustituciones!$B$8,Sustituciones!$C$8),\nSustituciones!$B$9,Sustituciones!$C$9),\nSustituciones!$B$10,Sustituciones!$C$10),\nSustituciones!$B$11,Sustituciones!$C$11),\nSustituciones!$B$12,Sustituciones!$C$12),\nSustituciones!$B$13,Sustituciones!$C$13),\nSustituciones!$B$14,Sustituciones!$C$14),\nSustituciones!$B$15,Sustituciones!$C$15),\nSustituciones!$B$16,Sustituciones!$C$16),\nSustituciones!$B$17,Sustituciones!$C$17),\nSustituciones!$B$18,Sustituciones!$C$18),\nSustituciones!$B$19,Sustituciones!$C$19),\nSustituciones!$B$20,Sustituciones!$C$20),\nSustituciones!$B$21,Sustituciones!$C$21),\nSustituciones!$B$22,Sustituciones!$C$22),\nSustituciones!$B$23,Sustituciones!$C$23)","v":"Brenda Soraya Chavez Garcia"},null,null,{"$f":"SUBSTITUTE(SUBSTITUTE(SUBSTITUTE(SUBSTITUTE(SUBSTITUTE(SUBSTITUTE(SUBSTITUTE(SUBSTITUTE(SUBSTITUTE(SUBSTITUTE(SUBSTITUTE(SUBSTITUTE(SUBSTITUTE(SUBSTITUTE(SUBSTITUTE(SUBSTITUTE(SUBSTITUTE(SUBSTITUTE(SUBSTITUTE(SUBSTITUTE(SUBSTITUTE(SUBSTITUTE(D46,\nSustituciones!$D$2,Sustituciones!$E$2),\nSustituciones!$D$3,Sustituciones!$E$3),\nSustituciones!$D$4,Sustituciones!$E$4),\nSustituciones!$D$5,Sustituciones!$E$5),\nSustituciones!$D$6,Sustituciones!$E$6),\nSustituciones!$D$7,Sustituciones!$E$7),\nSustituciones!$D$8,Sustituciones!$E$8),\nSustituciones!$D$9,Sustituciones!$E$9),\nSustituciones!$D$10,Sustituciones!$E$10),\nSustituciones!$D$11,Sustituciones!$E$11),\nSustituciones!$D$12,Sustituciones!$E$12),\nSustituciones!$D$13,Sustituciones!$E$13),\nSustituciones!$D$14,Sustituciones!$E$14),\nSustituciones!$D$15,Sustituciones!$E$15),\nSustituciones!$D$16,Sustituciones!$E$16),\nSustituciones!$D$17,Sustituciones!$E$17),\nSustituciones!$D$18,Sustituciones!$E$18),\nSustituciones!$D$19,Sustituciones!$E$19),\nSustituciones!$D$20,Sustituciones!$E$20),\nSustituciones!$D$21,Sustituciones!$E$21),\nSustituciones!$D$22,Sustituciones!$E$22),\nSustituciones!$D$23,Sustituciones!$E$23)","v":""},null,null,null,null,"  ",false]
["Alma Rosa Marquez Aguila",null,{"$f":"SUBSTITUTE(SUBSTITUTE(SUBSTITUTE(SUBSTITUTE(SUBSTITUTE(SUBSTITUTE(SUBSTITUTE(SUBSTITUTE(SUBSTITUTE(SUBSTITUTE(SUBSTITUTE(SUBSTITUTE(SUBSTITUTE(SUBSTITUTE(SUBSTITUTE(SUBSTITUTE(SUBSTITUTE(SUBSTITUTE(SUBSTITUTE(SUBSTITUTE(SUBSTITUTE(SUBSTITUTE(A47,\nSustituciones!$B$2,Sustituciones!$C$2),\nSustituciones!$B$3,Sustituciones!$C$3),\nSustituciones!$B$4,Sustituciones!$C$4),\nSustituciones!$B$5,Sustituciones!$C$5),\nSustituciones!$B$6,Sustituciones!$C$6),\nSustituciones!$B$7,Sustituciones!$C$7),\nSustituciones!$B$8,Sustituciones!$C$8),\nSustituciones!$B$9,Sustituciones!$C$9),\nSustituciones!$B$10,Sustituciones!$C$10),\nSustituciones!$B$11,Sustituciones!$C$11),\nSustituciones!$B$12,Sustituciones!$C$12),\nSustituciones!$B$13,Sustituciones!$C$13),\nSustituciones!$B$14,Sustituciones!$C$14),\nSustituciones!$B$15,Sustituciones!$C$15),\nSustituciones!$B$16,Sustituciones!$C$16),\nSustituciones!$B$17,Sustituciones!$C$17),\nSustituciones!$B$18,Sustituciones!$C$18),\nSustituciones!$B$19,Sustituciones!$C$19),\nSustituciones!$B$20,Sustituciones!$C$20),\nSustituciones!$B$21,Sustituciones!$C$21),\nSustituciones!$B$22,Sustituciones!$C$22),\nSustituciones!$B$23,Sustituciones!$C$23)","v":"Alma Rosa Marquez Aguila"},null,null,{"$f":"SUBSTITUTE(SUBSTITUTE(SUBSTITUTE(SUBSTITUTE(SUBSTITUTE(SUBSTITUTE(SUBSTITUTE(SUBSTITUTE(SUBSTITUTE(SUBSTITUTE(SUBSTITUTE(SUBSTITUTE(SUBSTITUTE(SUBSTITUTE(SUBSTITUTE(SUBSTITUTE(SUBSTITUTE(SUBSTITUTE(SUBSTITUTE(SUBSTITUTE(SUBSTITUTE(SUBSTITUTE(D47,\nSustituciones!$D$2,Sustituciones!$E$2),\nSustituciones!$D$3,Sustituciones!$E$3),\nSustituciones!$D$4,Sustituciones!$E$4),\nSustituciones!$D$5,Sustituciones!$E$5),\nSustituciones!$D$6,Sustituciones!$E$6),\nSustituciones!$D$7,Sustituciones!$E$7),\nSustituciones!$D$8,Sustituciones!$E$8),\nSustituciones!$D$9,Sustituciones!$E$9),\nSustituciones!$D$10,Sustituciones!$E$10),\nSustituciones!$D$11,Sustituciones!$E$11),\nSustituciones!$D$12,Sustituciones!$E$12),\nSustituciones!$D$13,Sustituciones!$E$13),\nSustituciones!$D$14,Sustituciones!$E$14),\nSustituciones!$D$15,Sustituciones!$E$15),\nSustituciones!$D$16,Sustituciones!$E$16),\nSustituciones!$D$17,Sustituciones!$E$17),\nSustituciones!$D$18,Sustituciones!$E$18),\nSustituciones!$D$19,Sustituciones!$E$19),\nSustituciones!$D$20,Sustituciones!$E$20),\nSustituciones!$D$21,Sustituciones!$E$21),\nSustituciones!$D$22,Sustituciones!$E$22),\nSustituciones!$D$23,Sustituciones!$E$23)","v":""},null,null,null,null,"  ",false]
["Pedro Sánchez Pérez-Castejón",null,{"$f":"SUBSTITUTE(SUBSTITUTE(SUBSTITUTE(SUBSTITUTE(SUBSTITUTE(SUBSTITUTE(SUBSTITUTE(SUBSTITUTE(SUBSTITUTE(SUBSTITUTE(SUBSTITUTE(SUBSTITUTE(SUBSTITUTE(SUBSTITUTE(SUBSTITUTE(SUBSTITUTE(SUBSTITUTE(SUBSTITUTE(SUBSTITUTE(SUBSTITUTE(SUBSTITUTE(SUBSTITUTE(A48,\nSustituciones!$B$2,Sustituciones!$C$2),\nSustituciones!$B$3,Sustituciones!$C$3),\nSustituciones!$B$4,Sustituciones!$C$4),\nSustituciones!$B$5,Sustituciones!$C$5),\nSustituciones!$B$6,Sustituciones!$C$6),\nSustituciones!$B$7,Sustituciones!$C$7),\nSustituciones!$B$8,Sustituciones!$C$8),\nSustituciones!$B$9,Sustituciones!$C$9),\nSustituciones!$B$10,Sustituciones!$C$10),\nSustituciones!$B$11,Sustituciones!$C$11),\nSustituciones!$B$12,Sustituciones!$C$12),\nSustituciones!$B$13,Sustituciones!$C$13),\nSustituciones!$B$14,Sustituciones!$C$14),\nSustituciones!$B$15,Sustituciones!$C$15),\nSustituciones!$B$16,Sustituciones!$C$16),\nSustituciones!$B$17,Sustituciones!$C$17),\nSustituciones!$B$18,Sustituciones!$C$18),\nSustituciones!$B$19,Sustituciones!$C$19),\nSustituciones!$B$20,Sustituciones!$C$20),\nSustituciones!$B$21,Sustituciones!$C$21),\nSustituciones!$B$22,Sustituciones!$C$22),\nSustituciones!$B$23,Sustituciones!$C$23)","v":"Pedro Sánchez Pérez-Castejón"},null,null,{"$f":"SUBSTITUTE(SUBSTITUTE(SUBSTITUTE(SUBSTITUTE(SUBSTITUTE(SUBSTITUTE(SUBSTITUTE(SUBSTITUTE(SUBSTITUTE(SUBSTITUTE(SUBSTITUTE(SUBSTITUTE(SUBSTITUTE(SUBSTITUTE(SUBSTITUTE(SUBSTITUTE(SUBSTITUTE(SUBSTITUTE(SUBSTITUTE(SUBSTITUTE(SUBSTITUTE(SUBSTITUTE(D48,\nSustituciones!$D$2,Sustituciones!$E$2),\nSustituciones!$D$3,Sustituciones!$E$3),\nSustituciones!$D$4,Sustituciones!$E$4),\nSustituciones!$D$5,Sustituciones!$E$5),\nSustituciones!$D$6,Sustituciones!$E$6),\nSustituciones!$D$7,Sustituciones!$E$7),\nSustituciones!$D$8,Sustituciones!$E$8),\nSustituciones!$D$9,Sustituciones!$E$9),\nSustituciones!$D$10,Sustituciones!$E$10),\nSustituciones!$D$11,Sustituciones!$E$11),\nSustituciones!$D$12,Sustituciones!$E$12),\nSustituciones!$D$13,Sustituciones!$E$13),\nSustituciones!$D$14,Sustituciones!$E$14),\nSustituciones!$D$15,Sustituciones!$E$15),\nSustituciones!$D$16,Sustituciones!$E$16),\nSustituciones!$D$17,Sustituciones!$E$17),\nSustituciones!$D$18,Sustituciones!$E$18),\nSustituciones!$D$19,Sustituciones!$E$19),\nSustituciones!$D$20,Sustituciones!$E$20),\nSustituciones!$D$21,Sustituciones!$E$21),\nSustituciones!$D$22,Sustituciones!$E$22),\nSustituciones!$D$23,Sustituciones!$E$23)","v":""},null,null,null,null,"  ",false]
["Nadia Calviño Santamaría",null,{"$f":"SUBSTITUTE(SUBSTITUTE(SUBSTITUTE(SUBSTITUTE(SUBSTITUTE(SUBSTITUTE(SUBSTITUTE(SUBSTITUTE(SUBSTITUTE(SUBSTITUTE(SUBSTITUTE(SUBSTITUTE(SUBSTITUTE(SUBSTITUTE(SUBSTITUTE(SUBSTITUTE(SUBSTITUTE(SUBSTITUTE(SUBSTITUTE(SUBSTITUTE(SUBSTITUTE(SUBSTITUTE(A49,\nSustituciones!$B$2,Sustituciones!$C$2),\nSustituciones!$B$3,Sustituciones!$C$3),\nSustituciones!$B$4,Sustituciones!$C$4),\nSustituciones!$B$5,Sustituciones!$C$5),\nSustituciones!$B$6,Sustituciones!$C$6),\nSustituciones!$B$7,Sustituciones!$C$7),\nSustituciones!$B$8,Sustituciones!$C$8),\nSustituciones!$B$9,Sustituciones!$C$9),\nSustituciones!$B$10,Sustituciones!$C$10),\nSustituciones!$B$11,Sustituciones!$C$11),\nSustituciones!$B$12,Sustituciones!$C$12),\nSustituciones!$B$13,Sustituciones!$C$13),\nSustituciones!$B$14,Sustituciones!$C$14),\nSustituciones!$B$15,Sustituciones!$C$15),\nSustituciones!$B$16,Sustituciones!$C$16),\nSustituciones!$B$17,Sustituciones!$C$17),\nSustituciones!$B$18,Sustituciones!$C$18),\nSustituciones!$B$19,Sustituciones!$C$19),\nSustituciones!$B$20,Sustituciones!$C$20),\nSustituciones!$B$21,Sustituciones!$C$21),\nSustituciones!$B$22,Sustituciones!$C$22),\nSustituciones!$B$23,Sustituciones!$C$23)","v":"Nadia Calviño Santamaría"},null,null,{"$f":"SUBSTITUTE(SUBSTITUTE(SUBSTITUTE(SUBSTITUTE(SUBSTITUTE(SUBSTITUTE(SUBSTITUTE(SUBSTITUTE(SUBSTITUTE(SUBSTITUTE(SUBSTITUTE(SUBSTITUTE(SUBSTITUTE(SUBSTITUTE(SUBSTITUTE(SUBSTITUTE(SUBSTITUTE(SUBSTITUTE(SUBSTITUTE(SUBSTITUTE(SUBSTITUTE(SUBSTITUTE(D49,\nSustituciones!$D$2,Sustituciones!$E$2),\nSustituciones!$D$3,Sustituciones!$E$3),\nSustituciones!$D$4,Sustituciones!$E$4),\nSustituciones!$D$5,Sustituciones!$E$5),\nSustituciones!$D$6,Sustituciones!$E$6),\nSustituciones!$D$7,Sustituciones!$E$7),\nSustituciones!$D$8,Sustituciones!$E$8),\nSustituciones!$D$9,Sustituciones!$E$9),\nSustituciones!$D$10,Sustituciones!$E$10),\nSustituciones!$D$11,Sustituciones!$E$11),\nSustituciones!$D$12,Sustituciones!$E$12),\nSustituciones!$D$13,Sustituciones!$E$13),\nSustituciones!$D$14,Sustituciones!$E$14),\nSustituciones!$D$15,Sustituciones!$E$15),\nSustituciones!$D$16,Sustituciones!$E$16),\nSustituciones!$D$17,Sustituciones!$E$17),\nSustituciones!$D$18,Sustituciones!$E$18),\nSustituciones!$D$19,Sustituciones!$E$19),\nSustituciones!$D$20,Sustituciones!$E$20),\nSustituciones!$D$21,Sustituciones!$E$21),\nSustituciones!$D$22,Sustituciones!$E$22),\nSustituciones!$D$23,Sustituciones!$E$23)","v":""},null,null,null,null,"  ",false]
["Yolanda Díaz Pérez",null,{"$f":"SUBSTITUTE(SUBSTITUTE(SUBSTITUTE(SUBSTITUTE(SUBSTITUTE(SUBSTITUTE(SUBSTITUTE(SUBSTITUTE(SUBSTITUTE(SUBSTITUTE(SUBSTITUTE(SUBSTITUTE(SUBSTITUTE(SUBSTITUTE(SUBSTITUTE(SUBSTITUTE(SUBSTITUTE(SUBSTITUTE(SUBSTITUTE(SUBSTITUTE(SUBSTITUTE(SUBSTITUTE(A50,\nSustituciones!$B$2,Sustituciones!$C$2),\nSustituciones!$B$3,Sustituciones!$C$3),\nSustituciones!$B$4,Sustituciones!$C$4),\nSustituciones!$B$5,Sustituciones!$C$5),\nSustituciones!$B$6,Sustituciones!$C$6),\nSustituciones!$B$7,Sustituciones!$C$7),\nSustituciones!$B$8,Sustituciones!$C$8),\nSustituciones!$B$9,Sustituciones!$C$9),\nSustituciones!$B$10,Sustituciones!$C$10),\nSustituciones!$B$11,Sustituciones!$C$11),\nSustituciones!$B$12,Sustituciones!$C$12),\nSustituciones!$B$13,Sustituciones!$C$13),\nSustituciones!$B$14,Sustituciones!$C$14),\nSustituciones!$B$15,Sustituciones!$C$15),\nSustituciones!$B$16,Sustituciones!$C$16),\nSustituciones!$B$17,Sustituciones!$C$17),\nSustituciones!$B$18,Sustituciones!$C$18),\nSustituciones!$B$19,Sustituciones!$C$19),\nSustituciones!$B$20,Sustituciones!$C$20),\nSustituciones!$B$21,Sustituciones!$C$21),\nSustituciones!$B$22,Sustituciones!$C$22),\nSustituciones!$B$23,Sustituciones!$C$23)","v":"Yolanda Díaz Pérez"},null,null,{"$f":"SUBSTITUTE(SUBSTITUTE(SUBSTITUTE(SUBSTITUTE(SUBSTITUTE(SUBSTITUTE(SUBSTITUTE(SUBSTITUTE(SUBSTITUTE(SUBSTITUTE(SUBSTITUTE(SUBSTITUTE(SUBSTITUTE(SUBSTITUTE(SUBSTITUTE(SUBSTITUTE(SUBSTITUTE(SUBSTITUTE(SUBSTITUTE(SUBSTITUTE(SUBSTITUTE(SUBSTITUTE(D50,\nSustituciones!$D$2,Sustituciones!$E$2),\nSustituciones!$D$3,Sustituciones!$E$3),\nSustituciones!$D$4,Sustituciones!$E$4),\nSustituciones!$D$5,Sustituciones!$E$5),\nSustituciones!$D$6,Sustituciones!$E$6),\nSustituciones!$D$7,Sustituciones!$E$7),\nSustituciones!$D$8,Sustituciones!$E$8),\nSustituciones!$D$9,Sustituciones!$E$9),\nSustituciones!$D$10,Sustituciones!$E$10),\nSustituciones!$D$11,Sustituciones!$E$11),\nSustituciones!$D$12,Sustituciones!$E$12),\nSustituciones!$D$13,Sustituciones!$E$13),\nSustituciones!$D$14,Sustituciones!$E$14),\nSustituciones!$D$15,Sustituciones!$E$15),\nSustituciones!$D$16,Sustituciones!$E$16),\nSustituciones!$D$17,Sustituciones!$E$17),\nSustituciones!$D$18,Sustituciones!$E$18),\nSustituciones!$D$19,Sustituciones!$E$19),\nSustituciones!$D$20,Sustituciones!$E$20),\nSustituciones!$D$21,Sustituciones!$E$21),\nSustituciones!$D$22,Sustituciones!$E$22),\nSustituciones!$D$23,Sustituciones!$E$23)","v":""},null,null,null,null,"  ",false]
["Teresa Ribera Rodríguez",null,{"$f":"SUBSTITUTE(SUBSTITUTE(SUBSTITUTE(SUBSTITUTE(SUBSTITUTE(SUBSTITUTE(SUBSTITUTE(SUBSTITUTE(SUBSTITUTE(SUBSTITUTE(SUBSTITUTE(SUBSTITUTE(SUBSTITUTE(SUBSTITUTE(SUBSTITUTE(SUBSTITUTE(SUBSTITUTE(SUBSTITUTE(SUBSTITUTE(SUBSTITUTE(SUBSTITUTE(SUBSTITUTE(A51,\nSustituciones!$B$2,Sustituciones!$C$2),\nSustituciones!$B$3,Sustituciones!$C$3),\nSustituciones!$B$4,Sustituciones!$C$4),\nSustituciones!$B$5,Sustituciones!$C$5),\nSustituciones!$B$6,Sustituciones!$C$6),\nSustituciones!$B$7,Sustituciones!$C$7),\nSustituciones!$B$8,Sustituciones!$C$8),\nSustituciones!$B$9,Sustituciones!$C$9),\nSustituciones!$B$10,Sustituciones!$C$10),\nSustituciones!$B$11,Sustituciones!$C$11),\nSustituciones!$B$12,Sustituciones!$C$12),\nSustituciones!$B$13,Sustituciones!$C$13),\nSustituciones!$B$14,Sustituciones!$C$14),\nSustituciones!$B$15,Sustituciones!$C$15),\nSustituciones!$B$16,Sustituciones!$C$16),\nSustituciones!$B$17,Sustituciones!$C$17),\nSustituciones!$B$18,Sustituciones!$C$18),\nSustituciones!$B$19,Sustituciones!$C$19),\nSustituciones!$B$20,Sustituciones!$C$20),\nSustituciones!$B$21,Sustituciones!$C$21),\nSustituciones!$B$22,Sustituciones!$C$22),\nSustituciones!$B$23,Sustituciones!$C$23)","v":"Teresa Ribera Rodríguez"},null,null,{"$f":"SUBSTITUTE(SUBSTITUTE(SUBSTITUTE(SUBSTITUTE(SUBSTITUTE(SUBSTITUTE(SUBSTITUTE(SUBSTITUTE(SUBSTITUTE(SUBSTITUTE(SUBSTITUTE(SUBSTITUTE(SUBSTITUTE(SUBSTITUTE(SUBSTITUTE(SUBSTITUTE(SUBSTITUTE(SUBSTITUTE(SUBSTITUTE(SUBSTITUTE(SUBSTITUTE(SUBSTITUTE(D51,\nSustituciones!$D$2,Sustituciones!$E$2),\nSustituciones!$D$3,Sustituciones!$E$3),\nSustituciones!$D$4,Sustituciones!$E$4),\nSustituciones!$D$5,Sustituciones!$E$5),\nSustituciones!$D$6,Sustituciones!$E$6),\nSustituciones!$D$7,Sustituciones!$E$7),\nSustituciones!$D$8,Sustituciones!$E$8),\nSustituciones!$D$9,Sustituciones!$E$9),\nSustituciones!$D$10,Sustituciones!$E$10),\nSustituciones!$D$11,Sustituciones!$E$11),\nSustituciones!$D$12,Sustituciones!$E$12),\nSustituciones!$D$13,Sustituciones!$E$13),\nSustituciones!$D$14,Sustituciones!$E$14),\nSustituciones!$D$15,Sustituciones!$E$15),\nSustituciones!$D$16,Sustituciones!$E$16),\nSustituciones!$D$17,Sustituciones!$E$17),\nSustituciones!$D$18,Sustituciones!$E$18),\nSustituciones!$D$19,Sustituciones!$E$19),\nSustituciones!$D$20,Sustituciones!$E$20),\nSustituciones!$D$21,Sustituciones!$E$21),\nSustituciones!$D$22,Sustituciones!$E$22),\nSustituciones!$D$23,Sustituciones!$E$23)","v":""},null,null,null,null,"  ",false]
["José Manuel Albares Bueno",null,{"$f":"SUBSTITUTE(SUBSTITUTE(SUBSTITUTE(SUBSTITUTE(SUBSTITUTE(SUBSTITUTE(SUBSTITUTE(SUBSTITUTE(SUBSTITUTE(SUBSTITUTE(SUBSTITUTE(SUBSTITUTE(SUBSTITUTE(SUBSTITUTE(SUBSTITUTE(SUBSTITUTE(SUBSTITUTE(SUBSTITUTE(SUBSTITUTE(SUBSTITUTE(SUBSTITUTE(SUBSTITUTE(A52,\nSustituciones!$B$2,Sustituciones!$C$2),\nSustituciones!$B$3,Sustituciones!$C$3),\nSustituciones!$B$4,Sustituciones!$C$4),\nSustituciones!$B$5,Sustituciones!$C$5),\nSustituciones!$B$6,Sustituciones!$C$6),\nSustituciones!$B$7,Sustituciones!$C$7),\nSustituciones!$B$8,Sustituciones!$C$8),\nSustituciones!$B$9,Sustituciones!$C$9),\nSustituciones!$B$10,Sustituciones!$C$10),\nSustituciones!$B$11,Sustituciones!$C$11),\nSustituciones!$B$12,Sustituciones!$C$12),\nSustituciones!$B$13,Sustituciones!$C$13),\nSustituciones!$B$14,Sustituciones!$C$14),\nSustituciones!$B$15,Sustituciones!$C$15),\nSustituciones!$B$16,Sustituciones!$C$16),\nSustituciones!$B$17,Sustituciones!$C$17),\nSustituciones!$B$18,Sustituciones!$C$18),\nSustituciones!$B$19,Sustituciones!$C$19),\nSustituciones!$B$20,Sustituciones!$C$20),\nSustituciones!$B$21,Sustituciones!$C$21),\nSustituciones!$B$22,Sustituciones!$C$22),\nSustituciones!$B$23,Sustituciones!$C$23)","v":"José Manuel Albares Bueno"},null,null,{"$f":"SUBSTITUTE(SUBSTITUTE(SUBSTITUTE(SUBSTITUTE(SUBSTITUTE(SUBSTITUTE(SUBSTITUTE(SUBSTITUTE(SUBSTITUTE(SUBSTITUTE(SUBSTITUTE(SUBSTITUTE(SUBSTITUTE(SUBSTITUTE(SUBSTITUTE(SUBSTITUTE(SUBSTITUTE(SUBSTITUTE(SUBSTITUTE(SUBSTITUTE(SUBSTITUTE(SUBSTITUTE(D52,\nSustituciones!$D$2,Sustituciones!$E$2),\nSustituciones!$D$3,Sustituciones!$E$3),\nSustituciones!$D$4,Sustituciones!$E$4),\nSustituciones!$D$5,Sustituciones!$E$5),\nSustituciones!$D$6,Sustituciones!$E$6),\nSustituciones!$D$7,Sustituciones!$E$7),\nSustituciones!$D$8,Sustituciones!$E$8),\nSustituciones!$D$9,Sustituciones!$E$9),\nSustituciones!$D$10,Sustituciones!$E$10),\nSustituciones!$D$11,Sustituciones!$E$11),\nSustituciones!$D$12,Sustituciones!$E$12),\nSustituciones!$D$13,Sustituciones!$E$13),\nSustituciones!$D$14,Sustituciones!$E$14),\nSustituciones!$D$15,Sustituciones!$E$15),\nSustituciones!$D$16,Sustituciones!$E$16),\nSustituciones!$D$17,Sustituciones!$E$17),\nSustituciones!$D$18,Sustituciones!$E$18),\nSustituciones!$D$19,Sustituciones!$E$19),\nSustituciones!$D$20,Sustituciones!$E$20),\nSustituciones!$D$21,Sustituciones!$E$21),\nSustituciones!$D$22,Sustituciones!$E$22),\nSustituciones!$D$23,Sustituciones!$E$23)","v":""},null,null,null,null,"  ",false]
["Pilar Llop Cuenca",null,{"$f":"SUBSTITUTE(SUBSTITUTE(SUBSTITUTE(SUBSTITUTE(SUBSTITUTE(SUBSTITUTE(SUBSTITUTE(SUBSTITUTE(SUBSTITUTE(SUBSTITUTE(SUBSTITUTE(SUBSTITUTE(SUBSTITUTE(SUBSTITUTE(SUBSTITUTE(SUBSTITUTE(SUBSTITUTE(SUBSTITUTE(SUBSTITUTE(SUBSTITUTE(SUBSTITUTE(SUBSTITUTE(A53,\nSustituciones!$B$2,Sustituciones!$C$2),\nSustituciones!$B$3,Sustituciones!$C$3),\nSustituciones!$B$4,Sustituciones!$C$4),\nSustituciones!$B$5,Sustituciones!$C$5),\nSustituciones!$B$6,Sustituciones!$C$6),\nSustituciones!$B$7,Sustituciones!$C$7),\nSustituciones!$B$8,Sustituciones!$C$8),\nSustituciones!$B$9,Sustituciones!$C$9),\nSustituciones!$B$10,Sustituciones!$C$10),\nSustituciones!$B$11,Sustituciones!$C$11),\nSustituciones!$B$12,Sustituciones!$C$12),\nSustituciones!$B$13,Sustituciones!$C$13),\nSustituciones!$B$14,Sustituciones!$C$14),\nSustituciones!$B$15,Sustituciones!$C$15),\nSustituciones!$B$16,Sustituciones!$C$16),\nSustituciones!$B$17,Sustituciones!$C$17),\nSustituciones!$B$18,Sustituciones!$C$18),\nSustituciones!$B$19,Sustituciones!$C$19),\nSustituciones!$B$20,Sustituciones!$C$20),\nSustituciones!$B$21,Sustituciones!$C$21),\nSustituciones!$B$22,Sustituciones!$C$22),\nSustituciones!$B$23,Sustituciones!$C$23)","v":"Pilar Llop Cuenca"},null,null,{"$f":"SUBSTITUTE(SUBSTITUTE(SUBSTITUTE(SUBSTITUTE(SUBSTITUTE(SUBSTITUTE(SUBSTITUTE(SUBSTITUTE(SUBSTITUTE(SUBSTITUTE(SUBSTITUTE(SUBSTITUTE(SUBSTITUTE(SUBSTITUTE(SUBSTITUTE(SUBSTITUTE(SUBSTITUTE(SUBSTITUTE(SUBSTITUTE(SUBSTITUTE(SUBSTITUTE(SUBSTITUTE(D53,\nSustituciones!$D$2,Sustituciones!$E$2),\nSustituciones!$D$3,Sustituciones!$E$3),\nSustituciones!$D$4,Sustituciones!$E$4),\nSustituciones!$D$5,Sustituciones!$E$5),\nSustituciones!$D$6,Sustituciones!$E$6),\nSustituciones!$D$7,Sustituciones!$E$7),\nSustituciones!$D$8,Sustituciones!$E$8),\nSustituciones!$D$9,Sustituciones!$E$9),\nSustituciones!$D$10,Sustituciones!$E$10),\nSustituciones!$D$11,Sustituciones!$E$11),\nSustituciones!$D$12,Sustituciones!$E$12),\nSustituciones!$D$13,Sustituciones!$E$13),\nSustituciones!$D$14,Sustituciones!$E$14),\nSustituciones!$D$15,Sustituciones!$E$15),\nSustituciones!$D$16,Sustituciones!$E$16),\nSustituciones!$D$17,Sustituciones!$E$17),\nSustituciones!$D$18,Sustituciones!$E$18),\nSustituciones!$D$19,Sustituciones!$E$19),\nSustituciones!$D$20,Sustituciones!$E$20),\nSustituciones!$D$21,Sustituciones!$E$21),\nSustituciones!$D$22,Sustituciones!$E$22),\nSustituciones!$D$23,Sustituciones!$E$23)","v":""},null,null,null,null,"  ",false]
["Margarita Robles Fernández",null,{"$f":"SUBSTITUTE(SUBSTITUTE(SUBSTITUTE(SUBSTITUTE(SUBSTITUTE(SUBSTITUTE(SUBSTITUTE(SUBSTITUTE(SUBSTITUTE(SUBSTITUTE(SUBSTITUTE(SUBSTITUTE(SUBSTITUTE(SUBSTITUTE(SUBSTITUTE(SUBSTITUTE(SUBSTITUTE(SUBSTITUTE(SUBSTITUTE(SUBSTITUTE(SUBSTITUTE(SUBSTITUTE(A54,\nSustituciones!$B$2,Sustituciones!$C$2),\nSustituciones!$B$3,Sustituciones!$C$3),\nSustituciones!$B$4,Sustituciones!$C$4),\nSustituciones!$B$5,Sustituciones!$C$5),\nSustituciones!$B$6,Sustituciones!$C$6),\nSustituciones!$B$7,Sustituciones!$C$7),\nSustituciones!$B$8,Sustituciones!$C$8),\nSustituciones!$B$9,Sustituciones!$C$9),\nSustituciones!$B$10,Sustituciones!$C$10),\nSustituciones!$B$11,Sustituciones!$C$11),\nSustituciones!$B$12,Sustituciones!$C$12),\nSustituciones!$B$13,Sustituciones!$C$13),\nSustituciones!$B$14,Sustituciones!$C$14),\nSustituciones!$B$15,Sustituciones!$C$15),\nSustituciones!$B$16,Sustituciones!$C$16),\nSustituciones!$B$17,Sustituciones!$C$17),\nSustituciones!$B$18,Sustituciones!$C$18),\nSustituciones!$B$19,Sustituciones!$C$19),\nSustituciones!$B$20,Sustituciones!$C$20),\nSustituciones!$B$21,Sustituciones!$C$21),\nSustituciones!$B$22,Sustituciones!$C$22),\nSustituciones!$B$23,Sustituciones!$C$23)","v":"Margarita Robles Fernández"},null,null,{"$f":"SUBSTITUTE(SUBSTITUTE(SUBSTITUTE(SUBSTITUTE(SUBSTITUTE(SUBSTITUTE(SUBSTITUTE(SUBSTITUTE(SUBSTITUTE(SUBSTITUTE(SUBSTITUTE(SUBSTITUTE(SUBSTITUTE(SUBSTITUTE(SUBSTITUTE(SUBSTITUTE(SUBSTITUTE(SUBSTITUTE(SUBSTITUTE(SUBSTITUTE(SUBSTITUTE(SUBSTITUTE(D54,\nSustituciones!$D$2,Sustituciones!$E$2),\nSustituciones!$D$3,Sustituciones!$E$3),\nSustituciones!$D$4,Sustituciones!$E$4),\nSustituciones!$D$5,Sustituciones!$E$5),\nSustituciones!$D$6,Sustituciones!$E$6),\nSustituciones!$D$7,Sustituciones!$E$7),\nSustituciones!$D$8,Sustituciones!$E$8),\nSustituciones!$D$9,Sustituciones!$E$9),\nSustituciones!$D$10,Sustituciones!$E$10),\nSustituciones!$D$11,Sustituciones!$E$11),\nSustituciones!$D$12,Sustituciones!$E$12),\nSustituciones!$D$13,Sustituciones!$E$13),\nSustituciones!$D$14,Sustituciones!$E$14),\nSustituciones!$D$15,Sustituciones!$E$15),\nSustituciones!$D$16,Sustituciones!$E$16),\nSustituciones!$D$17,Sustituciones!$E$17),\nSustituciones!$D$18,Sustituciones!$E$18),\nSustituciones!$D$19,Sustituciones!$E$19),\nSustituciones!$D$20,Sustituciones!$E$20),\nSustituciones!$D$21,Sustituciones!$E$21),\nSustituciones!$D$22,Sustituciones!$E$22),\nSustituciones!$D$23,Sustituciones!$E$23)","v":""},null,null,null,null,"  ",false]
["María Jesús Montero Cuadrado",null,{"$f":"SUBSTITUTE(SUBSTITUTE(SUBSTITUTE(SUBSTITUTE(SUBSTITUTE(SUBSTITUTE(SUBSTITUTE(SUBSTITUTE(SUBSTITUTE(SUBSTITUTE(SUBSTITUTE(SUBSTITUTE(SUBSTITUTE(SUBSTITUTE(SUBSTITUTE(SUBSTITUTE(SUBSTITUTE(SUBSTITUTE(SUBSTITUTE(SUBSTITUTE(SUBSTITUTE(SUBSTITUTE(A55,\nSustituciones!$B$2,Sustituciones!$C$2),\nSustituciones!$B$3,Sustituciones!$C$3),\nSustituciones!$B$4,Sustituciones!$C$4),\nSustituciones!$B$5,Sustituciones!$C$5),\nSustituciones!$B$6,Sustituciones!$C$6),\nSustituciones!$B$7,Sustituciones!$C$7),\nSustituciones!$B$8,Sustituciones!$C$8),\nSustituciones!$B$9,Sustituciones!$C$9),\nSustituciones!$B$10,Sustituciones!$C$10),\nSustituciones!$B$11,Sustituciones!$C$11),\nSustituciones!$B$12,Sustituciones!$C$12),\nSustituciones!$B$13,Sustituciones!$C$13),\nSustituciones!$B$14,Sustituciones!$C$14),\nSustituciones!$B$15,Sustituciones!$C$15),\nSustituciones!$B$16,Sustituciones!$C$16),\nSustituciones!$B$17,Sustituciones!$C$17),\nSustituciones!$B$18,Sustituciones!$C$18),\nSustituciones!$B$19,Sustituciones!$C$19),\nSustituciones!$B$20,Sustituciones!$C$20),\nSustituciones!$B$21,Sustituciones!$C$21),\nSustituciones!$B$22,Sustituciones!$C$22),\nSustituciones!$B$23,Sustituciones!$C$23)","v":"María Jesús Montero Cuadrado"},null,null,{"$f":"SUBSTITUTE(SUBSTITUTE(SUBSTITUTE(SUBSTITUTE(SUBSTITUTE(SUBSTITUTE(SUBSTITUTE(SUBSTITUTE(SUBSTITUTE(SUBSTITUTE(SUBSTITUTE(SUBSTITUTE(SUBSTITUTE(SUBSTITUTE(SUBSTITUTE(SUBSTITUTE(SUBSTITUTE(SUBSTITUTE(SUBSTITUTE(SUBSTITUTE(SUBSTITUTE(SUBSTITUTE(D55,\nSustituciones!$D$2,Sustituciones!$E$2),\nSustituciones!$D$3,Sustituciones!$E$3),\nSustituciones!$D$4,Sustituciones!$E$4),\nSustituciones!$D$5,Sustituciones!$E$5),\nSustituciones!$D$6,Sustituciones!$E$6),\nSustituciones!$D$7,Sustituciones!$E$7),\nSustituciones!$D$8,Sustituciones!$E$8),\nSustituciones!$D$9,Sustituciones!$E$9),\nSustituciones!$D$10,Sustituciones!$E$10),\nSustituciones!$D$11,Sustituciones!$E$11),\nSustituciones!$D$12,Sustituciones!$E$12),\nSustituciones!$D$13,Sustituciones!$E$13),\nSustituciones!$D$14,Sustituciones!$E$14),\nSustituciones!$D$15,Sustituciones!$E$15),\nSustituciones!$D$16,Sustituciones!$E$16),\nSustituciones!$D$17,Sustituciones!$E$17),\nSustituciones!$D$18,Sustituciones!$E$18),\nSustituciones!$D$19,Sustituciones!$E$19),\nSustituciones!$D$20,Sustituciones!$E$20),\nSustituciones!$D$21,Sustituciones!$E$21),\nSustituciones!$D$22,Sustituciones!$E$22),\nSustituciones!$D$23,Sustituciones!$E$23)","v":""},null,null,null,null,"  ",false]
["Fernando Grande-Marlaska Gómez",null,{"$f":"SUBSTITUTE(SUBSTITUTE(SUBSTITUTE(SUBSTITUTE(SUBSTITUTE(SUBSTITUTE(SUBSTITUTE(SUBSTITUTE(SUBSTITUTE(SUBSTITUTE(SUBSTITUTE(SUBSTITUTE(SUBSTITUTE(SUBSTITUTE(SUBSTITUTE(SUBSTITUTE(SUBSTITUTE(SUBSTITUTE(SUBSTITUTE(SUBSTITUTE(SUBSTITUTE(SUBSTITUTE(A56,\nSustituciones!$B$2,Sustituciones!$C$2),\nSustituciones!$B$3,Sustituciones!$C$3),\nSustituciones!$B$4,Sustituciones!$C$4),\nSustituciones!$B$5,Sustituciones!$C$5),\nSustituciones!$B$6,Sustituciones!$C$6),\nSustituciones!$B$7,Sustituciones!$C$7),\nSustituciones!$B$8,Sustituciones!$C$8),\nSustituciones!$B$9,Sustituciones!$C$9),\nSustituciones!$B$10,Sustituciones!$C$10),\nSustituciones!$B$11,Sustituciones!$C$11),\nSustituciones!$B$12,Sustituciones!$C$12),\nSustituciones!$B$13,Sustituciones!$C$13),\nSustituciones!$B$14,Sustituciones!$C$14),\nSustituciones!$B$15,Sustituciones!$C$15),\nSustituciones!$B$16,Sustituciones!$C$16),\nSustituciones!$B$17,Sustituciones!$C$17),\nSustituciones!$B$18,Sustituciones!$C$18),\nSustituciones!$B$19,Sustituciones!$C$19),\nSustituciones!$B$20,Sustituciones!$C$20),\nSustituciones!$B$21,Sustituciones!$C$21),\nSustituciones!$B$22,Sustituciones!$C$22),\nSustituciones!$B$23,Sustituciones!$C$23)","v":"Fernando Grande-Marlaska Gómez"},null,null,{"$f":"SUBSTITUTE(SUBSTITUTE(SUBSTITUTE(SUBSTITUTE(SUBSTITUTE(SUBSTITUTE(SUBSTITUTE(SUBSTITUTE(SUBSTITUTE(SUBSTITUTE(SUBSTITUTE(SUBSTITUTE(SUBSTITUTE(SUBSTITUTE(SUBSTITUTE(SUBSTITUTE(SUBSTITUTE(SUBSTITUTE(SUBSTITUTE(SUBSTITUTE(SUBSTITUTE(SUBSTITUTE(D56,\nSustituciones!$D$2,Sustituciones!$E$2),\nSustituciones!$D$3,Sustituciones!$E$3),\nSustituciones!$D$4,Sustituciones!$E$4),\nSustituciones!$D$5,Sustituciones!$E$5),\nSustituciones!$D$6,Sustituciones!$E$6),\nSustituciones!$D$7,Sustituciones!$E$7),\nSustituciones!$D$8,Sustituciones!$E$8),\nSustituciones!$D$9,Sustituciones!$E$9),\nSustituciones!$D$10,Sustituciones!$E$10),\nSustituciones!$D$11,Sustituciones!$E$11),\nSustituciones!$D$12,Sustituciones!$E$12),\nSustituciones!$D$13,Sustituciones!$E$13),\nSustituciones!$D$14,Sustituciones!$E$14),\nSustituciones!$D$15,Sustituciones!$E$15),\nSustituciones!$D$16,Sustituciones!$E$16),\nSustituciones!$D$17,Sustituciones!$E$17),\nSustituciones!$D$18,Sustituciones!$E$18),\nSustituciones!$D$19,Sustituciones!$E$19),\nSustituciones!$D$20,Sustituciones!$E$20),\nSustituciones!$D$21,Sustituciones!$E$21),\nSustituciones!$D$22,Sustituciones!$E$22),\nSustituciones!$D$23,Sustituciones!$E$23)","v":""},null,null,null,null,"  ",false]
["Raquel Sánchez Jiménez",null,{"$f":"SUBSTITUTE(SUBSTITUTE(SUBSTITUTE(SUBSTITUTE(SUBSTITUTE(SUBSTITUTE(SUBSTITUTE(SUBSTITUTE(SUBSTITUTE(SUBSTITUTE(SUBSTITUTE(SUBSTITUTE(SUBSTITUTE(SUBSTITUTE(SUBSTITUTE(SUBSTITUTE(SUBSTITUTE(SUBSTITUTE(SUBSTITUTE(SUBSTITUTE(SUBSTITUTE(SUBSTITUTE(A57,\nSustituciones!$B$2,Sustituciones!$C$2),\nSustituciones!$B$3,Sustituciones!$C$3),\nSustituciones!$B$4,Sustituciones!$C$4),\nSustituciones!$B$5,Sustituciones!$C$5),\nSustituciones!$B$6,Sustituciones!$C$6),\nSustituciones!$B$7,Sustituciones!$C$7),\nSustituciones!$B$8,Sustituciones!$C$8),\nSustituciones!$B$9,Sustituciones!$C$9),\nSustituciones!$B$10,Sustituciones!$C$10),\nSustituciones!$B$11,Sustituciones!$C$11),\nSustituciones!$B$12,Sustituciones!$C$12),\nSustituciones!$B$13,Sustituciones!$C$13),\nSustituciones!$B$14,Sustituciones!$C$14),\nSustituciones!$B$15,Sustituciones!$C$15),\nSustituciones!$B$16,Sustituciones!$C$16),\nSustituciones!$B$17,Sustituciones!$C$17),\nSustituciones!$B$18,Sustituciones!$C$18),\nSustituciones!$B$19,Sustituciones!$C$19),\nSustituciones!$B$20,Sustituciones!$C$20),\nSustituciones!$B$21,Sustituciones!$C$21),\nSustituciones!$B$22,Sustituciones!$C$22),\nSustituciones!$B$23,Sustituciones!$C$23)","v":"Raquel Sánchez Jiménez"},null,null,{"$f":"SUBSTITUTE(SUBSTITUTE(SUBSTITUTE(SUBSTITUTE(SUBSTITUTE(SUBSTITUTE(SUBSTITUTE(SUBSTITUTE(SUBSTITUTE(SUBSTITUTE(SUBSTITUTE(SUBSTITUTE(SUBSTITUTE(SUBSTITUTE(SUBSTITUTE(SUBSTITUTE(SUBSTITUTE(SUBSTITUTE(SUBSTITUTE(SUBSTITUTE(SUBSTITUTE(SUBSTITUTE(D57,\nSustituciones!$D$2,Sustituciones!$E$2),\nSustituciones!$D$3,Sustituciones!$E$3),\nSustituciones!$D$4,Sustituciones!$E$4),\nSustituciones!$D$5,Sustituciones!$E$5),\nSustituciones!$D$6,Sustituciones!$E$6),\nSustituciones!$D$7,Sustituciones!$E$7),\nSustituciones!$D$8,Sustituciones!$E$8),\nSustituciones!$D$9,Sustituciones!$E$9),\nSustituciones!$D$10,Sustituciones!$E$10),\nSustituciones!$D$11,Sustituciones!$E$11),\nSustituciones!$D$12,Sustituciones!$E$12),\nSustituciones!$D$13,Sustituciones!$E$13),\nSustituciones!$D$14,Sustituciones!$E$14),\nSustituciones!$D$15,Sustituciones!$E$15),\nSustituciones!$D$16,Sustituciones!$E$16),\nSustituciones!$D$17,Sustituciones!$E$17),\nSustituciones!$D$18,Sustituciones!$E$18),\nSustituciones!$D$19,Sustituciones!$E$19),\nSustituciones!$D$20,Sustituciones!$E$20),\nSustituciones!$D$21,Sustituciones!$E$21),\nSustituciones!$D$22,Sustituciones!$E$22),\nSustituciones!$D$23,Sustituciones!$E$23)","v":""},null,null,null,null,"  ",false]
["Pilar Alegría Continente",null,{"$f":"SUBSTITUTE(SUBSTITUTE(SUBSTITUTE(SUBSTITUTE(SUBSTITUTE(SUBSTITUTE(SUBSTITUTE(SUBSTITUTE(SUBSTITUTE(SUBSTITUTE(SUBSTITUTE(SUBSTITUTE(SUBSTITUTE(SUBSTITUTE(SUBSTITUTE(SUBSTITUTE(SUBSTITUTE(SUBSTITUTE(SUBSTITUTE(SUBSTITUTE(SUBSTITUTE(SUBSTITUTE(A58,\nSustituciones!$B$2,Sustituciones!$C$2),\nSustituciones!$B$3,Sustituciones!$C$3),\nSustituciones!$B$4,Sustituciones!$C$4),\nSustituciones!$B$5,Sustituciones!$C$5),\nSustituciones!$B$6,Sustituciones!$C$6),\nSustituciones!$B$7,Sustituciones!$C$7),\nSustituciones!$B$8,Sustituciones!$C$8),\nSustituciones!$B$9,Sustituciones!$C$9),\nSustituciones!$B$10,Sustituciones!$C$10),\nSustituciones!$B$11,Sustituciones!$C$11),\nSustituciones!$B$12,Sustituciones!$C$12),\nSustituciones!$B$13,Sustituciones!$C$13),\nSustituciones!$B$14,Sustituciones!$C$14),\nSustituciones!$B$15,Sustituciones!$C$15),\nSustituciones!$B$16,Sustituciones!$C$16),\nSustituciones!$B$17,Sustituciones!$C$17),\nSustituciones!$B$18,Sustituciones!$C$18),\nSustituciones!$B$19,Sustituciones!$C$19),\nSustituciones!$B$20,Sustituciones!$C$20),\nSustituciones!$B$21,Sustituciones!$C$21),\nSustituciones!$B$22,Sustituciones!$C$22),\nSustituciones!$B$23,Sustituciones!$C$23)","v":"Pilar Alegría Continente"},null,null,{"$f":"SUBSTITUTE(SUBSTITUTE(SUBSTITUTE(SUBSTITUTE(SUBSTITUTE(SUBSTITUTE(SUBSTITUTE(SUBSTITUTE(SUBSTITUTE(SUBSTITUTE(SUBSTITUTE(SUBSTITUTE(SUBSTITUTE(SUBSTITUTE(SUBSTITUTE(SUBSTITUTE(SUBSTITUTE(SUBSTITUTE(SUBSTITUTE(SUBSTITUTE(SUBSTITUTE(SUBSTITUTE(D58,\nSustituciones!$D$2,Sustituciones!$E$2),\nSustituciones!$D$3,Sustituciones!$E$3),\nSustituciones!$D$4,Sustituciones!$E$4),\nSustituciones!$D$5,Sustituciones!$E$5),\nSustituciones!$D$6,Sustituciones!$E$6),\nSustituciones!$D$7,Sustituciones!$E$7),\nSustituciones!$D$8,Sustituciones!$E$8),\nSustituciones!$D$9,Sustituciones!$E$9),\nSustituciones!$D$10,Sustituciones!$E$10),\nSustituciones!$D$11,Sustituciones!$E$11),\nSustituciones!$D$12,Sustituciones!$E$12),\nSustituciones!$D$13,Sustituciones!$E$13),\nSustituciones!$D$14,Sustituciones!$E$14),\nSustituciones!$D$15,Sustituciones!$E$15),\nSustituciones!$D$16,Sustituciones!$E$16),\nSustituciones!$D$17,Sustituciones!$E$17),\nSustituciones!$D$18,Sustituciones!$E$18),\nSustituciones!$D$19,Sustituciones!$E$19),\nSustituciones!$D$20,Sustituciones!$E$20),\nSustituciones!$D$21,Sustituciones!$E$21),\nSustituciones!$D$22,Sustituciones!$E$22),\nSustituciones!$D$23,Sustituciones!$E$23)","v":""},null,null,null,null,"  ",false]
["Reyes Maroto Illera",null,{"$f":"SUBSTITUTE(SUBSTITUTE(SUBSTITUTE(SUBSTITUTE(SUBSTITUTE(SUBSTITUTE(SUBSTITUTE(SUBSTITUTE(SUBSTITUTE(SUBSTITUTE(SUBSTITUTE(SUBSTITUTE(SUBSTITUTE(SUBSTITUTE(SUBSTITUTE(SUBSTITUTE(SUBSTITUTE(SUBSTITUTE(SUBSTITUTE(SUBSTITUTE(SUBSTITUTE(SUBSTITUTE(A59,\nSustituciones!$B$2,Sustituciones!$C$2),\nSustituciones!$B$3,Sustituciones!$C$3),\nSustituciones!$B$4,Sustituciones!$C$4),\nSustituciones!$B$5,Sustituciones!$C$5),\nSustituciones!$B$6,Sustituciones!$C$6),\nSustituciones!$B$7,Sustituciones!$C$7),\nSustituciones!$B$8,Sustituciones!$C$8),\nSustituciones!$B$9,Sustituciones!$C$9),\nSustituciones!$B$10,Sustituciones!$C$10),\nSustituciones!$B$11,Sustituciones!$C$11),\nSustituciones!$B$12,Sustituciones!$C$12),\nSustituciones!$B$13,Sustituciones!$C$13),\nSustituciones!$B$14,Sustituciones!$C$14),\nSustituciones!$B$15,Sustituciones!$C$15),\nSustituciones!$B$16,Sustituciones!$C$16),\nSustituciones!$B$17,Sustituciones!$C$17),\nSustituciones!$B$18,Sustituciones!$C$18),\nSustituciones!$B$19,Sustituciones!$C$19),\nSustituciones!$B$20,Sustituciones!$C$20),\nSustituciones!$B$21,Sustituciones!$C$21),\nSustituciones!$B$22,Sustituciones!$C$22),\nSustituciones!$B$23,Sustituciones!$C$23)","v":"Reyes Maroto Illera"},null,null,{"$f":"SUBSTITUTE(SUBSTITUTE(SUBSTITUTE(SUBSTITUTE(SUBSTITUTE(SUBSTITUTE(SUBSTITUTE(SUBSTITUTE(SUBSTITUTE(SUBSTITUTE(SUBSTITUTE(SUBSTITUTE(SUBSTITUTE(SUBSTITUTE(SUBSTITUTE(SUBSTITUTE(SUBSTITUTE(SUBSTITUTE(SUBSTITUTE(SUBSTITUTE(SUBSTITUTE(SUBSTITUTE(D59,\nSustituciones!$D$2,Sustituciones!$E$2),\nSustituciones!$D$3,Sustituciones!$E$3),\nSustituciones!$D$4,Sustituciones!$E$4),\nSustituciones!$D$5,Sustituciones!$E$5),\nSustituciones!$D$6,Sustituciones!$E$6),\nSustituciones!$D$7,Sustituciones!$E$7),\nSustituciones!$D$8,Sustituciones!$E$8),\nSustituciones!$D$9,Sustituciones!$E$9),\nSustituciones!$D$10,Sustituciones!$E$10),\nSustituciones!$D$11,Sustituciones!$E$11),\nSustituciones!$D$12,Sustituciones!$E$12),\nSustituciones!$D$13,Sustituciones!$E$13),\nSustituciones!$D$14,Sustituciones!$E$14),\nSustituciones!$D$15,Sustituciones!$E$15),\nSustituciones!$D$16,Sustituciones!$E$16),\nSustituciones!$D$17,Sustituciones!$E$17),\nSustituciones!$D$18,Sustituciones!$E$18),\nSustituciones!$D$19,Sustituciones!$E$19),\nSustituciones!$D$20,Sustituciones!$E$20),\nSustituciones!$D$21,Sustituciones!$E$21),\nSustituciones!$D$22,Sustituciones!$E$22),\nSustituciones!$D$23,Sustituciones!$E$23)","v":""},null,null,null,null,"  ",false]
["Luis Planas Puchades",null,{"$f":"SUBSTITUTE(SUBSTITUTE(SUBSTITUTE(SUBSTITUTE(SUBSTITUTE(SUBSTITUTE(SUBSTITUTE(SUBSTITUTE(SUBSTITUTE(SUBSTITUTE(SUBSTITUTE(SUBSTITUTE(SUBSTITUTE(SUBSTITUTE(SUBSTITUTE(SUBSTITUTE(SUBSTITUTE(SUBSTITUTE(SUBSTITUTE(SUBSTITUTE(SUBSTITUTE(SUBSTITUTE(A60,\nSustituciones!$B$2,Sustituciones!$C$2),\nSustituciones!$B$3,Sustituciones!$C$3),\nSustituciones!$B$4,Sustituciones!$C$4),\nSustituciones!$B$5,Sustituciones!$C$5),\nSustituciones!$B$6,Sustituciones!$C$6),\nSustituciones!$B$7,Sustituciones!$C$7),\nSustituciones!$B$8,Sustituciones!$C$8),\nSustituciones!$B$9,Sustituciones!$C$9),\nSustituciones!$B$10,Sustituciones!$C$10),\nSustituciones!$B$11,Sustituciones!$C$11),\nSustituciones!$B$12,Sustituciones!$C$12),\nSustituciones!$B$13,Sustituciones!$C$13),\nSustituciones!$B$14,Sustituciones!$C$14),\nSustituciones!$B$15,Sustituciones!$C$15),\nSustituciones!$B$16,Sustituciones!$C$16),\nSustituciones!$B$17,Sustituciones!$C$17),\nSustituciones!$B$18,Sustituciones!$C$18),\nSustituciones!$B$19,Sustituciones!$C$19),\nSustituciones!$B$20,Sustituciones!$C$20),\nSustituciones!$B$21,Sustituciones!$C$21),\nSustituciones!$B$22,Sustituciones!$C$22),\nSustituciones!$B$23,Sustituciones!$C$23)","v":"Luis Planas Puchades"},null,null,{"$f":"SUBSTITUTE(SUBSTITUTE(SUBSTITUTE(SUBSTITUTE(SUBSTITUTE(SUBSTITUTE(SUBSTITUTE(SUBSTITUTE(SUBSTITUTE(SUBSTITUTE(SUBSTITUTE(SUBSTITUTE(SUBSTITUTE(SUBSTITUTE(SUBSTITUTE(SUBSTITUTE(SUBSTITUTE(SUBSTITUTE(SUBSTITUTE(SUBSTITUTE(SUBSTITUTE(SUBSTITUTE(D60,\nSustituciones!$D$2,Sustituciones!$E$2),\nSustituciones!$D$3,Sustituciones!$E$3),\nSustituciones!$D$4,Sustituciones!$E$4),\nSustituciones!$D$5,Sustituciones!$E$5),\nSustituciones!$D$6,Sustituciones!$E$6),\nSustituciones!$D$7,Sustituciones!$E$7),\nSustituciones!$D$8,Sustituciones!$E$8),\nSustituciones!$D$9,Sustituciones!$E$9),\nSustituciones!$D$10,Sustituciones!$E$10),\nSustituciones!$D$11,Sustituciones!$E$11),\nSustituciones!$D$12,Sustituciones!$E$12),\nSustituciones!$D$13,Sustituciones!$E$13),\nSustituciones!$D$14,Sustituciones!$E$14),\nSustituciones!$D$15,Sustituciones!$E$15),\nSustituciones!$D$16,Sustituciones!$E$16),\nSustituciones!$D$17,Sustituciones!$E$17),\nSustituciones!$D$18,Sustituciones!$E$18),\nSustituciones!$D$19,Sustituciones!$E$19),\nSustituciones!$D$20,Sustituciones!$E$20),\nSustituciones!$D$21,Sustituciones!$E$21),\nSustituciones!$D$22,Sustituciones!$E$22),\nSustituciones!$D$23,Sustituciones!$E$23)","v":""},null,null,null,null,"  ",false]
["Félix Bolaños García",null,{"$f":"SUBSTITUTE(SUBSTITUTE(SUBSTITUTE(SUBSTITUTE(SUBSTITUTE(SUBSTITUTE(SUBSTITUTE(SUBSTITUTE(SUBSTITUTE(SUBSTITUTE(SUBSTITUTE(SUBSTITUTE(SUBSTITUTE(SUBSTITUTE(SUBSTITUTE(SUBSTITUTE(SUBSTITUTE(SUBSTITUTE(SUBSTITUTE(SUBSTITUTE(SUBSTITUTE(SUBSTITUTE(A61,\nSustituciones!$B$2,Sustituciones!$C$2),\nSustituciones!$B$3,Sustituciones!$C$3),\nSustituciones!$B$4,Sustituciones!$C$4),\nSustituciones!$B$5,Sustituciones!$C$5),\nSustituciones!$B$6,Sustituciones!$C$6),\nSustituciones!$B$7,Sustituciones!$C$7),\nSustituciones!$B$8,Sustituciones!$C$8),\nSustituciones!$B$9,Sustituciones!$C$9),\nSustituciones!$B$10,Sustituciones!$C$10),\nSustituciones!$B$11,Sustituciones!$C$11),\nSustituciones!$B$12,Sustituciones!$C$12),\nSustituciones!$B$13,Sustituciones!$C$13),\nSustituciones!$B$14,Sustituciones!$C$14),\nSustituciones!$B$15,Sustituciones!$C$15),\nSustituciones!$B$16,Sustituciones!$C$16),\nSustituciones!$B$17,Sustituciones!$C$17),\nSustituciones!$B$18,Sustituciones!$C$18),\nSustituciones!$B$19,Sustituciones!$C$19),\nSustituciones!$B$20,Sustituciones!$C$20),\nSustituciones!$B$21,Sustituciones!$C$21),\nSustituciones!$B$22,Sustituciones!$C$22),\nSustituciones!$B$23,Sustituciones!$C$23)","v":"Félix Bolaños García"},null,null,{"$f":"SUBSTITUTE(SUBSTITUTE(SUBSTITUTE(SUBSTITUTE(SUBSTITUTE(SUBSTITUTE(SUBSTITUTE(SUBSTITUTE(SUBSTITUTE(SUBSTITUTE(SUBSTITUTE(SUBSTITUTE(SUBSTITUTE(SUBSTITUTE(SUBSTITUTE(SUBSTITUTE(SUBSTITUTE(SUBSTITUTE(SUBSTITUTE(SUBSTITUTE(SUBSTITUTE(SUBSTITUTE(D61,\nSustituciones!$D$2,Sustituciones!$E$2),\nSustituciones!$D$3,Sustituciones!$E$3),\nSustituciones!$D$4,Sustituciones!$E$4),\nSustituciones!$D$5,Sustituciones!$E$5),\nSustituciones!$D$6,Sustituciones!$E$6),\nSustituciones!$D$7,Sustituciones!$E$7),\nSustituciones!$D$8,Sustituciones!$E$8),\nSustituciones!$D$9,Sustituciones!$E$9),\nSustituciones!$D$10,Sustituciones!$E$10),\nSustituciones!$D$11,Sustituciones!$E$11),\nSustituciones!$D$12,Sustituciones!$E$12),\nSustituciones!$D$13,Sustituciones!$E$13),\nSustituciones!$D$14,Sustituciones!$E$14),\nSustituciones!$D$15,Sustituciones!$E$15),\nSustituciones!$D$16,Sustituciones!$E$16),\nSustituciones!$D$17,Sustituciones!$E$17),\nSustituciones!$D$18,Sustituciones!$E$18),\nSustituciones!$D$19,Sustituciones!$E$19),\nSustituciones!$D$20,Sustituciones!$E$20),\nSustituciones!$D$21,Sustituciones!$E$21),\nSustituciones!$D$22,Sustituciones!$E$22),\nSustituciones!$D$23,Sustituciones!$E$23)","v":""},null,null,null,null,"  ",false]
["Isabel Rodríguez García",null,{"$f":"SUBSTITUTE(SUBSTITUTE(SUBSTITUTE(SUBSTITUTE(SUBSTITUTE(SUBSTITUTE(SUBSTITUTE(SUBSTITUTE(SUBSTITUTE(SUBSTITUTE(SUBSTITUTE(SUBSTITUTE(SUBSTITUTE(SUBSTITUTE(SUBSTITUTE(SUBSTITUTE(SUBSTITUTE(SUBSTITUTE(SUBSTITUTE(SUBSTITUTE(SUBSTITUTE(SUBSTITUTE(A62,\nSustituciones!$B$2,Sustituciones!$C$2),\nSustituciones!$B$3,Sustituciones!$C$3),\nSustituciones!$B$4,Sustituciones!$C$4),\nSustituciones!$B$5,Sustituciones!$C$5),\nSustituciones!$B$6,Sustituciones!$C$6),\nSustituciones!$B$7,Sustituciones!$C$7),\nSustituciones!$B$8,Sustituciones!$C$8),\nSustituciones!$B$9,Sustituciones!$C$9),\nSustituciones!$B$10,Sustituciones!$C$10),\nSustituciones!$B$11,Sustituciones!$C$11),\nSustituciones!$B$12,Sustituciones!$C$12),\nSustituciones!$B$13,Sustituciones!$C$13),\nSustituciones!$B$14,Sustituciones!$C$14),\nSustituciones!$B$15,Sustituciones!$C$15),\nSustituciones!$B$16,Sustituciones!$C$16),\nSustituciones!$B$17,Sustituciones!$C$17),\nSustituciones!$B$18,Sustituciones!$C$18),\nSustituciones!$B$19,Sustituciones!$C$19),\nSustituciones!$B$20,Sustituciones!$C$20),\nSustituciones!$B$21,Sustituciones!$C$21),\nSustituciones!$B$22,Sustituciones!$C$22),\nSustituciones!$B$23,Sustituciones!$C$23)","v":"Isabel Rodríguez García"},null,null,{"$f":"SUBSTITUTE(SUBSTITUTE(SUBSTITUTE(SUBSTITUTE(SUBSTITUTE(SUBSTITUTE(SUBSTITUTE(SUBSTITUTE(SUBSTITUTE(SUBSTITUTE(SUBSTITUTE(SUBSTITUTE(SUBSTITUTE(SUBSTITUTE(SUBSTITUTE(SUBSTITUTE(SUBSTITUTE(SUBSTITUTE(SUBSTITUTE(SUBSTITUTE(SUBSTITUTE(SUBSTITUTE(D62,\nSustituciones!$D$2,Sustituciones!$E$2),\nSustituciones!$D$3,Sustituciones!$E$3),\nSustituciones!$D$4,Sustituciones!$E$4),\nSustituciones!$D$5,Sustituciones!$E$5),\nSustituciones!$D$6,Sustituciones!$E$6),\nSustituciones!$D$7,Sustituciones!$E$7),\nSustituciones!$D$8,Sustituciones!$E$8),\nSustituciones!$D$9,Sustituciones!$E$9),\nSustituciones!$D$10,Sustituciones!$E$10),\nSustituciones!$D$11,Sustituciones!$E$11),\nSustituciones!$D$12,Sustituciones!$E$12),\nSustituciones!$D$13,Sustituciones!$E$13),\nSustituciones!$D$14,Sustituciones!$E$14),\nSustituciones!$D$15,Sustituciones!$E$15),\nSustituciones!$D$16,Sustituciones!$E$16),\nSustituciones!$D$17,Sustituciones!$E$17),\nSustituciones!$D$18,Sustituciones!$E$18),\nSustituciones!$D$19,Sustituciones!$E$19),\nSustituciones!$D$20,Sustituciones!$E$20),\nSustituciones!$D$21,Sustituciones!$E$21),\nSustituciones!$D$22,Sustituciones!$E$22),\nSustituciones!$D$23,Sustituciones!$E$23)","v":""},null,null,null,null,"  ",false]
["Miquel Iceta Llorens",null,{"$f":"SUBSTITUTE(SUBSTITUTE(SUBSTITUTE(SUBSTITUTE(SUBSTITUTE(SUBSTITUTE(SUBSTITUTE(SUBSTITUTE(SUBSTITUTE(SUBSTITUTE(SUBSTITUTE(SUBSTITUTE(SUBSTITUTE(SUBSTITUTE(SUBSTITUTE(SUBSTITUTE(SUBSTITUTE(SUBSTITUTE(SUBSTITUTE(SUBSTITUTE(SUBSTITUTE(SUBSTITUTE(A63,\nSustituciones!$B$2,Sustituciones!$C$2),\nSustituciones!$B$3,Sustituciones!$C$3),\nSustituciones!$B$4,Sustituciones!$C$4),\nSustituciones!$B$5,Sustituciones!$C$5),\nSustituciones!$B$6,Sustituciones!$C$6),\nSustituciones!$B$7,Sustituciones!$C$7),\nSustituciones!$B$8,Sustituciones!$C$8),\nSustituciones!$B$9,Sustituciones!$C$9),\nSustituciones!$B$10,Sustituciones!$C$10),\nSustituciones!$B$11,Sustituciones!$C$11),\nSustituciones!$B$12,Sustituciones!$C$12),\nSustituciones!$B$13,Sustituciones!$C$13),\nSustituciones!$B$14,Sustituciones!$C$14),\nSustituciones!$B$15,Sustituciones!$C$15),\nSustituciones!$B$16,Sustituciones!$C$16),\nSustituciones!$B$17,Sustituciones!$C$17),\nSustituciones!$B$18,Sustituciones!$C$18),\nSustituciones!$B$19,Sustituciones!$C$19),\nSustituciones!$B$20,Sustituciones!$C$20),\nSustituciones!$B$21,Sustituciones!$C$21),\nSustituciones!$B$22,Sustituciones!$C$22),\nSustituciones!$B$23,Sustituciones!$C$23)","v":"Miquel Iceta Llorens"},null,null,{"$f":"SUBSTITUTE(SUBSTITUTE(SUBSTITUTE(SUBSTITUTE(SUBSTITUTE(SUBSTITUTE(SUBSTITUTE(SUBSTITUTE(SUBSTITUTE(SUBSTITUTE(SUBSTITUTE(SUBSTITUTE(SUBSTITUTE(SUBSTITUTE(SUBSTITUTE(SUBSTITUTE(SUBSTITUTE(SUBSTITUTE(SUBSTITUTE(SUBSTITUTE(SUBSTITUTE(SUBSTITUTE(D63,\nSustituciones!$D$2,Sustituciones!$E$2),\nSustituciones!$D$3,Sustituciones!$E$3),\nSustituciones!$D$4,Sustituciones!$E$4),\nSustituciones!$D$5,Sustituciones!$E$5),\nSustituciones!$D$6,Sustituciones!$E$6),\nSustituciones!$D$7,Sustituciones!$E$7),\nSustituciones!$D$8,Sustituciones!$E$8),\nSustituciones!$D$9,Sustituciones!$E$9),\nSustituciones!$D$10,Sustituciones!$E$10),\nSustituciones!$D$11,Sustituciones!$E$11),\nSustituciones!$D$12,Sustituciones!$E$12),\nSustituciones!$D$13,Sustituciones!$E$13),\nSustituciones!$D$14,Sustituciones!$E$14),\nSustituciones!$D$15,Sustituciones!$E$15),\nSustituciones!$D$16,Sustituciones!$E$16),\nSustituciones!$D$17,Sustituciones!$E$17),\nSustituciones!$D$18,Sustituciones!$E$18),\nSustituciones!$D$19,Sustituciones!$E$19),\nSustituciones!$D$20,Sustituciones!$E$20),\nSustituciones!$D$21,Sustituciones!$E$21),\nSustituciones!$D$22,Sustituciones!$E$22),\nSustituciones!$D$23,Sustituciones!$E$23)","v":""},null,null,null,null,"  ",false]
["Carolina Darias San Sebastián",null,{"$f":"SUBSTITUTE(SUBSTITUTE(SUBSTITUTE(SUBSTITUTE(SUBSTITUTE(SUBSTITUTE(SUBSTITUTE(SUBSTITUTE(SUBSTITUTE(SUBSTITUTE(SUBSTITUTE(SUBSTITUTE(SUBSTITUTE(SUBSTITUTE(SUBSTITUTE(SUBSTITUTE(SUBSTITUTE(SUBSTITUTE(SUBSTITUTE(SUBSTITUTE(SUBSTITUTE(SUBSTITUTE(A64,\nSustituciones!$B$2,Sustituciones!$C$2),\nSustituciones!$B$3,Sustituciones!$C$3),\nSustituciones!$B$4,Sustituciones!$C$4),\nSustituciones!$B$5,Sustituciones!$C$5),\nSustituciones!$B$6,Sustituciones!$C$6),\nSustituciones!$B$7,Sustituciones!$C$7),\nSustituciones!$B$8,Sustituciones!$C$8),\nSustituciones!$B$9,Sustituciones!$C$9),\nSustituciones!$B$10,Sustituciones!$C$10),\nSustituciones!$B$11,Sustituciones!$C$11),\nSustituciones!$B$12,Sustituciones!$C$12),\nSustituciones!$B$13,Sustituciones!$C$13),\nSustituciones!$B$14,Sustituciones!$C$14),\nSustituciones!$B$15,Sustituciones!$C$15),\nSustituciones!$B$16,Sustituciones!$C$16),\nSustituciones!$B$17,Sustituciones!$C$17),\nSustituciones!$B$18,Sustituciones!$C$18),\nSustituciones!$B$19,Sustituciones!$C$19),\nSustituciones!$B$20,Sustituciones!$C$20),\nSustituciones!$B$21,Sustituciones!$C$21),\nSustituciones!$B$22,Sustituciones!$C$22),\nSustituciones!$B$23,Sustituciones!$C$23)","v":"Carolina Darias -San-Sebastián"},null,null,{"$f":"SUBSTITUTE(SUBSTITUTE(SUBSTITUTE(SUBSTITUTE(SUBSTITUTE(SUBSTITUTE(SUBSTITUTE(SUBSTITUTE(SUBSTITUTE(SUBSTITUTE(SUBSTITUTE(SUBSTITUTE(SUBSTITUTE(SUBSTITUTE(SUBSTITUTE(SUBSTITUTE(SUBSTITUTE(SUBSTITUTE(SUBSTITUTE(SUBSTITUTE(SUBSTITUTE(SUBSTITUTE(D64,\nSustituciones!$D$2,Sustituciones!$E$2),\nSustituciones!$D$3,Sustituciones!$E$3),\nSustituciones!$D$4,Sustituciones!$E$4),\nSustituciones!$D$5,Sustituciones!$E$5),\nSustituciones!$D$6,Sustituciones!$E$6),\nSustituciones!$D$7,Sustituciones!$E$7),\nSustituciones!$D$8,Sustituciones!$E$8),\nSustituciones!$D$9,Sustituciones!$E$9),\nSustituciones!$D$10,Sustituciones!$E$10),\nSustituciones!$D$11,Sustituciones!$E$11),\nSustituciones!$D$12,Sustituciones!$E$12),\nSustituciones!$D$13,Sustituciones!$E$13),\nSustituciones!$D$14,Sustituciones!$E$14),\nSustituciones!$D$15,Sustituciones!$E$15),\nSustituciones!$D$16,Sustituciones!$E$16),\nSustituciones!$D$17,Sustituciones!$E$17),\nSustituciones!$D$18,Sustituciones!$E$18),\nSustituciones!$D$19,Sustituciones!$E$19),\nSustituciones!$D$20,Sustituciones!$E$20),\nSustituciones!$D$21,Sustituciones!$E$21),\nSustituciones!$D$22,Sustituciones!$E$22),\nSustituciones!$D$23,Sustituciones!$E$23)","v":""},null,null,null,null,"  ",false]
["Ione Belarra Urteaga",null,{"$f":"SUBSTITUTE(SUBSTITUTE(SUBSTITUTE(SUBSTITUTE(SUBSTITUTE(SUBSTITUTE(SUBSTITUTE(SUBSTITUTE(SUBSTITUTE(SUBSTITUTE(SUBSTITUTE(SUBSTITUTE(SUBSTITUTE(SUBSTITUTE(SUBSTITUTE(SUBSTITUTE(SUBSTITUTE(SUBSTITUTE(SUBSTITUTE(SUBSTITUTE(SUBSTITUTE(SUBSTITUTE(A65,\nSustituciones!$B$2,Sustituciones!$C$2),\nSustituciones!$B$3,Sustituciones!$C$3),\nSustituciones!$B$4,Sustituciones!$C$4),\nSustituciones!$B$5,Sustituciones!$C$5),\nSustituciones!$B$6,Sustituciones!$C$6),\nSustituciones!$B$7,Sustituciones!$C$7),\nSustituciones!$B$8,Sustituciones!$C$8),\nSustituciones!$B$9,Sustituciones!$C$9),\nSustituciones!$B$10,Sustituciones!$C$10),\nSustituciones!$B$11,Sustituciones!$C$11),\nSustituciones!$B$12,Sustituciones!$C$12),\nSustituciones!$B$13,Sustituciones!$C$13),\nSustituciones!$B$14,Sustituciones!$C$14),\nSustituciones!$B$15,Sustituciones!$C$15),\nSustituciones!$B$16,Sustituciones!$C$16),\nSustituciones!$B$17,Sustituciones!$C$17),\nSustituciones!$B$18,Sustituciones!$C$18),\nSustituciones!$B$19,Sustituciones!$C$19),\nSustituciones!$B$20,Sustituciones!$C$20),\nSustituciones!$B$21,Sustituciones!$C$21),\nSustituciones!$B$22,Sustituciones!$C$22),\nSustituciones!$B$23,Sustituciones!$C$23)","v":"Ione Belarra Urteaga"},null,null,{"$f":"SUBSTITUTE(SUBSTITUTE(SUBSTITUTE(SUBSTITUTE(SUBSTITUTE(SUBSTITUTE(SUBSTITUTE(SUBSTITUTE(SUBSTITUTE(SUBSTITUTE(SUBSTITUTE(SUBSTITUTE(SUBSTITUTE(SUBSTITUTE(SUBSTITUTE(SUBSTITUTE(SUBSTITUTE(SUBSTITUTE(SUBSTITUTE(SUBSTITUTE(SUBSTITUTE(SUBSTITUTE(D65,\nSustituciones!$D$2,Sustituciones!$E$2),\nSustituciones!$D$3,Sustituciones!$E$3),\nSustituciones!$D$4,Sustituciones!$E$4),\nSustituciones!$D$5,Sustituciones!$E$5),\nSustituciones!$D$6,Sustituciones!$E$6),\nSustituciones!$D$7,Sustituciones!$E$7),\nSustituciones!$D$8,Sustituciones!$E$8),\nSustituciones!$D$9,Sustituciones!$E$9),\nSustituciones!$D$10,Sustituciones!$E$10),\nSustituciones!$D$11,Sustituciones!$E$11),\nSustituciones!$D$12,Sustituciones!$E$12),\nSustituciones!$D$13,Sustituciones!$E$13),\nSustituciones!$D$14,Sustituciones!$E$14),\nSustituciones!$D$15,Sustituciones!$E$15),\nSustituciones!$D$16,Sustituciones!$E$16),\nSustituciones!$D$17,Sustituciones!$E$17),\nSustituciones!$D$18,Sustituciones!$E$18),\nSustituciones!$D$19,Sustituciones!$E$19),\nSustituciones!$D$20,Sustituciones!$E$20),\nSustituciones!$D$21,Sustituciones!$E$21),\nSustituciones!$D$22,Sustituciones!$E$22),\nSustituciones!$D$23,Sustituciones!$E$23)","v":""},null,null,null,null,"  ",false]
["Diana Morant Ripoll",null,{"$f":"SUBSTITUTE(SUBSTITUTE(SUBSTITUTE(SUBSTITUTE(SUBSTITUTE(SUBSTITUTE(SUBSTITUTE(SUBSTITUTE(SUBSTITUTE(SUBSTITUTE(SUBSTITUTE(SUBSTITUTE(SUBSTITUTE(SUBSTITUTE(SUBSTITUTE(SUBSTITUTE(SUBSTITUTE(SUBSTITUTE(SUBSTITUTE(SUBSTITUTE(SUBSTITUTE(SUBSTITUTE(A66,\nSustituciones!$B$2,Sustituciones!$C$2),\nSustituciones!$B$3,Sustituciones!$C$3),\nSustituciones!$B$4,Sustituciones!$C$4),\nSustituciones!$B$5,Sustituciones!$C$5),\nSustituciones!$B$6,Sustituciones!$C$6),\nSustituciones!$B$7,Sustituciones!$C$7),\nSustituciones!$B$8,Sustituciones!$C$8),\nSustituciones!$B$9,Sustituciones!$C$9),\nSustituciones!$B$10,Sustituciones!$C$10),\nSustituciones!$B$11,Sustituciones!$C$11),\nSustituciones!$B$12,Sustituciones!$C$12),\nSustituciones!$B$13,Sustituciones!$C$13),\nSustituciones!$B$14,Sustituciones!$C$14),\nSustituciones!$B$15,Sustituciones!$C$15),\nSustituciones!$B$16,Sustituciones!$C$16),\nSustituciones!$B$17,Sustituciones!$C$17),\nSustituciones!$B$18,Sustituciones!$C$18),\nSustituciones!$B$19,Sustituciones!$C$19),\nSustituciones!$B$20,Sustituciones!$C$20),\nSustituciones!$B$21,Sustituciones!$C$21),\nSustituciones!$B$22,Sustituciones!$C$22),\nSustituciones!$B$23,Sustituciones!$C$23)","v":"Diana Morant Ripoll"},null,null,{"$f":"SUBSTITUTE(SUBSTITUTE(SUBSTITUTE(SUBSTITUTE(SUBSTITUTE(SUBSTITUTE(SUBSTITUTE(SUBSTITUTE(SUBSTITUTE(SUBSTITUTE(SUBSTITUTE(SUBSTITUTE(SUBSTITUTE(SUBSTITUTE(SUBSTITUTE(SUBSTITUTE(SUBSTITUTE(SUBSTITUTE(SUBSTITUTE(SUBSTITUTE(SUBSTITUTE(SUBSTITUTE(D66,\nSustituciones!$D$2,Sustituciones!$E$2),\nSustituciones!$D$3,Sustituciones!$E$3),\nSustituciones!$D$4,Sustituciones!$E$4),\nSustituciones!$D$5,Sustituciones!$E$5),\nSustituciones!$D$6,Sustituciones!$E$6),\nSustituciones!$D$7,Sustituciones!$E$7),\nSustituciones!$D$8,Sustituciones!$E$8),\nSustituciones!$D$9,Sustituciones!$E$9),\nSustituciones!$D$10,Sustituciones!$E$10),\nSustituciones!$D$11,Sustituciones!$E$11),\nSustituciones!$D$12,Sustituciones!$E$12),\nSustituciones!$D$13,Sustituciones!$E$13),\nSustituciones!$D$14,Sustituciones!$E$14),\nSustituciones!$D$15,Sustituciones!$E$15),\nSustituciones!$D$16,Sustituciones!$E$16),\nSustituciones!$D$17,Sustituciones!$E$17),\nSustituciones!$D$18,Sustituciones!$E$18),\nSustituciones!$D$19,Sustituciones!$E$19),\nSustituciones!$D$20,Sustituciones!$E$20),\nSustituciones!$D$21,Sustituciones!$E$21),\nSustituciones!$D$22,Sustituciones!$E$22),\nSustituciones!$D$23,Sustituciones!$E$23)","v":""},null,null,null,null,"  ",false]
["Irene María Montero Gil",null,{"$f":"SUBSTITUTE(SUBSTITUTE(SUBSTITUTE(SUBSTITUTE(SUBSTITUTE(SUBSTITUTE(SUBSTITUTE(SUBSTITUTE(SUBSTITUTE(SUBSTITUTE(SUBSTITUTE(SUBSTITUTE(SUBSTITUTE(SUBSTITUTE(SUBSTITUTE(SUBSTITUTE(SUBSTITUTE(SUBSTITUTE(SUBSTITUTE(SUBSTITUTE(SUBSTITUTE(SUBSTITUTE(A67,\nSustituciones!$B$2,Sustituciones!$C$2),\nSustituciones!$B$3,Sustituciones!$C$3),\nSustituciones!$B$4,Sustituciones!$C$4),\nSustituciones!$B$5,Sustituciones!$C$5),\nSustituciones!$B$6,Sustituciones!$C$6),\nSustituciones!$B$7,Sustituciones!$C$7),\nSustituciones!$B$8,Sustituciones!$C$8),\nSustituciones!$B$9,Sustituciones!$C$9),\nSustituciones!$B$10,Sustituciones!$C$10),\nSustituciones!$B$11,Sustituciones!$C$11),\nSustituciones!$B$12,Sustituciones!$C$12),\nSustituciones!$B$13,Sustituciones!$C$13),\nSustituciones!$B$14,Sustituciones!$C$14),\nSustituciones!$B$15,Sustituciones!$C$15),\nSustituciones!$B$16,Sustituciones!$C$16),\nSustituciones!$B$17,Sustituciones!$C$17),\nSustituciones!$B$18,Sustituciones!$C$18),\nSustituciones!$B$19,Sustituciones!$C$19),\nSustituciones!$B$20,Sustituciones!$C$20),\nSustituciones!$B$21,Sustituciones!$C$21),\nSustituciones!$B$22,Sustituciones!$C$22),\nSustituciones!$B$23,Sustituciones!$C$23)","v":"Irene María Montero Gil"},null,null,{"$f":"SUBSTITUTE(SUBSTITUTE(SUBSTITUTE(SUBSTITUTE(SUBSTITUTE(SUBSTITUTE(SUBSTITUTE(SUBSTITUTE(SUBSTITUTE(SUBSTITUTE(SUBSTITUTE(SUBSTITUTE(SUBSTITUTE(SUBSTITUTE(SUBSTITUTE(SUBSTITUTE(SUBSTITUTE(SUBSTITUTE(SUBSTITUTE(SUBSTITUTE(SUBSTITUTE(SUBSTITUTE(D67,\nSustituciones!$D$2,Sustituciones!$E$2),\nSustituciones!$D$3,Sustituciones!$E$3),\nSustituciones!$D$4,Sustituciones!$E$4),\nSustituciones!$D$5,Sustituciones!$E$5),\nSustituciones!$D$6,Sustituciones!$E$6),\nSustituciones!$D$7,Sustituciones!$E$7),\nSustituciones!$D$8,Sustituciones!$E$8),\nSustituciones!$D$9,Sustituciones!$E$9),\nSustituciones!$D$10,Sustituciones!$E$10),\nSustituciones!$D$11,Sustituciones!$E$11),\nSustituciones!$D$12,Sustituciones!$E$12),\nSustituciones!$D$13,Sustituciones!$E$13),\nSustituciones!$D$14,Sustituciones!$E$14),\nSustituciones!$D$15,Sustituciones!$E$15),\nSustituciones!$D$16,Sustituciones!$E$16),\nSustituciones!$D$17,Sustituciones!$E$17),\nSustituciones!$D$18,Sustituciones!$E$18),\nSustituciones!$D$19,Sustituciones!$E$19),\nSustituciones!$D$20,Sustituciones!$E$20),\nSustituciones!$D$21,Sustituciones!$E$21),\nSustituciones!$D$22,Sustituciones!$E$22),\nSustituciones!$D$23,Sustituciones!$E$23)","v":""},null,null,null,null,{"$f":"G67&\" \"&H67&\" \"&I67","v":"  "},{"$f":"EXACT(A67,K67)","v":false}]
["Alberto Garzón Espinosa",null,{"$f":"SUBSTITUTE(SUBSTITUTE(SUBSTITUTE(SUBSTITUTE(SUBSTITUTE(SUBSTITUTE(SUBSTITUTE(SUBSTITUTE(SUBSTITUTE(SUBSTITUTE(SUBSTITUTE(SUBSTITUTE(SUBSTITUTE(SUBSTITUTE(SUBSTITUTE(SUBSTITUTE(SUBSTITUTE(SUBSTITUTE(SUBSTITUTE(SUBSTITUTE(SUBSTITUTE(SUBSTITUTE(A68,\nSustituciones!$B$2,Sustituciones!$C$2),\nSustituciones!$B$3,Sustituciones!$C$3),\nSustituciones!$B$4,Sustituciones!$C$4),\nSustituciones!$B$5,Sustituciones!$C$5),\nSustituciones!$B$6,Sustituciones!$C$6),\nSustituciones!$B$7,Sustituciones!$C$7),\nSustituciones!$B$8,Sustituciones!$C$8),\nSustituciones!$B$9,Sustituciones!$C$9),\nSustituciones!$B$10,Sustituciones!$C$10),\nSustituciones!$B$11,Sustituciones!$C$11),\nSustituciones!$B$12,Sustituciones!$C$12),\nSustituciones!$B$13,Sustituciones!$C$13),\nSustituciones!$B$14,Sustituciones!$C$14),\nSustituciones!$B$15,Sustituciones!$C$15),\nSustituciones!$B$16,Sustituciones!$C$16),\nSustituciones!$B$17,Sustituciones!$C$17),\nSustituciones!$B$18,Sustituciones!$C$18),\nSustituciones!$B$19,Sustituciones!$C$19),\nSustituciones!$B$20,Sustituciones!$C$20),\nSustituciones!$B$21,Sustituciones!$C$21),\nSustituciones!$B$22,Sustituciones!$C$22),\nSustituciones!$B$23,Sustituciones!$C$23)","v":"Alberto Garzón Espinosa"},null,null,{"$f":"SUBSTITUTE(SUBSTITUTE(SUBSTITUTE(SUBSTITUTE(SUBSTITUTE(SUBSTITUTE(SUBSTITUTE(SUBSTITUTE(SUBSTITUTE(SUBSTITUTE(SUBSTITUTE(SUBSTITUTE(SUBSTITUTE(SUBSTITUTE(SUBSTITUTE(SUBSTITUTE(SUBSTITUTE(SUBSTITUTE(SUBSTITUTE(SUBSTITUTE(SUBSTITUTE(SUBSTITUTE(D68,\nSustituciones!$D$2,Sustituciones!$E$2),\nSustituciones!$D$3,Sustituciones!$E$3),\nSustituciones!$D$4,Sustituciones!$E$4),\nSustituciones!$D$5,Sustituciones!$E$5),\nSustituciones!$D$6,Sustituciones!$E$6),\nSustituciones!$D$7,Sustituciones!$E$7),\nSustituciones!$D$8,Sustituciones!$E$8),\nSustituciones!$D$9,Sustituciones!$E$9),\nSustituciones!$D$10,Sustituciones!$E$10),\nSustituciones!$D$11,Sustituciones!$E$11),\nSustituciones!$D$12,Sustituciones!$E$12),\nSustituciones!$D$13,Sustituciones!$E$13),\nSustituciones!$D$14,Sustituciones!$E$14),\nSustituciones!$D$15,Sustituciones!$E$15),\nSustituciones!$D$16,Sustituciones!$E$16),\nSustituciones!$D$17,Sustituciones!$E$17),\nSustituciones!$D$18,Sustituciones!$E$18),\nSustituciones!$D$19,Sustituciones!$E$19),\nSustituciones!$D$20,Sustituciones!$E$20),\nSustituciones!$D$21,Sustituciones!$E$21),\nSustituciones!$D$22,Sustituciones!$E$22),\nSustituciones!$D$23,Sustituciones!$E$23)","v":""},null,null,null,null,"  ",false]
["José Luis Escrivá Belmonte",null,{"$f":"SUBSTITUTE(SUBSTITUTE(SUBSTITUTE(SUBSTITUTE(SUBSTITUTE(SUBSTITUTE(SUBSTITUTE(SUBSTITUTE(SUBSTITUTE(SUBSTITUTE(SUBSTITUTE(SUBSTITUTE(SUBSTITUTE(SUBSTITUTE(SUBSTITUTE(SUBSTITUTE(SUBSTITUTE(SUBSTITUTE(SUBSTITUTE(SUBSTITUTE(SUBSTITUTE(SUBSTITUTE(A69,\nSustituciones!$B$2,Sustituciones!$C$2),\nSustituciones!$B$3,Sustituciones!$C$3),\nSustituciones!$B$4,Sustituciones!$C$4),\nSustituciones!$B$5,Sustituciones!$C$5),\nSustituciones!$B$6,Sustituciones!$C$6),\nSustituciones!$B$7,Sustituciones!$C$7),\nSustituciones!$B$8,Sustituciones!$C$8),\nSustituciones!$B$9,Sustituciones!$C$9),\nSustituciones!$B$10,Sustituciones!$C$10),\nSustituciones!$B$11,Sustituciones!$C$11),\nSustituciones!$B$12,Sustituciones!$C$12),\nSustituciones!$B$13,Sustituciones!$C$13),\nSustituciones!$B$14,Sustituciones!$C$14),\nSustituciones!$B$15,Sustituciones!$C$15),\nSustituciones!$B$16,Sustituciones!$C$16),\nSustituciones!$B$17,Sustituciones!$C$17),\nSustituciones!$B$18,Sustituciones!$C$18),\nSustituciones!$B$19,Sustituciones!$C$19),\nSustituciones!$B$20,Sustituciones!$C$20),\nSustituciones!$B$21,Sustituciones!$C$21),\nSustituciones!$B$22,Sustituciones!$C$22),\nSustituciones!$B$23,Sustituciones!$C$23)","v":"José Luis Escrivá Belmonte"},null,null,{"$f":"SUBSTITUTE(SUBSTITUTE(SUBSTITUTE(SUBSTITUTE(SUBSTITUTE(SUBSTITUTE(SUBSTITUTE(SUBSTITUTE(SUBSTITUTE(SUBSTITUTE(SUBSTITUTE(SUBSTITUTE(SUBSTITUTE(SUBSTITUTE(SUBSTITUTE(SUBSTITUTE(SUBSTITUTE(SUBSTITUTE(SUBSTITUTE(SUBSTITUTE(SUBSTITUTE(SUBSTITUTE(D69,\nSustituciones!$D$2,Sustituciones!$E$2),\nSustituciones!$D$3,Sustituciones!$E$3),\nSustituciones!$D$4,Sustituciones!$E$4),\nSustituciones!$D$5,Sustituciones!$E$5),\nSustituciones!$D$6,Sustituciones!$E$6),\nSustituciones!$D$7,Sustituciones!$E$7),\nSustituciones!$D$8,Sustituciones!$E$8),\nSustituciones!$D$9,Sustituciones!$E$9),\nSustituciones!$D$10,Sustituciones!$E$10),\nSustituciones!$D$11,Sustituciones!$E$11),\nSustituciones!$D$12,Sustituciones!$E$12),\nSustituciones!$D$13,Sustituciones!$E$13),\nSustituciones!$D$14,Sustituciones!$E$14),\nSustituciones!$D$15,Sustituciones!$E$15),\nSustituciones!$D$16,Sustituciones!$E$16),\nSustituciones!$D$17,Sustituciones!$E$17),\nSustituciones!$D$18,Sustituciones!$E$18),\nSustituciones!$D$19,Sustituciones!$E$19),\nSustituciones!$D$20,Sustituciones!$E$20),\nSustituciones!$D$21,Sustituciones!$E$21),\nSustituciones!$D$22,Sustituciones!$E$22),\nSustituciones!$D$23,Sustituciones!$E$23)","v":""},null,null,null,null,"  ",false]
["Manuel Castells Oliván",null,{"$f":"SUBSTITUTE(SUBSTITUTE(SUBSTITUTE(SUBSTITUTE(SUBSTITUTE(SUBSTITUTE(SUBSTITUTE(SUBSTITUTE(SUBSTITUTE(SUBSTITUTE(SUBSTITUTE(SUBSTITUTE(SUBSTITUTE(SUBSTITUTE(SUBSTITUTE(SUBSTITUTE(SUBSTITUTE(SUBSTITUTE(SUBSTITUTE(SUBSTITUTE(SUBSTITUTE(SUBSTITUTE(A70,\nSustituciones!$B$2,Sustituciones!$C$2),\nSustituciones!$B$3,Sustituciones!$C$3),\nSustituciones!$B$4,Sustituciones!$C$4),\nSustituciones!$B$5,Sustituciones!$C$5),\nSustituciones!$B$6,Sustituciones!$C$6),\nSustituciones!$B$7,Sustituciones!$C$7),\nSustituciones!$B$8,Sustituciones!$C$8),\nSustituciones!$B$9,Sustituciones!$C$9),\nSustituciones!$B$10,Sustituciones!$C$10),\nSustituciones!$B$11,Sustituciones!$C$11),\nSustituciones!$B$12,Sustituciones!$C$12),\nSustituciones!$B$13,Sustituciones!$C$13),\nSustituciones!$B$14,Sustituciones!$C$14),\nSustituciones!$B$15,Sustituciones!$C$15),\nSustituciones!$B$16,Sustituciones!$C$16),\nSustituciones!$B$17,Sustituciones!$C$17),\nSustituciones!$B$18,Sustituciones!$C$18),\nSustituciones!$B$19,Sustituciones!$C$19),\nSustituciones!$B$20,Sustituciones!$C$20),\nSustituciones!$B$21,Sustituciones!$C$21),\nSustituciones!$B$22,Sustituciones!$C$22),\nSustituciones!$B$23,Sustituciones!$C$23)","v":"Manuel Castells Oliván"},null,null,{"$f":"SUBSTITUTE(SUBSTITUTE(SUBSTITUTE(SUBSTITUTE(SUBSTITUTE(SUBSTITUTE(SUBSTITUTE(SUBSTITUTE(SUBSTITUTE(SUBSTITUTE(SUBSTITUTE(SUBSTITUTE(SUBSTITUTE(SUBSTITUTE(SUBSTITUTE(SUBSTITUTE(SUBSTITUTE(SUBSTITUTE(SUBSTITUTE(SUBSTITUTE(SUBSTITUTE(SUBSTITUTE(D70,\nSustituciones!$D$2,Sustituciones!$E$2),\nSustituciones!$D$3,Sustituciones!$E$3),\nSustituciones!$D$4,Sustituciones!$E$4),\nSustituciones!$D$5,Sustituciones!$E$5),\nSustituciones!$D$6,Sustituciones!$E$6),\nSustituciones!$D$7,Sustituciones!$E$7),\nSustituciones!$D$8,Sustituciones!$E$8),\nSustituciones!$D$9,Sustituciones!$E$9),\nSustituciones!$D$10,Sustituciones!$E$10),\nSustituciones!$D$11,Sustituciones!$E$11),\nSustituciones!$D$12,Sustituciones!$E$12),\nSustituciones!$D$13,Sustituciones!$E$13),\nSustituciones!$D$14,Sustituciones!$E$14),\nSustituciones!$D$15,Sustituciones!$E$15),\nSustituciones!$D$16,Sustituciones!$E$16),\nSustituciones!$D$17,Sustituciones!$E$17),\nSustituciones!$D$18,Sustituciones!$E$18),\nSustituciones!$D$19,Sustituciones!$E$19),\nSustituciones!$D$20,Sustituciones!$E$20),\nSustituciones!$D$21,Sustituciones!$E$21),\nSustituciones!$D$22,Sustituciones!$E$22),\nSustituciones!$D$23,Sustituciones!$E$23)","v":""},null,null,null,null,"  ",false]

{"sheet":"Sustituciones","index":6,"n_rows":23,"n_cols":5,"rows_kept":23,"cut":false,"hidden":false,"merged":[]}
["Sustituciones","1º Sustituir","1º Por","2º Sustituir","2º Por"]
["de los",{"$f":"\" \"&A2&\" \"","v":" de los "},{"$f":"\" \"&D2","v":" -delos-"},{"$f":"\"-\"&SUBSTITUTE(A2,\" \",\"\")&\"-\"","v":"-delos-"},{"$f":"A2&\" \"","v":"de los "}]
["De los"," De los "," -Delos-","-Delos-",{"$f":"A3&\" \"","v":"De los "}]
["de las"," de las "," -delas-","-delas-",{"$f":"A4&\" \"","v":"de las "}]
["De las"," De las "," -Delas-","-Delas-",{"$f":"A5&\" \"","v":"De las "}]
["de la"," de la "," -dela-","-dela-","de la "]
["De la"," De la "," -Dela-","-Dela-",{"$f":"A7&\" \"","v":"De la "}]
["del"," del "," -del-","-del-","del "]
["Del"," Del "," -Del-","-Del-","Del "]
["de"," de "," -de-","-de-","de "]
["De"," De "," -De-","-De-","De "]
["los"," los "," -los-","-los-",{"$f":"A12&\" \"","v":"los "}]
["Los"," Los "," -Los-","-Los-",{"$f":"A13&\" \"","v":"Los "}]
["las"," las "," -las-","-las-",{"$f":"A14&\" \"","v":"las "}]
["Las"," Las "," -Las-","-Las-","Las "]
["la"," la "," -la-","-la-",{"$f":"A16&\" \"","v":"la "}]
["La"," La "," -La-","-La-","La "]
["el",{"$f":"\" \"&A18&\" \"","v":" el "},{"$f":"\" \"&D18","v":" -el-"},{"$f":"\"-\"&SUBSTITUTE(A18,\" \",\"\")&\"-\"","v":"-el-"},{"$f":"A18&\" \"","v":"el "}]
["El",{"$f":"\" \"&A19&\" \"","v":" El "},{"$f":"\" \"&D19","v":" -El-"},{"$f":"\"-\"&SUBSTITUTE(A19,\" \",\"\")&\"-\"","v":"-El-"},{"$f":"A19&\" \"","v":"El "}]
["y",{"$f":"\" \"&A20&\" \"","v":" y "},{"$f":"\" \"&D20","v":" -y-"},{"$f":"\"-\"&SUBSTITUTE(A20,\" \",\"\")&\"-\"","v":"-y-"},{"$f":"A20&\" \"","v":"y "}]
["Y"," Y "," -Y-","-Y-","Y "]
["san",{"$f":"\" \"&A22&\" \"","v":" san "},{"$f":"\" \"&D22","v":" -san-"},{"$f":"\"-\"&SUBSTITUTE(A22,\" \",\"\")&\"-\"","v":"-san-"},{"$f":"A22&\" \"","v":"san "}]
["San"," San "," -San-","-San-",{"$f":"A23&\" \"","v":"San "}]